Workbook

Sheet Examples (hidden)
B1: Teal | C1: Red | D1: Light grey | E1: Mid-grey | F1: Grey | G1: Light teal | H1: Mid-red | I1: Light red | L1: Teal solid | M1: Red solid | N1: Mid-grey | O1: Teal dashes | P1: Red dashes | Q1: Grey dashes | S1: X value | T1: 1st Y value | U1: 2nd Y value | X1: Teal | Y1: Red | Z1: Mid-red | AA1: Mid-grey
A2: 2003-04 | B2: 36.19 | C2: 36.88 | D2: 21.56 | E2: 5.36 | F2: 3.01 | G2: 10 | H2: 3.01 | I2: 10 | K2: 2003-04 | L2: 33.19 | M2: 36.88 | N2: 21.56 | O2: 5.36 | P2: 3.01 | Q2: 10 | S2: 1.8 | T2: 10 | U2: 17 | W2: 2003-04 | X2: 33.19 | Y2: 36.88 | Z2: 21.56 | AA2: 5.36
A3: 2004-05 | B3: 39.39 | C3: 32.02 | D3: 21.6 | E3: 7.01 | F3: 3.36 | G3: 12 | H3: 3.36 | I3: 12 | K3: 2004-05 | L3: 39.39 | M3: 32.02 | N3: 21.6 | O3: 7.01 | P3: 3.36 | Q3: 12 | S3: 2.3 | T3: 12 | U3: 9 | W3: 2004-05 | X3: 39.39 | Y3: 32.02 | Z3: 21.6 | AA3: 7.01
A4: 2005-06 | B4: 42.78 | C4: 29.91 | D4: 18.35 | E4: 6.33 | F4: 2.63 | G4: 14 | H4: 2.63 | I4: 14 | K4: 2005-06 | L4: 42.78 | M4: 29.91 | N4: 18.35 | O4: 6.33 | P4: 2.63 | Q4: 14 | S4: 3.7 | T4: 16 | U4: 14 | W4: 2005-06 | X4: 42.78 | Y4: 29.91 | Z4: 18.35 | AA4: 6.33
A5: 2006-07 | B5: 42.13 | C5: 26.53 | D5: 21.6 | E5: 7.01 | F5: 2.72 | G5: 16 | H5: 2.72 | I5: 16 | K5: 2006-07 | L5: 42.13 | M5: 26.53 | N5: 21.6 | O5: 7.01 | P5: 2.72 | Q5: 16 | S5: 4.1 | T5: 8 | U5: 23 | W5: 2006-07 | X5: 42.13 | Y5: 26.53 | Z5: 21.6 | AA5: 7.01
A6: 2007-08 | B6: 41.69 | C6: 24.76 | D6: 23.98 | E6: 7 | F6: 2.57 | G6: 18 | H6: 2.57 | I6: 18 | K6: 2007-08 | L6: 41.69 | M6: 24.76 | N6: 23.98 | O6: 7 | P6: 2.57 | Q6: 18 | S6: 5.5 | T6: 14 | U6: 27 | W6: 2007-08 | X6: 41.69 | Y6: 24.76 | Z6: 23.98 | AA6: 7
A7: 2008-09 | B7: 39.39 | C7: 32.02 | D7: 21.6 | E7: 7.01 | F7: 3.36 | G7: 12 | H7: 3.36 | I7: 12 | K7: 2008-09 | L7: 39.39 | M7: 32.02 | N7: 21.6 | O7: 7.01 | P7: 3.36 | Q7: 12 | W7: 2008-09 | X7: 39.39 | Y7: 32.02 | Z7: 21.6 | AA7: 7.01
A8: 2009-10 | B8: 42.13 | C8: 26.53 | D8: 21.6 | E8: 7.01 | F8: 2.72 | G8: 16 | H8: 2.72 | I8: 16 | K8: 2009-10 | L8: 42.13 | M8: 26.53 | N8: 21.6 | O8: 7.01 | P8: 2.72 | Q8: 16 | W8: 2009-10 | X8: 42.13 | Y8: 26.53 | Z8: 21.6 | AA8: 7.01
A9: 2010-11 | B9: 45 | C9: 22 | D9: 26 | E9: 8 | F9: 2 | G9: 20 | H9: 2 | I9: 20 | K9: 2010-11 | L9: 45 | M9: 22 | N9: 26 | O9: 8 | P9: 2 | Q9: 20 | W9: 2010-11 | X9: 45 | Y9: 22 | Z9: 26 | AA9: 8
A11: – en rule for when needed

Sheet Contents
B3: Colour-coding
C4: Main output sheet
C5: Calculation sheets
C6: Input sheets
C7: Raw data sheets
C8: Documentation sheets
B12: Below is a description of the key output, calculation and input sheets in the model.
B14: Sheet name | C14: Description
B15: O - EE + FS | C15: Main forecasting outputs by calendar and financial year, including energy efficiency (EE) and fuel switching (FS) impacts
B16: O - WN | C16: Weather-normalised usage by calendar year, used to make charts showing weather-normalised historical usage
B17: O - CN sum | C17: Total customer numbers by calendar and financial years, with and without disconnections
B18: O - Res CN | C18: Residential customer numbers by postcode, by calendar year
B19: O - Comm CN | C19: Commercial customer numbers by postcode, by calendar year
B20: O - Disconn | C20: Estimated disconnections by postcode, split between disconnections at continued historical rates and additional disconnections due to policy changes
B21: O - D+M usage | C21: Tariff D and M usage forecasts
B22: C - tariff volumes | C22: Sum of existing and new customer usage, doesn't include impact of energy efficiency and fuel switching
B23: C - u_exist | C23: Estimation of usage by existing customers
B24: C - u_new | C24: Estimation of usage by new customers
B25: C - CPR | C25: Calculation of constant-price revenue, used for some charts
B26: C - MHQ | C26: Calculation of Tariff D+M MHQ, applying AEMO system demand forecasts on the 'I - drivers' sheet
B27: I - drivers | C27: Summary of drivers for usage per customer, such as EDDs, prices, and post-modelling adjustments
B28: I - hist driv | C28: EDD raw inputs and trend estimates, plus historical prices, disconnections and number of customers by year connected
B29: I - coeff | C29: Coefficients from the statistical modelling
B30: I - assumptions | C30: Main sheet containing assumptions and parameters, including switches for Scenarios 0-6
B31: I - AEMO | C31: Inputs from the AEMO GSOO 2023 and 2024
B32: Charts | C32: Key report charts

Sheet PTRM Link - EE FS
D2: Fixed Charge | E2: =D2 -> Fixed Charge | F2: =E2 -> Fixed Charge | G2: =F2 -> Fixed Charge | H2: =G2 -> Fixed Charge | I2: =H2 -> Fixed Charge | J2: Peak 0 - 0.1 | K2: =J2 -> Peak 0 - 0.1 | L2: =K2 -> Peak 0 - 0.1 | M2: =L2 -> Peak 0 - 0.1 | N2: =M2 -> Peak 0 - 0.1 | O2: =N2 -> Peak 0 - 0.1 | P2: Peak 0.1 - 0.2 | Q2: =P2 -> Peak 0.1 - 0.2 | R2: =Q2 -> Peak 0.1 - 0.2 | S2: =R2 -> Peak 0.1 - 0.2 | T2: =S2 -> Peak 0.1 - 0.2 | U2: =T2 -> Peak 0.1 - 0.2 | V2: Peak 0.2 - 1.4 | W2: =V2 -> Peak 0.2 - 1.4 | X2: =W2 -> Peak 0.2 - 1.4 | Y2: =X2 -> Peak 0.2 - 1.4 | Z2: =Y2 -> Peak 0.2 - 1.4 | AA2: =Z2 -> Peak 0.2 - 1.4 | AB2: Peak > 1.4 | AC2: =AB2 -> Peak > 1.4 | AD2: =AC2 -> Peak > 1.4 | AE2: =AD2 -> Peak > 1.4 | AF2: =AE2 -> Peak > 1.4 | AG2: =AF2 -> Peak > 1.4 | AH2: Off Peak 0 - 0.1 | AI2: =AH2 -> Off Peak 0 - 0.1 | AJ2: =AI2 -> Off Peak 0 - 0.1 | AK2: =AJ2 -> Off Peak 0 - 0.1 | AL2: =AK2 -> Off Peak 0 - 0.1 | AM2: =AL2 -> Off Peak 0 - 0.1 | AN2: Off Peak 0.1 - 0.2 | AO2: =AN2 -> Off Peak 0.1 - 0.2 | AP2: =AO2 -> Off Peak 0.1 - 0.2 | AQ2: =AP2 -> Off Peak 0.1 - 0.2 | AR2: =AQ2 -> Off Peak 0.1 - 0.2 | AS2: =AR2 -> Off Peak 0.1 - 0.2 | AT2: Off Peak 0.2 - 1.4 | AU2: =AT2 -> Off Peak 0.2 - 1.4 | AV2: =AU2 -> Off Peak 0.2 - 1.4 | AW2: =AV2 -> Off Peak 0.2 - 1.4 | AX2: =AW2 -> Off Peak 0.2 - 1.4 | AY2: =AX2 -> Off Peak 0.2 - 1.4 | AZ2: Off Peak > 1.4 | BA2: =AZ2 -> Off Peak > 1.4 | BB2: =BA2 -> Off Peak > 1.4 | BC2: =BB2 -> Off Peak > 1.4 | BD2: =BC2 -> Off Peak > 1.4 | BE2: =BD2 -> Off Peak > 1.4 | BF2: 0 - 10 | BG2: =BF2 -> 0 - 10 | BH2: =BG2 -> 0 - 10 | BI2: =BH2 -> 0 - 10 | BJ2: =BI2 -> 0 - 10 | BK2: =BJ2 -> 0 - 10 | BL2: 10 - 50 | BM2: =BL2 -> 10 - 50 | BN2: =BM2 -> 10 - 50 | BO2: =BN2 -> 10 - 50 | BP2: =BO2 -> 10 - 50 | BQ2: =BP2 -> 10 - 50 | BR2: > 50 | BS2: =BR2 -> > 50 | BT2: =BS2 -> > 50 | BU2: =BT2 -> > 50 | BV2: =BU2 -> > 50 | BW2: =BV2 -> > 50
C4: Stub Period
C6: Tariff Quantities | D6: Customer Numbers | J6: Volumes - Peak Volumes (GJ) 0 - 0.1 GJ | P6: Volumes - Peak Volumes (GJ) 0.1 - 0.2 GJ | V6: Volumes - Peak Volumes (GJ) 0.2 - 1.4 GJ | AB6: Volumes - Peak Volumes (GJ) > 1.4 GJ | AH6: Volumes - Off Peak Volumes (GJ) 0 - 0.1 GJ | AN6: Volumes - Off Peak Volumes (GJ) 0.1 - 0.2 GJ | AT6: Volumes - Off Peak Volumes (GJ) 0.2 - 1.4 GJ | AZ6: Volumes - Off Peak Volumes (GJ) > 1.4 GJ | BF6: Volumes - 0 - 10 MHQ (GJ/hour) | BL6: Volumes - 10 - 50 MHQ (GJ/hour) | BR6: Volumes - > 50 MHQ (GJ/hour)
C7: Year | D7: 2022 | E7: 2023 | F7: 2024 | G7: 2025 | H7: 2026 | I7: 2027 | J7: 2022 | K7: 2023 | L7: 2024 | M7: 2025 | N7: 2026 | O7: 2027 | P7: 2022 | Q7: 2023 | R7: 2024 | S7: 2025 | T7: 2026 | U7: 2027 | V7: 2022 | W7: 2023 | X7: 2024 | Y7: 2025 | Z7: 2026 | AA7: 2027 | AB7: 2022 | AC7: 2023 | AD7: 2024 | AE7: 2025 | AF7: 2026 | AG7: 2027 | AH7: 2022 | AI7: 2023 | AJ7: 2024 | AK7: 2025 | AL7: 2026 | AM7: 2027 | AN7: 2022 | AO7: 2023 | AP7: 2024 | AQ7: 2025 | AR7: 2026 | AS7: 2027 | AT7: 2022 | AU7: 2023 | AV7: 2024 | AW7: 2025 | AX7: 2026 | AY7: 2027 | AZ7: 2022 | BA7: 2023 | BB7: 2024 | BC7: 2025 | BD7: 2026 | BE7: 2027 | BF7: 2022 | BG7: 2023 | BH7: 2024 | BI7: 2025 | BJ7: 2026 | BK7: 2027 | BL7: 2022 | BM7: 2023 | BN7: 2024 | BO7: 2025 | BP7: 2026 | BQ7: 2027 | BR7: 2022 | BS7: 2023 | BT7: 2024 | BU7: 2025 | BV7: 2026 | BW7: 2027
B8: Tariff V - SP AusNet Central - Domestic | C8: Domestic Tariff V Zone - SP AusNet Central | D8: =SUMPRODUCT(('O - EE + FS'!$F$3:$F$105=$B8)*('O - EE + FS'!$G$3:$G$105=D$2)*('O - EE + FS'!$S$3:$S$105)) -> 585864.2564 | E8: =SUMPRODUCT(('O - EE + FS'!$F$3:$F$105=$B8)*('O - EE + FS'!$G$3:$G$105=D$2)*('O - EE + FS'!$AP$3:$AP$105)) -> 594583.7033 | J8: =SUMPRODUCT(('O - EE + FS'!$F$3:$F$105=$B8)*('O - EE + FS'!$G$3:$G$105=J$2)*('O - EE + FS'!$S$3:$S$105)) -> 5639296.528 | K8: =SUMPRODUCT(('O - EE + FS'!$F$3:$F$105=$B8)*('O - EE + FS'!$G$3:$G$105=J$2)*('O - EE + FS'!$AP$3:$AP$105)) -> 1299444.889 | P8: =SUMPRODUCT(('O - EE + FS'!$F$3:$F$105=$B8)*('O - EE + FS'!$G$3:$G$105=P$2)*('O - EE + FS'!$S$3:$S$105)) -> 3896673.097 | Q8: =SUMPRODUCT(('O - EE + FS'!$F$3:$F$105=$B8)*('O - EE + FS'!$G$3:$G$105=P$2)*('O - EE + FS'!$AP$3:$AP$105)) -> 809351.577 | V8: =SUMPRODUCT(('O - EE + FS'!$F$3:$F$105=$B8)*('O - EE + FS'!$G$3:$G$105=V$2)*('O - EE + FS'!$S$3:$S$105)) -> 6064379.389 | W8: =SUMPRODUCT(('O - EE + FS'!$F$3:$F$105=$B8)*('O - EE + FS'!$G$3:$G$105=V$2)*('O - EE + FS'!$AP$3:$AP$105)) -> 1215011.942 | AB8: =SUMPRODUCT(('O - EE + FS'!$F$3:$F$105=$B8)*('O - EE + FS'!$G$3:$G$105=AB$2)*('O - EE + FS'!$S$3:$S$105)) -> 66970.462 | AC8: =SUMPRODUCT(('O - EE + FS'!$F$3:$F$105=$B8)*('O - EE + FS'!$G$3:$G$105=AB$2)*('O - EE + FS'!$AP$3:$AP$105)) -> 10409.002 | AH8: =SUMPRODUCT(('O - EE + FS'!$F$3:$F$105=$B8)*('O - EE + FS'!$G$3:$G$105=AH$2)*('O - EE + FS'!$S$3:$S$105)) -> 7656180.42 | AI8: =SUMPRODUCT(('O - EE + FS'!$F$3:$F$105=$B8)*('O - EE + FS'!$G$3:$G$105=AH$2)*('O - EE + FS'!$AP$3:$AP$105)) -> 4497049.168 | AN8: =SUMPRODUCT(('O - EE + FS'!$F$3:$F$105=$B8)*('O - EE + FS'!$G$3:$G$105=AN$2)*('O - EE + FS'!$S$3:$S$105)) -> 1808815.361 | AO8: =SUMPRODUCT(('O - EE + FS'!$F$3:$F$105=$B8)*('O - EE + FS'!$G$3:$G$105=AN$2)*('O - EE + FS'!$AP$3:$AP$105)) -> 1336121.367 | AT8: =SUMPRODUCT(('O - EE + FS'!$F$3:$F$105=$B8)*('O - EE + FS'!$G$3:$G$105=AT$2)*('O - EE + FS'!$S$3:$S$105)) -> 935320.593 | AU8: =SUMPRODUCT(('O - EE + FS'!$F$3:$F$105=$B8)*('O - EE + FS'!$G$3:$G$105=AT$2)*('O - EE + FS'!$AP$3:$AP$105)) -> 853642.792 | AZ8: =SUMPRODUCT(('O - EE + FS'!$F$3:$F$105=$B8)*('O - EE + FS'!$G$3:$G$105=AZ$2)*('O - EE + FS'!$S$3:$S$105)) -> 53835.901 | BA8: =SUMPRODUCT(('O - EE + FS'!$F$3:$F$105=$B8)*('O - EE + FS'!$G$3:$G$105=AZ$2)*('O - EE + FS'!$AP$3:$AP$105)) -> 33897.536 | BF8: =SUMPRODUCT(('O - EE + FS'!$F$3:$F$105=$B8)*('O - EE + FS'!$G$3:$G$105=BF$2)*('O - EE + FS'!$S$3:$S$105)) -> 0 | BG8: =SUMPRODUCT(('O - EE + FS'!$F$3:$F$105=$B8)*('O - EE + FS'!$G$3:$G$105=BF$2)*('O - EE + FS'!$AP$3:$AP$105)) -> 0 | BL8: =SUMPRODUCT(('O - EE + FS'!$F$3:$F$105=$B8)*('O - EE + FS'!$G$3:$G$105=BL$2)*('O - EE + FS'!$S$3:$S$105)) -> 0 | BM8: =SUMPRODUCT(('O - EE + FS'!$F$3:$F$105=$B8)*('O - EE + FS'!$G$3:$G$105=BL$2)*('O - EE + FS'!$AP$3:$AP$105)) -> 0 | BR8: =SUMPRODUCT(('O - EE + FS'!$F$3:$F$105=$B8)*('O - EE + FS'!$G$3:$G$105=BR$2)*('O - EE + FS'!$S$3:$S$105)) -> 0 | BS8: =SUMPRODUCT(('O - EE + FS'!$F$3:$F$105=$B8)*('O - EE + FS'!$G$3:$G$105=BR$2)*('O - EE + FS'!$AP$3:$AP$105)) -> 0
B9: Tariff V - SP AusNet Central - Commercial | C9: Commercial Tariff V Zone - SP AusNet Central | D9: =SUMPRODUCT(('O - EE + FS'!$F$3:$F$105=$B9)*('O - EE + FS'!$G$3:$G$105=D$2)*('O - EE + FS'!$S$3:$S$105)) -> 10760.61093 | E9: =SUMPRODUCT(('O - EE + FS'!$F$3:$F$105=$B9)*('O - EE + FS'!$G$3:$G$105=D$2)*('O - EE + FS'!$AP$3:$AP$105)) -> 10796.44655 | J9: =SUMPRODUCT(('O - EE + FS'!$F$3:$F$105=$B9)*('O - EE + FS'!$G$3:$G$105=J$2)*('O - EE + FS'!$S$3:$S$105)) -> 95016.879 | K9: =SUMPRODUCT(('O - EE + FS'!$F$3:$F$105=$B9)*('O - EE + FS'!$G$3:$G$105=J$2)*('O - EE + FS'!$AP$3:$AP$105)) -> 21655.629 | P9: =SUMPRODUCT(('O - EE + FS'!$F$3:$F$105=$B9)*('O - EE + FS'!$G$3:$G$105=P$2)*('O - EE + FS'!$S$3:$S$105)) -> 77319.749 | Q9: =SUMPRODUCT(('O - EE + FS'!$F$3:$F$105=$B9)*('O - EE + FS'!$G$3:$G$105=P$2)*('O - EE + FS'!$AP$3:$AP$105)) -> 17538.553 | V9: =SUMPRODUCT(('O - EE + FS'!$F$3:$F$105=$B9)*('O - EE + FS'!$G$3:$G$105=V$2)*('O - EE + FS'!$S$3:$S$105)) -> 486016.428 | W9: =SUMPRODUCT(('O - EE + FS'!$F$3:$F$105=$B9)*('O - EE + FS'!$G$3:$G$105=V$2)*('O - EE + FS'!$AP$3:$AP$105)) -> 112385.047 | AB9: =SUMPRODUCT(('O - EE + FS'!$F$3:$F$105=$B9)*('O - EE + FS'!$G$3:$G$105=AB$2)*('O - EE + FS'!$S$3:$S$105)) -> 1289184.191 | AC9: =SUMPRODUCT(('O - EE + FS'!$F$3:$F$105=$B9)*('O - EE + FS'!$G$3:$G$105=AB$2)*('O - EE + FS'!$AP$3:$AP$105)) -> 286955.906 | AH9: =SUMPRODUCT(('O - EE + FS'!$F$3:$F$105=$B9)*('O - EE + FS'!$G$3:$G$105=AH$2)*('O - EE + FS'!$S$3:$S$105)) -> 166566.099 | AI9: =SUMPRODUCT(('O - EE + FS'!$F$3:$F$105=$B9)*('O - EE + FS'!$G$3:$G$105=AH$2)*('O - EE + FS'!$AP$3:$AP$105)) -> 100278.257 | AN9: =SUMPRODUCT(('O - EE + FS'!$F$3:$F$105=$B9)*('O - EE + FS'!$G$3:$G$105=AN$2)*('O - EE + FS'!$S$3:$S$105)) -> 122096.313 | AO9: =SUMPRODUCT(('O - EE + FS'!$F$3:$F$105=$B9)*('O - EE + FS'!$G$3:$G$105=AN$2)*('O - EE + FS'!$AP$3:$AP$105)) -> 73546.751 | AT9: =SUMPRODUCT(('O - EE + FS'!$F$3:$F$105=$B9)*('O - EE + FS'!$G$3:$G$105=AT$2)*('O - EE + FS'!$S$3:$S$105)) -> 719662.744 | AU9: =SUMPRODUCT(('O - EE + FS'!$F$3:$F$105=$B9)*('O - EE + FS'!$G$3:$G$105=AT$2)*('O - EE + FS'!$AP$3:$AP$105)) -> 442548.29 | AZ9: =SUMPRODUCT(('O - EE + FS'!$F$3:$F$105=$B9)*('O - EE + FS'!$G$3:$G$105=AZ$2)*('O - EE + FS'!$S$3:$S$105)) -> 1504337.764 | BA9: =SUMPRODUCT(('O - EE + FS'!$F$3:$F$105=$B9)*('O - EE + FS'!$G$3:$G$105=AZ$2)*('O - EE + FS'!$AP$3:$AP$105)) -> 948869.669 | BF9: =SUMPRODUCT(('O - EE + FS'!$F$3:$F$105=$B9)*('O - EE + FS'!$G$3:$G$105=BF$2)*('O - EE + FS'!$S$3:$S$105)) -> 0 | BG9: =SUMPRODUCT(('O - EE + FS'!$F$3:$F$105=$B9)*('O - EE + FS'!$G$3:$G$105=BF$2)*('O - EE + FS'!$AP$3:$AP$105)) -> 0 | BL9: =SUMPRODUCT(('O - EE + FS'!$F$3:$F$105=$B9)*('O - EE + FS'!$G$3:$G$105=BL$2)*('O - EE + FS'!$S$3:$S$105)) -> 0 | BM9: =SUMPRODUCT(('O - EE + FS'!$F$3:$F$105=$B9)*('O - EE + FS'!$G$3:$G$105=BL$2)*('O - EE + FS'!$AP$3:$AP$105)) -> 0 | BR9: =SUMPRODUCT(('O - EE + FS'!$F$3:$F$105=$B9)*('O - EE + FS'!$G$3:$G$105=BR$2)*('O - EE + FS'!$S$3:$S$105)) -> 0 | BS9: =SUMPRODUCT(('O - EE + FS'!$F$3:$F$105=$B9)*('O - EE + FS'!$G$3:$G$105=BR$2)*('O - EE + FS'!$AP$3:$AP$105)) -> 0
B10: Tariff V - SP AusNet West - Domestic | C10: Domestic Tariff V Zone - SP AusNet West | D10: =SUMPRODUCT(('O - EE + FS'!$F$3:$F$105=$B10)*('O - EE + FS'!$G$3:$G$105=D$2)*('O - EE + FS'!$S$3:$S$105)) -> 156469.9921 | E10: =SUMPRODUCT(('O - EE + FS'!$F$3:$F$105=$B10)*('O - EE + FS'!$G$3:$G$105=D$2)*('O - EE + FS'!$AP$3:$AP$105)) -> 158011.8261 | J10: =SUMPRODUCT(('O - EE + FS'!$F$3:$F$105=$B10)*('O - EE + FS'!$G$3:$G$105=J$2)*('O - EE + FS'!$S$3:$S$105)) -> 1510450.935 | K10: =SUMPRODUCT(('O - EE + FS'!$F$3:$F$105=$B10)*('O - EE + FS'!$G$3:$G$105=J$2)*('O - EE + FS'!$AP$3:$AP$105)) -> 342219.706 | P10: =SUMPRODUCT(('O - EE + FS'!$F$3:$F$105=$B10)*('O - EE + FS'!$G$3:$G$105=P$2)*('O - EE + FS'!$S$3:$S$105)) -> 1096181.356 | Q10: =SUMPRODUCT(('O - EE + FS'!$F$3:$F$105=$B10)*('O - EE + FS'!$G$3:$G$105=P$2)*('O - EE + FS'!$AP$3:$AP$105)) -> 243266.976 | V10: =SUMPRODUCT(('O - EE + FS'!$F$3:$F$105=$B10)*('O - EE + FS'!$G$3:$G$105=V$2)*('O - EE + FS'!$S$3:$S$105)) -> 1715446.411 | W10: =SUMPRODUCT(('O - EE + FS'!$F$3:$F$105=$B10)*('O - EE + FS'!$G$3:$G$105=V$2)*('O - EE + FS'!$AP$3:$AP$105)) -> 386350.555 | AB10: =SUMPRODUCT(('O - EE + FS'!$F$3:$F$105=$B10)*('O - EE + FS'!$G$3:$G$105=AB$2)*('O - EE + FS'!$S$3:$S$105)) -> 11115.031 | AC10: =SUMPRODUCT(('O - EE + FS'!$F$3:$F$105=$B10)*('O - EE + FS'!$G$3:$G$105=AB$2)*('O - EE + FS'!$AP$3:$AP$105)) -> 1916.805 | AH10: =SUMPRODUCT(('O - EE + FS'!$F$3:$F$105=$B10)*('O - EE + FS'!$G$3:$G$105=AH$2)*('O - EE + FS'!$S$3:$S$105)) -> 2036213.474 | AI10: =SUMPRODUCT(('O - EE + FS'!$F$3:$F$105=$B10)*('O - EE + FS'!$G$3:$G$105=AH$2)*('O - EE + FS'!$AP$3:$AP$105)) -> 1184218.188 | AN10: =SUMPRODUCT(('O - EE + FS'!$F$3:$F$105=$B10)*('O - EE + FS'!$G$3:$G$105=AN$2)*('O - EE + FS'!$S$3:$S$105)) -> 581989.201 | AO10: =SUMPRODUCT(('O - EE + FS'!$F$3:$F$105=$B10)*('O - EE + FS'!$G$3:$G$105=AN$2)*('O - EE + FS'!$AP$3:$AP$105)) -> 415663.149 | AT10: =SUMPRODUCT(('O - EE + FS'!$F$3:$F$105=$B10)*('O - EE + FS'!$G$3:$G$105=AT$2)*('O - EE + FS'!$S$3:$S$105)) -> 348824.672 | AU10: =SUMPRODUCT(('O - EE + FS'!$F$3:$F$105=$B10)*('O - EE + FS'!$G$3:$G$105=AT$2)*('O - EE + FS'!$AP$3:$AP$105)) -> 293445.52 | AZ10: =SUMPRODUCT(('O - EE + FS'!$F$3:$F$105=$B10)*('O - EE + FS'!$G$3:$G$105=AZ$2)*('O - EE + FS'!$S$3:$S$105)) -> 7133.12 | BA10: =SUMPRODUCT(('O - EE + FS'!$F$3:$F$105=$B10)*('O - EE + FS'!$G$3:$G$105=AZ$2)*('O - EE + FS'!$AP$3:$AP$105)) -> 6492.181 | BF10: =SUMPRODUCT(('O - EE + FS'!$F$3:$F$105=$B10)*('O - EE + FS'!$G$3:$G$105=BF$2)*('O - EE + FS'!$S$3:$S$105)) -> 0 | BG10: =SUMPRODUCT(('O - EE + FS'!$F$3:$F$105=$B10)*('O - EE + FS'!$G$3:$G$105=BF$2)*('O - EE + FS'!$AP$3:$AP$105)) -> 0 | BL10: =SUMPRODUCT(('O - EE + FS'!$F$3:$F$105=$B10)*('O - EE + FS'!$G$3:$G$105=BL$2)*('O - EE + FS'!$S$3:$S$105)) -> 0 | BM10: =SUMPRODUCT(('O - EE + FS'!$F$3:$F$105=$B10)*('O - EE + FS'!$G$3:$G$105=BL$2)*('O - EE + FS'!$AP$3:$AP$105)) -> 0 | BR10: =SUMPRODUCT(('O - EE + FS'!$F$3:$F$105=$B10)*('O - EE + FS'!$G$3:$G$105=BR$2)*('O - EE + FS'!$S$3:$S$105)) -> 0 | BS10: =SUMPRODUCT(('O - EE + FS'!$F$3:$F$105=$B10)*('O - EE + FS'!$G$3:$G$105=BR$2)*('O - EE + FS'!$AP$3:$AP$105)) -> 0
B11: Tariff V - SP AusNet West - Commercial | C11: Commercial Tariff V Zone - SP AusNet West | D11: =SUMPRODUCT(('O - EE + FS'!$F$3:$F$105=$B11)*('O - EE + FS'!$G$3:$G$105=D$2)*('O - EE + FS'!$S$3:$S$105)) -> 6160.12599 | E11: =SUMPRODUCT(('O - EE + FS'!$F$3:$F$105=$B11)*('O - EE + FS'!$G$3:$G$105=D$2)*('O - EE + FS'!$AP$3:$AP$105)) -> 6151.299982 | J11: =SUMPRODUCT(('O - EE + FS'!$F$3:$F$105=$B11)*('O - EE + FS'!$G$3:$G$105=J$2)*('O - EE + FS'!$S$3:$S$105)) -> 48765.737 | K11: =SUMPRODUCT(('O - EE + FS'!$F$3:$F$105=$B11)*('O - EE + FS'!$G$3:$G$105=J$2)*('O - EE + FS'!$AP$3:$AP$105)) -> 11164.272 | P11: =SUMPRODUCT(('O - EE + FS'!$F$3:$F$105=$B11)*('O - EE + FS'!$G$3:$G$105=P$2)*('O - EE + FS'!$S$3:$S$105)) -> 37889.062 | Q11: =SUMPRODUCT(('O - EE + FS'!$F$3:$F$105=$B11)*('O - EE + FS'!$G$3:$G$105=P$2)*('O - EE + FS'!$AP$3:$AP$105)) -> 8701.111 | V11: =SUMPRODUCT(('O - EE + FS'!$F$3:$F$105=$B11)*('O - EE + FS'!$G$3:$G$105=V$2)*('O - EE + FS'!$S$3:$S$105)) -> 208687.181 | W11: =SUMPRODUCT(('O - EE + FS'!$F$3:$F$105=$B11)*('O - EE + FS'!$G$3:$G$105=V$2)*('O - EE + FS'!$AP$3:$AP$105)) -> 49502.461 | AB11: =SUMPRODUCT(('O - EE + FS'!$F$3:$F$105=$B11)*('O - EE + FS'!$G$3:$G$105=AB$2)*('O - EE + FS'!$S$3:$S$105)) -> 444801.637 | AC11: =SUMPRODUCT(('O - EE + FS'!$F$3:$F$105=$B11)*('O - EE + FS'!$G$3:$G$105=AB$2)*('O - EE + FS'!$AP$3:$AP$105)) -> 105289.762 | AH11: =SUMPRODUCT(('O - EE + FS'!$F$3:$F$105=$B11)*('O - EE + FS'!$G$3:$G$105=AH$2)*('O - EE + FS'!$S$3:$S$105)) -> 76845.417 | AI11: =SUMPRODUCT(('O - EE + FS'!$F$3:$F$105=$B11)*('O - EE + FS'!$G$3:$G$105=AH$2)*('O - EE + FS'!$AP$3:$AP$105)) -> 45867.122 | AN11: =SUMPRODUCT(('O - EE + FS'!$F$3:$F$105=$B11)*('O - EE + FS'!$G$3:$G$105=AN$2)*('O - EE + FS'!$S$3:$S$105)) -> 50392.814 | AO11: =SUMPRODUCT(('O - EE + FS'!$F$3:$F$105=$B11)*('O - EE + FS'!$G$3:$G$105=AN$2)*('O - EE + FS'!$AP$3:$AP$105)) -> 30824.824 | AT11: =SUMPRODUCT(('O - EE + FS'!$F$3:$F$105=$B11)*('O - EE + FS'!$G$3:$G$105=AT$2)*('O - EE + FS'!$S$3:$S$105)) -> 262001.745 | AU11: =SUMPRODUCT(('O - EE + FS'!$F$3:$F$105=$B11)*('O - EE + FS'!$G$3:$G$105=AT$2)*('O - EE + FS'!$AP$3:$AP$105)) -> 163611.083 | AZ11: =SUMPRODUCT(('O - EE + FS'!$F$3:$F$105=$B11)*('O - EE + FS'!$G$3:$G$105=AZ$2)*('O - EE + FS'!$S$3:$S$105)) -> 450298.979 | BA11: =SUMPRODUCT(('O - EE + FS'!$F$3:$F$105=$B11)*('O - EE + FS'!$G$3:$G$105=AZ$2)*('O - EE + FS'!$AP$3:$AP$105)) -> 282057.731 | BF11: =SUMPRODUCT(('O - EE + FS'!$F$3:$F$105=$B11)*('O - EE + FS'!$G$3:$G$105=BF$2)*('O - EE + FS'!$S$3:$S$105)) -> 0 | BG11: =SUMPRODUCT(('O - EE + FS'!$F$3:$F$105=$B11)*('O - EE + FS'!$G$3:$G$105=BF$2)*('O - EE + FS'!$AP$3:$AP$105)) -> 0 | BL11: =SUMPRODUCT(('O - EE + FS'!$F$3:$F$105=$B11)*('O - EE + FS'!$G$3:$G$105=BL$2)*('O - EE + FS'!$S$3:$S$105)) -> 0 | BM11: =SUMPRODUCT(('O - EE + FS'!$F$3:$F$105=$B11)*('O - EE + FS'!$G$3:$G$105=BL$2)*('O - EE + FS'!$AP$3:$AP$105)) -> 0 | BR11: =SUMPRODUCT(('O - EE + FS'!$F$3:$F$105=$B11)*('O - EE + FS'!$G$3:$G$105=BR$2)*('O - EE + FS'!$S$3:$S$105)) -> 0 | BS11: =SUMPRODUCT(('O - EE + FS'!$F$3:$F$105=$B11)*('O - EE + FS'!$G$3:$G$105=BR$2)*('O - EE + FS'!$AP$3:$AP$105)) -> 0
B12: Tariff V - SP AusNet Central - New Town Domestic | C12: Domestic Tariff V Zone - SP AusNet Adjoining Central | D12: =SUMPRODUCT(('O - EE + FS'!$F$3:$F$105=$B12)*('O - EE + FS'!$G$3:$G$105=D$2)*('O - EE + FS'!$S$3:$S$105)) -> 3079.432848 | E12: =SUMPRODUCT(('O - EE + FS'!$F$3:$F$105=$B12)*('O - EE + FS'!$G$3:$G$105=D$2)*('O - EE + FS'!$AP$3:$AP$105)) -> 3138.821878 | J12: =SUMPRODUCT(('O - EE + FS'!$F$3:$F$105=$B12)*('O - EE + FS'!$G$3:$G$105=J$2)*('O - EE + FS'!$S$3:$S$105)) -> 15811.635 | K12: =SUMPRODUCT(('O - EE + FS'!$F$3:$F$105=$B12)*('O - EE + FS'!$G$3:$G$105=J$2)*('O - EE + FS'!$AP$3:$AP$105)) -> 3420.491 | P12: =SUMPRODUCT(('O - EE + FS'!$F$3:$F$105=$B12)*('O - EE + FS'!$G$3:$G$105=P$2)*('O - EE + FS'!$S$3:$S$105)) -> 10260.375 | Q12: =SUMPRODUCT(('O - EE + FS'!$F$3:$F$105=$B12)*('O - EE + FS'!$G$3:$G$105=P$2)*('O - EE + FS'!$AP$3:$AP$105)) -> 2214.749 | V12: =SUMPRODUCT(('O - EE + FS'!$F$3:$F$105=$B12)*('O - EE + FS'!$G$3:$G$105=V$2)*('O - EE + FS'!$S$3:$S$105)) -> 15729.537 | W12: =SUMPRODUCT(('O - EE + FS'!$F$3:$F$105=$B12)*('O - EE + FS'!$G$3:$G$105=V$2)*('O - EE + FS'!$AP$3:$AP$105)) -> 3869.423 | AB12: =SUMPRODUCT(('O - EE + FS'!$F$3:$F$105=$B12)*('O - EE + FS'!$G$3:$G$105=AB$2)*('O - EE + FS'!$S$3:$S$105)) -> 495.859 | AC12: =SUMPRODUCT(('O - EE + FS'!$F$3:$F$105=$B12)*('O - EE + FS'!$G$3:$G$105=AB$2)*('O - EE + FS'!$AP$3:$AP$105)) -> 133.005 | AH12: =SUMPRODUCT(('O - EE + FS'!$F$3:$F$105=$B12)*('O - EE + FS'!$G$3:$G$105=AH$2)*('O - EE + FS'!$S$3:$S$105)) -> 20631.994 | AI12: =SUMPRODUCT(('O - EE + FS'!$F$3:$F$105=$B12)*('O - EE + FS'!$G$3:$G$105=AH$2)*('O - EE + FS'!$AP$3:$AP$105)) -> 11731.72 | AN12: =SUMPRODUCT(('O - EE + FS'!$F$3:$F$105=$B12)*('O - EE + FS'!$G$3:$G$105=AN$2)*('O - EE + FS'!$S$3:$S$105)) -> 4391.826 | AO12: =SUMPRODUCT(('O - EE + FS'!$F$3:$F$105=$B12)*('O - EE + FS'!$G$3:$G$105=AN$2)*('O - EE + FS'!$AP$3:$AP$105)) -> 3686.262 | AT12: =SUMPRODUCT(('O - EE + FS'!$F$3:$F$105=$B12)*('O - EE + FS'!$G$3:$G$105=AT$2)*('O - EE + FS'!$S$3:$S$105)) -> 3333.876 | AU12: =SUMPRODUCT(('O - EE + FS'!$F$3:$F$105=$B12)*('O - EE + FS'!$G$3:$G$105=AT$2)*('O - EE + FS'!$AP$3:$AP$105)) -> 2997.071 | AZ12: =SUMPRODUCT(('O - EE + FS'!$F$3:$F$105=$B12)*('O - EE + FS'!$G$3:$G$105=AZ$2)*('O - EE + FS'!$S$3:$S$105)) -> 476.593 | BA12: =SUMPRODUCT(('O - EE + FS'!$F$3:$F$105=$B12)*('O - EE + FS'!$G$3:$G$105=AZ$2)*('O - EE + FS'!$AP$3:$AP$105)) -> 242.954 | BF12: =SUMPRODUCT(('O - EE + FS'!$F$3:$F$105=$B12)*('O - EE + FS'!$G$3:$G$105=BF$2)*('O - EE + FS'!$S$3:$S$105)) -> 0 | BG12: =SUMPRODUCT(('O - EE + FS'!$F$3:$F$105=$B12)*('O - EE + FS'!$G$3:$G$105=BF$2)*('O - EE + FS'!$AP$3:$AP$105)) -> 0 | BL12: =SUMPRODUCT(('O - EE + FS'!$F$3:$F$105=$B12)*('O - EE + FS'!$G$3:$G$105=BL$2)*('O - EE + FS'!$S$3:$S$105)) -> 0 | BM12: =SUMPRODUCT(('O - EE + FS'!$F$3:$F$105=$B12)*('O - EE + FS'!$G$3:$G$105=BL$2)*('O - EE + FS'!$AP$3:$AP$105)) -> 0 | BR12: =SUMPRODUCT(('O - EE + FS'!$F$3:$F$105=$B12)*('O - EE + FS'!$G$3:$G$105=BR$2)*('O - EE + FS'!$S$3:$S$105)) -> 0 | BS12: =SUMPRODUCT(('O - EE + FS'!$F$3:$F$105=$B12)*('O - EE + FS'!$G$3:$G$105=BR$2)*('O - EE + FS'!$AP$3:$AP$105)) -> 0
B13: Tariff V - SP AusNet Central - New Town Commercial | C13: Commercial Tariff V Zone - SP AusNet Adjoining Central | D13: =SUMPRODUCT(('O - EE + FS'!$F$3:$F$105=$B13)*('O - EE + FS'!$G$3:$G$105=D$2)*('O - EE + FS'!$S$3:$S$105)) -> 26.9972603 | E13: =SUMPRODUCT(('O - EE + FS'!$F$3:$F$105=$B13)*('O - EE + FS'!$G$3:$G$105=D$2)*('O - EE + FS'!$AP$3:$AP$105)) -> 29.4698628 | J13: =SUMPRODUCT(('O - EE + FS'!$F$3:$F$105=$B13)*('O - EE + FS'!$G$3:$G$105=J$2)*('O - EE + FS'!$S$3:$S$105)) -> 231.526 | K13: =SUMPRODUCT(('O - EE + FS'!$F$3:$F$105=$B13)*('O - EE + FS'!$G$3:$G$105=J$2)*('O - EE + FS'!$AP$3:$AP$105)) -> 89.03 | P13: =SUMPRODUCT(('O - EE + FS'!$F$3:$F$105=$B13)*('O - EE + FS'!$G$3:$G$105=P$2)*('O - EE + FS'!$S$3:$S$105)) -> 179.905 | Q13: =SUMPRODUCT(('O - EE + FS'!$F$3:$F$105=$B13)*('O - EE + FS'!$G$3:$G$105=P$2)*('O - EE + FS'!$AP$3:$AP$105)) -> 80.536 | V13: =SUMPRODUCT(('O - EE + FS'!$F$3:$F$105=$B13)*('O - EE + FS'!$G$3:$G$105=V$2)*('O - EE + FS'!$S$3:$S$105)) -> 844.328 | W13: =SUMPRODUCT(('O - EE + FS'!$F$3:$F$105=$B13)*('O - EE + FS'!$G$3:$G$105=V$2)*('O - EE + FS'!$AP$3:$AP$105)) -> 552.929 | AB13: =SUMPRODUCT(('O - EE + FS'!$F$3:$F$105=$B13)*('O - EE + FS'!$G$3:$G$105=AB$2)*('O - EE + FS'!$S$3:$S$105)) -> 389.917 | AC13: =SUMPRODUCT(('O - EE + FS'!$F$3:$F$105=$B13)*('O - EE + FS'!$G$3:$G$105=AB$2)*('O - EE + FS'!$AP$3:$AP$105)) -> 106.707 | AH13: =SUMPRODUCT(('O - EE + FS'!$F$3:$F$105=$B13)*('O - EE + FS'!$G$3:$G$105=AH$2)*('O - EE + FS'!$S$3:$S$105)) -> 350.524 | AI13: =SUMPRODUCT(('O - EE + FS'!$F$3:$F$105=$B13)*('O - EE + FS'!$G$3:$G$105=AH$2)*('O - EE + FS'!$AP$3:$AP$105)) -> 189.021 | AN13: =SUMPRODUCT(('O - EE + FS'!$F$3:$F$105=$B13)*('O - EE + FS'!$G$3:$G$105=AN$2)*('O - EE + FS'!$S$3:$S$105)) -> 207.848 | AO13: =SUMPRODUCT(('O - EE + FS'!$F$3:$F$105=$B13)*('O - EE + FS'!$G$3:$G$105=AN$2)*('O - EE + FS'!$AP$3:$AP$105)) -> 79.682 | AT13: =SUMPRODUCT(('O - EE + FS'!$F$3:$F$105=$B13)*('O - EE + FS'!$G$3:$G$105=AT$2)*('O - EE + FS'!$S$3:$S$105)) -> 1368.854 | AU13: =SUMPRODUCT(('O - EE + FS'!$F$3:$F$105=$B13)*('O - EE + FS'!$G$3:$G$105=AT$2)*('O - EE + FS'!$AP$3:$AP$105)) -> 704.781 | AZ13: =SUMPRODUCT(('O - EE + FS'!$F$3:$F$105=$B13)*('O - EE + FS'!$G$3:$G$105=AZ$2)*('O - EE + FS'!$S$3:$S$105)) -> 608.157 | BA13: =SUMPRODUCT(('O - EE + FS'!$F$3:$F$105=$B13)*('O - EE + FS'!$G$3:$G$105=AZ$2)*('O - EE + FS'!$AP$3:$AP$105)) -> 525.9 | BF13: =SUMPRODUCT(('O - EE + FS'!$F$3:$F$105=$B13)*('O - EE + FS'!$G$3:$G$105=BF$2)*('O - EE + FS'!$S$3:$S$105)) -> 0 | BG13: =SUMPRODUCT(('O - EE + FS'!$F$3:$F$105=$B13)*('O - EE + FS'!$G$3:$G$105=BF$2)*('O - EE + FS'!$AP$3:$AP$105)) -> 0 | BL13: =SUMPRODUCT(('O - EE + FS'!$F$3:$F$105=$B13)*('O - EE + FS'!$G$3:$G$105=BL$2)*('O - EE + FS'!$S$3:$S$105)) -> 0 | BM13: =SUMPRODUCT(('O - EE + FS'!$F$3:$F$105=$B13)*('O - EE + FS'!$G$3:$G$105=BL$2)*('O - EE + FS'!$AP$3:$AP$105)) -> 0 | BR13: =SUMPRODUCT(('O - EE + FS'!$F$3:$F$105=$B13)*('O - EE + FS'!$G$3:$G$105=BR$2)*('O - EE + FS'!$S$3:$S$105)) -> 0 | BS13: =SUMPRODUCT(('O - EE + FS'!$F$3:$F$105=$B13)*('O - EE + FS'!$G$3:$G$105=BR$2)*('O - EE + FS'!$AP$3:$AP$105)) -> 0
B14: Tariff V - SP AusNet West - New Town Domestic | C14: Domestic Tariff V Zone - SP AusNet Adjoining West | D14: =SUMPRODUCT(('O - EE + FS'!$F$3:$F$105=$B14)*('O - EE + FS'!$G$3:$G$105=D$2)*('O - EE + FS'!$S$3:$S$105)) -> 9392.950701 | E14: =SUMPRODUCT(('O - EE + FS'!$F$3:$F$105=$B14)*('O - EE + FS'!$G$3:$G$105=D$2)*('O - EE + FS'!$AP$3:$AP$105)) -> 9473.831492 | J14: =SUMPRODUCT(('O - EE + FS'!$F$3:$F$105=$B14)*('O - EE + FS'!$G$3:$G$105=J$2)*('O - EE + FS'!$S$3:$S$105)) -> 117787.805 | K14: =SUMPRODUCT(('O - EE + FS'!$F$3:$F$105=$B14)*('O - EE + FS'!$G$3:$G$105=J$2)*('O - EE + FS'!$AP$3:$AP$105)) -> 26541.944 | P14: =SUMPRODUCT(('O - EE + FS'!$F$3:$F$105=$B14)*('O - EE + FS'!$G$3:$G$105=P$2)*('O - EE + FS'!$S$3:$S$105)) -> 91093.171 | Q14: =SUMPRODUCT(('O - EE + FS'!$F$3:$F$105=$B14)*('O - EE + FS'!$G$3:$G$105=P$2)*('O - EE + FS'!$AP$3:$AP$105)) -> 19947.886 | V14: =SUMPRODUCT(('O - EE + FS'!$F$3:$F$105=$B14)*('O - EE + FS'!$G$3:$G$105=V$2)*('O - EE + FS'!$S$3:$S$105)) -> 180581.351 | W14: =SUMPRODUCT(('O - EE + FS'!$F$3:$F$105=$B14)*('O - EE + FS'!$G$3:$G$105=V$2)*('O - EE + FS'!$AP$3:$AP$105)) -> 38073.953 | AB14: =SUMPRODUCT(('O - EE + FS'!$F$3:$F$105=$B14)*('O - EE + FS'!$G$3:$G$105=AB$2)*('O - EE + FS'!$S$3:$S$105)) -> 2338.553 | AC14: =SUMPRODUCT(('O - EE + FS'!$F$3:$F$105=$B14)*('O - EE + FS'!$G$3:$G$105=AB$2)*('O - EE + FS'!$AP$3:$AP$105)) -> 719.462 | AH14: =SUMPRODUCT(('O - EE + FS'!$F$3:$F$105=$B14)*('O - EE + FS'!$G$3:$G$105=AH$2)*('O - EE + FS'!$S$3:$S$105)) -> 161074.834 | AI14: =SUMPRODUCT(('O - EE + FS'!$F$3:$F$105=$B14)*('O - EE + FS'!$G$3:$G$105=AH$2)*('O - EE + FS'!$AP$3:$AP$105)) -> 93769.866 | AN14: =SUMPRODUCT(('O - EE + FS'!$F$3:$F$105=$B14)*('O - EE + FS'!$G$3:$G$105=AN$2)*('O - EE + FS'!$S$3:$S$105)) -> 57776.511 | AO14: =SUMPRODUCT(('O - EE + FS'!$F$3:$F$105=$B14)*('O - EE + FS'!$G$3:$G$105=AN$2)*('O - EE + FS'!$AP$3:$AP$105)) -> 38231.902 | AT14: =SUMPRODUCT(('O - EE + FS'!$F$3:$F$105=$B14)*('O - EE + FS'!$G$3:$G$105=AT$2)*('O - EE + FS'!$S$3:$S$105)) -> 42202.439 | AU14: =SUMPRODUCT(('O - EE + FS'!$F$3:$F$105=$B14)*('O - EE + FS'!$G$3:$G$105=AT$2)*('O - EE + FS'!$AP$3:$AP$105)) -> 31669.631 | AZ14: =SUMPRODUCT(('O - EE + FS'!$F$3:$F$105=$B14)*('O - EE + FS'!$G$3:$G$105=AZ$2)*('O - EE + FS'!$S$3:$S$105)) -> 2596.794 | BA14: =SUMPRODUCT(('O - EE + FS'!$F$3:$F$105=$B14)*('O - EE + FS'!$G$3:$G$105=AZ$2)*('O - EE + FS'!$AP$3:$AP$105)) -> 1528.971 | BF14: =SUMPRODUCT(('O - EE + FS'!$F$3:$F$105=$B14)*('O - EE + FS'!$G$3:$G$105=BF$2)*('O - EE + FS'!$S$3:$S$105)) -> 0 | BG14: =SUMPRODUCT(('O - EE + FS'!$F$3:$F$105=$B14)*('O - EE + FS'!$G$3:$G$105=BF$2)*('O - EE + FS'!$AP$3:$AP$105)) -> 0 | BL14: =SUMPRODUCT(('O - EE + FS'!$F$3:$F$105=$B14)*('O - EE + FS'!$G$3:$G$105=BL$2)*('O - EE + FS'!$S$3:$S$105)) -> 0 | BM14: =SUMPRODUCT(('O - EE + FS'!$F$3:$F$105=$B14)*('O - EE + FS'!$G$3:$G$105=BL$2)*('O - EE + FS'!$AP$3:$AP$105)) -> 0 | BR14: =SUMPRODUCT(('O - EE + FS'!$F$3:$F$105=$B14)*('O - EE + FS'!$G$3:$G$105=BR$2)*('O - EE + FS'!$S$3:$S$105)) -> 0 | BS14: =SUMPRODUCT(('O - EE + FS'!$F$3:$F$105=$B14)*('O - EE + FS'!$G$3:$G$105=BR$2)*('O - EE + FS'!$AP$3:$AP$105)) -> 0
B15: Tariff V - SP AusNet West - New Town Commercial | C15: Commercial Tariff V Zone - SP AusNet Adjoining West | D15: =SUMPRODUCT(('O - EE + FS'!$F$3:$F$105=$B15)*('O - EE + FS'!$G$3:$G$105=D$2)*('O - EE + FS'!$S$3:$S$105)) -> 259.5890403 | E15: =SUMPRODUCT(('O - EE + FS'!$F$3:$F$105=$B15)*('O - EE + FS'!$G$3:$G$105=D$2)*('O - EE + FS'!$AP$3:$AP$105)) -> 260.2589039 | J15: =SUMPRODUCT(('O - EE + FS'!$F$3:$F$105=$B15)*('O - EE + FS'!$G$3:$G$105=J$2)*('O - EE + FS'!$S$3:$S$105)) -> 2954.017 | K15: =SUMPRODUCT(('O - EE + FS'!$F$3:$F$105=$B15)*('O - EE + FS'!$G$3:$G$105=J$2)*('O - EE + FS'!$AP$3:$AP$105)) -> 719.209 | P15: =SUMPRODUCT(('O - EE + FS'!$F$3:$F$105=$B15)*('O - EE + FS'!$G$3:$G$105=P$2)*('O - EE + FS'!$S$3:$S$105)) -> 2304.203 | Q15: =SUMPRODUCT(('O - EE + FS'!$F$3:$F$105=$B15)*('O - EE + FS'!$G$3:$G$105=P$2)*('O - EE + FS'!$AP$3:$AP$105)) -> 557.8 | V15: =SUMPRODUCT(('O - EE + FS'!$F$3:$F$105=$B15)*('O - EE + FS'!$G$3:$G$105=V$2)*('O - EE + FS'!$S$3:$S$105)) -> 14062.922 | W15: =SUMPRODUCT(('O - EE + FS'!$F$3:$F$105=$B15)*('O - EE + FS'!$G$3:$G$105=V$2)*('O - EE + FS'!$AP$3:$AP$105)) -> 3010.642 | AB15: =SUMPRODUCT(('O - EE + FS'!$F$3:$F$105=$B15)*('O - EE + FS'!$G$3:$G$105=AB$2)*('O - EE + FS'!$S$3:$S$105)) -> 27446.949 | AC15: =SUMPRODUCT(('O - EE + FS'!$F$3:$F$105=$B15)*('O - EE + FS'!$G$3:$G$105=AB$2)*('O - EE + FS'!$AP$3:$AP$105)) -> 5828.151 | AH15: =SUMPRODUCT(('O - EE + FS'!$F$3:$F$105=$B15)*('O - EE + FS'!$G$3:$G$105=AH$2)*('O - EE + FS'!$S$3:$S$105)) -> 4873.61 | AI15: =SUMPRODUCT(('O - EE + FS'!$F$3:$F$105=$B15)*('O - EE + FS'!$G$3:$G$105=AH$2)*('O - EE + FS'!$AP$3:$AP$105)) -> 3022.111 | AN15: =SUMPRODUCT(('O - EE + FS'!$F$3:$F$105=$B15)*('O - EE + FS'!$G$3:$G$105=AN$2)*('O - EE + FS'!$S$3:$S$105)) -> 3506.827 | AO15: =SUMPRODUCT(('O - EE + FS'!$F$3:$F$105=$B15)*('O - EE + FS'!$G$3:$G$105=AN$2)*('O - EE + FS'!$AP$3:$AP$105)) -> 2213.853 | AT15: =SUMPRODUCT(('O - EE + FS'!$F$3:$F$105=$B15)*('O - EE + FS'!$G$3:$G$105=AT$2)*('O - EE + FS'!$S$3:$S$105)) -> 20399.139 | AU15: =SUMPRODUCT(('O - EE + FS'!$F$3:$F$105=$B15)*('O - EE + FS'!$G$3:$G$105=AT$2)*('O - EE + FS'!$AP$3:$AP$105)) -> 13185.386 | AZ15: =SUMPRODUCT(('O - EE + FS'!$F$3:$F$105=$B15)*('O - EE + FS'!$G$3:$G$105=AZ$2)*('O - EE + FS'!$S$3:$S$105)) -> 29264.83 | BA15: =SUMPRODUCT(('O - EE + FS'!$F$3:$F$105=$B15)*('O - EE + FS'!$G$3:$G$105=AZ$2)*('O - EE + FS'!$AP$3:$AP$105)) -> 19375.609 | BF15: =SUMPRODUCT(('O - EE + FS'!$F$3:$F$105=$B15)*('O - EE + FS'!$G$3:$G$105=BF$2)*('O - EE + FS'!$S$3:$S$105)) -> 0 | BG15: =SUMPRODUCT(('O - EE + FS'!$F$3:$F$105=$B15)*('O - EE + FS'!$G$3:$G$105=BF$2)*('O - EE + FS'!$AP$3:$AP$105)) -> 0 | BL15: =SUMPRODUCT(('O - EE + FS'!$F$3:$F$105=$B15)*('O - EE + FS'!$G$3:$G$105=BL$2)*('O - EE + FS'!$S$3:$S$105)) -> 0 | BM15: =SUMPRODUCT(('O - EE + FS'!$F$3:$F$105=$B15)*('O - EE + FS'!$G$3:$G$105=BL$2)*('O - EE + FS'!$AP$3:$AP$105)) -> 0 | BR15: =SUMPRODUCT(('O - EE + FS'!$F$3:$F$105=$B15)*('O - EE + FS'!$G$3:$G$105=BR$2)*('O - EE + FS'!$S$3:$S$105)) -> 0 | BS15: =SUMPRODUCT(('O - EE + FS'!$F$3:$F$105=$B15)*('O - EE + FS'!$G$3:$G$105=BR$2)*('O - EE + FS'!$AP$3:$AP$105)) -> 0
B16: Tariff D - SP AusNet | C16: Tariff D Zone - SP AusNet West & Central | D16: =SUMPRODUCT(('O - EE + FS'!$F$3:$F$105=$B16)*('O - EE + FS'!$G$3:$G$105=D$2)*('O - EE + FS'!$S$3:$S$105)) -> 0 | E16: =SUMPRODUCT(('O - EE + FS'!$F$3:$F$105=$B16)*('O - EE + FS'!$G$3:$G$105=D$2)*('O - EE + FS'!$AP$3:$AP$105)) -> 0 | J16: =SUMPRODUCT(('O - EE + FS'!$F$3:$F$105=$B16)*('O - EE + FS'!$G$3:$G$105=J$2)*('O - EE + FS'!$S$3:$S$105)) -> 0 | K16: =SUMPRODUCT(('O - EE + FS'!$F$3:$F$105=$B16)*('O - EE + FS'!$G$3:$G$105=J$2)*('O - EE + FS'!$AP$3:$AP$105)) -> 0 | P16: =SUMPRODUCT(('O - EE + FS'!$F$3:$F$105=$B16)*('O - EE + FS'!$G$3:$G$105=P$2)*('O - EE + FS'!$S$3:$S$105)) -> 0 | Q16: =SUMPRODUCT(('O - EE + FS'!$F$3:$F$105=$B16)*('O - EE + FS'!$G$3:$G$105=P$2)*('O - EE + FS'!$AP$3:$AP$105)) -> 0 | V16: =SUMPRODUCT(('O - EE + FS'!$F$3:$F$105=$B16)*('O - EE + FS'!$G$3:$G$105=V$2)*('O - EE + FS'!$S$3:$S$105)) -> 0 | W16: =SUMPRODUCT(('O - EE + FS'!$F$3:$F$105=$B16)*('O - EE + FS'!$G$3:$G$105=V$2)*('O - EE + FS'!$AP$3:$AP$105)) -> 0 | AB16: =SUMPRODUCT(('O - EE + FS'!$F$3:$F$105=$B16)*('O - EE + FS'!$G$3:$G$105=AB$2)*('O - EE + FS'!$S$3:$S$105)) -> 0 | AC16: =SUMPRODUCT(('O - EE + FS'!$F$3:$F$105=$B16)*('O - EE + FS'!$G$3:$G$105=AB$2)*('O - EE + FS'!$AP$3:$AP$105)) -> 0 | AH16: =SUMPRODUCT(('O - EE + FS'!$F$3:$F$105=$B16)*('O - EE + FS'!$G$3:$G$105=AH$2)*('O - EE + FS'!$S$3:$S$105)) -> 0 | AI16: =SUMPRODUCT(('O - EE + FS'!$F$3:$F$105=$B16)*('O - EE + FS'!$G$3:$G$105=AH$2)*('O - EE + FS'!$AP$3:$AP$105)) -> 0 | AN16: =SUMPRODUCT(('O - EE + FS'!$F$3:$F$105=$B16)*('O - EE + FS'!$G$3:$G$105=AN$2)*('O - EE + FS'!$S$3:$S$105)) -> 0 | AO16: =SUMPRODUCT(('O - EE + FS'!$F$3:$F$105=$B16)*('O - EE + FS'!$G$3:$G$105=AN$2)*('O - EE + FS'!$AP$3:$AP$105)) -> 0 | AT16: =SUMPRODUCT(('O - EE + FS'!$F$3:$F$105=$B16)*('O - EE + FS'!$G$3:$G$105=AT$2)*('O - EE + FS'!$S$3:$S$105)) -> 0 | AU16: =SUMPRODUCT(('O - EE + FS'!$F$3:$F$105=$B16)*('O - EE + FS'!$G$3:$G$105=AT$2)*('O - EE + FS'!$AP$3:$AP$105)) -> 0 | AZ16: =SUMPRODUCT(('O - EE + FS'!$F$3:$F$105=$B16)*('O - EE + FS'!$G$3:$G$105=AZ$2)*('O - EE + FS'!$S$3:$S$105)) -> 0 | BA16: =SUMPRODUCT(('O - EE + FS'!$F$3:$F$105=$B16)*('O - EE + FS'!$G$3:$G$105=AZ$2)*('O - EE + FS'!$AP$3:$AP$105)) -> 0 | BF16: =SUMPRODUCT(('O - EE + FS'!$F$3:$F$105=$B16)*('O - EE + FS'!$G$3:$G$105=BF$2)*('O - EE + FS'!$S$3:$S$105)) -> 1953.350833 | BG16: =SUMPRODUCT(('O - EE + FS'!$F$3:$F$105=$B16)*('O - EE + FS'!$G$3:$G$105=BF$2)*('O - EE + FS'!$AP$3:$AP$105)) -> 1735.885833 | BL16: =SUMPRODUCT(('O - EE + FS'!$F$3:$F$105=$B16)*('O - EE + FS'!$G$3:$G$105=BL$2)*('O - EE + FS'!$S$3:$S$105)) -> 2419.365833 | BM16: =SUMPRODUCT(('O - EE + FS'!$F$3:$F$105=$B16)*('O - EE + FS'!$G$3:$G$105=BL$2)*('O - EE + FS'!$AP$3:$AP$105)) -> 2208.933333 | BR16: =SUMPRODUCT(('O - EE + FS'!$F$3:$F$105=$B16)*('O - EE + FS'!$G$3:$G$105=BR$2)*('O - EE + FS'!$S$3:$S$105)) -> 3710.5725 | BS16: =SUMPRODUCT(('O - EE + FS'!$F$3:$F$105=$B16)*('O - EE + FS'!$G$3:$G$105=BR$2)*('O - EE + FS'!$AP$3:$AP$105)) -> 2508.16
B17: Tariff D - SP AusNet New Town West & Central | C17: Tariff D Zone - SP AusNet Adjoining West & Central | D17: =SUMPRODUCT(('O - EE + FS'!$F$3:$F$105=$B17)*('O - EE + FS'!$G$3:$G$105=D$2)*('O - EE + FS'!$S$3:$S$105)) -> 0 | E17: =SUMPRODUCT(('O - EE + FS'!$F$3:$F$105=$B17)*('O - EE + FS'!$G$3:$G$105=D$2)*('O - EE + FS'!$AP$3:$AP$105)) -> 0 | J17: =SUMPRODUCT(('O - EE + FS'!$F$3:$F$105=$B17)*('O - EE + FS'!$G$3:$G$105=J$2)*('O - EE + FS'!$S$3:$S$105)) -> 0 | K17: =SUMPRODUCT(('O - EE + FS'!$F$3:$F$105=$B17)*('O - EE + FS'!$G$3:$G$105=J$2)*('O - EE + FS'!$AP$3:$AP$105)) -> 0 | P17: =SUMPRODUCT(('O - EE + FS'!$F$3:$F$105=$B17)*('O - EE + FS'!$G$3:$G$105=P$2)*('O - EE + FS'!$S$3:$S$105)) -> 0 | Q17: =SUMPRODUCT(('O - EE + FS'!$F$3:$F$105=$B17)*('O - EE + FS'!$G$3:$G$105=P$2)*('O - EE + FS'!$AP$3:$AP$105)) -> 0 | V17: =SUMPRODUCT(('O - EE + FS'!$F$3:$F$105=$B17)*('O - EE + FS'!$G$3:$G$105=V$2)*('O - EE + FS'!$S$3:$S$105)) -> 0 | W17: =SUMPRODUCT(('O - EE + FS'!$F$3:$F$105=$B17)*('O - EE + FS'!$G$3:$G$105=V$2)*('O - EE + FS'!$AP$3:$AP$105)) -> 0 | AB17: =SUMPRODUCT(('O - EE + FS'!$F$3:$F$105=$B17)*('O - EE + FS'!$G$3:$G$105=AB$2)*('O - EE + FS'!$S$3:$S$105)) -> 0 | AC17: =SUMPRODUCT(('O - EE + FS'!$F$3:$F$105=$B17)*('O - EE + FS'!$G$3:$G$105=AB$2)*('O - EE + FS'!$AP$3:$AP$105)) -> 0 | AH17: =SUMPRODUCT(('O - EE + FS'!$F$3:$F$105=$B17)*('O - EE + FS'!$G$3:$G$105=AH$2)*('O - EE + FS'!$S$3:$S$105)) -> 0 | AI17: =SUMPRODUCT(('O - EE + FS'!$F$3:$F$105=$B17)*('O - EE + FS'!$G$3:$G$105=AH$2)*('O - EE + FS'!$AP$3:$AP$105)) -> 0 | AN17: =SUMPRODUCT(('O - EE + FS'!$F$3:$F$105=$B17)*('O - EE + FS'!$G$3:$G$105=AN$2)*('O - EE + FS'!$S$3:$S$105)) -> 0 | AO17: =SUMPRODUCT(('O - EE + FS'!$F$3:$F$105=$B17)*('O - EE + FS'!$G$3:$G$105=AN$2)*('O - EE + FS'!$AP$3:$AP$105)) -> 0 | AT17: =SUMPRODUCT(('O - EE + FS'!$F$3:$F$105=$B17)*('O - EE + FS'!$G$3:$G$105=AT$2)*('O - EE + FS'!$S$3:$S$105)) -> 0 | AU17: =SUMPRODUCT(('O - EE + FS'!$F$3:$F$105=$B17)*('O - EE + FS'!$G$3:$G$105=AT$2)*('O - EE + FS'!$AP$3:$AP$105)) -> 0 | AZ17: =SUMPRODUCT(('O - EE + FS'!$F$3:$F$105=$B17)*('O - EE + FS'!$G$3:$G$105=AZ$2)*('O - EE + FS'!$S$3:$S$105)) -> 0 | BA17: =SUMPRODUCT(('O - EE + FS'!$F$3:$F$105=$B17)*('O - EE + FS'!$G$3:$G$105=AZ$2)*('O - EE + FS'!$AP$3:$AP$105)) -> 0 | BF17: =SUMPRODUCT(('O - EE + FS'!$F$3:$F$105=$B17)*('O - EE + FS'!$G$3:$G$105=BF$2)*('O - EE + FS'!$S$3:$S$105)) -> 22.825 | BG17: =SUMPRODUCT(('O - EE + FS'!$F$3:$F$105=$B17)*('O - EE + FS'!$G$3:$G$105=BF$2)*('O - EE + FS'!$AP$3:$AP$105)) -> 21.00583333 | BL17: =SUMPRODUCT(('O - EE + FS'!$F$3:$F$105=$B17)*('O - EE + FS'!$G$3:$G$105=BL$2)*('O - EE + FS'!$S$3:$S$105)) -> 24.705 | BM17: =SUMPRODUCT(('O - EE + FS'!$F$3:$F$105=$B17)*('O - EE + FS'!$G$3:$G$105=BL$2)*('O - EE + FS'!$AP$3:$AP$105)) -> 20.29666667 | BR17: =SUMPRODUCT(('O - EE + FS'!$F$3:$F$105=$B17)*('O - EE + FS'!$G$3:$G$105=BR$2)*('O - EE + FS'!$S$3:$S$105)) -> 0 | BS17: =SUMPRODUCT(('O - EE + FS'!$F$3:$F$105=$B17)*('O - EE + FS'!$G$3:$G$105=BR$2)*('O - EE + FS'!$AP$3:$AP$105)) -> 0
C18: Tariff M Zone - SP AusNet West & Central | D18: =SUM(D21:D22) -> 0 | E18: =SUM(E21:E22) -> 0 | F18: 0 | G18: 0 | H18: 0 | I18: 0 | J18: 0 | K18: 0 | L18: 0 | M18: 0 | N18: 0 | O18: 0 | P18: 0 | Q18: 0 | R18: 0 | S18: 0 | T18: 0 | U18: 0 | V18: 0 | W18: 0 | X18: 0 | Y18: 0 | Z18: 0 | AA18: 0 | AB18: 0 | AC18: 0 | AD18: 0 | AE18: 0 | AF18: 0 | AG18: 0 | AH18: 0 | AI18: 0 | AJ18: 0 | AK18: 0 | AL18: 0 | AM18: 0 | AN18: 0 | AO18: 0 | AP18: 0 | AQ18: 0 | AR18: 0 | AS18: 0 | AT18: 0 | AU18: 0 | AV18: 0 | AW18: 0 | AX18: 0 | AY18: 0 | AZ18: 0 | BA18: 0 | BB18: 0 | BC18: 0 | BD18: 0 | BE18: 0 | BF18: 261.805 | BG18: 231.7875 | BH18: 0 | BI18: 0 | BJ18: 0 | BK18: 0 | BL18: 91.42833333 | BM18: 70.69 | BN18: 0 | BO18: 0 | BP18: 0 | BQ18: =SUM(BQ21:BQ22) -> 0 | BR18: 0 | BS18: 0 | BT18: 0 | BU18: 0 | BV18: 0 | BW18: 0
C19: Tariff M Zone - SP AusNet Adjoining West & Central | D19: =SUM(D23:D24) -> 0 | E19: =SUM(E23:E24) -> 0 | F19: 0 | G19: 0 | H19: 0 | I19: 0 | J19: 0 | K19: 0 | L19: 0 | M19: 0 | N19: 0 | O19: 0 | P19: 0 | Q19: 0 | R19: 0 | S19: 0 | T19: 0 | U19: 0 | V19: 0 | W19: 0 | X19: 0 | Y19: 0 | Z19: 0 | AA19: 0 | AB19: 0 | AC19: 0 | AD19: 0 | AE19: 0 | AF19: 0 | AG19: 0 | AH19: 0 | AI19: 0 | AJ19: 0 | AK19: 0 | AL19: 0 | AM19: 0 | AN19: 0 | AO19: 0 | AP19: 0 | AQ19: 0 | AR19: 0 | AS19: 0 | AT19: 0 | AU19: 0 | AV19: 0 | AW19: 0 | AX19: 0 | AY19: 0 | AZ19: 0 | BA19: 0 | BB19: 0 | BC19: 0 | BD19: 0 | BE19: 0 | BF19: 0 | BG19: 0 | BH19: 0 | BI19: 0 | BJ19: 0 | BK19: 0 | BL19: 0 | BM19: 0 | BN19: 0 | BO19: 0 | BP19: 0 | BQ19: =SUM(BQ23:BQ24) -> 0 | BR19: 0 | BS19: 0 | BT19: 0 | BU19: 0 | BV19: 0 | BW19: 0
B21: Tariff M - SP AusNet Central | D21: =SUMPRODUCT(('O - EE + FS'!$F$3:$F$105=$B21)*('O - EE + FS'!$G$3:$G$105=D$2)*('O - EE + FS'!$S$3:$S$105)) -> 0 | E21: =SUMPRODUCT(('O - EE + FS'!$F$3:$F$105=$B21)*('O - EE + FS'!$G$3:$G$105=D$2)*('O - EE + FS'!$AP$3:$AP$105)) -> 0 | J21: =SUMPRODUCT(('O - EE + FS'!$F$3:$F$105=$B21)*('O - EE + FS'!$G$3:$G$105=J$2)*('O - EE + FS'!$S$3:$S$105)) -> 0 | K21: =SUMPRODUCT(('O - EE + FS'!$F$3:$F$105=$B21)*('O - EE + FS'!$G$3:$G$105=J$2)*('O - EE + FS'!$AP$3:$AP$105)) -> 0 | P21: =SUMPRODUCT(('O - EE + FS'!$F$3:$F$105=$B21)*('O - EE + FS'!$G$3:$G$105=P$2)*('O - EE + FS'!$S$3:$S$105)) -> 0 | Q21: =SUMPRODUCT(('O - EE + FS'!$F$3:$F$105=$B21)*('O - EE + FS'!$G$3:$G$105=P$2)*('O - EE + FS'!$AP$3:$AP$105)) -> 0 | V21: =SUMPRODUCT(('O - EE + FS'!$F$3:$F$105=$B21)*('O - EE + FS'!$G$3:$G$105=V$2)*('O - EE + FS'!$S$3:$S$105)) -> 0 | W21: =SUMPRODUCT(('O - EE + FS'!$F$3:$F$105=$B21)*('O - EE + FS'!$G$3:$G$105=V$2)*('O - EE + FS'!$AP$3:$AP$105)) -> 0 | AB21: =SUMPRODUCT(('O - EE + FS'!$F$3:$F$105=$B21)*('O - EE + FS'!$G$3:$G$105=AB$2)*('O - EE + FS'!$S$3:$S$105)) -> 0 | AC21: =SUMPRODUCT(('O - EE + FS'!$F$3:$F$105=$B21)*('O - EE + FS'!$G$3:$G$105=AB$2)*('O - EE + FS'!$AP$3:$AP$105)) -> 0 | AH21: =SUMPRODUCT(('O - EE + FS'!$F$3:$F$105=$B21)*('O - EE + FS'!$G$3:$G$105=AH$2)*('O - EE + FS'!$S$3:$S$105)) -> 0 | AI21: =SUMPRODUCT(('O - EE + FS'!$F$3:$F$105=$B21)*('O - EE + FS'!$G$3:$G$105=AH$2)*('O - EE + FS'!$AP$3:$AP$105)) -> 0 | AN21: =SUMPRODUCT(('O - EE + FS'!$F$3:$F$105=$B21)*('O - EE + FS'!$G$3:$G$105=AN$2)*('O - EE + FS'!$S$3:$S$105)) -> 0 | AO21: =SUMPRODUCT(('O - EE + FS'!$F$3:$F$105=$B21)*('O - EE + FS'!$G$3:$G$105=AN$2)*('O - EE + FS'!$AP$3:$AP$105)) -> 0 | AT21: =SUMPRODUCT(('O - EE + FS'!$F$3:$F$105=$B21)*('O - EE + FS'!$G$3:$G$105=AT$2)*('O - EE + FS'!$S$3:$S$105)) -> 0 | AU21: =SUMPRODUCT(('O - EE + FS'!$F$3:$F$105=$B21)*('O - EE + FS'!$G$3:$G$105=AT$2)*('O - EE + FS'!$AP$3:$AP$105)) -> 0 | AZ21: =SUMPRODUCT(('O - EE + FS'!$F$3:$F$105=$B21)*('O - EE + FS'!$G$3:$G$105=AZ$2)*('O - EE + FS'!$S$3:$S$105)) -> 0 | BA21: =SUMPRODUCT(('O - EE + FS'!$F$3:$F$105=$B21)*('O - EE + FS'!$G$3:$G$105=AZ$2)*('O - EE + FS'!$AP$3:$AP$105)) -> 0 | BF21: =SUMPRODUCT(('O - EE + FS'!$F$3:$F$105=$B21)*('O - EE + FS'!$G$3:$G$105=BF$2)*('O - EE + FS'!$S$3:$S$105)) -> 196.5383333 | BG21: =SUMPRODUCT(('O - EE + FS'!$F$3:$F$105=$B21)*('O - EE + FS'!$G$3:$G$105=BF$2)*('O - EE + FS'!$AP$3:$AP$105)) -> 173.4966667 | BL21: =SUMPRODUCT(('O - EE + FS'!$F$3:$F$105=$B21)*('O - EE + FS'!$G$3:$G$105=BL$2)*('O - EE + FS'!$S$3:$S$105)) -> 57.11916667 | BM21: =SUMPRODUCT(('O - EE + FS'!$F$3:$F$105=$B21)*('O - EE + FS'!$G$3:$G$105=BL$2)*('O - EE + FS'!$AP$3:$AP$105)) -> 43.1875 | BR21: =SUMPRODUCT(('O - EE + FS'!$F$3:$F$105=$B21)*('O - EE + FS'!$G$3:$G$105=BR$2)*('O - EE + FS'!$S$3:$S$105)) -> 0 | BS21: =SUMPRODUCT(('O - EE + FS'!$F$3:$F$105=$B21)*('O - EE + FS'!$G$3:$G$105=BR$2)*('O - EE + FS'!$AP$3:$AP$105)) -> 0
B22: Tariff M - SP AusNet West | D22: =SUMPRODUCT(('O - EE + FS'!$F$3:$F$105=$B22)*('O - EE + FS'!$G$3:$G$105=D$2)*('O - EE + FS'!$S$3:$S$105)) -> 0 | E22: =SUMPRODUCT(('O - EE + FS'!$F$3:$F$105=$B22)*('O - EE + FS'!$G$3:$G$105=D$2)*('O - EE + FS'!$AP$3:$AP$105)) -> 0 | J22: =SUMPRODUCT(('O - EE + FS'!$F$3:$F$105=$B22)*('O - EE + FS'!$G$3:$G$105=J$2)*('O - EE + FS'!$S$3:$S$105)) -> 0 | K22: =SUMPRODUCT(('O - EE + FS'!$F$3:$F$105=$B22)*('O - EE + FS'!$G$3:$G$105=J$2)*('O - EE + FS'!$AP$3:$AP$105)) -> 0 | P22: =SUMPRODUCT(('O - EE + FS'!$F$3:$F$105=$B22)*('O - EE + FS'!$G$3:$G$105=P$2)*('O - EE + FS'!$S$3:$S$105)) -> 0 | Q22: =SUMPRODUCT(('O - EE + FS'!$F$3:$F$105=$B22)*('O - EE + FS'!$G$3:$G$105=P$2)*('O - EE + FS'!$AP$3:$AP$105)) -> 0 | V22: =SUMPRODUCT(('O - EE + FS'!$F$3:$F$105=$B22)*('O - EE + FS'!$G$3:$G$105=V$2)*('O - EE + FS'!$S$3:$S$105)) -> 0 | W22: =SUMPRODUCT(('O - EE + FS'!$F$3:$F$105=$B22)*('O - EE + FS'!$G$3:$G$105=V$2)*('O - EE + FS'!$AP$3:$AP$105)) -> 0 | AB22: =SUMPRODUCT(('O - EE + FS'!$F$3:$F$105=$B22)*('O - EE + FS'!$G$3:$G$105=AB$2)*('O - EE + FS'!$S$3:$S$105)) -> 0 | AC22: =SUMPRODUCT(('O - EE + FS'!$F$3:$F$105=$B22)*('O - EE + FS'!$G$3:$G$105=AB$2)*('O - EE + FS'!$AP$3:$AP$105)) -> 0 | AH22: =SUMPRODUCT(('O - EE + FS'!$F$3:$F$105=$B22)*('O - EE + FS'!$G$3:$G$105=AH$2)*('O - EE + FS'!$S$3:$S$105)) -> 0 | AI22: =SUMPRODUCT(('O - EE + FS'!$F$3:$F$105=$B22)*('O - EE + FS'!$G$3:$G$105=AH$2)*('O - EE + FS'!$AP$3:$AP$105)) -> 0 | AN22: =SUMPRODUCT(('O - EE + FS'!$F$3:$F$105=$B22)*('O - EE + FS'!$G$3:$G$105=AN$2)*('O - EE + FS'!$S$3:$S$105)) -> 0 | AO22: =SUMPRODUCT(('O - EE + FS'!$F$3:$F$105=$B22)*('O - EE + FS'!$G$3:$G$105=AN$2)*('O - EE + FS'!$AP$3:$AP$105)) -> 0 | AT22: =SUMPRODUCT(('O - EE + FS'!$F$3:$F$105=$B22)*('O - EE + FS'!$G$3:$G$105=AT$2)*('O - EE + FS'!$S$3:$S$105)) -> 0 | AU22: =SUMPRODUCT(('O - EE + FS'!$F$3:$F$105=$B22)*('O - EE + FS'!$G$3:$G$105=AT$2)*('O - EE + FS'!$AP$3:$AP$105)) -> 0 | AZ22: =SUMPRODUCT(('O - EE + FS'!$F$3:$F$105=$B22)*('O - EE + FS'!$G$3:$G$105=AZ$2)*('O - EE + FS'!$S$3:$S$105)) -> 0 | BA22: =SUMPRODUCT(('O - EE + FS'!$F$3:$F$105=$B22)*('O - EE + FS'!$G$3:$G$105=AZ$2)*('O - EE + FS'!$AP$3:$AP$105)) -> 0 | BF22: =SUMPRODUCT(('O - EE + FS'!$F$3:$F$105=$B22)*('O - EE + FS'!$G$3:$G$105=BF$2)*('O - EE + FS'!$S$3:$S$105)) -> 65.26666667 | BG22: =SUMPRODUCT(('O - EE + FS'!$F$3:$F$105=$B22)*('O - EE + FS'!$G$3:$G$105=BF$2)*('O - EE + FS'!$AP$3:$AP$105)) -> 58.29083333 | BL22: =SUMPRODUCT(('O - EE + FS'!$F$3:$F$105=$B22)*('O - EE + FS'!$G$3:$G$105=BL$2)*('O - EE + FS'!$S$3:$S$105)) -> 34.30916667 | BM22: =SUMPRODUCT(('O - EE + FS'!$F$3:$F$105=$B22)*('O - EE + FS'!$G$3:$G$105=BL$2)*('O - EE + FS'!$AP$3:$AP$105)) -> 27.5025 | BR22: =SUMPRODUCT(('O - EE + FS'!$F$3:$F$105=$B22)*('O - EE + FS'!$G$3:$G$105=BR$2)*('O - EE + FS'!$S$3:$S$105)) -> 0 | BS22: =SUMPRODUCT(('O - EE + FS'!$F$3:$F$105=$B22)*('O - EE + FS'!$G$3:$G$105=BR$2)*('O - EE + FS'!$AP$3:$AP$105)) -> 0
B23: Tariff M - SP AusNet New Town Central | D23: =SUMPRODUCT(('O - EE + FS'!$F$3:$F$105=$B23)*('O - EE + FS'!$G$3:$G$105=D$2)*('O - EE + FS'!$S$3:$S$105)) -> 0 | E23: =SUMPRODUCT(('O - EE + FS'!$F$3:$F$105=$B23)*('O - EE + FS'!$G$3:$G$105=D$2)*('O - EE + FS'!$AP$3:$AP$105)) -> 0 | J23: =SUMPRODUCT(('O - EE + FS'!$F$3:$F$105=$B23)*('O - EE + FS'!$G$3:$G$105=J$2)*('O - EE + FS'!$S$3:$S$105)) -> 0 | K23: =SUMPRODUCT(('O - EE + FS'!$F$3:$F$105=$B23)*('O - EE + FS'!$G$3:$G$105=J$2)*('O - EE + FS'!$AP$3:$AP$105)) -> 0 | P23: =SUMPRODUCT(('O - EE + FS'!$F$3:$F$105=$B23)*('O - EE + FS'!$G$3:$G$105=P$2)*('O - EE + FS'!$S$3:$S$105)) -> 0 | Q23: =SUMPRODUCT(('O - EE + FS'!$F$3:$F$105=$B23)*('O - EE + FS'!$G$3:$G$105=P$2)*('O - EE + FS'!$AP$3:$AP$105)) -> 0 | V23: =SUMPRODUCT(('O - EE + FS'!$F$3:$F$105=$B23)*('O - EE + FS'!$G$3:$G$105=V$2)*('O - EE + FS'!$S$3:$S$105)) -> 0 | W23: =SUMPRODUCT(('O - EE + FS'!$F$3:$F$105=$B23)*('O - EE + FS'!$G$3:$G$105=V$2)*('O - EE + FS'!$AP$3:$AP$105)) -> 0 | AB23: =SUMPRODUCT(('O - EE + FS'!$F$3:$F$105=$B23)*('O - EE + FS'!$G$3:$G$105=AB$2)*('O - EE + FS'!$S$3:$S$105)) -> 0 | AC23: =SUMPRODUCT(('O - EE + FS'!$F$3:$F$105=$B23)*('O - EE + FS'!$G$3:$G$105=AB$2)*('O - EE + FS'!$AP$3:$AP$105)) -> 0 | AH23: =SUMPRODUCT(('O - EE + FS'!$F$3:$F$105=$B23)*('O - EE + FS'!$G$3:$G$105=AH$2)*('O - EE + FS'!$S$3:$S$105)) -> 0 | AI23: =SUMPRODUCT(('O - EE + FS'!$F$3:$F$105=$B23)*('O - EE + FS'!$G$3:$G$105=AH$2)*('O - EE + FS'!$AP$3:$AP$105)) -> 0 | AN23: =SUMPRODUCT(('O - EE + FS'!$F$3:$F$105=$B23)*('O - EE + FS'!$G$3:$G$105=AN$2)*('O - EE + FS'!$S$3:$S$105)) -> 0 | AO23: =SUMPRODUCT(('O - EE + FS'!$F$3:$F$105=$B23)*('O - EE + FS'!$G$3:$G$105=AN$2)*('O - EE + FS'!$AP$3:$AP$105)) -> 0 | AT23: =SUMPRODUCT(('O - EE + FS'!$F$3:$F$105=$B23)*('O - EE + FS'!$G$3:$G$105=AT$2)*('O - EE + FS'!$S$3:$S$105)) -> 0 | AU23: =SUMPRODUCT(('O - EE + FS'!$F$3:$F$105=$B23)*('O - EE + FS'!$G$3:$G$105=AT$2)*('O - EE + FS'!$AP$3:$AP$105)) -> 0 | AZ23: =SUMPRODUCT(('O - EE + FS'!$F$3:$F$105=$B23)*('O - EE + FS'!$G$3:$G$105=AZ$2)*('O - EE + FS'!$S$3:$S$105)) -> 0 | BA23: =SUMPRODUCT(('O - EE + FS'!$F$3:$F$105=$B23)*('O - EE + FS'!$G$3:$G$105=AZ$2)*('O - EE + FS'!$AP$3:$AP$105)) -> 0 | BF23: =SUMPRODUCT(('O - EE + FS'!$F$3:$F$105=$B23)*('O - EE + FS'!$G$3:$G$105=BF$2)*('O - EE + FS'!$S$3:$S$105)) -> 0 | BG23: =SUMPRODUCT(('O - EE + FS'!$F$3:$F$105=$B23)*('O - EE + FS'!$G$3:$G$105=BF$2)*('O - EE + FS'!$AP$3:$AP$105)) -> 0 | BL23: =SUMPRODUCT(('O - EE + FS'!$F$3:$F$105=$B23)*('O - EE + FS'!$G$3:$G$105=BL$2)*('O - EE + FS'!$S$3:$S$105)) -> 0 | BM23: =SUMPRODUCT(('O - EE + FS'!$F$3:$F$105=$B23)*('O - EE + FS'!$G$3:$G$105=BL$2)*('O - EE + FS'!$AP$3:$AP$105)) -> 0 | BR23: =SUMPRODUCT(('O - EE + FS'!$F$3:$F$105=$B23)*('O - EE + FS'!$G$3:$G$105=BR$2)*('O - EE + FS'!$S$3:$S$105)) -> 0 | BS23: =SUMPRODUCT(('O - EE + FS'!$F$3:$F$105=$B23)*('O - EE + FS'!$G$3:$G$105=BR$2)*('O - EE + FS'!$AP$3:$AP$105)) -> 0
B24: Tariff M - SP AusNet New Town West | D24: =SUMPRODUCT(('O - EE + FS'!$F$3:$F$105=$B24)*('O - EE + FS'!$G$3:$G$105=D$2)*('O - EE + FS'!$S$3:$S$105)) -> 0 | E24: =SUMPRODUCT(('O - EE + FS'!$F$3:$F$105=$B24)*('O - EE + FS'!$G$3:$G$105=D$2)*('O - EE + FS'!$AP$3:$AP$105)) -> 0 | J24: =SUMPRODUCT(('O - EE + FS'!$F$3:$F$105=$B24)*('O - EE + FS'!$G$3:$G$105=J$2)*('O - EE + FS'!$S$3:$S$105)) -> 0 | K24: =SUMPRODUCT(('O - EE + FS'!$F$3:$F$105=$B24)*('O - EE + FS'!$G$3:$G$105=J$2)*('O - EE + FS'!$AP$3:$AP$105)) -> 0 | P24: =SUMPRODUCT(('O - EE + FS'!$F$3:$F$105=$B24)*('O - EE + FS'!$G$3:$G$105=P$2)*('O - EE + FS'!$S$3:$S$105)) -> 0 | Q24: =SUMPRODUCT(('O - EE + FS'!$F$3:$F$105=$B24)*('O - EE + FS'!$G$3:$G$105=P$2)*('O - EE + FS'!$AP$3:$AP$105)) -> 0 | V24: =SUMPRODUCT(('O - EE + FS'!$F$3:$F$105=$B24)*('O - EE + FS'!$G$3:$G$105=V$2)*('O - EE + FS'!$S$3:$S$105)) -> 0 | W24: =SUMPRODUCT(('O - EE + FS'!$F$3:$F$105=$B24)*('O - EE + FS'!$G$3:$G$105=V$2)*('O - EE + FS'!$AP$3:$AP$105)) -> 0 | AB24: =SUMPRODUCT(('O - EE + FS'!$F$3:$F$105=$B24)*('O - EE + FS'!$G$3:$G$105=AB$2)*('O - EE + FS'!$S$3:$S$105)) -> 0 | AC24: =SUMPRODUCT(('O - EE + FS'!$F$3:$F$105=$B24)*('O - EE + FS'!$G$3:$G$105=AB$2)*('O - EE + FS'!$AP$3:$AP$105)) -> 0 | AH24: =SUMPRODUCT(('O - EE + FS'!$F$3:$F$105=$B24)*('O - EE + FS'!$G$3:$G$105=AH$2)*('O - EE + FS'!$S$3:$S$105)) -> 0 | AI24: =SUMPRODUCT(('O - EE + FS'!$F$3:$F$105=$B24)*('O - EE + FS'!$G$3:$G$105=AH$2)*('O - EE + FS'!$AP$3:$AP$105)) -> 0 | AN24: =SUMPRODUCT(('O - EE + FS'!$F$3:$F$105=$B24)*('O - EE + FS'!$G$3:$G$105=AN$2)*('O - EE + FS'!$S$3:$S$105)) -> 0 | AO24: =SUMPRODUCT(('O - EE + FS'!$F$3:$F$105=$B24)*('O - EE + FS'!$G$3:$G$105=AN$2)*('O - EE + FS'!$AP$3:$AP$105)) -> 0 | AT24: =SUMPRODUCT(('O - EE + FS'!$F$3:$F$105=$B24)*('O - EE + FS'!$G$3:$G$105=AT$2)*('O - EE + FS'!$S$3:$S$105)) -> 0 | AU24: =SUMPRODUCT(('O - EE + FS'!$F$3:$F$105=$B24)*('O - EE + FS'!$G$3:$G$105=AT$2)*('O - EE + FS'!$AP$3:$AP$105)) -> 0 | AZ24: =SUMPRODUCT(('O - EE + FS'!$F$3:$F$105=$B24)*('O - EE + FS'!$G$3:$G$105=AZ$2)*('O - EE + FS'!$S$3:$S$105)) -> 0 | BA24: =SUMPRODUCT(('O - EE + FS'!$F$3:$F$105=$B24)*('O - EE + FS'!$G$3:$G$105=AZ$2)*('O - EE + FS'!$AP$3:$AP$105)) -> 0 | BF24: =SUMPRODUCT(('O - EE + FS'!$F$3:$F$105=$B24)*('O - EE + FS'!$G$3:$G$105=BF$2)*('O - EE + FS'!$S$3:$S$105)) -> 0 | BG24: =SUMPRODUCT(('O - EE + FS'!$F$3:$F$105=$B24)*('O - EE + FS'!$G$3:$G$105=BF$2)*('O - EE + FS'!$AP$3:$AP$105)) -> 0 | BL24: =SUMPRODUCT(('O - EE + FS'!$F$3:$F$105=$B24)*('O - EE + FS'!$G$3:$G$105=BL$2)*('O - EE + FS'!$S$3:$S$105)) -> 0 | BM24: =SUMPRODUCT(('O - EE + FS'!$F$3:$F$105=$B24)*('O - EE + FS'!$G$3:$G$105=BL$2)*('O - EE + FS'!$AP$3:$AP$105)) -> 0 | BR24: =SUMPRODUCT(('O - EE + FS'!$F$3:$F$105=$B24)*('O - EE + FS'!$G$3:$G$105=BR$2)*('O - EE + FS'!$S$3:$S$105)) -> 0 | BS24: =SUMPRODUCT(('O - EE + FS'!$F$3:$F$105=$B24)*('O - EE + FS'!$G$3:$G$105=BR$2)*('O - EE + FS'!$AP$3:$AP$105)) -> 0
D31: 2022/23 | E31: 2023/24 | F31: 2024/25 | G31: 2025/26 | H31: 2026/27 | I31: 2027/28 | J31: 2022/23 | K31: 2023/24 | L31: 2024/25 | M31: 2025/26 | N31: 2026/27 | O31: 2027/28 | P31: 2022/23 | Q31: 2023/24 | R31: 2024/25 | S31: 2025/26 | T31: 2026/27 | U31: 2027/28 | V31: 2022/23 | W31: 2023/24 | X31: 2024/25 | Y31: 2025/26 | Z31: 2026/27 | AA31: 2027/28 | AB31: 2022/23 | AC31: 2023/24 | AD31: 2024/25 | AE31: 2025/26 | AF31: 2026/27 | AG31: 2027/28 | AH31: 2022/23 | AI31: 2023/24 | AJ31: 2024/25 | AK31: 2025/26 | AL31: 2026/27 | AM31: 2027/28 | AN31: 2022/23 | AO31: 2023/24 | AP31: 2024/25 | AQ31: 2025/26 | AR31: 2026/27 | AS31: 2027/28 | AT31: 2022/23 | AU31: 2023/24 | AV31: 2024/25 | AW31: 2025/26 | AX31: 2026/27 | AY31: 2027/28 | AZ31: 2022/23 | BA31: 2023/24 | BB31: 2024/25 | BC31: 2025/26 | BD31: 2026/27 | BE31: 2027/28 | BF31: 2022/23 | BG31: 2023/24 | BH31: 2024/25 | BI31: 2025/26 | BJ31: 2026/27 | BK31: 2027/28 | BL31: 2022/23 | BM31: 2023/24 | BN31: 2024/25 | BO31: 2025/26 | BP31: 2026/27 | BQ31: 2027/28 | BR31: 2022/23 | BS31: 2023/24 | BT31: 2024/25 | BU31: 2025/26 | BV31: 2026/27 | BW31: 2027/28
... 28 more rows

Sheet O - EE + FS
A1: Res | B1: Cla | C1: Blo | D1: Reg | E1: New | F1: Outputs | H1: 2011 | I1: 2012 | J1: 2013 | K1: 2014 | L1: 2015 | M1: 2016 | N1: 2017 | O1: 2018 | P1: 2019 | Q1: 2020 | R1: 2021 | S1: 2022 | T1: =S1+1 -> 2023 | U1: 2024 | V1: 2025 | W1: 2026 | X1: 2027 | Y1: 2028 | Z1: =Y1+1 -> 2029 | AA1: 2030 | AB1: 2031 | AC1: 2032 | AD1: 2033 | AE1: 2034 | AF1: 2035 | AG1: 2036 | AH1: 2037 | AI1: 2038 | AJ1: 2039 | AK1: 2040 | AL1: 2041 | AM1: 2042 | AN1: 2043 | AP1: 2023 stub | AQ1: 2022/23 | AR1: 2023/24 | AS1: 2024/25 | AT1: 2025/26 | AU1: 2026/27 | AV1: 2027/28 | AW1: 2028/29
F2: Tariff V - SP AusNet Central - Domestic
A3: 1 | B3: 1 | C3: 1 | D3: 1 | E3: 1 | F3: Tariff V - SP AusNet Central - Domestic | G3: Fixed Charge | H3: ='C - tariff volumes'!H3 -> 445025.5645 | I3: ='C - tariff volumes'!I3 -> 457569.69 | J3: ='C - tariff volumes'!J3 -> 466546.6576 | K3: ='C - tariff volumes'!K3 -> 476190.8191 | L3: ='C - tariff volumes'!L3 -> 486727.0893 | M3: ='C - tariff volumes'!M3 -> 499178.2702 | N3: ='C - tariff volumes'!N3 -> 511288.7441 | O3: ='C - tariff volumes'!O3 -> 525378.9647 | P3: ='C - tariff volumes'!P3 -> 541826.6278 | Q3: ='C - tariff volumes'!Q3 -> 560241.0347 | R3: ='C - tariff volumes'!R3 -> 575343.0958 | S3: ='C - tariff volumes'!S3 -> 585864.2564 | T3: ='C - tariff volumes'!T3 -> 603303.1502 | U3: ='C - tariff volumes'!U3 -> 613265.1807 | V3: ='C - tariff volumes'!V3 -> 617170.5282 | W3: ='C - tariff volumes'!W3 -> 617304.7998 | X3: ='C - tariff volumes'!X3 -> 614006.4982 | Y3: ='C - tariff volumes'!Y3 -> 608145.4544 | Z3: ='C - tariff volumes'!Z3 -> 601693.0705 | AA3: ='C - tariff volumes'!AA3 -> 595125.7097 | AB3: ='C - tariff volumes'!AB3 -> 588510.1634 | AC3: ='C - tariff volumes'!AC3 -> 581882.6056 | AD3: ='C - tariff volumes'!AD3 -> 575198.015 | AE3: ='C - tariff volumes'!AE3 -> 568457.0671 | AF3: ='C - tariff volumes'!AF3 -> 561660.93 | AG3: ='C - tariff volumes'!AG3 -> 554810.9149 | AH3: ='C - tariff volumes'!AH3 -> 548020.7103 | AI3: ='C - tariff volumes'!AI3 -> 541176.1046 | AJ3: ='C - tariff volumes'!AJ3 -> 534277.3732 | AK3: ='C - tariff volumes'!AK3 -> 527230.2408 | AL3: ='C - tariff volumes'!AL3 -> 520176.9316 | AM3: ='C - tariff volumes'!AM3 -> 513252.1844 | AN3: ='C - tariff volumes'!AN3 -> 506319.7304 | AP3: ='C - tariff volumes'!AP3 -> 594583.7033 | AQ3: ='C - tariff volumes'!AQ3 -> 594583.7033 | AR3: =T3+(U3-T3)*'I - assumptions'!$B$119 -> 608284.1654 | AS3: =U3+(V3-U3)*'I - assumptions'!$B$119 -> 615217.8545 | AT3: =V3+(W3-V3)*'I - assumptions'!$B$119 -> 617237.664 | AU3: =W3+(X3-W3)*'I - assumptions'!$B$119 -> 615655.649 | AV3: =X3+(Y3-X3)*'I - assumptions'!$B$119 -> 611075.9763 | AW3: =Y3+(Z3-Y3)*'I - assumptions'!$B$119 -> 604919.2625
A4: 1 | B4: 1 | C4: 2 | D4: 1 | E4: 1 | F4: Tariff V - SP AusNet Central - Domestic | G4: Peak 0 - 0.1 | H4: ='C - tariff volumes'!H4 -> 4709657.202 | I4: ='C - tariff volumes'!I4 -> 4844779.056 | J4: ='C - tariff volumes'!J4 -> 4860631.995 | K4: ='C - tariff volumes'!K4 -> 4730745.03 | L4: ='C - tariff volumes'!L4 -> 5003718.59 | M4: ='C - tariff volumes'!M4 -> 5175140.239 | N4: ='C - tariff volumes'!N4 -> 5472666.551 | O4: ='C - tariff volumes'!O4 -> 5350606.477 | P4: ='C - tariff volumes'!P4 -> 5416825.514 | Q4: ='C - tariff volumes'!Q4 -> 5639401.03 | R4: ='C - tariff volumes'!R4 -> 5584550.573 | S4: ='C - tariff volumes'!S4 -> 5639296.528 | T4: ='C - tariff volumes'!T4*(1+'I - drivers'!AB$29) -> 5492435.792 | U4: ='C - tariff volumes'!U4*(1+'I - drivers'!AC$29) -> 5540957.973 | V4: ='C - tariff volumes'!V4*(1+'I - drivers'!AD$29) -> 5440783.969 | W4: ='C - tariff volumes'!W4*(1+'I - drivers'!AE$29) -> 5263692.954 | X4: ='C - tariff volumes'!X4*(1+'I - drivers'!AF$29) -> 5029859.637 | Y4: ='C - tariff volumes'!Y4*(1+'I - drivers'!AG$29) -> 4750421.937 | Z4: ='C - tariff volumes'!Z4*(1+'I - drivers'!AH$29) -> 4485129.04 | AA4: ='C - tariff volumes'!AA4*(1+'I - drivers'!AI$29) -> 4244884.139 | AB4: ='C - tariff volumes'!AB4*(1+'I - drivers'!AJ$29) -> 3994198.274 | AC4: ='C - tariff volumes'!AC4*(1+'I - drivers'!AK$29) -> 3769427.08 | AD4: ='C - tariff volumes'!AD4*(1+'I - drivers'!AL$29) -> 3555511.44 | AE4: ='C - tariff volumes'!AE4*(1+'I - drivers'!AM$29) -> 3350628.979 | AF4: ='C - tariff volumes'!AF4*(1+'I - drivers'!AN$29) -> 3147699.584 | AG4: ='C - tariff volumes'!AG4*(1+'I - drivers'!AO$29) -> 2951286.583 | AH4: ='C - tariff volumes'!AH4*(1+'I - drivers'!AP$29) -> 2763617.219 | AI4: ='C - tariff volumes'!AI4*(1+'I - drivers'!AQ$29) -> 2572017.47 | AJ4: ='C - tariff volumes'!AJ4*(1+'I - drivers'!AR$29) -> 2396015.554 | AK4: ='C - tariff volumes'!AK4*(1+'I - drivers'!AS$29) -> 2228596.614 | AL4: ='C - tariff volumes'!AL4*(1+'I - drivers'!AT$29) -> 2068660.824 | AM4: ='C - tariff volumes'!AM4*(1+'I - drivers'!AU$29) -> 1928348.847 | AN4: ='C - tariff volumes'!AN4*(1+'I - drivers'!AV$29) -> 1784288.064 | AP4: ='C - tariff volumes'!AP4 -> 1299444.889 | AQ4: ='C - tariff volumes'!AQ4 -> 5571295.412 | AR4: =T4*(1-SUMIFS('I - assumptions'!$E$121:$E$136,'I - assumptions'!$C$121:$C$136,$A4,'I - assumptions'!$D$121:$D$136,$C4))+U4*SUMIFS('I - assumptions'!$E$121:$E$136,'I - assumptions'!$C$121:$C$136,$A4,'I - assumptions'!$D$121:$D$136,$C4) -> 5504163.336 | AS4: =U4*(1-SUMIFS('I - assumptions'!$E$121:$E$136,'I - assumptions'!$C$121:$C$136,$A4,'I - assumptions'!$D$121:$D$136,$C4))+V4*SUMIFS('I - assumptions'!$E$121:$E$136,'I - assumptions'!$C$121:$C$136,$A4,'I - assumptions'!$D$121:$D$136,$C4) -> 5516746.468 | AT4: =V4*(1-SUMIFS('I - assumptions'!$E$121:$E$136,'I - assumptions'!$C$121:$C$136,$A4,'I - assumptions'!$D$121:$D$136,$C4))+W4*SUMIFS('I - assumptions'!$E$121:$E$136,'I - assumptions'!$C$121:$C$136,$A4,'I - assumptions'!$D$121:$D$136,$C4) -> 5397982.047 | AU4: =W4*(1-SUMIFS('I - assumptions'!$E$121:$E$136,'I - assumptions'!$C$121:$C$136,$A4,'I - assumptions'!$D$121:$D$136,$C4))+X4*SUMIFS('I - assumptions'!$E$121:$E$136,'I - assumptions'!$C$121:$C$136,$A4,'I - assumptions'!$D$121:$D$136,$C4) -> 5207176.731 | AV4: =X4*(1-SUMIFS('I - assumptions'!$E$121:$E$136,'I - assumptions'!$C$121:$C$136,$A4,'I - assumptions'!$D$121:$D$136,$C4))+Y4*SUMIFS('I - assumptions'!$E$121:$E$136,'I - assumptions'!$C$121:$C$136,$A4,'I - assumptions'!$D$121:$D$136,$C4) -> 4962321.086 | AW4: =Y4*(1-SUMIFS('I - assumptions'!$E$121:$E$136,'I - assumptions'!$C$121:$C$136,$A4,'I - assumptions'!$D$121:$D$136,$C4))+Z4*SUMIFS('I - assumptions'!$E$121:$E$136,'I - assumptions'!$C$121:$C$136,$A4,'I - assumptions'!$D$121:$D$136,$C4) -> 4686302.106
A5: 1 | B5: 1 | C5: 3 | D5: 1 | E5: 1 | F5: Tariff V - SP AusNet Central - Domestic | G5: Peak 0.1 - 0.2 | H5: ='C - tariff volumes'!H5 -> 3423257.37 | I5: ='C - tariff volumes'!I5 -> 3719596.662 | J5: ='C - tariff volumes'!J5 -> 3410488.724 | K5: ='C - tariff volumes'!K5 -> 3491961.272 | L5: ='C - tariff volumes'!L5 -> 3791795.951 | M5: ='C - tariff volumes'!M5 -> 3878355.813 | N5: ='C - tariff volumes'!N5 -> 4341291.669 | O5: ='C - tariff volumes'!O5 -> 3854064.224 | P5: ='C - tariff volumes'!P5 -> 3862435.585 | Q5: ='C - tariff volumes'!Q5 -> 3976798.042 | R5: ='C - tariff volumes'!R5 -> 3842291.391 | S5: ='C - tariff volumes'!S5 -> 3896673.097 | T5: ='C - tariff volumes'!T5*(1+'I - drivers'!AB$29) -> 3218522.383 | U5: ='C - tariff volumes'!U5*(1+'I - drivers'!AC$29) -> 3346968.747 | V5: ='C - tariff volumes'!V5*(1+'I - drivers'!AD$29) -> 3250095.132 | W5: ='C - tariff volumes'!W5*(1+'I - drivers'!AE$29) -> 3115764.46 | X5: ='C - tariff volumes'!X5*(1+'I - drivers'!AF$29) -> 2946019.791 | Y5: ='C - tariff volumes'!Y5*(1+'I - drivers'!AG$29) -> 2760872.282 | Z5: ='C - tariff volumes'!Z5*(1+'I - drivers'!AH$29) -> 2582805.294 | AA5: ='C - tariff volumes'!AA5*(1+'I - drivers'!AI$29) -> 2447801.618 | AB5: ='C - tariff volumes'!AB5*(1+'I - drivers'!AJ$29) -> 2267168.905 | AC5: ='C - tariff volumes'!AC5*(1+'I - drivers'!AK$29) -> 2123535.412 | AD5: ='C - tariff volumes'!AD5*(1+'I - drivers'!AL$29) -> 1987586.649 | AE5: ='C - tariff volumes'!AE5*(1+'I - drivers'!AM$29) -> 1858616.499 | AF5: ='C - tariff volumes'!AF5*(1+'I - drivers'!AN$29) -> 1732403.502 | AG5: ='C - tariff volumes'!AG5*(1+'I - drivers'!AO$29) -> 1611434.976 | AH5: ='C - tariff volumes'!AH5*(1+'I - drivers'!AP$29) -> 1499955.66 | AI5: ='C - tariff volumes'!AI5*(1+'I - drivers'!AQ$29) -> 1381550.045 | AJ5: ='C - tariff volumes'!AJ5*(1+'I - drivers'!AR$29) -> 1276427.628 | AK5: ='C - tariff volumes'!AK5*(1+'I - drivers'!AS$29) -> 1177318.916 | AL5: ='C - tariff volumes'!AL5*(1+'I - drivers'!AT$29) -> 1083579.04 | AM5: ='C - tariff volumes'!AM5*(1+'I - drivers'!AU$29) -> 1009097.86 | AN5: ='C - tariff volumes'!AN5*(1+'I - drivers'!AV$29) -> 925754.5947 | AP5: ='C - tariff volumes'!AP5 -> 809351.577 | AQ5: ='C - tariff volumes'!AQ5 -> 3740104.493 | AR5: =T5*(1-SUMIFS('I - assumptions'!$E$121:$E$136,'I - assumptions'!$C$121:$C$136,$A5,'I - assumptions'!$D$121:$D$136,$C5))+U5*SUMIFS('I - assumptions'!$E$121:$E$136,'I - assumptions'!$C$121:$C$136,$A5,'I - assumptions'!$D$121:$D$136,$C5) -> 3250827.209 | AS5: =U5*(1-SUMIFS('I - assumptions'!$E$121:$E$136,'I - assumptions'!$C$121:$C$136,$A5,'I - assumptions'!$D$121:$D$136,$C5))+V5*SUMIFS('I - assumptions'!$E$121:$E$136,'I - assumptions'!$C$121:$C$136,$A5,'I - assumptions'!$D$121:$D$136,$C5) -> 3322604.606 | AT5: =V5*(1-SUMIFS('I - assumptions'!$E$121:$E$136,'I - assumptions'!$C$121:$C$136,$A5,'I - assumptions'!$D$121:$D$136,$C5))+W5*SUMIFS('I - assumptions'!$E$121:$E$136,'I - assumptions'!$C$121:$C$136,$A5,'I - assumptions'!$D$121:$D$136,$C5) -> 3216310.377 | AU5: =W5*(1-SUMIFS('I - assumptions'!$E$121:$E$136,'I - assumptions'!$C$121:$C$136,$A5,'I - assumptions'!$D$121:$D$136,$C5))+X5*SUMIFS('I - assumptions'!$E$121:$E$136,'I - assumptions'!$C$121:$C$136,$A5,'I - assumptions'!$D$121:$D$136,$C5) -> 3073072.929 | AV5: =X5*(1-SUMIFS('I - assumptions'!$E$121:$E$136,'I - assumptions'!$C$121:$C$136,$A5,'I - assumptions'!$D$121:$D$136,$C5))+Y5*SUMIFS('I - assumptions'!$E$121:$E$136,'I - assumptions'!$C$121:$C$136,$A5,'I - assumptions'!$D$121:$D$136,$C5) -> 2899454.378 | AW5: =Y5*(1-SUMIFS('I - assumptions'!$E$121:$E$136,'I - assumptions'!$C$121:$C$136,$A5,'I - assumptions'!$D$121:$D$136,$C5))+Z5*SUMIFS('I - assumptions'!$E$121:$E$136,'I - assumptions'!$C$121:$C$136,$A5,'I - assumptions'!$D$121:$D$136,$C5) -> 2716087.65
A6: 1 | B6: 1 | C6: 4 | D6: 1 | E6: 1 | F6: Tariff V - SP AusNet Central - Domestic | G6: Peak 0.2 - 1.4 | H6: ='C - tariff volumes'!H6 -> 4647118.338 | I6: ='C - tariff volumes'!I6 -> 5727415.344 | J6: ='C - tariff volumes'!J6 -> 4484036.719 | K6: ='C - tariff volumes'!K6 -> 5034413.009 | L6: ='C - tariff volumes'!L6 -> 6691928.196 | M6: ='C - tariff volumes'!M6 -> 5744575.603 | N6: ='C - tariff volumes'!N6 -> 5799021.096 | O6: ='C - tariff volumes'!O6 -> 6100328.388 | P6: ='C - tariff volumes'!P6 -> 5818211.076 | Q6: ='C - tariff volumes'!Q6 -> 6032737.237 | R6: ='C - tariff volumes'!R6 -> 5678347.008 | S6: ='C - tariff volumes'!S6 -> 6064379.389 | T6: ='C - tariff volumes'!T6*(1+'I - drivers'!AB$29) -> 3852178.667 | U6: ='C - tariff volumes'!U6*(1+'I - drivers'!AC$29) -> 4113271.882 | V6: ='C - tariff volumes'!V6*(1+'I - drivers'!AD$29) -> 3970956.214 | W6: ='C - tariff volumes'!W6*(1+'I - drivers'!AE$29) -> 3784982.75 | X6: ='C - tariff volumes'!X6*(1+'I - drivers'!AF$29) -> 3559192.365 | Y6: ='C - tariff volumes'!Y6*(1+'I - drivers'!AG$29) -> 3317001.682 | Z6: ='C - tariff volumes'!Z6*(1+'I - drivers'!AH$29) -> 3086028.48 | AA6: ='C - tariff volumes'!AA6*(1+'I - drivers'!AI$29) -> 2906789.837 | AB6: ='C - tariff volumes'!AB6*(1+'I - drivers'!AJ$29) -> 2677786.519 | AC6: ='C - tariff volumes'!AC6*(1+'I - drivers'!AK$29) -> 2493267.015 | AD6: ='C - tariff volumes'!AD6*(1+'I - drivers'!AL$29) -> 2319518.648 | AE6: ='C - tariff volumes'!AE6*(1+'I - drivers'!AM$29) -> 2155593.166 | AF6: ='C - tariff volumes'!AF6*(1+'I - drivers'!AN$29) -> 1996475.839 | AG6: ='C - tariff volumes'!AG6*(1+'I - drivers'!AO$29) -> 1845103.114 | AH6: ='C - tariff volumes'!AH6*(1+'I - drivers'!AP$29) -> 1705925.813 | AI6: ='C - tariff volumes'!AI6*(1+'I - drivers'!AQ$29) -> 1560762.384 | AJ6: ='C - tariff volumes'!AJ6*(1+'I - drivers'!AR$29) -> 1432001.826 | AK6: ='C - tariff volumes'!AK6*(1+'I - drivers'!AS$29) -> 1311426.788 | AL6: ='C - tariff volumes'!AL6*(1+'I - drivers'!AT$29) -> 1198198.736 | AM6: ='C - tariff volumes'!AM6*(1+'I - drivers'!AU$29) -> 1107055.148 | AN6: ='C - tariff volumes'!AN6*(1+'I - drivers'!AV$29) -> 1007780.865 | AP6: ='C - tariff volumes'!AP6 -> 1215011.942 | AQ6: ='C - tariff volumes'!AQ6 -> 5745187.527 | AR6: =T6*(1-SUMIFS('I - assumptions'!$E$121:$E$136,'I - assumptions'!$C$121:$C$136,$A6,'I - assumptions'!$D$121:$D$136,$C6))+U6*SUMIFS('I - assumptions'!$E$121:$E$136,'I - assumptions'!$C$121:$C$136,$A6,'I - assumptions'!$D$121:$D$136,$C6) -> 3926334.161 | AS6: =U6*(1-SUMIFS('I - assumptions'!$E$121:$E$136,'I - assumptions'!$C$121:$C$136,$A6,'I - assumptions'!$D$121:$D$136,$C6))+V6*SUMIFS('I - assumptions'!$E$121:$E$136,'I - assumptions'!$C$121:$C$136,$A6,'I - assumptions'!$D$121:$D$136,$C6) -> 4072851.495 | AT6: =V6*(1-SUMIFS('I - assumptions'!$E$121:$E$136,'I - assumptions'!$C$121:$C$136,$A6,'I - assumptions'!$D$121:$D$136,$C6))+W6*SUMIFS('I - assumptions'!$E$121:$E$136,'I - assumptions'!$C$121:$C$136,$A6,'I - assumptions'!$D$121:$D$136,$C6) -> 3918136.174 | AU6: =W6*(1-SUMIFS('I - assumptions'!$E$121:$E$136,'I - assumptions'!$C$121:$C$136,$A6,'I - assumptions'!$D$121:$D$136,$C6))+X6*SUMIFS('I - assumptions'!$E$121:$E$136,'I - assumptions'!$C$121:$C$136,$A6,'I - assumptions'!$D$121:$D$136,$C6) -> 3720853.939 | AV6: =X6*(1-SUMIFS('I - assumptions'!$E$121:$E$136,'I - assumptions'!$C$121:$C$136,$A6,'I - assumptions'!$D$121:$D$136,$C6))+Y6*SUMIFS('I - assumptions'!$E$121:$E$136,'I - assumptions'!$C$121:$C$136,$A6,'I - assumptions'!$D$121:$D$136,$C6) -> 3490405.554 | AW6: =Y6*(1-SUMIFS('I - assumptions'!$E$121:$E$136,'I - assumptions'!$C$121:$C$136,$A6,'I - assumptions'!$D$121:$D$136,$C6))+Z6*SUMIFS('I - assumptions'!$E$121:$E$136,'I - assumptions'!$C$121:$C$136,$A6,'I - assumptions'!$D$121:$D$136,$C6) -> 3251400.851
A7: 1 | B7: 1 | C7: 5 | D7: 1 | E7: 1 | F7: Tariff V - SP AusNet Central - Domestic | G7: Peak > 1.4 | H7: ='C - tariff volumes'!H7 -> 59060.624 | I7: ='C - tariff volumes'!I7 -> 63687.439 | J7: ='C - tariff volumes'!J7 -> 65162.246 | K7: ='C - tariff volumes'!K7 -> 73846.68 | L7: ='C - tariff volumes'!L7 -> 88113.784 | M7: ='C - tariff volumes'!M7 -> 82963.073 | N7: ='C - tariff volumes'!N7 -> 71003.941 | O7: ='C - tariff volumes'!O7 -> 70549.089 | P7: ='C - tariff volumes'!P7 -> 79110.495 | Q7: ='C - tariff volumes'!Q7 -> 77726.47 | R7: ='C - tariff volumes'!R7 -> 55163.378 | S7: ='C - tariff volumes'!S7 -> 66970.462 | T7: ='C - tariff volumes'!T7*(1+'I - drivers'!AB$29) -> 59660.685 | U7: ='C - tariff volumes'!U7*(1+'I - drivers'!AC$29) -> 59925.53382 | V7: ='C - tariff volumes'!V7*(1+'I - drivers'!AD$29) -> 58956.92292 | W7: ='C - tariff volumes'!W7*(1+'I - drivers'!AE$29) -> 57110.74158 | X7: ='C - tariff volumes'!X7*(1+'I - drivers'!AF$29) -> 54702.37761 | Y7: ='C - tariff volumes'!Y7*(1+'I - drivers'!AG$29) -> 51717.98783 | Z7: ='C - tariff volumes'!Z7*(1+'I - drivers'!AH$29) -> 48921.96632 | AA7: ='C - tariff volumes'!AA7*(1+'I - drivers'!AI$29) -> 46135.9482 | AB7: ='C - tariff volumes'!AB7*(1+'I - drivers'!AJ$29) -> 43639.557 | AC7: ='C - tariff volumes'!AC7*(1+'I - drivers'!AK$29) -> 41222.7881 | AD7: ='C - tariff volumes'!AD7*(1+'I - drivers'!AL$29) -> 38923.16518 | AE7: ='C - tariff volumes'!AE7*(1+'I - drivers'!AM$29) -> 36716.78349 | AF7: ='C - tariff volumes'!AF7*(1+'I - drivers'!AN$29) -> 34527.99418 | AG7: ='C - tariff volumes'!AG7*(1+'I - drivers'!AO$29) -> 32407.56785 | AH7: ='C - tariff volumes'!AH7*(1+'I - drivers'!AP$29) -> 30346.50944 | AI7: ='C - tariff volumes'!AI7*(1+'I - drivers'!AQ$29) -> 28304.5614 | AJ7: ='C - tariff volumes'!AJ7*(1+'I - drivers'!AR$29) -> 26396.15332 | AK7: ='C - tariff volumes'!AK7*(1+'I - drivers'!AS$29) -> 24579.34162 | AL7: ='C - tariff volumes'!AL7*(1+'I - drivers'!AT$29) -> 22841.17626 | AM7: ='C - tariff volumes'!AM7*(1+'I - drivers'!AU$29) -> 21232.80642 | AN7: ='C - tariff volumes'!AN7*(1+'I - drivers'!AV$29) -> 19666.98006 | AP7: ='C - tariff volumes'!AP7 -> 10409.002 | AQ7: ='C - tariff volumes'!AQ7 -> 67066.208 | AR7: =T7*(1-SUMIFS('I - assumptions'!$E$121:$E$136,'I - assumptions'!$C$121:$C$136,$A7,'I - assumptions'!$D$121:$D$136,$C7))+U7*SUMIFS('I - assumptions'!$E$121:$E$136,'I - assumptions'!$C$121:$C$136,$A7,'I - assumptions'!$D$121:$D$136,$C7) -> 59719.80091 | AS7: =U7*(1-SUMIFS('I - assumptions'!$E$121:$E$136,'I - assumptions'!$C$121:$C$136,$A7,'I - assumptions'!$D$121:$D$136,$C7))+V7*SUMIFS('I - assumptions'!$E$121:$E$136,'I - assumptions'!$C$121:$C$136,$A7,'I - assumptions'!$D$121:$D$136,$C7) -> 59709.33382 | AT7: =V7*(1-SUMIFS('I - assumptions'!$E$121:$E$136,'I - assumptions'!$C$121:$C$136,$A7,'I - assumptions'!$D$121:$D$136,$C7))+W7*SUMIFS('I - assumptions'!$E$121:$E$136,'I - assumptions'!$C$121:$C$136,$A7,'I - assumptions'!$D$121:$D$136,$C7) -> 58544.84373 | AU7: =W7*(1-SUMIFS('I - assumptions'!$E$121:$E$136,'I - assumptions'!$C$121:$C$136,$A7,'I - assumptions'!$D$121:$D$136,$C7))+X7*SUMIFS('I - assumptions'!$E$121:$E$136,'I - assumptions'!$C$121:$C$136,$A7,'I - assumptions'!$D$121:$D$136,$C7) -> 56573.17972 | AV7: =X7*(1-SUMIFS('I - assumptions'!$E$121:$E$136,'I - assumptions'!$C$121:$C$136,$A7,'I - assumptions'!$D$121:$D$136,$C7))+Y7*SUMIFS('I - assumptions'!$E$121:$E$136,'I - assumptions'!$C$121:$C$136,$A7,'I - assumptions'!$D$121:$D$136,$C7) -> 54036.24319 | AW7: =Y7*(1-SUMIFS('I - assumptions'!$E$121:$E$136,'I - assumptions'!$C$121:$C$136,$A7,'I - assumptions'!$D$121:$D$136,$C7))+Z7*SUMIFS('I - assumptions'!$E$121:$E$136,'I - assumptions'!$C$121:$C$136,$A7,'I - assumptions'!$D$121:$D$136,$C7) -> 51093.89838
A8: 1 | B8: 1 | C8: 6 | D8: 1 | E8: 1 | F8: Tariff V - SP AusNet Central - Domestic | G8: Off Peak 0 - 0.1 | H8: ='C - tariff volumes'!H8 -> 6600657.587 | I8: ='C - tariff volumes'!I8 -> 6739194.422 | J8: ='C - tariff volumes'!J8 -> 6699930.623 | K8: ='C - tariff volumes'!K8 -> 6576150.34 | L8: ='C - tariff volumes'!L8 -> 7015429.053 | M8: ='C - tariff volumes'!M8 -> 6895066.489 | N8: ='C - tariff volumes'!N8 -> 6821523.692 | O8: ='C - tariff volumes'!O8 -> 6866210.93 | P8: ='C - tariff volumes'!P8 -> 7294065.89 | Q8: ='C - tariff volumes'!Q8 -> 8025956.373 | R8: ='C - tariff volumes'!R8 -> 8003252.297 | S8: ='C - tariff volumes'!S8 -> 7656180.42 | T8: ='C - tariff volumes'!T8*(1+'I - drivers'!AB$29) -> 7375552.94 | U8: ='C - tariff volumes'!U8*(1+'I - drivers'!AC$29) -> 7418038.942 | V8: ='C - tariff volumes'!V8*(1+'I - drivers'!AD$29) -> 7273206.755 | W8: ='C - tariff volumes'!W8*(1+'I - drivers'!AE$29) -> 7067969.48 | X8: ='C - tariff volumes'!X8*(1+'I - drivers'!AF$29) -> 6796180.297 | Y8: ='C - tariff volumes'!Y8*(1+'I - drivers'!AG$29) -> 6432225.548 | Z8: ='C - tariff volumes'!Z8*(1+'I - drivers'!AH$29) -> 6081251.153 | AA8: ='C - tariff volumes'!AA8*(1+'I - drivers'!AI$29) -> 5752653.694 | AB8: ='C - tariff volumes'!AB8*(1+'I - drivers'!AJ$29) -> 5420943.951 | AC8: ='C - tariff volumes'!AC8*(1+'I - drivers'!AK$29) -> 5119559.182 | AD8: ='C - tariff volumes'!AD8*(1+'I - drivers'!AL$29) -> 4827216.2 | AE8: ='C - tariff volumes'!AE8*(1+'I - drivers'!AM$29) -> 4549120.574 | AF8: ='C - tariff volumes'!AF8*(1+'I - drivers'!AN$29) -> 4267996.417 | AG8: ='C - tariff volumes'!AG8*(1+'I - drivers'!AO$29) -> 4005927.374 | AH8: ='C - tariff volumes'!AH8*(1+'I - drivers'!AP$29) -> 3751818.767 | AI8: ='C - tariff volumes'!AI8*(1+'I - drivers'!AQ$29) -> 3490022.245 | AJ8: ='C - tariff volumes'!AJ8*(1+'I - drivers'!AR$29) -> 3250600.988 | AK8: ='C - tariff volumes'!AK8*(1+'I - drivers'!AS$29) -> 3020646.509 | AL8: ='C - tariff volumes'!AL8*(1+'I - drivers'!AT$29) -> 2800595.461 | AM8: ='C - tariff volumes'!AM8*(1+'I - drivers'!AU$29) -> 2605390.901 | AN8: ='C - tariff volumes'!AN8*(1+'I - drivers'!AV$29) -> 2408038.218 | AP8: ='C - tariff volumes'!AP8 -> 4497049.168 | AQ8: ='C - tariff volumes'!AQ8 -> 8047901.506 | AR8: =T8*(1-SUMIFS('I - assumptions'!$E$121:$E$136,'I - assumptions'!$C$121:$C$136,$A8,'I - assumptions'!$D$121:$D$136,$C8))+U8*SUMIFS('I - assumptions'!$E$121:$E$136,'I - assumptions'!$C$121:$C$136,$A8,'I - assumptions'!$D$121:$D$136,$C8) -> 7399870.682 | AS8: =U8*(1-SUMIFS('I - assumptions'!$E$121:$E$136,'I - assumptions'!$C$121:$C$136,$A8,'I - assumptions'!$D$121:$D$136,$C8))+V8*SUMIFS('I - assumptions'!$E$121:$E$136,'I - assumptions'!$C$121:$C$136,$A8,'I - assumptions'!$D$121:$D$136,$C8) -> 7335141.246 | AT8: =V8*(1-SUMIFS('I - assumptions'!$E$121:$E$136,'I - assumptions'!$C$121:$C$136,$A8,'I - assumptions'!$D$121:$D$136,$C8))+W8*SUMIFS('I - assumptions'!$E$121:$E$136,'I - assumptions'!$C$121:$C$136,$A8,'I - assumptions'!$D$121:$D$136,$C8) -> 7155734.958 | AU8: =W8*(1-SUMIFS('I - assumptions'!$E$121:$E$136,'I - assumptions'!$C$121:$C$136,$A8,'I - assumptions'!$D$121:$D$136,$C8))+X8*SUMIFS('I - assumptions'!$E$121:$E$136,'I - assumptions'!$C$121:$C$136,$A8,'I - assumptions'!$D$121:$D$136,$C8) -> 6912405.323 | AV8: =X8*(1-SUMIFS('I - assumptions'!$E$121:$E$136,'I - assumptions'!$C$121:$C$136,$A8,'I - assumptions'!$D$121:$D$136,$C8))+Y8*SUMIFS('I - assumptions'!$E$121:$E$136,'I - assumptions'!$C$121:$C$136,$A8,'I - assumptions'!$D$121:$D$136,$C8) -> 6587863.273 | AW8: =Y8*(1-SUMIFS('I - assumptions'!$E$121:$E$136,'I - assumptions'!$C$121:$C$136,$A8,'I - assumptions'!$D$121:$D$136,$C8))+Z8*SUMIFS('I - assumptions'!$E$121:$E$136,'I - assumptions'!$C$121:$C$136,$A8,'I - assumptions'!$D$121:$D$136,$C8) -> 6231338.098
A9: 1 | B9: 1 | C9: 7 | D9: 1 | E9: 1 | F9: Tariff V - SP AusNet Central - Domestic | G9: Off Peak 0.1 - 0.2 | H9: ='C - tariff volumes'!H9 -> 1720560.558 | I9: ='C - tariff volumes'!I9 -> 1682480.197 | J9: ='C - tariff volumes'!J9 -> 1689086.965 | K9: ='C - tariff volumes'!K9 -> 1238864.364 | L9: ='C - tariff volumes'!L9 -> 1661251.847 | M9: ='C - tariff volumes'!M9 -> 1554095.251 | N9: ='C - tariff volumes'!N9 -> 1213783.476 | O9: ='C - tariff volumes'!O9 -> 1412544.899 | P9: ='C - tariff volumes'!P9 -> 1682755.427 | Q9: ='C - tariff volumes'!Q9 -> 2120662.006 | R9: ='C - tariff volumes'!R9 -> 2212262.471 | S9: ='C - tariff volumes'!S9 -> 1808815.361 | T9: ='C - tariff volumes'!T9*(1+'I - drivers'!AB$29) -> 1547153.729 | U9: ='C - tariff volumes'!U9*(1+'I - drivers'!AC$29) -> 1612559.507 | V9: ='C - tariff volumes'!V9*(1+'I - drivers'!AD$29) -> 1563616.513 | W9: ='C - tariff volumes'!W9*(1+'I - drivers'!AE$29) -> 1505016.261 | X9: ='C - tariff volumes'!X9*(1+'I - drivers'!AF$29) -> 1431412.454 | Y9: ='C - tariff volumes'!Y9*(1+'I - drivers'!AG$29) -> 1343575.911 | Z9: ='C - tariff volumes'!Z9*(1+'I - drivers'!AH$29) -> 1258129.462 | AA9: ='C - tariff volumes'!AA9*(1+'I - drivers'!AI$29) -> 1190078.949 | AB9: ='C - tariff volumes'!AB9*(1+'I - drivers'!AJ$29) -> 1104153.075 | AC9: ='C - tariff volumes'!AC9*(1+'I - drivers'!AK$29) -> 1034359.124 | AD9: ='C - tariff volumes'!AD9*(1+'I - drivers'!AL$29) -> 967214.0049 | AE9: ='C - tariff volumes'!AE9*(1+'I - drivers'!AM$29) -> 903934.2555 | AF9: ='C - tariff volumes'!AF9*(1+'I - drivers'!AN$29) -> 840890.4859 | AG9: ='C - tariff volumes'!AG9*(1+'I - drivers'!AO$29) -> 782570.761 | AH9: ='C - tariff volumes'!AH9*(1+'I - drivers'!AP$29) -> 727983.8577 | AI9: ='C - tariff volumes'!AI9*(1+'I - drivers'!AQ$29) -> 669893.9323 | AJ9: ='C - tariff volumes'!AJ9*(1+'I - drivers'!AR$29) -> 618410.3027 | AK9: ='C - tariff volumes'!AK9*(1+'I - drivers'!AS$29) -> 569445.0398 | AL9: ='C - tariff volumes'!AL9*(1+'I - drivers'!AT$29) -> 523084.6341 | AM9: ='C - tariff volumes'!AM9*(1+'I - drivers'!AU$29) -> 485396.7306 | AN9: ='C - tariff volumes'!AN9*(1+'I - drivers'!AV$29) -> 444431.9925 | AP9: ='C - tariff volumes'!AP9 -> 1336121.367 | AQ9: ='C - tariff volumes'!AQ9 -> 2094619.483 | AR9: =T9*(1-SUMIFS('I - assumptions'!$E$121:$E$136,'I - assumptions'!$C$121:$C$136,$A9,'I - assumptions'!$D$121:$D$136,$C9))+U9*SUMIFS('I - assumptions'!$E$121:$E$136,'I - assumptions'!$C$121:$C$136,$A9,'I - assumptions'!$D$121:$D$136,$C9) -> 1593010.281 | AS9: =U9*(1-SUMIFS('I - assumptions'!$E$121:$E$136,'I - assumptions'!$C$121:$C$136,$A9,'I - assumptions'!$D$121:$D$136,$C9))+V9*SUMIFS('I - assumptions'!$E$121:$E$136,'I - assumptions'!$C$121:$C$136,$A9,'I - assumptions'!$D$121:$D$136,$C9) -> 1578245.154 | AT9: =V9*(1-SUMIFS('I - assumptions'!$E$121:$E$136,'I - assumptions'!$C$121:$C$136,$A9,'I - assumptions'!$D$121:$D$136,$C9))+W9*SUMIFS('I - assumptions'!$E$121:$E$136,'I - assumptions'!$C$121:$C$136,$A9,'I - assumptions'!$D$121:$D$136,$C9) -> 1522531.374 | AU9: =W9*(1-SUMIFS('I - assumptions'!$E$121:$E$136,'I - assumptions'!$C$121:$C$136,$A9,'I - assumptions'!$D$121:$D$136,$C9))+X9*SUMIFS('I - assumptions'!$E$121:$E$136,'I - assumptions'!$C$121:$C$136,$A9,'I - assumptions'!$D$121:$D$136,$C9) -> 1453412.001 | AV9: =X9*(1-SUMIFS('I - assumptions'!$E$121:$E$136,'I - assumptions'!$C$121:$C$136,$A9,'I - assumptions'!$D$121:$D$136,$C9))+Y9*SUMIFS('I - assumptions'!$E$121:$E$136,'I - assumptions'!$C$121:$C$136,$A9,'I - assumptions'!$D$121:$D$136,$C9) -> 1369829.501 | AW9: =Y9*(1-SUMIFS('I - assumptions'!$E$121:$E$136,'I - assumptions'!$C$121:$C$136,$A9,'I - assumptions'!$D$121:$D$136,$C9))+Z9*SUMIFS('I - assumptions'!$E$121:$E$136,'I - assumptions'!$C$121:$C$136,$A9,'I - assumptions'!$D$121:$D$136,$C9) -> 1283668.673
A10: 1 | B10: 1 | C10: 8 | D10: 1 | E10: 1 | F10: Tariff V - SP AusNet Central - Domestic | G10: Off Peak 0.2 - 1.4 | H10: ='C - tariff volumes'!H10 -> 941142.716 | I10: ='C - tariff volumes'!I10 -> 760489.322 | J10: ='C - tariff volumes'!J10 -> 849195.188 | K10: ='C - tariff volumes'!K10 -> 405634.108 | L10: ='C - tariff volumes'!L10 -> 534834.411 | M10: ='C - tariff volumes'!M10 -> 687249.238 | N10: ='C - tariff volumes'!N10 -> 1136753.339 | O10: ='C - tariff volumes'!O10 -> 597398.064 | P10: ='C - tariff volumes'!P10 -> 590107.722 | Q10: ='C - tariff volumes'!Q10 -> 1265267.435 | R10: ='C - tariff volumes'!R10 -> 1209898.781 | S10: ='C - tariff volumes'!S10 -> 935320.593 | T10: ='C - tariff volumes'!T10*(1+'I - drivers'!AB$29) -> 858265.665 | U10: ='C - tariff volumes'!U10*(1+'I - drivers'!AC$29) -> 908637.8797 | V10: ='C - tariff volumes'!V10*(1+'I - drivers'!AD$29) -> 878723.7841 | W10: ='C - tariff volumes'!W10*(1+'I - drivers'!AE$29) -> 843316.1867 | X10: ='C - tariff volumes'!X10*(1+'I - drivers'!AF$29) -> 799972.3019 | Y10: ='C - tariff volumes'!Y10*(1+'I - drivers'!AG$29) -> 748675.5275 | Z10: ='C - tariff volumes'!Z10*(1+'I - drivers'!AH$29) -> 699143.8674 | AA10: ='C - tariff volumes'!AA10*(1+'I - drivers'!AI$29) -> 658490.503 | AB10: ='C - tariff volumes'!AB10*(1+'I - drivers'!AJ$29) -> 609771.4987 | AC10: ='C - tariff volumes'!AC10*(1+'I - drivers'!AK$29) -> 569422.3083 | AD10: ='C - tariff volumes'!AD10*(1+'I - drivers'!AL$29) -> 530745.9419 | AE10: ='C - tariff volumes'!AE10*(1+'I - drivers'!AM$29) -> 494392.0587 | AF10: ='C - tariff volumes'!AF10*(1+'I - drivers'!AN$29) -> 458353.6054 | AG10: ='C - tariff volumes'!AG10*(1+'I - drivers'!AO$29) -> 425120.9076 | AH10: ='C - tariff volumes'!AH10*(1+'I - drivers'!AP$29) -> 393976.5724 | AI10: ='C - tariff volumes'!AI10*(1+'I - drivers'!AQ$29) -> 361349.9768 | AJ10: ='C - tariff volumes'!AJ10*(1+'I - drivers'!AR$29) -> 332361.4069 | AK10: ='C - tariff volumes'!AK10*(1+'I - drivers'!AS$29) -> 304893.0349 | AL10: ='C - tariff volumes'!AL10*(1+'I - drivers'!AT$29) -> 278984.7874 | AM10: ='C - tariff volumes'!AM10*(1+'I - drivers'!AU$29) -> 257571.124 | AN10: ='C - tariff volumes'!AN10*(1+'I - drivers'!AV$29) -> 234862.9187 | AP10: ='C - tariff volumes'!AP10 -> 853642.792 | AQ10: ='C - tariff volumes'!AQ10 -> 1118855.39 | AR10: =T10*(1-SUMIFS('I - assumptions'!$E$121:$E$136,'I - assumptions'!$C$121:$C$136,$A10,'I - assumptions'!$D$121:$D$136,$C10))+U10*SUMIFS('I - assumptions'!$E$121:$E$136,'I - assumptions'!$C$121:$C$136,$A10,'I - assumptions'!$D$121:$D$136,$C10) -> 900384.5297 | AS10: =U10*(1-SUMIFS('I - assumptions'!$E$121:$E$136,'I - assumptions'!$C$121:$C$136,$A10,'I - assumptions'!$D$121:$D$136,$C10))+V10*SUMIFS('I - assumptions'!$E$121:$E$136,'I - assumptions'!$C$121:$C$136,$A10,'I - assumptions'!$D$121:$D$136,$C10) -> 883625.1271 | AT10: =V10*(1-SUMIFS('I - assumptions'!$E$121:$E$136,'I - assumptions'!$C$121:$C$136,$A10,'I - assumptions'!$D$121:$D$136,$C10))+W10*SUMIFS('I - assumptions'!$E$121:$E$136,'I - assumptions'!$C$121:$C$136,$A10,'I - assumptions'!$D$121:$D$136,$C10) -> 849117.625 | AU10: =W10*(1-SUMIFS('I - assumptions'!$E$121:$E$136,'I - assumptions'!$C$121:$C$136,$A10,'I - assumptions'!$D$121:$D$136,$C10))+X10*SUMIFS('I - assumptions'!$E$121:$E$136,'I - assumptions'!$C$121:$C$136,$A10,'I - assumptions'!$D$121:$D$136,$C10) -> 807074.0792 | AV10: =X10*(1-SUMIFS('I - assumptions'!$E$121:$E$136,'I - assumptions'!$C$121:$C$136,$A10,'I - assumptions'!$D$121:$D$136,$C10))+Y10*SUMIFS('I - assumptions'!$E$121:$E$136,'I - assumptions'!$C$121:$C$136,$A10,'I - assumptions'!$D$121:$D$136,$C10) -> 757080.3641 | AW10: =Y10*(1-SUMIFS('I - assumptions'!$E$121:$E$136,'I - assumptions'!$C$121:$C$136,$A10,'I - assumptions'!$D$121:$D$136,$C10))+Z10*SUMIFS('I - assumptions'!$E$121:$E$136,'I - assumptions'!$C$121:$C$136,$A10,'I - assumptions'!$D$121:$D$136,$C10) -> 707259.4948
A11: 1 | B11: 1 | C11: 9 | D11: 1 | E11: 1 | F11: Tariff V - SP AusNet Central - Domestic | G11: Off Peak > 1.4 | H11: ='C - tariff volumes'!H11 -> 63483.865 | I11: ='C - tariff volumes'!I11 -> 60349.004 | J11: ='C - tariff volumes'!J11 -> 65437.359 | K11: ='C - tariff volumes'!K11 -> 74309.514 | L11: ='C - tariff volumes'!L11 -> 73789.44 | M11: ='C - tariff volumes'!M11 -> 71679.269 | N11: ='C - tariff volumes'!N11 -> 92373.524 | O11: ='C - tariff volumes'!O11 -> 72883.104 | P11: ='C - tariff volumes'!P11 -> 79800.216 | Q11: ='C - tariff volumes'!Q11 -> 78346.264 | R11: ='C - tariff volumes'!R11 -> 76448.425 | S11: ='C - tariff volumes'!S11 -> 53835.901 | T11: ='C - tariff volumes'!T11*(1+'I - drivers'!AB$29) -> 58700.455 | U11: ='C - tariff volumes'!U11*(1+'I - drivers'!AC$29) -> 59092.07452 | V11: ='C - tariff volumes'!V11*(1+'I - drivers'!AD$29) -> 58092.89923 | W11: ='C - tariff volumes'!W11*(1+'I - drivers'!AE$29) -> 56547.76345 | X11: ='C - tariff volumes'!X11*(1+'I - drivers'!AF$29) -> 54491.28881 | Y11: ='C - tariff volumes'!Y11*(1+'I - drivers'!AG$29) -> 51620.34282 | Z11: ='C - tariff volumes'!Z11*(1+'I - drivers'!AH$29) -> 48875.62328 | AA11: ='C - tariff volumes'!AA11*(1+'I - drivers'!AI$29) -> 46096.0027 | AB11: ='C - tariff volumes'!AB11*(1+'I - drivers'!AJ$29) -> 43620.59221 | AC11: ='C - tariff volumes'!AC11*(1+'I - drivers'!AK$29) -> 41223.8906 | AD11: ='C - tariff volumes'!AD11*(1+'I - drivers'!AL$29) -> 38898.89107 | AE11: ='C - tariff volumes'!AE11*(1+'I - drivers'!AM$29) -> 36684.24361 | AF11: ='C - tariff volumes'!AF11*(1+'I - drivers'!AN$29) -> 34442.31303 | AG11: ='C - tariff volumes'!AG11*(1+'I - drivers'!AO$29) -> 32351.72174 | AH11: ='C - tariff volumes'!AH11*(1+'I - drivers'!AP$29) -> 30296.62111 | AI11: ='C - tariff volumes'!AI11*(1+'I - drivers'!AQ$29) -> 28230.48653 | AJ11: ='C - tariff volumes'!AJ11*(1+'I - drivers'!AR$29) -> 26314.42749 | AK11: ='C - tariff volumes'!AK11*(1+'I - drivers'!AS$29) -> 24472.31877 | AL11: ='C - tariff volumes'!AL11*(1+'I - drivers'!AT$29) -> 22707.8165 | AM11: ='C - tariff volumes'!AM11*(1+'I - drivers'!AU$29) -> 21075.14485 | AN11: ='C - tariff volumes'!AN11*(1+'I - drivers'!AV$29) -> 19493.80968 | AP11: ='C - tariff volumes'!AP11 -> 33897.536 | AQ11: ='C - tariff volumes'!AQ11 -> 54131.347 | AR11: =T11*(1-SUMIFS('I - assumptions'!$E$121:$E$136,'I - assumptions'!$C$121:$C$136,$A11,'I - assumptions'!$D$121:$D$136,$C11))+U11*SUMIFS('I - assumptions'!$E$121:$E$136,'I - assumptions'!$C$121:$C$136,$A11,'I - assumptions'!$D$121:$D$136,$C11) -> 58952.83115 | AS11: =U11*(1-SUMIFS('I - assumptions'!$E$121:$E$136,'I - assumptions'!$C$121:$C$136,$A11,'I - assumptions'!$D$121:$D$136,$C11))+V11*SUMIFS('I - assumptions'!$E$121:$E$136,'I - assumptions'!$C$121:$C$136,$A11,'I - assumptions'!$D$121:$D$136,$C11) -> 58448.16379 | AT11: =V11*(1-SUMIFS('I - assumptions'!$E$121:$E$136,'I - assumptions'!$C$121:$C$136,$A11,'I - assumptions'!$D$121:$D$136,$C11))+W11*SUMIFS('I - assumptions'!$E$121:$E$136,'I - assumptions'!$C$121:$C$136,$A11,'I - assumptions'!$D$121:$D$136,$C11) -> 57097.1485 | AU11: =W11*(1-SUMIFS('I - assumptions'!$E$121:$E$136,'I - assumptions'!$C$121:$C$136,$A11,'I - assumptions'!$D$121:$D$136,$C11))+X11*SUMIFS('I - assumptions'!$E$121:$E$136,'I - assumptions'!$C$121:$C$136,$A11,'I - assumptions'!$D$121:$D$136,$C11) -> 55222.48438 | AV11: =X11*(1-SUMIFS('I - assumptions'!$E$121:$E$136,'I - assumptions'!$C$121:$C$136,$A11,'I - assumptions'!$D$121:$D$136,$C11))+Y11*SUMIFS('I - assumptions'!$E$121:$E$136,'I - assumptions'!$C$121:$C$136,$A11,'I - assumptions'!$D$121:$D$136,$C11) -> 52641.13002 | AW11: =Y11*(1-SUMIFS('I - assumptions'!$E$121:$E$136,'I - assumptions'!$C$121:$C$136,$A11,'I - assumptions'!$D$121:$D$136,$C11))+Z11*SUMIFS('I - assumptions'!$E$121:$E$136,'I - assumptions'!$C$121:$C$136,$A11,'I - assumptions'!$D$121:$D$136,$C11) -> 49851.52968
F12: Tariff V - SP AusNet Central - Commercial
A13: 2 | B13: 1 | C13: 1 | D13: 1 | E13: 1 | F13: Tariff V - SP AusNet Central - Commercial | G13: Fixed Charge | H13: ='C - tariff volumes'!H13 -> 9933.808206 | I13: ='C - tariff volumes'!I13 -> 10047.58481 | J13: ='C - tariff volumes'!J13 -> 10163.23015 | K13: ='C - tariff volumes'!K13 -> 10287.52874 | L13: ='C - tariff volumes'!L13 -> 10358.56712 | M13: ='C - tariff volumes'!M13 -> 10302.66525 | N13: ='C - tariff volumes'!N13 -> 10285.21368 | O13: ='C - tariff volumes'!O13 -> 10305.59455 | P13: ='C - tariff volumes'!P13 -> 10348.09313 | Q13: ='C - tariff volumes'!Q13 -> 10341.82347 | R13: ='C - tariff volumes'!R13 -> 10638.07943 | S13: ='C - tariff volumes'!S13 -> 10760.61093 | T13: ='C - tariff volumes'!T13 -> 10832.28217 | U13: ='C - tariff volumes'!U13 -> 10924.05554 | V13: ='C - tariff volumes'!V13 -> 10943.04307 | W13: ='C - tariff volumes'!W13 -> 10911.07154 | X13: ='C - tariff volumes'!X13 -> 10831.66864 | Y13: ='C - tariff volumes'!Y13 -> 10714.069 | Z13: ='C - tariff volumes'!Z13 -> 10590.23954 | AA13: ='C - tariff volumes'!AA13 -> 10465.19338 | AB13: ='C - tariff volumes'!AB13 -> 10339.63625 | AC13: ='C - tariff volumes'!AC13 -> 10213.9466 | AD13: ='C - tariff volumes'!AD13 -> 10087.65442 | AE13: ='C - tariff volumes'!AE13 -> 9960.766964 | AF13: ='C - tariff volumes'!AF13 -> 9833.296788 | AG13: ='C - tariff volumes'!AG13 -> 9705.257973 | AH13: ='C - tariff volumes'!AH13 -> 9577.871683 | AI13: ='C - tariff volumes'!AI13 -> 9449.911135 | AJ13: ='C - tariff volumes'!AJ13 -> 9321.379287 | AK13: ='C - tariff volumes'!AK13 -> 9191.283661 | AL13: ='C - tariff volumes'!AL13 -> 9061.121687 | AM13: ='C - tariff volumes'!AM13 -> 8932.340639 | AN13: ='C - tariff volumes'!AN13 -> 8803.47681 | AP13: ='C - tariff volumes'!AP13 -> 10796.44655 | AQ13: ='C - tariff volumes'!AQ13 -> 10796.44655 | AR13: =T13+(U13-T13)*'I - assumptions'!$B$119 -> 10878.16885 | AS13: =U13+(V13-U13)*'I - assumptions'!$B$119 -> 10933.54931 | AT13: =V13+(W13-V13)*'I - assumptions'!$B$119 -> 10927.05731 | AU13: =W13+(X13-W13)*'I - assumptions'!$B$119 -> 10871.37009 | AV13: =X13+(Y13-X13)*'I - assumptions'!$B$119 -> 10772.86882 | AW13: =Y13+(Z13-Y13)*'I - assumptions'!$B$119 -> 10652.15427
A14: 2 | B14: 1 | C14: 2 | D14: 1 | E14: 1 | F14: Tariff V - SP AusNet Central - Commercial | G14: Peak 0 - 0.1 | H14: ='C - tariff volumes'!H14 -> 85237.315 | I14: ='C - tariff volumes'!I14 -> 86063.082 | J14: ='C - tariff volumes'!J14 -> 85701.192 | K14: ='C - tariff volumes'!K14 -> 84722.796 | L14: ='C - tariff volumes'!L14 -> 87423.811 | M14: ='C - tariff volumes'!M14 -> 92689.096 | N14: ='C - tariff volumes'!N14 -> 90937.322 | O14: ='C - tariff volumes'!O14 -> 82156.517 | P14: ='C - tariff volumes'!P14 -> 94487.954 | Q14: ='C - tariff volumes'!Q14 -> 88047.202 | R14: ='C - tariff volumes'!R14 -> 92483.646 | S14: ='C - tariff volumes'!S14 -> 95016.879 | T14: ='C - tariff volumes'!T14*(1+'I - drivers'!AB$29) -> 93871.555 | U14: ='C - tariff volumes'!U14*(1+'I - drivers'!AC$29) -> 94089.02094 | V14: ='C - tariff volumes'!V14*(1+'I - drivers'!AD$29) -> 92331.26287 | W14: ='C - tariff volumes'!W14*(1+'I - drivers'!AE$29) -> 89135.41381 | X14: ='C - tariff volumes'!X14*(1+'I - drivers'!AF$29) -> 85125.11589 | Y14: ='C - tariff volumes'!Y14*(1+'I - drivers'!AG$29) -> 80344.94133 | Z14: ='C - tariff volumes'!Z14*(1+'I - drivers'!AH$29) -> 75918.81694 | AA14: ='C - tariff volumes'!AA14*(1+'I - drivers'!AI$29) -> 71480.41181 | AB14: ='C - tariff volumes'!AB14*(1+'I - drivers'!AJ$29) -> 67583.20418 | AC14: ='C - tariff volumes'!AC14*(1+'I - drivers'!AK$29) -> 63772.46661 | AD14: ='C - tariff volumes'!AD14*(1+'I - drivers'!AL$29) -> 60170.56339 | AE14: ='C - tariff volumes'!AE14*(1+'I - drivers'!AM$29) -> 56712.16371 | AF14: ='C - tariff volumes'!AF14*(1+'I - drivers'!AN$29) -> 53306.93849 | AG14: ='C - tariff volumes'!AG14*(1+'I - drivers'!AO$29) -> 49978.4933 | AH14: ='C - tariff volumes'!AH14*(1+'I - drivers'!AP$29) -> 46748.89091 | AI14: ='C - tariff volumes'!AI14*(1+'I - drivers'!AQ$29) -> 43582.49297 | AJ14: ='C - tariff volumes'!AJ14*(1+'I - drivers'!AR$29) -> 40612.93855 | AK14: ='C - tariff volumes'!AK14*(1+'I - drivers'!AS$29) -> 37798.84431 | AL14: ='C - tariff volumes'!AL14*(1+'I - drivers'!AT$29) -> 35110.29495 | AM14: ='C - tariff volumes'!AM14*(1+'I - drivers'!AU$29) -> 32604.63013 | AN14: ='C - tariff volumes'!AN14*(1+'I - drivers'!AV$29) -> 30183.39566 | AP14: ='C - tariff volumes'!AP14 -> 21655.629 | AQ14: ='C - tariff volumes'!AQ14 -> 93230.596 | AR14: =T14*(1-SUMIFS('I - assumptions'!$E$121:$E$136,'I - assumptions'!$C$121:$C$136,$A14,'I - assumptions'!$D$121:$D$136,$C14))+U14*SUMIFS('I - assumptions'!$E$121:$E$136,'I - assumptions'!$C$121:$C$136,$A14,'I - assumptions'!$D$121:$D$136,$C14) -> 93923.76116 | AS14: =U14*(1-SUMIFS('I - assumptions'!$E$121:$E$136,'I - assumptions'!$C$121:$C$136,$A14,'I - assumptions'!$D$121:$D$136,$C14))+V14*SUMIFS('I - assumptions'!$E$121:$E$136,'I - assumptions'!$C$121:$C$136,$A14,'I - assumptions'!$D$121:$D$136,$C14) -> 93667.04313 | AT14: =V14*(1-SUMIFS('I - assumptions'!$E$121:$E$136,'I - assumptions'!$C$121:$C$136,$A14,'I - assumptions'!$D$121:$D$136,$C14))+W14*SUMIFS('I - assumptions'!$E$121:$E$136,'I - assumptions'!$C$121:$C$136,$A14,'I - assumptions'!$D$121:$D$136,$C14) -> 91564.04842 | AU14: =W14*(1-SUMIFS('I - assumptions'!$E$121:$E$136,'I - assumptions'!$C$121:$C$136,$A14,'I - assumptions'!$D$121:$D$136,$C14))+X14*SUMIFS('I - assumptions'!$E$121:$E$136,'I - assumptions'!$C$121:$C$136,$A14,'I - assumptions'!$D$121:$D$136,$C14) -> 88172.67795 | AV14: =X14*(1-SUMIFS('I - assumptions'!$E$121:$E$136,'I - assumptions'!$C$121:$C$136,$A14,'I - assumptions'!$D$121:$D$136,$C14))+Y14*SUMIFS('I - assumptions'!$E$121:$E$136,'I - assumptions'!$C$121:$C$136,$A14,'I - assumptions'!$D$121:$D$136,$C14) -> 83977.55888 | AW14: =Y14*(1-SUMIFS('I - assumptions'!$E$121:$E$136,'I - assumptions'!$C$121:$C$136,$A14,'I - assumptions'!$D$121:$D$136,$C14))+Z14*SUMIFS('I - assumptions'!$E$121:$E$136,'I - assumptions'!$C$121:$C$136,$A14,'I - assumptions'!$D$121:$D$136,$C14) -> 79282.3797
A15: 2 | B15: 1 | C15: 3 | D15: 1 | E15: 1 | F15: Tariff V - SP AusNet Central - Commercial | G15: Peak 0.1 - 0.2 | H15: ='C - tariff volumes'!H15 -> 68891.241 | I15: ='C - tariff volumes'!I15 -> 70824.317 | J15: ='C - tariff volumes'!J15 -> 68992.662 | K15: ='C - tariff volumes'!K15 -> 69457.199 | L15: ='C - tariff volumes'!L15 -> 72758.506 | M15: ='C - tariff volumes'!M15 -> 76805.767 | N15: ='C - tariff volumes'!N15 -> 76148.949 | O15: ='C - tariff volumes'!O15 -> 68180.392 | P15: ='C - tariff volumes'!P15 -> 78714.223 | Q15: ='C - tariff volumes'!Q15 -> 70613.588 | R15: ='C - tariff volumes'!R15 -> 74690.973 | S15: ='C - tariff volumes'!S15 -> 77319.749 | T15: ='C - tariff volumes'!T15*(1+'I - drivers'!AB$29) -> 74859.145 | U15: ='C - tariff volumes'!U15*(1+'I - drivers'!AC$29) -> 75414.64648 | V15: ='C - tariff volumes'!V15*(1+'I - drivers'!AD$29) -> 74046.7485 | W15: ='C - tariff volumes'!W15*(1+'I - drivers'!AE$29) -> 71499.5503 | X15: ='C - tariff volumes'!X15*(1+'I - drivers'!AF$29) -> 68272.43651 | Y15: ='C - tariff volumes'!Y15*(1+'I - drivers'!AG$29) -> 64423.9155 | Z15: ='C - tariff volumes'!Z15*(1+'I - drivers'!AH$29) -> 60852.18883 | AA15: ='C - tariff volumes'!AA15*(1+'I - drivers'!AI$29) -> 57290.93758 | AB15: ='C - tariff volumes'!AB15*(1+'I - drivers'!AJ$29) -> 54135.72446 | AC15: ='C - tariff volumes'!AC15*(1+'I - drivers'!AK$29) -> 51066.33035 | AD15: ='C - tariff volumes'!AD15*(1+'I - drivers'!AL$29) -> 48165.64531 | AE15: ='C - tariff volumes'!AE15*(1+'I - drivers'!AM$29) -> 45381.59964 | AF15: ='C - tariff volumes'!AF15*(1+'I - drivers'!AN$29) -> 42641.71671 | AG15: ='C - tariff volumes'!AG15*(1+'I - drivers'!AO$29) -> 39964.88044 | AH15: ='C - tariff volumes'!AH15*(1+'I - drivers'!AP$29) -> 37371.8922 | AI15: ='C - tariff volumes'!AI15*(1+'I - drivers'!AQ$29) -> 34826.16529 | AJ15: ='C - tariff volumes'!AJ15*(1+'I - drivers'!AR$29) -> 32441.74149 | AK15: ='C - tariff volumes'!AK15*(1+'I - drivers'!AS$29) -> 30182.3534 | AL15: ='C - tariff volumes'!AL15*(1+'I - drivers'!AT$29) -> 28024.96987 | AM15: ='C - tariff volumes'!AM15*(1+'I - drivers'!AU$29) -> 26021.73414 | AN15: ='C - tariff volumes'!AN15*(1+'I - drivers'!AV$29) -> 24081.20392 | AP15: ='C - tariff volumes'!AP15 -> 17538.553 | AQ15: ='C - tariff volumes'!AQ15 -> 75855.441 | AR15: =T15*(1-SUMIFS('I - assumptions'!$E$121:$E$136,'I - assumptions'!$C$121:$C$136,$A15,'I - assumptions'!$D$121:$D$136,$C15))+U15*SUMIFS('I - assumptions'!$E$121:$E$136,'I - assumptions'!$C$121:$C$136,$A15,'I - assumptions'!$D$121:$D$136,$C15) -> 74996.12645 | AS15: =U15*(1-SUMIFS('I - assumptions'!$E$121:$E$136,'I - assumptions'!$C$121:$C$136,$A15,'I - assumptions'!$D$121:$D$136,$C15))+V15*SUMIFS('I - assumptions'!$E$121:$E$136,'I - assumptions'!$C$121:$C$136,$A15,'I - assumptions'!$D$121:$D$136,$C15) -> 75077.33568 | AT15: =V15*(1-SUMIFS('I - assumptions'!$E$121:$E$136,'I - assumptions'!$C$121:$C$136,$A15,'I - assumptions'!$D$121:$D$136,$C15))+W15*SUMIFS('I - assumptions'!$E$121:$E$136,'I - assumptions'!$C$121:$C$136,$A15,'I - assumptions'!$D$121:$D$136,$C15) -> 73418.63334 | AU15: =W15*(1-SUMIFS('I - assumptions'!$E$121:$E$136,'I - assumptions'!$C$121:$C$136,$A15,'I - assumptions'!$D$121:$D$136,$C15))+X15*SUMIFS('I - assumptions'!$E$121:$E$136,'I - assumptions'!$C$121:$C$136,$A15,'I - assumptions'!$D$121:$D$136,$C15) -> 70703.77434 | AV15: =X15*(1-SUMIFS('I - assumptions'!$E$121:$E$136,'I - assumptions'!$C$121:$C$136,$A15,'I - assumptions'!$D$121:$D$136,$C15))+Y15*SUMIFS('I - assumptions'!$E$121:$E$136,'I - assumptions'!$C$121:$C$136,$A15,'I - assumptions'!$D$121:$D$136,$C15) -> 67323.42737 | AW15: =Y15*(1-SUMIFS('I - assumptions'!$E$121:$E$136,'I - assumptions'!$C$121:$C$136,$A15,'I - assumptions'!$D$121:$D$136,$C15))+Z15*SUMIFS('I - assumptions'!$E$121:$E$136,'I - assumptions'!$C$121:$C$136,$A15,'I - assumptions'!$D$121:$D$136,$C15) -> 63543.16124
A16: 2 | B16: 1 | C16: 4 | D16: 1 | E16: 1 | F16: Tariff V - SP AusNet Central - Commercial | G16: Peak 0.2 - 1.4 | H16: ='C - tariff volumes'!H16 -> 406087.8 | I16: ='C - tariff volumes'!I16 -> 421067.194 | J16: ='C - tariff volumes'!J16 -> 406054.743 | K16: ='C - tariff volumes'!K16 -> 419630.752 | L16: ='C - tariff volumes'!L16 -> 446070.703 | M16: ='C - tariff volumes'!M16 -> 459675.893 | N16: ='C - tariff volumes'!N16 -> 386483.841 | O16: ='C - tariff volumes'!O16 -> 427974.021 | P16: ='C - tariff volumes'!P16 -> 479726.811 | Q16: ='C - tariff volumes'!Q16 -> 410048.2 | R16: ='C - tariff volumes'!R16 -> 447227.971 | S16: ='C - tariff volumes'!S16 -> 486016.428 | T16: ='C - tariff volumes'!T16*(1+'I - drivers'!AB$29) -> 466466.858 | U16: ='C - tariff volumes'!U16*(1+'I - drivers'!AC$29) -> 473843.8509 | V16: ='C - tariff volumes'!V16*(1+'I - drivers'!AD$29) -> 465780.9144 | W16: ='C - tariff volumes'!W16*(1+'I - drivers'!AE$29) -> 450002.0799 | X16: ='C - tariff volumes'!X16*(1+'I - drivers'!AF$29) -> 429638.8878 | Y16: ='C - tariff volumes'!Y16*(1+'I - drivers'!AG$29) -> 405313.6846 | Z16: ='C - tariff volumes'!Z16*(1+'I - drivers'!AH$29) -> 382643.3608 | AA16: ='C - tariff volumes'!AA16*(1+'I - drivers'!AI$29) -> 360259.1654 | AB16: ='C - tariff volumes'!AB16*(1+'I - drivers'!AJ$29) -> 340112.5147 | AC16: ='C - tariff volumes'!AC16*(1+'I - drivers'!AK$29) -> 320684.209 | AD16: ='C - tariff volumes'!AD16*(1+'I - drivers'!AL$29) -> 302326.5236 | AE16: ='C - tariff volumes'!AE16*(1+'I - drivers'!AM$29) -> 284715.5739 | AF16: ='C - tariff volumes'!AF16*(1+'I - drivers'!AN$29) -> 267394.8204 | AG16: ='C - tariff volumes'!AG16*(1+'I - drivers'!AO$29) -> 250482.7689 | AH16: ='C - tariff volumes'!AH16*(1+'I - drivers'!AP$29) -> 234145.0855 | AI16: ='C - tariff volumes'!AI16*(1+'I - drivers'!AQ$29) -> 218063.0556 | AJ16: ='C - tariff volumes'!AJ16*(1+'I - drivers'!AR$29) -> 203031.3326 | AK16: ='C - tariff volumes'!AK16*(1+'I - drivers'!AS$29) -> 188787.8201 | AL16: ='C - tariff volumes'!AL16*(1+'I - drivers'!AT$29) -> 175198.2239 | AM16: ='C - tariff volumes'!AM16*(1+'I - drivers'!AU$29) -> 162659.0193 | AN16: ='C - tariff volumes'!AN16*(1+'I - drivers'!AV$29) -> 150457.0597 | AP16: ='C - tariff volumes'!AP16 -> 112385.047 | AQ16: ='C - tariff volumes'!AQ16 -> 480002.031 | AR16: =T16*(1-SUMIFS('I - assumptions'!$E$121:$E$136,'I - assumptions'!$C$121:$C$136,$A16,'I - assumptions'!$D$121:$D$136,$C16))+U16*SUMIFS('I - assumptions'!$E$121:$E$136,'I - assumptions'!$C$121:$C$136,$A16,'I - assumptions'!$D$121:$D$136,$C16) -> 468295.932 | AS16: =U16*(1-SUMIFS('I - assumptions'!$E$121:$E$136,'I - assumptions'!$C$121:$C$136,$A16,'I - assumptions'!$D$121:$D$136,$C16))+V16*SUMIFS('I - assumptions'!$E$121:$E$136,'I - assumptions'!$C$121:$C$136,$A16,'I - assumptions'!$D$121:$D$136,$C16) -> 471844.702 | AT16: =V16*(1-SUMIFS('I - assumptions'!$E$121:$E$136,'I - assumptions'!$C$121:$C$136,$A16,'I - assumptions'!$D$121:$D$136,$C16))+W16*SUMIFS('I - assumptions'!$E$121:$E$136,'I - assumptions'!$C$121:$C$136,$A16,'I - assumptions'!$D$121:$D$136,$C16) -> 461868.6623 | AU16: =W16*(1-SUMIFS('I - assumptions'!$E$121:$E$136,'I - assumptions'!$C$121:$C$136,$A16,'I - assumptions'!$D$121:$D$136,$C16))+X16*SUMIFS('I - assumptions'!$E$121:$E$136,'I - assumptions'!$C$121:$C$136,$A16,'I - assumptions'!$D$121:$D$136,$C16) -> 444953.1683 | AV16: =X16*(1-SUMIFS('I - assumptions'!$E$121:$E$136,'I - assumptions'!$C$121:$C$136,$A16,'I - assumptions'!$D$121:$D$136,$C16))+Y16*SUMIFS('I - assumptions'!$E$121:$E$136,'I - assumptions'!$C$121:$C$136,$A16,'I - assumptions'!$D$121:$D$136,$C16) -> 423607.6231 | AW16: =Y16*(1-SUMIFS('I - assumptions'!$E$121:$E$136,'I - assumptions'!$C$121:$C$136,$A16,'I - assumptions'!$D$121:$D$136,$C16))+Z16*SUMIFS('I - assumptions'!$E$121:$E$136,'I - assumptions'!$C$121:$C$136,$A16,'I - assumptions'!$D$121:$D$136,$C16) -> 399692.7357
A17: 2 | B17: 1 | C17: 5 | D17: 1 | E17: 1 | F17: Tariff V - SP AusNet Central - Commercial | G17: Peak > 1.4 | H17: ='C - tariff volumes'!H17 -> 1340433.113 | I17: ='C - tariff volumes'!I17 -> 1312871.735 | J17: ='C - tariff volumes'!J17 -> 1294377.627 | K17: ='C - tariff volumes'!K17 -> 1242927.84 | L17: ='C - tariff volumes'!L17 -> 1279064.798 | M17: ='C - tariff volumes'!M17 -> 1246511.864 | N17: ='C - tariff volumes'!N17 -> 1191565.39 | O17: ='C - tariff volumes'!O17 -> 1187959.448 | P17: ='C - tariff volumes'!P17 -> 1262355.545 | Q17: ='C - tariff volumes'!Q17 -> 1063952.846 | R17: ='C - tariff volumes'!R17 -> 1130744.082 | S17: ='C - tariff volumes'!S17 -> 1289184.191 | T17: ='C - tariff volumes'!T17*(1+'I - drivers'!AB$29) -> 1217452.001 | U17: ='C - tariff volumes'!U17*(1+'I - drivers'!AC$29) -> 1248005.704 | V17: ='C - tariff volumes'!V17*(1+'I - drivers'!AD$29) -> 1222593.819 | W17: ='C - tariff volumes'!W17*(1+'I - drivers'!AE$29) -> 1177591.416 | X17: ='C - tariff volumes'!X17*(1+'I - drivers'!AF$29) -> 1121362.324 | Y17: ='C - tariff volumes'!Y17*(1+'I - drivers'!AG$29) -> 1055193.44 | Z17: ='C - tariff volumes'!Z17*(1+'I - drivers'!AH$29) -> 993803.8208 | AA17: ='C - tariff volumes'!AA17*(1+'I - drivers'!AI$29) -> 933096.3528 | AB17: ='C - tariff volumes'!AB17*(1+'I - drivers'!AJ$29) -> 879009.9913 | AC17: ='C - tariff volumes'!AC17*(1+'I - drivers'!AK$29) -> 826752.209 | AD17: ='C - tariff volumes'!AD17*(1+'I - drivers'!AL$29) -> 777497.1426 | AE17: ='C - tariff volumes'!AE17*(1+'I - drivers'!AM$29) -> 730388.701 | AF17: ='C - tariff volumes'!AF17*(1+'I - drivers'!AN$29) -> 684244.8638 | AG17: ='C - tariff volumes'!AG17*(1+'I - drivers'!AO$29) -> 639368.4245 | AH17: ='C - tariff volumes'!AH17*(1+'I - drivers'!AP$29) -> 596110.5822 | AI17: ='C - tariff volumes'!AI17*(1+'I - drivers'!AQ$29) -> 553798.0128 | AJ17: ='C - tariff volumes'!AJ17*(1+'I - drivers'!AR$29) -> 514308.1222 | AK17: ='C - tariff volumes'!AK17*(1+'I - drivers'!AS$29) -> 477012.5591 | AL17: ='C - tariff volumes'!AL17*(1+'I - drivers'!AT$29) -> 441541.7483 | AM17: ='C - tariff volumes'!AM17*(1+'I - drivers'!AU$29) -> 408764.0003 | AN17: ='C - tariff volumes'!AN17*(1+'I - drivers'!AV$29) -> 377102.1692 | AP17: ='C - tariff volumes'!AP17 -> 286955.906 | AQ17: ='C - tariff volumes'!AQ17 -> 1274574.309 | AR17: =T17*(1-SUMIFS('I - assumptions'!$E$121:$E$136,'I - assumptions'!$C$121:$C$136,$A17,'I - assumptions'!$D$121:$D$136,$C17))+U17*SUMIFS('I - assumptions'!$E$121:$E$136,'I - assumptions'!$C$121:$C$136,$A17,'I - assumptions'!$D$121:$D$136,$C17) -> 1224979.713 | AS17: =U17*(1-SUMIFS('I - assumptions'!$E$121:$E$136,'I - assumptions'!$C$121:$C$136,$A17,'I - assumptions'!$D$121:$D$136,$C17))+V17*SUMIFS('I - assumptions'!$E$121:$E$136,'I - assumptions'!$C$121:$C$136,$A17,'I - assumptions'!$D$121:$D$136,$C17) -> 1241744.815 | AT17: =V17*(1-SUMIFS('I - assumptions'!$E$121:$E$136,'I - assumptions'!$C$121:$C$136,$A17,'I - assumptions'!$D$121:$D$136,$C17))+W17*SUMIFS('I - assumptions'!$E$121:$E$136,'I - assumptions'!$C$121:$C$136,$A17,'I - assumptions'!$D$121:$D$136,$C17) -> 1211506.288 | AU17: =W17*(1-SUMIFS('I - assumptions'!$E$121:$E$136,'I - assumptions'!$C$121:$C$136,$A17,'I - assumptions'!$D$121:$D$136,$C17))+X17*SUMIFS('I - assumptions'!$E$121:$E$136,'I - assumptions'!$C$121:$C$136,$A17,'I - assumptions'!$D$121:$D$136,$C17) -> 1163737.894 | AV17: =X17*(1-SUMIFS('I - assumptions'!$E$121:$E$136,'I - assumptions'!$C$121:$C$136,$A17,'I - assumptions'!$D$121:$D$136,$C17))+Y17*SUMIFS('I - assumptions'!$E$121:$E$136,'I - assumptions'!$C$121:$C$136,$A17,'I - assumptions'!$D$121:$D$136,$C17) -> 1105059.872 | AW17: =Y17*(1-SUMIFS('I - assumptions'!$E$121:$E$136,'I - assumptions'!$C$121:$C$136,$A17,'I - assumptions'!$D$121:$D$136,$C17))+Z17*SUMIFS('I - assumptions'!$E$121:$E$136,'I - assumptions'!$C$121:$C$136,$A17,'I - assumptions'!$D$121:$D$136,$C17) -> 1040068.486
A18: 2 | B18: 1 | C18: 6 | D18: 1 | E18: 1 | F18: Tariff V - SP AusNet Central - Commercial | G18: Off Peak 0 - 0.1 | H18: ='C - tariff volumes'!H18 -> 140334.095 | I18: ='C - tariff volumes'!I18 -> 141397.367 | J18: ='C - tariff volumes'!J18 -> 143952.419 | K18: ='C - tariff volumes'!K18 -> 144745.829 | L18: ='C - tariff volumes'!L18 -> 153892.241 | M18: ='C - tariff volumes'!M18 -> 154283.479 | N18: ='C - tariff volumes'!N18 -> 162724.215 | O18: ='C - tariff volumes'!O18 -> 169238.409 | P18: ='C - tariff volumes'!P18 -> 161888.784 | Q18: ='C - tariff volumes'!Q18 -> 161925.586 | R18: ='C - tariff volumes'!R18 -> 161900.699 | S18: ='C - tariff volumes'!S18 -> 166566.099 | T18: ='C - tariff volumes'!T18*(1+'I - drivers'!AB$29) -> 165463.586 | U18: ='C - tariff volumes'!U18*(1+'I - drivers'!AC$29) -> 166783.2847 | V18: ='C - tariff volumes'!V18*(1+'I - drivers'!AD$29) -> 163509.7304 | W18: ='C - tariff volumes'!W18*(1+'I - drivers'!AE$29) -> 158279.3733 | X18: ='C - tariff volumes'!X18*(1+'I - drivers'!AF$29) -> 151679.8396 | Y18: ='C - tariff volumes'!Y18*(1+'I - drivers'!AG$29) -> 143265.4543 | Z18: ='C - tariff volumes'!Z18*(1+'I - drivers'!AH$29) -> 135371.3554 | AA18: ='C - tariff volumes'!AA18*(1+'I - drivers'!AI$29) -> 127395.3781 | AB18: ='C - tariff volumes'!AB18*(1+'I - drivers'!AJ$29) -> 120397.7331 | AC18: ='C - tariff volumes'!AC18*(1+'I - drivers'!AK$29) -> 113572.4353 | AD18: ='C - tariff volumes'!AD18*(1+'I - drivers'!AL$29) -> 107041.9548 | AE18: ='C - tariff volumes'!AE18*(1+'I - drivers'!AM$29) -> 100806.8421 | AF18: ='C - tariff volumes'!AF18*(1+'I - drivers'!AN$29) -> 94589.94982 | AG18: ='C - tariff volumes'!AG18*(1+'I - drivers'!AO$29) -> 88672.30754 | AH18: ='C - tariff volumes'!AH18*(1+'I - drivers'!AP$29) -> 82895.14485 | AI18: ='C - tariff volumes'!AI18*(1+'I - drivers'!AQ$29) -> 77177.18567 | AJ18: ='C - tariff volumes'!AJ18*(1+'I - drivers'!AR$29) -> 71848.20508 | AK18: ='C - tariff volumes'!AK18*(1+'I - drivers'!AS$29) -> 66768.06952 | AL18: ='C - tariff volumes'!AL18*(1+'I - drivers'!AT$29) -> 61914.83095 | AM18: ='C - tariff volumes'!AM18*(1+'I - drivers'!AU$29) -> 57400.33881 | AN18: ='C - tariff volumes'!AN18*(1+'I - drivers'!AV$29) -> 53052.40695 | AP18: ='C - tariff volumes'!AP18 -> 100278.257 | AQ18: ='C - tariff volumes'!AQ18 -> 169961.976 | AR18: =T18*(1-SUMIFS('I - assumptions'!$E$121:$E$136,'I - assumptions'!$C$121:$C$136,$A18,'I - assumptions'!$D$121:$D$136,$C18))+U18*SUMIFS('I - assumptions'!$E$121:$E$136,'I - assumptions'!$C$121:$C$136,$A18,'I - assumptions'!$D$121:$D$136,$C18) -> 166258.6581 | AS18: =U18*(1-SUMIFS('I - assumptions'!$E$121:$E$136,'I - assumptions'!$C$121:$C$136,$A18,'I - assumptions'!$D$121:$D$136,$C18))+V18*SUMIFS('I - assumptions'!$E$121:$E$136,'I - assumptions'!$C$121:$C$136,$A18,'I - assumptions'!$D$121:$D$136,$C18) -> 164811.0832 | AT18: =V18*(1-SUMIFS('I - assumptions'!$E$121:$E$136,'I - assumptions'!$C$121:$C$136,$A18,'I - assumptions'!$D$121:$D$136,$C18))+W18*SUMIFS('I - assumptions'!$E$121:$E$136,'I - assumptions'!$C$121:$C$136,$A18,'I - assumptions'!$D$121:$D$136,$C18) -> 160358.6239 | AU18: =W18*(1-SUMIFS('I - assumptions'!$E$121:$E$136,'I - assumptions'!$C$121:$C$136,$A18,'I - assumptions'!$D$121:$D$136,$C18))+X18*SUMIFS('I - assumptions'!$E$121:$E$136,'I - assumptions'!$C$121:$C$136,$A18,'I - assumptions'!$D$121:$D$136,$C18) -> 154303.386 | AV18: =X18*(1-SUMIFS('I - assumptions'!$E$121:$E$136,'I - assumptions'!$C$121:$C$136,$A18,'I - assumptions'!$D$121:$D$136,$C18))+Y18*SUMIFS('I - assumptions'!$E$121:$E$136,'I - assumptions'!$C$121:$C$136,$A18,'I - assumptions'!$D$121:$D$136,$C18) -> 146610.4679 | AW18: =Y18*(1-SUMIFS('I - assumptions'!$E$121:$E$136,'I - assumptions'!$C$121:$C$136,$A18,'I - assumptions'!$D$121:$D$136,$C18))+Z18*SUMIFS('I - assumptions'!$E$121:$E$136,'I - assumptions'!$C$121:$C$136,$A18,'I - assumptions'!$D$121:$D$136,$C18) -> 138509.5369
A19: 2 | B19: 1 | C19: 7 | D19: 1 | E19: 1 | F19: Tariff V - SP AusNet Central - Commercial | G19: Off Peak 0.1 - 0.2 | H19: ='C - tariff volumes'!H19 -> 96184.376 | I19: ='C - tariff volumes'!I19 -> 97408.188 | J19: ='C - tariff volumes'!J19 -> 99815.508 | K19: ='C - tariff volumes'!K19 -> 100036.473 | L19: ='C - tariff volumes'!L19 -> 108238.902 | M19: ='C - tariff volumes'!M19 -> 107264.592 | N19: ='C - tariff volumes'!N19 -> 113802.122 | O19: ='C - tariff volumes'!O19 -> 119503.515 | P19: ='C - tariff volumes'!P19 -> 114613.475 | Q19: ='C - tariff volumes'!Q19 -> 113230.273 | R19: ='C - tariff volumes'!R19 -> 116351.332 | S19: ='C - tariff volumes'!S19 -> 122096.313 | T19: ='C - tariff volumes'!T19*(1+'I - drivers'!AB$29) -> 119108.133 | U19: ='C - tariff volumes'!U19*(1+'I - drivers'!AC$29) -> 120910.8061 | V19: ='C - tariff volumes'!V19*(1+'I - drivers'!AD$29) -> 118651.7563 | W19: ='C - tariff volumes'!W19*(1+'I - drivers'!AE$29) -> 114907.4514 | X19: ='C - tariff volumes'!X19*(1+'I - drivers'!AF$29) -> 110103.6014 | Y19: ='C - tariff volumes'!Y19*(1+'I - drivers'!AG$29) -> 103972.1251 | Z19: ='C - tariff volumes'!Z19*(1+'I - drivers'!AH$29) -> 98199.54544 | AA19: ='C - tariff volumes'!AA19*(1+'I - drivers'!AI$29) -> 92415.79918 | AB19: ='C - tariff volumes'!AB19*(1+'I - drivers'!AJ$29) -> 87272.72872 | AC19: ='C - tariff volumes'!AC19*(1+'I - drivers'!AK$29) -> 82293.79939 | AD19: ='C - tariff volumes'!AD19*(1+'I - drivers'!AL$29) -> 77530.82188 | AE19: ='C - tariff volumes'!AE19*(1+'I - drivers'!AM$29) -> 72985.03008 | AF19: ='C - tariff volumes'!AF19*(1+'I - drivers'!AN$29) -> 68455.06907 | AG19: ='C - tariff volumes'!AG19*(1+'I - drivers'!AO$29) -> 64145.05981 | AH19: ='C - tariff volumes'!AH19*(1+'I - drivers'!AP$29) -> 59947.22122 | AI19: ='C - tariff volumes'!AI19*(1+'I - drivers'!AQ$29) -> 55783.09838 | AJ19: ='C - tariff volumes'!AJ19*(1+'I - drivers'!AR$29) -> 51909.07899 | AK19: ='C - tariff volumes'!AK19*(1+'I - drivers'!AS$29) -> 48215.90457 | AL19: ='C - tariff volumes'!AL19*(1+'I - drivers'!AT$29) -> 44690.02259 | AM19: ='C - tariff volumes'!AM19*(1+'I - drivers'!AU$29) -> 41427.59949 | AN19: ='C - tariff volumes'!AN19*(1+'I - drivers'!AV$29) -> 38273.52285 | AP19: ='C - tariff volumes'!AP19 -> 73546.751 | AQ19: ='C - tariff volumes'!AQ19 -> 123278.602 | AR19: =T19*(1-SUMIFS('I - assumptions'!$E$121:$E$136,'I - assumptions'!$C$121:$C$136,$A19,'I - assumptions'!$D$121:$D$136,$C19))+U19*SUMIFS('I - assumptions'!$E$121:$E$136,'I - assumptions'!$C$121:$C$136,$A19,'I - assumptions'!$D$121:$D$136,$C19) -> 120237.8036 | AS19: =U19*(1-SUMIFS('I - assumptions'!$E$121:$E$136,'I - assumptions'!$C$121:$C$136,$A19,'I - assumptions'!$D$121:$D$136,$C19))+V19*SUMIFS('I - assumptions'!$E$121:$E$136,'I - assumptions'!$C$121:$C$136,$A19,'I - assumptions'!$D$121:$D$136,$C19) -> 119495.1406 | AT19: =V19*(1-SUMIFS('I - assumptions'!$E$121:$E$136,'I - assumptions'!$C$121:$C$136,$A19,'I - assumptions'!$D$121:$D$136,$C19))+W19*SUMIFS('I - assumptions'!$E$121:$E$136,'I - assumptions'!$C$121:$C$136,$A19,'I - assumptions'!$D$121:$D$136,$C19) -> 116305.3347 | AU19: =W19*(1-SUMIFS('I - assumptions'!$E$121:$E$136,'I - assumptions'!$C$121:$C$136,$A19,'I - assumptions'!$D$121:$D$136,$C19))+X19*SUMIFS('I - assumptions'!$E$121:$E$136,'I - assumptions'!$C$121:$C$136,$A19,'I - assumptions'!$D$121:$D$136,$C19) -> 111897.0508 | AV19: =X19*(1-SUMIFS('I - assumptions'!$E$121:$E$136,'I - assumptions'!$C$121:$C$136,$A19,'I - assumptions'!$D$121:$D$136,$C19))+Y19*SUMIFS('I - assumptions'!$E$121:$E$136,'I - assumptions'!$C$121:$C$136,$A19,'I - assumptions'!$D$121:$D$136,$C19) -> 106261.225 | AW19: =Y19*(1-SUMIFS('I - assumptions'!$E$121:$E$136,'I - assumptions'!$C$121:$C$136,$A19,'I - assumptions'!$D$121:$D$136,$C19))+Z19*SUMIFS('I - assumptions'!$E$121:$E$136,'I - assumptions'!$C$121:$C$136,$A19,'I - assumptions'!$D$121:$D$136,$C19) -> 100354.6564
A20: 2 | B20: 1 | C20: 8 | D20: 1 | E20: 1 | F20: Tariff V - SP AusNet Central - Commercial | G20: Off Peak 0.2 - 1.4 | H20: ='C - tariff volumes'!H20 -> 566337.888 | I20: ='C - tariff volumes'!I20 -> 579781.364 | J20: ='C - tariff volumes'!J20 -> 590331.899 | K20: ='C - tariff volumes'!K20 -> 591038.049 | L20: ='C - tariff volumes'!L20 -> 632231.104 | M20: ='C - tariff volumes'!M20 -> 631139.819 | N20: ='C - tariff volumes'!N20 -> 748234.627 | O20: ='C - tariff volumes'!O20 -> 698262.65 | P20: ='C - tariff volumes'!P20 -> 690621.18 | Q20: ='C - tariff volumes'!Q20 -> 635368.371 | R20: ='C - tariff volumes'!R20 -> 675994.94 | S20: ='C - tariff volumes'!S20 -> 719662.744 | T20: ='C - tariff volumes'!T20*(1+'I - drivers'!AB$29) -> 716676.561 | U20: ='C - tariff volumes'!U20*(1+'I - drivers'!AC$29) -> 735591.3408 | V20: ='C - tariff volumes'!V20*(1+'I - drivers'!AD$29) -> 723543.6437 | W20: ='C - tariff volumes'!W20*(1+'I - drivers'!AE$29) -> 701656.054 | X20: ='C - tariff volumes'!X20*(1+'I - drivers'!AF$29) -> 672501.5921 | Y20: ='C - tariff volumes'!Y20*(1+'I - drivers'!AG$29) -> 635080.5982 | Z20: ='C - tariff volumes'!Z20*(1+'I - drivers'!AH$29) -> 599597.6651 | AA20: ='C - tariff volumes'!AA20*(1+'I - drivers'!AI$29) -> 564573.7129 | AB20: ='C - tariff volumes'!AB20*(1+'I - drivers'!AJ$29) -> 532629.0628 | AC20: ='C - tariff volumes'!AC20*(1+'I - drivers'!AK$29) -> 502112.9283 | AD20: ='C - tariff volumes'!AD20*(1+'I - drivers'!AL$29) -> 472913.9504 | AE20: ='C - tariff volumes'!AE20*(1+'I - drivers'!AM$29) -> 445050.5516 | AF20: ='C - tariff volumes'!AF20*(1+'I - drivers'!AN$29) -> 417289.5385 | AG20: ='C - tariff volumes'!AG20*(1+'I - drivers'!AO$29) -> 390881.2227 | AH20: ='C - tariff volumes'!AH20*(1+'I - drivers'!AP$29) -> 365254.5006 | AI20: ='C - tariff volumes'!AI20*(1+'I - drivers'!AQ$29) -> 339705.8318 | AJ20: ='C - tariff volumes'!AJ20*(1+'I - drivers'!AR$29) -> 316003.8426 | AK20: ='C - tariff volumes'!AK20*(1+'I - drivers'!AS$29) -> 293394.6513 | AL20: ='C - tariff volumes'!AL20*(1+'I - drivers'!AT$29) -> 271823.0967 | AM20: ='C - tariff volumes'!AM20*(1+'I - drivers'!AU$29) -> 252052.1959 | AN20: ='C - tariff volumes'!AN20*(1+'I - drivers'!AV$29) -> 232786.2567 | AP20: ='C - tariff volumes'!AP20 -> 442548.29 | AQ20: ='C - tariff volumes'!AQ20 -> 736279.546 | AR20: =T20*(1-SUMIFS('I - assumptions'!$E$121:$E$136,'I - assumptions'!$C$121:$C$136,$A20,'I - assumptions'!$D$121:$D$136,$C20))+U20*SUMIFS('I - assumptions'!$E$121:$E$136,'I - assumptions'!$C$121:$C$136,$A20,'I - assumptions'!$D$121:$D$136,$C20) -> 728390.5065 | AS20: =U20*(1-SUMIFS('I - assumptions'!$E$121:$E$136,'I - assumptions'!$C$121:$C$136,$A20,'I - assumptions'!$D$121:$D$136,$C20))+V20*SUMIFS('I - assumptions'!$E$121:$E$136,'I - assumptions'!$C$121:$C$136,$A20,'I - assumptions'!$D$121:$D$136,$C20) -> 728130.1877 | AT20: =V20*(1-SUMIFS('I - assumptions'!$E$121:$E$136,'I - assumptions'!$C$121:$C$136,$A20,'I - assumptions'!$D$121:$D$136,$C20))+W20*SUMIFS('I - assumptions'!$E$121:$E$136,'I - assumptions'!$C$121:$C$136,$A20,'I - assumptions'!$D$121:$D$136,$C20) -> 709988.6335 | AU20: =W20*(1-SUMIFS('I - assumptions'!$E$121:$E$136,'I - assumptions'!$C$121:$C$136,$A20,'I - assumptions'!$D$121:$D$136,$C20))+X20*SUMIFS('I - assumptions'!$E$121:$E$136,'I - assumptions'!$C$121:$C$136,$A20,'I - assumptions'!$D$121:$D$136,$C20) -> 683600.6612 | AV20: =X20*(1-SUMIFS('I - assumptions'!$E$121:$E$136,'I - assumptions'!$C$121:$C$136,$A20,'I - assumptions'!$D$121:$D$136,$C20))+Y20*SUMIFS('I - assumptions'!$E$121:$E$136,'I - assumptions'!$C$121:$C$136,$A20,'I - assumptions'!$D$121:$D$136,$C20) -> 649326.7263 | AW20: =Y20*(1-SUMIFS('I - assumptions'!$E$121:$E$136,'I - assumptions'!$C$121:$C$136,$A20,'I - assumptions'!$D$121:$D$136,$C20))+Z20*SUMIFS('I - assumptions'!$E$121:$E$136,'I - assumptions'!$C$121:$C$136,$A20,'I - assumptions'!$D$121:$D$136,$C20) -> 613105.9757
A21: 2 | B21: 1 | C21: 9 | D21: 1 | E21: 1 | F21: Tariff V - SP AusNet Central - Commercial | G21: Off Peak > 1.4 | H21: ='C - tariff volumes'!H21 -> 1686598.746 | I21: ='C - tariff volumes'!I21 -> 1521974.463 | J21: ='C - tariff volumes'!J21 -> 1485787.137 | K21: ='C - tariff volumes'!K21 -> 1493335.52 | L21: ='C - tariff volumes'!L21 -> 1721106.204 | M21: ='C - tariff volumes'!M21 -> 1615595.806 | N21: ='C - tariff volumes'!N21 -> 1516504.167 | O21: ='C - tariff volumes'!O21 -> 1558231.443 | P21: ='C - tariff volumes'!P21 -> 1479380.261 | Q21: ='C - tariff volumes'!Q21 -> 1379242.187 | R21: ='C - tariff volumes'!R21 -> 1487300.351 | S21: ='C - tariff volumes'!S21 -> 1504337.764 | T21: ='C - tariff volumes'!T21*(1+'I - drivers'!AB$29) -> 1533366.047 | U21: ='C - tariff volumes'!U21*(1+'I - drivers'!AC$29) -> 1588969.53 | V21: ='C - tariff volumes'!V21*(1+'I - drivers'!AD$29) -> 1561995.281 | W21: ='C - tariff volumes'!W21*(1+'I - drivers'!AE$29) -> 1513381.202 | X21: ='C - tariff volumes'!X21*(1+'I - drivers'!AF$29) -> 1448781.275 | Y21: ='C - tariff volumes'!Y21*(1+'I - drivers'!AG$29) -> 1366477.085 | Z21: ='C - tariff volumes'!Z21*(1+'I - drivers'!AH$29) -> 1288392.164 | AA21: ='C - tariff volumes'!AA21*(1+'I - drivers'!AI$29) -> 1211767.379 | AB21: ='C - tariff volumes'!AB21*(1+'I - drivers'!AJ$29) -> 1141462.171 | AC21: ='C - tariff volumes'!AC21*(1+'I - drivers'!AK$29) -> 1074617.156 | AD21: ='C - tariff volumes'!AD21*(1+'I - drivers'!AL$29) -> 1010742.589 | AE21: ='C - tariff volumes'!AE21*(1+'I - drivers'!AM$29) -> 949878.6292 | AF21: ='C - tariff volumes'!AF21*(1+'I - drivers'!AN$29) -> 889375.8298 | AG21: ='C - tariff volumes'!AG21*(1+'I - drivers'!AO$29) -> 831919.2244 | AH21: ='C - tariff volumes'!AH21*(1+'I - drivers'!AP$29) -> 776316.0464 | AI21: ='C - tariff volumes'!AI21*(1+'I - drivers'!AQ$29) -> 720940.7918 | AJ21: ='C - tariff volumes'!AJ21*(1+'I - drivers'!AR$29) -> 669666.1291 | AK21: ='C - tariff volumes'!AK21*(1+'I - drivers'!AS$29) -> 620824.6473 | AL21: ='C - tariff volumes'!AL21*(1+'I - drivers'!AT$29) -> 574310.3226 | AM21: ='C - tariff volumes'!AM21*(1+'I - drivers'!AU$29) -> 531822.64 | AN21: ='C - tariff volumes'!AN21*(1+'I - drivers'!AV$29) -> 490428.6214 | AP21: ='C - tariff volumes'!AP21 -> 948869.669 | AQ21: ='C - tariff volumes'!AQ21 -> 1582234.79 | AR21: =T21*(1-SUMIFS('I - assumptions'!$E$121:$E$136,'I - assumptions'!$C$121:$C$136,$A21,'I - assumptions'!$D$121:$D$136,$C21))+U21*SUMIFS('I - assumptions'!$E$121:$E$136,'I - assumptions'!$C$121:$C$136,$A21,'I - assumptions'!$D$121:$D$136,$C21) -> 1567161.786 | AS21: =U21*(1-SUMIFS('I - assumptions'!$E$121:$E$136,'I - assumptions'!$C$121:$C$136,$A21,'I - assumptions'!$D$121:$D$136,$C21))+V21*SUMIFS('I - assumptions'!$E$121:$E$136,'I - assumptions'!$C$121:$C$136,$A21,'I - assumptions'!$D$121:$D$136,$C21) -> 1572574.61 | AT21: =V21*(1-SUMIFS('I - assumptions'!$E$121:$E$136,'I - assumptions'!$C$121:$C$136,$A21,'I - assumptions'!$D$121:$D$136,$C21))+W21*SUMIFS('I - assumptions'!$E$121:$E$136,'I - assumptions'!$C$121:$C$136,$A21,'I - assumptions'!$D$121:$D$136,$C21) -> 1532447.695 | AU21: =W21*(1-SUMIFS('I - assumptions'!$E$121:$E$136,'I - assumptions'!$C$121:$C$136,$A21,'I - assumptions'!$D$121:$D$136,$C21))+X21*SUMIFS('I - assumptions'!$E$121:$E$136,'I - assumptions'!$C$121:$C$136,$A21,'I - assumptions'!$D$121:$D$136,$C21) -> 1474117.434 | AV21: =X21*(1-SUMIFS('I - assumptions'!$E$121:$E$136,'I - assumptions'!$C$121:$C$136,$A21,'I - assumptions'!$D$121:$D$136,$C21))+Y21*SUMIFS('I - assumptions'!$E$121:$E$136,'I - assumptions'!$C$121:$C$136,$A21,'I - assumptions'!$D$121:$D$136,$C21) -> 1398756.874 | AW21: =Y21*(1-SUMIFS('I - assumptions'!$E$121:$E$136,'I - assumptions'!$C$121:$C$136,$A21,'I - assumptions'!$D$121:$D$136,$C21))+Z21*SUMIFS('I - assumptions'!$E$121:$E$136,'I - assumptions'!$C$121:$C$136,$A21,'I - assumptions'!$D$121:$D$136,$C21) -> 1319017.152
F22: Tariff V - SP AusNet West - Domestic
A23: 1 | B23: 1 | C23: 1 | D23: 2 | E23: 1 | F23: Tariff V - SP AusNet West - Domestic | G23: Fixed Charge | H23: ='C - tariff volumes'!H23 -> 126652.1419 | I23: ='C - tariff volumes'!I23 -> 130089.4576 | J23: ='C - tariff volumes'!J23 -> 133053.5531 | K23: ='C - tariff volumes'!K23 -> 135735.881 | L23: ='C - tariff volumes'!L23 -> 138386.2631 | M23: ='C - tariff volumes'!M23 -> 140965.7459 | N23: ='C - tariff volumes'!N23 -> 143023.1671 | O23: ='C - tariff volumes'!O23 -> 145369.257 | P23: ='C - tariff volumes'!P23 -> 148136.3149 | Q23: ='C - tariff volumes'!Q23 -> 151553.4449 | R23: ='C - tariff volumes'!R23 -> 154425.4322 | S23: ='C - tariff volumes'!S23 -> 156469.9921 | T23: ='C - tariff volumes'!T23 -> 159553.6601 | U23: ='C - tariff volumes'!U23 -> 160852.5119 | V23: ='C - tariff volumes'!V23 -> 161441.6001 | W23: ='C - tariff volumes'!W23 -> 161193.4698 | X23: ='C - tariff volumes'!X23 -> 160203.5792 | Y23: ='C - tariff volumes'!Y23 -> 158589.3681 | Z23: ='C - tariff volumes'!Z23 -> 156848.5492 | AA23: ='C - tariff volumes'!AA23 -> 155084.6367 | AB23: ='C - tariff volumes'!AB23 -> 153311.7066 | AC23: ='C - tariff volumes'!AC23 -> 151527.6528 | AD23: ='C - tariff volumes'!AD23 -> 149730.965 | AE23: ='C - tariff volumes'!AE23 -> 147921.4904 | AF23: ='C - tariff volumes'!AF23 -> 146099.0756 | AG23: ='C - tariff volumes'!AG23 -> 144263.5673 | AH23: ='C - tariff volumes'!AH23 -> 142425.577 | AI23: ='C - tariff volumes'!AI23 -> 140574.0515 | AJ23: ='C - tariff volumes'!AJ23 -> 138708.8384 | AK23: ='C - tariff volumes'!AK23 -> 136803.8702 | AL23: ='C - tariff volumes'!AL23 -> 134897.7839 | AM23: ='C - tariff volumes'!AM23 -> 133002.2806 | AN23: ='C - tariff volumes'!AN23 -> 131105.5409 | AP23: ='C - tariff volumes'!AP23 -> 158011.8261 | AQ23: ='C - tariff volumes'!AQ23 -> 158011.8261 | AR23: =T23+(U23-T23)*'I - assumptions'!$B$119 -> 160203.086 | AS23: =U23+(V23-U23)*'I - assumptions'!$B$119 -> 161147.056 | AT23: =V23+(W23-V23)*'I - assumptions'!$B$119 -> 161317.5349 | AU23: =W23+(X23-W23)*'I - assumptions'!$B$119 -> 160698.5245 | AV23: =X23+(Y23-X23)*'I - assumptions'!$B$119 -> 159396.4737 | AW23: =Y23+(Z23-Y23)*'I - assumptions'!$B$119 -> 157718.9586
A24: 1 | B24: 1 | C24: 2 | D24: 2 | E24: 1 | F24: Tariff V - SP AusNet West - Domestic | G24: Peak 0 - 0.1 | H24: ='C - tariff volumes'!H24 -> 1331262.285 | I24: ='C - tariff volumes'!I24 -> 1369070.942 | J24: ='C - tariff volumes'!J24 -> 1377303.96 | K24: ='C - tariff volumes'!K24 -> 1342174.081 | L24: ='C - tariff volumes'!L24 -> 1440634.015 | M24: ='C - tariff volumes'!M24 -> 1453142.596 | N24: ='C - tariff volumes'!N24 -> 1517675.85 | O24: ='C - tariff volumes'!O24 -> 1475475.787 | P24: ='C - tariff volumes'!P24 -> 1490194.007 | Q24: ='C - tariff volumes'!Q24 -> 1524005.893 | R24: ='C - tariff volumes'!R24 -> 1505048.864 | S24: ='C - tariff volumes'!S24 -> 1510450.935 | T24: ='C - tariff volumes'!T24*(1+'I - drivers'!AB$29) -> 1449218.452 | U24: ='C - tariff volumes'!U24*(1+'I - drivers'!AC$29) -> 1450962.447 | V24: ='C - tariff volumes'!V24*(1+'I - drivers'!AD$29) -> 1421845.162 | W24: ='C - tariff volumes'!W24*(1+'I - drivers'!AE$29) -> 1372786.033 | X24: ='C - tariff volumes'!X24*(1+'I - drivers'!AF$29) -> 1312442.949 | Y24: ='C - tariff volumes'!Y24*(1+'I - drivers'!AG$29) -> 1237894.32 | Z24: ='C - tariff volumes'!Z24*(1+'I - drivers'!AH$29) -> 1175275.522 | AA24: ='C - tariff volumes'!AA24*(1+'I - drivers'!AI$29) -> 1096900.698 | AB24: ='C - tariff volumes'!AB24*(1+'I - drivers'!AJ$29) -> 1038376.514 | AC24: ='C - tariff volumes'!AC24*(1+'I - drivers'!AK$29) -> 978079.1952 | AD24: ='C - tariff volumes'!AD24*(1+'I - drivers'!AL$29) -> 922614.7926 | AE24: ='C - tariff volumes'!AE24*(1+'I - drivers'!AM$29) -> 868733.0683 | AF24: ='C - tariff volumes'!AF24*(1+'I - drivers'!AN$29) -> 815461.945 | AG24: ='C - tariff volumes'!AG24*(1+'I - drivers'!AO$29) -> 764013.5404 | AH24: ='C - tariff volumes'!AH24*(1+'I - drivers'!AP$29) -> 714416.9081 | AI24: ='C - tariff volumes'!AI24*(1+'I - drivers'!AQ$29) -> 664718.0777 | AJ24: ='C - tariff volumes'!AJ24*(1+'I - drivers'!AR$29) -> 618692.4557 | AK24: ='C - tariff volumes'!AK24*(1+'I - drivers'!AS$29) -> 575099.2351 | AL24: ='C - tariff volumes'!AL24*(1+'I - drivers'!AT$29) -> 533483.1916 | AM24: ='C - tariff volumes'!AM24*(1+'I - drivers'!AU$29) -> 498741.7941 | AN24: ='C - tariff volumes'!AN24*(1+'I - drivers'!AV$29) -> 461137.7713 | AP24: ='C - tariff volumes'!AP24 -> 342219.706 | AQ24: ='C - tariff volumes'!AQ24 -> 1488444.27 | AR24: =T24*(1-SUMIFS('I - assumptions'!$E$121:$E$136,'I - assumptions'!$C$121:$C$136,$A24,'I - assumptions'!$D$121:$D$136,$C24))+U24*SUMIFS('I - assumptions'!$E$121:$E$136,'I - assumptions'!$C$121:$C$136,$A24,'I - assumptions'!$D$121:$D$136,$C24) -> 1449639.966 | AS24: =U24*(1-SUMIFS('I - assumptions'!$E$121:$E$136,'I - assumptions'!$C$121:$C$136,$A24,'I - assumptions'!$D$121:$D$136,$C24))+V24*SUMIFS('I - assumptions'!$E$121:$E$136,'I - assumptions'!$C$121:$C$136,$A24,'I - assumptions'!$D$121:$D$136,$C24) -> 1443924.959 | AT24: =V24*(1-SUMIFS('I - assumptions'!$E$121:$E$136,'I - assumptions'!$C$121:$C$136,$A24,'I - assumptions'!$D$121:$D$136,$C24))+W24*SUMIFS('I - assumptions'!$E$121:$E$136,'I - assumptions'!$C$121:$C$136,$A24,'I - assumptions'!$D$121:$D$136,$C24) -> 1409987.841 | AU24: =W24*(1-SUMIFS('I - assumptions'!$E$121:$E$136,'I - assumptions'!$C$121:$C$136,$A24,'I - assumptions'!$D$121:$D$136,$C24))+X24*SUMIFS('I - assumptions'!$E$121:$E$136,'I - assumptions'!$C$121:$C$136,$A24,'I - assumptions'!$D$121:$D$136,$C24) -> 1358201.442 | AV24: =X24*(1-SUMIFS('I - assumptions'!$E$121:$E$136,'I - assumptions'!$C$121:$C$136,$A24,'I - assumptions'!$D$121:$D$136,$C24))+Y24*SUMIFS('I - assumptions'!$E$121:$E$136,'I - assumptions'!$C$121:$C$136,$A24,'I - assumptions'!$D$121:$D$136,$C24) -> 1294424.956 | AW24: =Y24*(1-SUMIFS('I - assumptions'!$E$121:$E$136,'I - assumptions'!$C$121:$C$136,$A24,'I - assumptions'!$D$121:$D$136,$C24))+Z24*SUMIFS('I - assumptions'!$E$121:$E$136,'I - assumptions'!$C$121:$C$136,$A24,'I - assumptions'!$D$121:$D$136,$C24) -> 1222759.702
A25: 1 | B25: 1 | C25: 3 | D25: 2 | E25: 1 | F25: Tariff V - SP AusNet West - Domestic | G25: Peak 0.1 - 0.2 | H25: ='C - tariff volumes'!H25 -> 963222.928 | I25: ='C - tariff volumes'!I25 -> 1051249.823 | J25: ='C - tariff volumes'!J25 -> 974644.065 | K25: ='C - tariff volumes'!K25 -> 1023237.93 | L25: ='C - tariff volumes'!L25 -> 1112190.289 | M25: ='C - tariff volumes'!M25 -> 1123117.129 | N25: ='C - tariff volumes'!N25 -> 1231532.94 | O25: ='C - tariff volumes'!O25 -> 1103505.982 | P25: ='C - tariff volumes'!P25 -> 1127296.454 | Q25: ='C - tariff volumes'!Q25 -> 1138150.608 | R25: ='C - tariff volumes'!R25 -> 1101574.362 | S25: ='C - tariff volumes'!S25 -> 1096181.356 | T25: ='C - tariff volumes'!T25*(1+'I - drivers'!AB$29) -> 943915.946 | U25: ='C - tariff volumes'!U25*(1+'I - drivers'!AC$29) -> 976484.5619 | V25: ='C - tariff volumes'!V25*(1+'I - drivers'!AD$29) -> 947506.0213 | W25: ='C - tariff volumes'!W25*(1+'I - drivers'!AE$29) -> 906492.4914 | X25: ='C - tariff volumes'!X25*(1+'I - drivers'!AF$29) -> 858980.2973 | Y25: ='C - tariff volumes'!Y25*(1+'I - drivers'!AG$29) -> 803250.314 | Z25: ='C - tariff volumes'!Z25*(1+'I - drivers'!AH$29) -> 761134.152 | AA25: ='C - tariff volumes'!AA25*(1+'I - drivers'!AI$29) -> 699675.9675 | AB25: ='C - tariff volumes'!AB25*(1+'I - drivers'!AJ$29) -> 657116.239 | AC25: ='C - tariff volumes'!AC25*(1+'I - drivers'!AK$29) -> 613239.9292 | AD25: ='C - tariff volumes'!AD25*(1+'I - drivers'!AL$29) -> 574317.4936 | AE25: ='C - tariff volumes'!AE25*(1+'I - drivers'!AM$29) -> 536343.9527 | AF25: ='C - tariff volumes'!AF25*(1+'I - drivers'!AN$29) -> 499285.3142 | AG25: ='C - tariff volumes'!AG25*(1+'I - drivers'!AO$29) -> 463899.8515 | AH25: ='C - tariff volumes'!AH25*(1+'I - drivers'!AP$29) -> 430731.1392 | AI25: ='C - tariff volumes'!AI25*(1+'I - drivers'!AQ$29) -> 396812.5896 | AJ25: ='C - tariff volumes'!AJ25*(1+'I - drivers'!AR$29) -> 366179.195 | AK25: ='C - tariff volumes'!AK25*(1+'I - drivers'!AS$29) -> 337532.6027 | AL25: ='C - tariff volumes'!AL25*(1+'I - drivers'!AT$29) -> 310455.829 | AM25: ='C - tariff volumes'!AM25*(1+'I - drivers'!AU$29) -> 291237.0492 | AN25: ='C - tariff volumes'!AN25*(1+'I - drivers'!AV$29) -> 267024.0713 | AP25: ='C - tariff volumes'!AP25 -> 243266.976 | AQ25: ='C - tariff volumes'!AQ25 -> 1063561.064 | AR25: =T25*(1-SUMIFS('I - assumptions'!$E$121:$E$136,'I - assumptions'!$C$121:$C$136,$A25,'I - assumptions'!$D$121:$D$136,$C25))+U25*SUMIFS('I - assumptions'!$E$121:$E$136,'I - assumptions'!$C$121:$C$136,$A25,'I - assumptions'!$D$121:$D$136,$C25) -> 952107.0963 | AS25: =U25*(1-SUMIFS('I - assumptions'!$E$121:$E$136,'I - assumptions'!$C$121:$C$136,$A25,'I - assumptions'!$D$121:$D$136,$C25))+V25*SUMIFS('I - assumptions'!$E$121:$E$136,'I - assumptions'!$C$121:$C$136,$A25,'I - assumptions'!$D$121:$D$136,$C25) -> 969196.3314 | AT25: =V25*(1-SUMIFS('I - assumptions'!$E$121:$E$136,'I - assumptions'!$C$121:$C$136,$A25,'I - assumptions'!$D$121:$D$136,$C25))+W25*SUMIFS('I - assumptions'!$E$121:$E$136,'I - assumptions'!$C$121:$C$136,$A25,'I - assumptions'!$D$121:$D$136,$C25) -> 937190.938 | AU25: =W25*(1-SUMIFS('I - assumptions'!$E$121:$E$136,'I - assumptions'!$C$121:$C$136,$A25,'I - assumptions'!$D$121:$D$136,$C25))+X25*SUMIFS('I - assumptions'!$E$121:$E$136,'I - assumptions'!$C$121:$C$136,$A25,'I - assumptions'!$D$121:$D$136,$C25) -> 894542.9655 | AV25: =X25*(1-SUMIFS('I - assumptions'!$E$121:$E$136,'I - assumptions'!$C$121:$C$136,$A25,'I - assumptions'!$D$121:$D$136,$C25))+Y25*SUMIFS('I - assumptions'!$E$121:$E$136,'I - assumptions'!$C$121:$C$136,$A25,'I - assumptions'!$D$121:$D$136,$C25) -> 844963.9612 | AW25: =Y25*(1-SUMIFS('I - assumptions'!$E$121:$E$136,'I - assumptions'!$C$121:$C$136,$A25,'I - assumptions'!$D$121:$D$136,$C25))+Z25*SUMIFS('I - assumptions'!$E$121:$E$136,'I - assumptions'!$C$121:$C$136,$A25,'I - assumptions'!$D$121:$D$136,$C25) -> 792657.9138
A26: 1 | B26: 1 | C26: 4 | D26: 2 | E26: 1 | F26: Tariff V - SP AusNet West - Domestic | G26: Peak 0.2 - 1.4 | H26: ='C - tariff volumes'!H26 -> 1274933.983 | I26: ='C - tariff volumes'!I26 -> 1561449.649 | J26: ='C - tariff volumes'!J26 -> 1264270.016 | K26: ='C - tariff volumes'!K26 -> 1529409.027 | L26: ='C - tariff volumes'!L26 -> 1947513.658 | M26: ='C - tariff volumes'!M26 -> 1710943.293 | N26: ='C - tariff volumes'!N26 -> 1580458.133 | O26: ='C - tariff volumes'!O26 -> 1762660.577 | P26: ='C - tariff volumes'!P26 -> 1736232.76 | Q26: ='C - tariff volumes'!Q26 -> 1791901.521 | R26: ='C - tariff volumes'!R26 -> 1701925.605 | S26: ='C - tariff volumes'!S26 -> 1715446.411 | T26: ='C - tariff volumes'!T26*(1+'I - drivers'!AB$29) -> 1247950.144 | U26: ='C - tariff volumes'!U26*(1+'I - drivers'!AC$29) -> 1326498.893 | V26: ='C - tariff volumes'!V26*(1+'I - drivers'!AD$29) -> 1279877.165 | W26: ='C - tariff volumes'!W26*(1+'I - drivers'!AE$29) -> 1217653.774 | X26: ='C - tariff volumes'!X26*(1+'I - drivers'!AF$29) -> 1147502.032 | Y26: ='C - tariff volumes'!Y26*(1+'I - drivers'!AG$29) -> 1067202.96 | Z26: ='C - tariff volumes'!Z26*(1+'I - drivers'!AH$29) -> 1005342.386 | AA26: ='C - tariff volumes'!AA26*(1+'I - drivers'!AI$29) -> 919320.3165 | AB26: ='C - tariff volumes'!AB26*(1+'I - drivers'!AJ$29) -> 858434.7121 | AC26: ='C - tariff volumes'!AC26*(1+'I - drivers'!AK$29) -> 796470.4256 | AD26: ='C - tariff volumes'!AD26*(1+'I - drivers'!AL$29) -> 741404.2814 | AE26: ='C - tariff volumes'!AE26*(1+'I - drivers'!AM$29) -> 688141.2397 | AF26: ='C - tariff volumes'!AF26*(1+'I - drivers'!AN$29) -> 636570.161 | AG26: ='C - tariff volumes'!AG26*(1+'I - drivers'!AO$29) -> 587676.1182 | AH26: ='C - tariff volumes'!AH26*(1+'I - drivers'!AP$29) -> 542043.8663 | AI26: ='C - tariff volumes'!AI26*(1+'I - drivers'!AQ$29) -> 496039.7506 | AJ26: ='C - tariff volumes'!AJ26*(1+'I - drivers'!AR$29) -> 454600.9806 | AK26: ='C - tariff volumes'!AK26*(1+'I - drivers'!AS$29) -> 416080.2979 | AL26: ='C - tariff volumes'!AL26*(1+'I - drivers'!AT$29) -> 379928.7771 | AM26: ='C - tariff volumes'!AM26*(1+'I - drivers'!AU$29) -> 353536.3603 | AN26: ='C - tariff volumes'!AN26*(1+'I - drivers'!AV$29) -> 321661.5271 | AP26: ='C - tariff volumes'!AP26 -> 386350.555 | AQ26: ='C - tariff volumes'!AQ26 -> 1632978.327 | AR26: =T26*(1-SUMIFS('I - assumptions'!$E$121:$E$136,'I - assumptions'!$C$121:$C$136,$A26,'I - assumptions'!$D$121:$D$136,$C26))+U26*SUMIFS('I - assumptions'!$E$121:$E$136,'I - assumptions'!$C$121:$C$136,$A26,'I - assumptions'!$D$121:$D$136,$C26) -> 1270259.499 | AS26: =U26*(1-SUMIFS('I - assumptions'!$E$121:$E$136,'I - assumptions'!$C$121:$C$136,$A26,'I - assumptions'!$D$121:$D$136,$C26))+V26*SUMIFS('I - assumptions'!$E$121:$E$136,'I - assumptions'!$C$121:$C$136,$A26,'I - assumptions'!$D$121:$D$136,$C26) -> 1313257.426 | AT26: =V26*(1-SUMIFS('I - assumptions'!$E$121:$E$136,'I - assumptions'!$C$121:$C$136,$A26,'I - assumptions'!$D$121:$D$136,$C26))+W26*SUMIFS('I - assumptions'!$E$121:$E$136,'I - assumptions'!$C$121:$C$136,$A26,'I - assumptions'!$D$121:$D$136,$C26) -> 1262204.526 | AU26: =W26*(1-SUMIFS('I - assumptions'!$E$121:$E$136,'I - assumptions'!$C$121:$C$136,$A26,'I - assumptions'!$D$121:$D$136,$C26))+X26*SUMIFS('I - assumptions'!$E$121:$E$136,'I - assumptions'!$C$121:$C$136,$A26,'I - assumptions'!$D$121:$D$136,$C26) -> 1197729.33 | AV26: =X26*(1-SUMIFS('I - assumptions'!$E$121:$E$136,'I - assumptions'!$C$121:$C$136,$A26,'I - assumptions'!$D$121:$D$136,$C26))+Y26*SUMIFS('I - assumptions'!$E$121:$E$136,'I - assumptions'!$C$121:$C$136,$A26,'I - assumptions'!$D$121:$D$136,$C26) -> 1124695.552 | AW26: =Y26*(1-SUMIFS('I - assumptions'!$E$121:$E$136,'I - assumptions'!$C$121:$C$136,$A26,'I - assumptions'!$D$121:$D$136,$C26))+Z26*SUMIFS('I - assumptions'!$E$121:$E$136,'I - assumptions'!$C$121:$C$136,$A26,'I - assumptions'!$D$121:$D$136,$C26) -> 1049633.367
A27: 1 | B27: 1 | C27: 5 | D27: 2 | E27: 1 | F27: Tariff V - SP AusNet West - Domestic | G27: Peak > 1.4 | H27: ='C - tariff volumes'!H27 -> 13554.014 | I27: ='C - tariff volumes'!I27 -> 13223.936 | J27: ='C - tariff volumes'!J27 -> 13245.787 | K27: ='C - tariff volumes'!K27 -> 22991.377 | L27: ='C - tariff volumes'!L27 -> 19274.147 | M27: ='C - tariff volumes'!M27 -> 26549.636 | N27: ='C - tariff volumes'!N27 -> 18972.301 | O27: ='C - tariff volumes'!O27 -> 19126.557 | P27: ='C - tariff volumes'!P27 -> 18296.895 | Q27: ='C - tariff volumes'!Q27 -> 16625.278 | R27: ='C - tariff volumes'!R27 -> 13270.54 | S27: ='C - tariff volumes'!S27 -> 11115.031 | T27: ='C - tariff volumes'!T27*(1+'I - drivers'!AB$29) -> 10132.192 | U27: ='C - tariff volumes'!U27*(1+'I - drivers'!AC$29) -> 10097.53914 | V27: ='C - tariff volumes'!V27*(1+'I - drivers'!AD$29) -> 9910.717387 | W27: ='C - tariff volumes'!W27*(1+'I - drivers'!AE$29) -> 9583.000421 | X27: ='C - tariff volumes'!X27*(1+'I - drivers'!AF$29) -> 9176.167851 | Y27: ='C - tariff volumes'!Y27*(1+'I - drivers'!AG$29) -> 8668.469683 | Z27: ='C - tariff volumes'!Z27*(1+'I - drivers'!AH$29) -> 8214.8465 | AA27: ='C - tariff volumes'!AA27*(1+'I - drivers'!AI$29) -> 7705.648383 | AB27: ='C - tariff volumes'!AB27*(1+'I - drivers'!AJ$29) -> 7303.431866 | AC27: ='C - tariff volumes'!AC27*(1+'I - drivers'!AK$29) -> 6892.370745 | AD27: ='C - tariff volumes'!AD27*(1+'I - drivers'!AL$29) -> 6506.599549 | AE27: ='C - tariff volumes'!AE27*(1+'I - drivers'!AM$29) -> 6134.501581 | AF27: ='C - tariff volumes'!AF27*(1+'I - drivers'!AN$29) -> 5765.780519 | AG27: ='C - tariff volumes'!AG27*(1+'I - drivers'!AO$29) -> 5408.978076 | AH27: ='C - tariff volumes'!AH27*(1+'I - drivers'!AP$29) -> 5060.836634 | AI27: ='C - tariff volumes'!AI27*(1+'I - drivers'!AQ$29) -> 4718.269547 | AJ27: ='C - tariff volumes'!AJ27*(1+'I - drivers'!AR$29) -> 4397.296446 | AK27: ='C - tariff volumes'!AK27*(1+'I - drivers'!AS$29) -> 4092.303836 | AL27: ='C - tariff volumes'!AL27*(1+'I - drivers'!AT$29) -> 3800.697379 | AM27: ='C - tariff volumes'!AM27*(1+'I - drivers'!AU$29) -> 3535.509952 | AN27: ='C - tariff volumes'!AN27*(1+'I - drivers'!AV$29) -> 3272.351715 | AP27: ='C - tariff volumes'!AP27 -> 1916.805 | AQ27: ='C - tariff volumes'!AQ27 -> 10720.668 | AR27: =T27*(1-SUMIFS('I - assumptions'!$E$121:$E$136,'I - assumptions'!$C$121:$C$136,$A27,'I - assumptions'!$D$121:$D$136,$C27))+U27*SUMIFS('I - assumptions'!$E$121:$E$136,'I - assumptions'!$C$121:$C$136,$A27,'I - assumptions'!$D$121:$D$136,$C27) -> 10124.45727 | AS27: =U27*(1-SUMIFS('I - assumptions'!$E$121:$E$136,'I - assumptions'!$C$121:$C$136,$A27,'I - assumptions'!$D$121:$D$136,$C27))+V27*SUMIFS('I - assumptions'!$E$121:$E$136,'I - assumptions'!$C$121:$C$136,$A27,'I - assumptions'!$D$121:$D$136,$C27) -> 10055.83936 | AT27: =V27*(1-SUMIFS('I - assumptions'!$E$121:$E$136,'I - assumptions'!$C$121:$C$136,$A27,'I - assumptions'!$D$121:$D$136,$C27))+W27*SUMIFS('I - assumptions'!$E$121:$E$136,'I - assumptions'!$C$121:$C$136,$A27,'I - assumptions'!$D$121:$D$136,$C27) -> 9837.568915 | AU27: =W27*(1-SUMIFS('I - assumptions'!$E$121:$E$136,'I - assumptions'!$C$121:$C$136,$A27,'I - assumptions'!$D$121:$D$136,$C27))+X27*SUMIFS('I - assumptions'!$E$121:$E$136,'I - assumptions'!$C$121:$C$136,$A27,'I - assumptions'!$D$121:$D$136,$C27) -> 9492.192853 | AV27: =X27*(1-SUMIFS('I - assumptions'!$E$121:$E$136,'I - assumptions'!$C$121:$C$136,$A27,'I - assumptions'!$D$121:$D$136,$C27))+Y27*SUMIFS('I - assumptions'!$E$121:$E$136,'I - assumptions'!$C$121:$C$136,$A27,'I - assumptions'!$D$121:$D$136,$C27) -> 9062.846452 | AW27: =Y27*(1-SUMIFS('I - assumptions'!$E$121:$E$136,'I - assumptions'!$C$121:$C$136,$A27,'I - assumptions'!$D$121:$D$136,$C27))+Z27*SUMIFS('I - assumptions'!$E$121:$E$136,'I - assumptions'!$C$121:$C$136,$A27,'I - assumptions'!$D$121:$D$136,$C27) -> 8567.218158
A28: 1 | B28: 1 | C28: 6 | D28: 2 | E28: 1 | F28: Tariff V - SP AusNet West - Domestic | G28: Off Peak 0 - 0.1 | H28: ='C - tariff volumes'!H28 -> 1831802.037 | I28: ='C - tariff volumes'!I28 -> 1854874.649 | J28: ='C - tariff volumes'!J28 -> 1817766.607 | K28: ='C - tariff volumes'!K28 -> 1765758.865 | L28: ='C - tariff volumes'!L28 -> 1851296.246 | M28: ='C - tariff volumes'!M28 -> 1850320.099 | N28: ='C - tariff volumes'!N28 -> 1827233.415 | O28: ='C - tariff volumes'!O28 -> 1820469.897 | P28: ='C - tariff volumes'!P28 -> 1945311.184 | Q28: ='C - tariff volumes'!Q28 -> 2129926.559 | R28: ='C - tariff volumes'!R28 -> 2176726.991 | S28: ='C - tariff volumes'!S28 -> 2036213.474 | T28: ='C - tariff volumes'!T28*(1+'I - drivers'!AB$29) -> 1935728.669 | U28: ='C - tariff volumes'!U28*(1+'I - drivers'!AC$29) -> 1934048.645 | V28: ='C - tariff volumes'!V28*(1+'I - drivers'!AD$29) -> 1892926.886 | W28: ='C - tariff volumes'!W28*(1+'I - drivers'!AE$29) -> 1836254.355 | X28: ='C - tariff volumes'!X28*(1+'I - drivers'!AF$29) -> 1766395.092 | Y28: ='C - tariff volumes'!Y28*(1+'I - drivers'!AG$29) -> 1669866.401 | Z28: ='C - tariff volumes'!Z28*(1+'I - drivers'!AH$29) -> 1586443.214 | AA28: ='C - tariff volumes'!AA28*(1+'I - drivers'!AI$29) -> 1482480.165 | AB28: ='C - tariff volumes'!AB28*(1+'I - drivers'!AJ$29) -> 1404413.199 | AC28: ='C - tariff volumes'!AC28*(1+'I - drivers'!AK$29) -> 1324122.082 | AD28: ='C - tariff volumes'!AD28*(1+'I - drivers'!AL$29) -> 1248555.895 | AE28: ='C - tariff volumes'!AE28*(1+'I - drivers'!AM$29) -> 1175773.423 | AF28: ='C - tariff volumes'!AF28*(1+'I - drivers'!AN$29) -> 1102332.847 | AG28: ='C - tariff volumes'!AG28*(1+'I - drivers'!AO$29) -> 1033973.741 | AH28: ='C - tariff volumes'!AH28*(1+'I - drivers'!AP$29) -> 967176.6384 | AI28: ='C - tariff volumes'!AI28*(1+'I - drivers'!AQ$29) -> 899488.7461 | AJ28: ='C - tariff volumes'!AJ28*(1+'I - drivers'!AR$29) -> 837140.1408 | AK28: ='C - tariff volumes'!AK28*(1+'I - drivers'!AS$29) -> 777486.9781 | AL28: ='C - tariff volumes'!AL28*(1+'I - drivers'!AT$29) -> 720438.5266 | AM28: ='C - tariff volumes'!AM28*(1+'I - drivers'!AU$29) -> 671916.4164 | AN28: ='C - tariff volumes'!AN28*(1+'I - drivers'!AV$29) -> 620610.9894 | AP28: ='C - tariff volumes'!AP28 -> 1184218.188 | AQ28: ='C - tariff volumes'!AQ28 -> 2140519.353 | AR28: =T28*(1-SUMIFS('I - assumptions'!$E$121:$E$136,'I - assumptions'!$C$121:$C$136,$A28,'I - assumptions'!$D$121:$D$136,$C28))+U28*SUMIFS('I - assumptions'!$E$121:$E$136,'I - assumptions'!$C$121:$C$136,$A28,'I - assumptions'!$D$121:$D$136,$C28) -> 1934767.072 | AS28: =U28*(1-SUMIFS('I - assumptions'!$E$121:$E$136,'I - assumptions'!$C$121:$C$136,$A28,'I - assumptions'!$D$121:$D$136,$C28))+V28*SUMIFS('I - assumptions'!$E$121:$E$136,'I - assumptions'!$C$121:$C$136,$A28,'I - assumptions'!$D$121:$D$136,$C28) -> 1910511.756 | AT28: =V28*(1-SUMIFS('I - assumptions'!$E$121:$E$136,'I - assumptions'!$C$121:$C$136,$A28,'I - assumptions'!$D$121:$D$136,$C28))+W28*SUMIFS('I - assumptions'!$E$121:$E$136,'I - assumptions'!$C$121:$C$136,$A28,'I - assumptions'!$D$121:$D$136,$C28) -> 1860489.192 | AU28: =W28*(1-SUMIFS('I - assumptions'!$E$121:$E$136,'I - assumptions'!$C$121:$C$136,$A28,'I - assumptions'!$D$121:$D$136,$C28))+X28*SUMIFS('I - assumptions'!$E$121:$E$136,'I - assumptions'!$C$121:$C$136,$A28,'I - assumptions'!$D$121:$D$136,$C28) -> 1796268.962 | AV28: =X28*(1-SUMIFS('I - assumptions'!$E$121:$E$136,'I - assumptions'!$C$121:$C$136,$A28,'I - assumptions'!$D$121:$D$136,$C28))+Y28*SUMIFS('I - assumptions'!$E$121:$E$136,'I - assumptions'!$C$121:$C$136,$A28,'I - assumptions'!$D$121:$D$136,$C28) -> 1711144.9 | AW28: =Y28*(1-SUMIFS('I - assumptions'!$E$121:$E$136,'I - assumptions'!$C$121:$C$136,$A28,'I - assumptions'!$D$121:$D$136,$C28))+Z28*SUMIFS('I - assumptions'!$E$121:$E$136,'I - assumptions'!$C$121:$C$136,$A28,'I - assumptions'!$D$121:$D$136,$C28) -> 1622117.415
A29: 1 | B29: 1 | C29: 7 | D29: 2 | E29: 1 | F29: Tariff V - SP AusNet West - Domestic | G29: Off Peak 0.1 - 0.2 | H29: ='C - tariff volumes'!H29 -> 541692.044 | I29: ='C - tariff volumes'!I29 -> 528078.375 | J29: ='C - tariff volumes'!J29 -> 532254.691 | K29: ='C - tariff volumes'!K29 -> 389396.068 | L29: ='C - tariff volumes'!L29 -> 475837.337 | M29: ='C - tariff volumes'!M29 -> 515154.068 | N29: ='C - tariff volumes'!N29 -> 396157.389 | O29: ='C - tariff volumes'!O29 -> 448585.018 | P29: ='C - tariff volumes'!P29 -> 545685.515 | Q29: ='C - tariff volumes'!Q29 -> 686541.773 | R29: ='C - tariff volumes'!R29 -> 737866.533 | S29: ='C - tariff volumes'!S29 -> 581989.201 | T29: ='C - tariff volumes'!T29*(1+'I - drivers'!AB$29) -> 507486.905 | U29: ='C - tariff volumes'!U29*(1+'I - drivers'!AC$29) -> 526461.3533 | V29: ='C - tariff volumes'!V29*(1+'I - drivers'!AD$29) -> 510127.9532 | W29: ='C - tariff volumes'!W29*(1+'I - drivers'!AE$29) -> 490110.8795 | X29: ='C - tariff volumes'!X29*(1+'I - drivers'!AF$29) -> 467045.0007 | Y29: ='C - tariff volumes'!Y29*(1+'I - drivers'!AG$29) -> 437536.9894 | Z29: ='C - tariff volumes'!Z29*(1+'I - drivers'!AH$29) -> 414410.028 | AA29: ='C - tariff volumes'!AA29*(1+'I - drivers'!AI$29) -> 381487.2344 | AB29: ='C - tariff volumes'!AB29*(1+'I - drivers'!AJ$29) -> 358354.2203 | AC29: ='C - tariff volumes'!AC29*(1+'I - drivers'!AK$29) -> 334611.0579 | AD29: ='C - tariff volumes'!AD29*(1+'I - drivers'!AL$29) -> 313051.7981 | AE29: ='C - tariff volumes'!AE29*(1+'I - drivers'!AM$29) -> 292226.1156 | AF29: ='C - tariff volumes'!AF29*(1+'I - drivers'!AN$29) -> 271535.4906 | AG29: ='C - tariff volumes'!AG29*(1+'I - drivers'!AO$29) -> 252449.2758 | AH29: ='C - tariff volumes'!AH29*(1+'I - drivers'!AP$29) -> 234316.2391 | AI29: ='C - tariff volumes'!AI29*(1+'I - drivers'!AQ$29) -> 215659.1027 | AJ29: ='C - tariff volumes'!AJ29*(1+'I - drivers'!AR$29) -> 198871.0862 | AK29: ='C - tariff volumes'!AK29*(1+'I - drivers'!AS$29) -> 183019.9578 | AL29: ='C - tariff volumes'!AL29*(1+'I - drivers'!AT$29) -> 168021.3241 | AM29: ='C - tariff volumes'!AM29*(1+'I - drivers'!AU$29) -> 156928.841 | AN29: ='C - tariff volumes'!AN29*(1+'I - drivers'!AV$29) -> 143607.3478 | AP29: ='C - tariff volumes'!AP29 -> 415663.149 | AQ29: ='C - tariff volumes'!AQ29 -> 680232.547 | AR29: =T29*(1-SUMIFS('I - assumptions'!$E$121:$E$136,'I - assumptions'!$C$121:$C$136,$A29,'I - assumptions'!$D$121:$D$136,$C29))+U29*SUMIFS('I - assumptions'!$E$121:$E$136,'I - assumptions'!$C$121:$C$136,$A29,'I - assumptions'!$D$121:$D$136,$C29) -> 520790.0533 | AS29: =U29*(1-SUMIFS('I - assumptions'!$E$121:$E$136,'I - assumptions'!$C$121:$C$136,$A29,'I - assumptions'!$D$121:$D$136,$C29))+V29*SUMIFS('I - assumptions'!$E$121:$E$136,'I - assumptions'!$C$121:$C$136,$A29,'I - assumptions'!$D$121:$D$136,$C29) -> 515009.8665 | AT29: =V29*(1-SUMIFS('I - assumptions'!$E$121:$E$136,'I - assumptions'!$C$121:$C$136,$A29,'I - assumptions'!$D$121:$D$136,$C29))+W29*SUMIFS('I - assumptions'!$E$121:$E$136,'I - assumptions'!$C$121:$C$136,$A29,'I - assumptions'!$D$121:$D$136,$C29) -> 496093.8112 | AU29: =W29*(1-SUMIFS('I - assumptions'!$E$121:$E$136,'I - assumptions'!$C$121:$C$136,$A29,'I - assumptions'!$D$121:$D$136,$C29))+X29*SUMIFS('I - assumptions'!$E$121:$E$136,'I - assumptions'!$C$121:$C$136,$A29,'I - assumptions'!$D$121:$D$136,$C29) -> 473939.1941 | AV29: =X29*(1-SUMIFS('I - assumptions'!$E$121:$E$136,'I - assumptions'!$C$121:$C$136,$A29,'I - assumptions'!$D$121:$D$136,$C29))+Y29*SUMIFS('I - assumptions'!$E$121:$E$136,'I - assumptions'!$C$121:$C$136,$A29,'I - assumptions'!$D$121:$D$136,$C29) -> 446356.681 | AW29: =Y29*(1-SUMIFS('I - assumptions'!$E$121:$E$136,'I - assumptions'!$C$121:$C$136,$A29,'I - assumptions'!$D$121:$D$136,$C29))+Z29*SUMIFS('I - assumptions'!$E$121:$E$136,'I - assumptions'!$C$121:$C$136,$A29,'I - assumptions'!$D$121:$D$136,$C29) -> 421322.4785
A30: 1 | B30: 1 | C30: 8 | D30: 2 | E30: 1 | F30: Tariff V - SP AusNet West - Domestic | G30: Off Peak 0.2 - 1.4 | H30: ='C - tariff volumes'!H30 -> 333075.683 | I30: ='C - tariff volumes'!I30 -> 290571.181 | J30: ='C - tariff volumes'!J30 -> 322258.369 | K30: ='C - tariff volumes'!K30 -> 151243.673 | L30: ='C - tariff volumes'!L30 -> 124142.299 | M30: ='C - tariff volumes'!M30 -> 324240.648 | N30: ='C - tariff volumes'!N30 -> 455969.952 | O30: ='C - tariff volumes'!O30 -> 233278.863 | P30: ='C - tariff volumes'!P30 -> 265994.981 | Q30: ='C - tariff volumes'!Q30 -> 489836.938 | R30: ='C - tariff volumes'!R30 -> 499253.849 | S30: ='C - tariff volumes'!S30 -> 348824.672 | T30: ='C - tariff volumes'!T30*(1+'I - drivers'!AB$29) -> 311846.579 | U30: ='C - tariff volumes'!U30*(1+'I - drivers'!AC$29) -> 328612.5055 | V30: ='C - tariff volumes'!V30*(1+'I - drivers'!AD$29) -> 317552.929 | W30: ='C - tariff volumes'!W30*(1+'I - drivers'!AE$29) -> 304223.5182 | X30: ='C - tariff volumes'!X30*(1+'I - drivers'!AF$29) -> 289086.4713 | Y30: ='C - tariff volumes'!Y30*(1+'I - drivers'!AG$29) -> 270064.8303 | Z30: ='C - tariff volumes'!Z30*(1+'I - drivers'!AH$29) -> 254829.7362 | AA30: ='C - tariff volumes'!AA30*(1+'I - drivers'!AI$29) -> 234133.1284 | AB30: ='C - tariff volumes'!AB30*(1+'I - drivers'!AJ$29) -> 219270.48 | AC30: ='C - tariff volumes'!AC30*(1+'I - drivers'!AK$29) -> 204150.1506 | AD30: ='C - tariff volumes'!AD30*(1+'I - drivers'!AL$29) -> 190370.315 | AE30: ='C - tariff volumes'!AE30*(1+'I - drivers'!AM$29) -> 177137.2751 | AF30: ='C - tariff volumes'!AF30*(1+'I - drivers'!AN$29) -> 164051.4412 | AG30: ='C - tariff volumes'!AG30*(1+'I - drivers'!AO$29) -> 152014.831 | AH30: ='C - tariff volumes'!AH30*(1+'I - drivers'!AP$29) -> 140588.1955 | AI30: ='C - tariff volumes'!AI30*(1+'I - drivers'!AQ$29) -> 128964.4006 | AJ30: ='C - tariff volumes'!AJ30*(1+'I - drivers'!AR$29) -> 118499.2977 | AK30: ='C - tariff volumes'!AK30*(1+'I - drivers'!AS$29) -> 108646.2811 | AL30: ='C - tariff volumes'!AL30*(1+'I - drivers'!AT$29) -> 99358.36137 | AM30: ='C - tariff volumes'!AM30*(1+'I - drivers'!AU$29) -> 92272.05654 | AN30: ='C - tariff volumes'!AN30*(1+'I - drivers'!AV$29) -> 84092.54992 | AP30: ='C - tariff volumes'!AP30 -> 293445.52 | AQ30: ='C - tariff volumes'!AQ30 -> 425867.707 | AR30: =T30*(1-SUMIFS('I - assumptions'!$E$121:$E$136,'I - assumptions'!$C$121:$C$136,$A30,'I - assumptions'!$D$121:$D$136,$C30))+U30*SUMIFS('I - assumptions'!$E$121:$E$136,'I - assumptions'!$C$121:$C$136,$A30,'I - assumptions'!$D$121:$D$136,$C30) -> 325865.4542 | AS30: =U30*(1-SUMIFS('I - assumptions'!$E$121:$E$136,'I - assumptions'!$C$121:$C$136,$A30,'I - assumptions'!$D$121:$D$136,$C30))+V30*SUMIFS('I - assumptions'!$E$121:$E$136,'I - assumptions'!$C$121:$C$136,$A30,'I - assumptions'!$D$121:$D$136,$C30) -> 319365.0105 | AT30: =V30*(1-SUMIFS('I - assumptions'!$E$121:$E$136,'I - assumptions'!$C$121:$C$136,$A30,'I - assumptions'!$D$121:$D$136,$C30))+W30*SUMIFS('I - assumptions'!$E$121:$E$136,'I - assumptions'!$C$121:$C$136,$A30,'I - assumptions'!$D$121:$D$136,$C30) -> 306407.5058 | AU30: =W30*(1-SUMIFS('I - assumptions'!$E$121:$E$136,'I - assumptions'!$C$121:$C$136,$A30,'I - assumptions'!$D$121:$D$136,$C30))+X30*SUMIFS('I - assumptions'!$E$121:$E$136,'I - assumptions'!$C$121:$C$136,$A30,'I - assumptions'!$D$121:$D$136,$C30) -> 291566.6352 | AV30: =X30*(1-SUMIFS('I - assumptions'!$E$121:$E$136,'I - assumptions'!$C$121:$C$136,$A30,'I - assumptions'!$D$121:$D$136,$C30))+Y30*SUMIFS('I - assumptions'!$E$121:$E$136,'I - assumptions'!$C$121:$C$136,$A30,'I - assumptions'!$D$121:$D$136,$C30) -> 273181.4743 | AW30: =Y30*(1-SUMIFS('I - assumptions'!$E$121:$E$136,'I - assumptions'!$C$121:$C$136,$A30,'I - assumptions'!$D$121:$D$136,$C30))+Z30*SUMIFS('I - assumptions'!$E$121:$E$136,'I - assumptions'!$C$121:$C$136,$A30,'I - assumptions'!$D$121:$D$136,$C30) -> 257325.9648
A31: 1 | B31: 1 | C31: 9 | D31: 2 | E31: 1 | F31: Tariff V - SP AusNet West - Domestic | G31: Off Peak > 1.4 | H31: ='C - tariff volumes'!H31 -> 12222.116 | I31: ='C - tariff volumes'!I31 -> 13207.113 | J31: ='C - tariff volumes'!J31 -> 13389.912 | K31: ='C - tariff volumes'!K31 -> 13339.949 | L31: ='C - tariff volumes'!L31 -> 14138.521 | M31: ='C - tariff volumes'!M31 -> 17672.631 | N31: ='C - tariff volumes'!N31 -> 21937.13 | O31: ='C - tariff volumes'!O31 -> 14844.121 | P31: ='C - tariff volumes'!P31 -> 11826.136 | Q31: ='C - tariff volumes'!Q31 -> 14567.957 | R31: ='C - tariff volumes'!R31 -> 14197.612 | S31: ='C - tariff volumes'!S31 -> 7133.12 | T31: ='C - tariff volumes'!T31*(1+'I - drivers'!AB$29) -> 9580.971 | U31: ='C - tariff volumes'!U31*(1+'I - drivers'!AC$29) -> 9569.285218 | V31: ='C - tariff volumes'!V31*(1+'I - drivers'!AD$29) -> 9385.052535 | W31: ='C - tariff volumes'!W31*(1+'I - drivers'!AE$29) -> 9118.902073 | X31: ='C - tariff volumes'!X31*(1+'I - drivers'!AF$29) -> 8784.588028 | Y31: ='C - tariff volumes'!Y31*(1+'I - drivers'!AG$29) -> 8315.01475 | Z31: ='C - tariff volumes'!Z31*(1+'I - drivers'!AH$29) -> 7886.982615 | AA31: ='C - tariff volumes'!AA31*(1+'I - drivers'!AI$29) -> 7399.419775 | AB31: ='C - tariff volumes'!AB31*(1+'I - drivers'!AJ$29) -> 7015.895712 | AC31: ='C - tariff volumes'!AC31*(1+'I - drivers'!AK$29) -> 6624.140343 | AD31: ='C - tariff volumes'!AD31*(1+'I - drivers'!AL$29) -> 6249.295694 | AE31: ='C - tariff volumes'!AE31*(1+'I - drivers'!AM$29) -> 5890.380711 | AF31: ='C - tariff volumes'!AF31*(1+'I - drivers'!AN$29) -> 5527.507843 | AG31: ='C - tariff volumes'!AG31*(1+'I - drivers'!AO$29) -> 5189.403353 | AH31: ='C - tariff volumes'!AH31*(1+'I - drivers'!AP$29) -> 4855.809954 | AI31: ='C - tariff volumes'!AI31*(1+'I - drivers'!AQ$29) -> 4522.696189 | AJ31: ='C - tariff volumes'!AJ31*(1+'I - drivers'!AR$29) -> 4213.010644 | AK31: ='C - tariff volumes'!AK31*(1+'I - drivers'!AS$29) -> 3915.851984 | AL31: ='C - tariff volumes'!AL31*(1+'I - drivers'!AT$29) -> 3631.396906 | AM31: ='C - tariff volumes'!AM31*(1+'I - drivers'!AU$29) -> 3372.545033 | AN31: ='C - tariff volumes'!AN31*(1+'I - drivers'!AV$29) -> 3117.174795 | AP31: ='C - tariff volumes'!AP31 -> 6492.181 | AQ31: ='C - tariff volumes'!AQ31 -> 9558.542 | AR31: =T31*(1-SUMIFS('I - assumptions'!$E$121:$E$136,'I - assumptions'!$C$121:$C$136,$A31,'I - assumptions'!$D$121:$D$136,$C31))+U31*SUMIFS('I - assumptions'!$E$121:$E$136,'I - assumptions'!$C$121:$C$136,$A31,'I - assumptions'!$D$121:$D$136,$C31) -> 9573.440189 | AS31: =U31*(1-SUMIFS('I - assumptions'!$E$121:$E$136,'I - assumptions'!$C$121:$C$136,$A31,'I - assumptions'!$D$121:$D$136,$C31))+V31*SUMIFS('I - assumptions'!$E$121:$E$136,'I - assumptions'!$C$121:$C$136,$A31,'I - assumptions'!$D$121:$D$136,$C31) -> 9450.5579 | AT31: =V31*(1-SUMIFS('I - assumptions'!$E$121:$E$136,'I - assumptions'!$C$121:$C$136,$A31,'I - assumptions'!$D$121:$D$136,$C31))+W31*SUMIFS('I - assumptions'!$E$121:$E$136,'I - assumptions'!$C$121:$C$136,$A31,'I - assumptions'!$D$121:$D$136,$C31) -> 9213.533942 | AU31: =W31*(1-SUMIFS('I - assumptions'!$E$121:$E$136,'I - assumptions'!$C$121:$C$136,$A31,'I - assumptions'!$D$121:$D$136,$C31))+X31*SUMIFS('I - assumptions'!$E$121:$E$136,'I - assumptions'!$C$121:$C$136,$A31,'I - assumptions'!$D$121:$D$136,$C31) -> 8903.455989 | AV31: =X31*(1-SUMIFS('I - assumptions'!$E$121:$E$136,'I - assumptions'!$C$121:$C$136,$A31,'I - assumptions'!$D$121:$D$136,$C31))+Y31*SUMIFS('I - assumptions'!$E$121:$E$136,'I - assumptions'!$C$121:$C$136,$A31,'I - assumptions'!$D$121:$D$136,$C31) -> 8481.975185 | AW31: =Y31*(1-SUMIFS('I - assumptions'!$E$121:$E$136,'I - assumptions'!$C$121:$C$136,$A31,'I - assumptions'!$D$121:$D$136,$C31))+Z31*SUMIFS('I - assumptions'!$E$121:$E$136,'I - assumptions'!$C$121:$C$136,$A31,'I - assumptions'!$D$121:$D$136,$C31) -> 8039.172773
... 37 more rows

Sheet O - WN
A1: Res | B1: Cla | C1: Blo | D1: Reg | E1: New | F1: Outputs | H1: 2011 | I1: 2012 | J1: 2013 | K1: 2014 | L1: 2015 | M1: 2016 | N1: 2017 | O1: 2018 | P1: 2019 | Q1: 2020 | R1: 2021 | S1: 2022 | T1: =S1+1 -> 2023 | U1: 2024 | V1: 2025 | W1: 2026 | X1: 2027 | Y1: 2028 | Z1: 2029 | AA1: =Z1+1 -> 2030 | AB1: 2031 | AC1: 2032 | AD1: 2033 | AE1: 2034 | AF1: 2035 | AG1: 2036 | AH1: 2037 | AI1: 2038 | AJ1: 2039 | AK1: 2040 | AL1: 2041 | AM1: 2042 | AN1: 2043
F2: Tariff V - SP AusNet Central - Domestic
A3: 1 | B3: 1 | C3: 1 | D3: 1 | E3: 1 | G3: Fixed Charge | H3: ='C - tariff volumes'!H3 -> 445025.5645 | I3: ='C - tariff volumes'!I3 -> 457569.69 | J3: ='C - tariff volumes'!J3 -> 466546.6576 | K3: ='C - tariff volumes'!K3 -> 476190.8191 | L3: ='C - tariff volumes'!L3 -> 486727.0893 | M3: ='C - tariff volumes'!M3 -> 499178.2702 | N3: ='C - tariff volumes'!N3 -> 511288.7441 | O3: ='C - tariff volumes'!O3 -> 525378.9647 | P3: ='C - tariff volumes'!P3 -> 541826.6278 | Q3: ='C - tariff volumes'!Q3 -> 560241.0347 | R3: ='C - tariff volumes'!R3 -> 575343.0958 | S3: ='C - tariff volumes'!S3 -> 585864.2564 | T3: ='C - tariff volumes'!T3 -> 603303.1502 | U3: ='C - tariff volumes'!U3 -> 613265.1807 | V3: ='C - tariff volumes'!V3 -> 617170.5282 | W3: ='C - tariff volumes'!W3 -> 617304.7998 | X3: ='C - tariff volumes'!X3 -> 614006.4982 | Y3: ='C - tariff volumes'!Y3 -> 608145.4544 | Z3: ='C - tariff volumes'!Z3 -> 601693.0705 | AA3: ='C - tariff volumes'!AA3 -> 595125.7097 | AB3: ='C - tariff volumes'!AB3 -> 588510.1634 | AC3: ='C - tariff volumes'!AC3 -> 581882.6056 | AD3: ='C - tariff volumes'!AD3 -> 575198.015 | AE3: ='C - tariff volumes'!AE3 -> 568457.0671 | AF3: ='C - tariff volumes'!AF3 -> 561660.93 | AG3: ='C - tariff volumes'!AG3 -> 554810.9149 | AH3: ='C - tariff volumes'!AH3 -> 548020.7103 | AI3: ='C - tariff volumes'!AI3 -> 541176.1046 | AJ3: ='C - tariff volumes'!AJ3 -> 534277.3732 | AK3: ='C - tariff volumes'!AK3 -> 527230.2408 | AL3: ='C - tariff volumes'!AL3 -> 520176.9316 | AM3: ='C - tariff volumes'!AM3 -> 513252.1844 | AN3: ='C - tariff volumes'!AN3 -> 506319.7304
A4: 1 | B4: 1 | C4: 2 | D4: 1 | E4: 1 | G4: Peak 0 - 0.1 | H4: ='C - tariff volumes'!H4*(1+('I - drivers'!P$8-'I - drivers'!P$2)*CHOOSE($A4,OFFSET('I - coeff'!$W$3,($C4-2),0),OFFSET('I - coeff'!$W$13,($C4-2),0))) -> 4772202.51 | I4: ='C - tariff volumes'!I4*(1+('I - drivers'!Q$8-'I - drivers'!Q$2)*CHOOSE($A4,OFFSET('I - coeff'!$W$3,($C4-2),0),OFFSET('I - coeff'!$W$13,($C4-2),0))) -> 4805655.441 | J4: ='C - tariff volumes'!J4*(1+('I - drivers'!R$8-'I - drivers'!R$2)*CHOOSE($A4,OFFSET('I - coeff'!$W$3,($C4-2),0),OFFSET('I - coeff'!$W$13,($C4-2),0))) -> 4927519.936 | K4: ='C - tariff volumes'!K4*(1+('I - drivers'!S$8-'I - drivers'!S$2)*CHOOSE($A4,OFFSET('I - coeff'!$W$3,($C4-2),0),OFFSET('I - coeff'!$W$13,($C4-2),0))) -> 4834945.924 | L4: ='C - tariff volumes'!L4*(1+('I - drivers'!T$8-'I - drivers'!T$2)*CHOOSE($A4,OFFSET('I - coeff'!$W$3,($C4-2),0),OFFSET('I - coeff'!$W$13,($C4-2),0))) -> 4982812.816 | M4: ='C - tariff volumes'!M4*(1+('I - drivers'!U$8-'I - drivers'!U$2)*CHOOSE($A4,OFFSET('I - coeff'!$W$3,($C4-2),0),OFFSET('I - coeff'!$W$13,($C4-2),0))) -> 5216041.055 | N4: ='C - tariff volumes'!N4*(1+('I - drivers'!V$8-'I - drivers'!V$2)*CHOOSE($A4,OFFSET('I - coeff'!$W$3,($C4-2),0),OFFSET('I - coeff'!$W$13,($C4-2),0))) -> 5448287.014 | O4: ='C - tariff volumes'!O4*(1+('I - drivers'!W$8-'I - drivers'!W$2)*CHOOSE($A4,OFFSET('I - coeff'!$W$3,($C4-2),0),OFFSET('I - coeff'!$W$13,($C4-2),0))) -> 5350738.192 | P4: ='C - tariff volumes'!P4*(1+('I - drivers'!X$8-'I - drivers'!X$2)*CHOOSE($A4,OFFSET('I - coeff'!$W$3,($C4-2),0),OFFSET('I - coeff'!$W$13,($C4-2),0))) -> 5418619.548 | Q4: ='C - tariff volumes'!Q4*(1+('I - drivers'!Y$8-'I - drivers'!Y$2)*CHOOSE($A4,OFFSET('I - coeff'!$W$3,($C4-2),0),OFFSET('I - coeff'!$W$13,($C4-2),0))) -> 5543968.795 | R4: ='C - tariff volumes'!R4*(1+('I - drivers'!Z$8-'I - drivers'!Z$2)*CHOOSE($A4,OFFSET('I - coeff'!$W$3,($C4-2),0),OFFSET('I - coeff'!$W$13,($C4-2),0))) -> 5478242.659 | S4: ='C - tariff volumes'!S4*(1+('I - drivers'!AA$8-'I - drivers'!AA$2)*CHOOSE($A4,OFFSET('I - coeff'!$W$3,($C4-2),0),OFFSET('I - coeff'!$W$13,($C4-2),0))) -> 5529766.703 | T4: ='C - tariff volumes'!T4*(1+('I - drivers'!AB$8-'I - drivers'!AB$2)*CHOOSE($A4,OFFSET('I - coeff'!$W$3,($C4-2),0),OFFSET('I - coeff'!$W$13,($C4-2),0))) -> 5528111.264 | U4: ='C - u_exist'!V4+'C - u_new'!V4 -> 5610082.039 | V4: ='C - u_exist'!W4+'C - u_new'!W4 -> 5627637.862 | W4: ='C - u_exist'!X4+'C - u_new'!X4 -> 5630291.947 | X4: ='C - u_exist'!Y4+'C - u_new'!Y4 -> 5595173.521 | Y4: ='C - u_exist'!Z4+'C - u_new'!Z4 -> 5539191.723 | Z4: ='C - u_exist'!AA4+'C - u_new'!AA4 -> 5468307.443 | AA4: ='C - u_exist'!AB4+'C - u_new'!AB4 -> 5441874.636 | AB4: ='C - u_exist'!AC4+'C - u_new'!AC4 -> 5340045.543 | AC4: ='C - u_exist'!AD4+'C - u_new'!AD4 -> 5275193.19 | AD4: ='C - u_exist'!AE4+'C - u_new'!AE4 -> 5206892.414 | AE4: ='C - u_exist'!AF4+'C - u_new'!AF4 -> 5139338.563 | AF4: ='C - u_exist'!AG4+'C - u_new'!AG4 -> 5068499.462 | AG4: ='C - u_exist'!AH4+'C - u_new'!AH4 -> 5002017.578 | AH4: ='C - u_exist'!AI4+'C - u_new'!AI4 -> 4943140.133 | AI4: ='C - u_exist'!AJ4+'C - u_new'!AJ4 -> 4864489.202 | AJ4: ='C - u_exist'!AK4+'C - u_new'!AK4 -> 4795329.454 | AK4: ='C - u_exist'!AL4+'C - u_new'!AL4 -> 4723200.409 | AL4: ='C - u_exist'!AM4+'C - u_new'!AM4 -> 4650791.422 | AM4: ='C - u_exist'!AN4+'C - u_new'!AN4 -> 4607985.571 | AN4: ='C - u_exist'!AO4+'C - u_new'!AO4 -> 4537575.522
A5: 1 | B5: 1 | C5: 3 | D5: 1 | E5: 1 | G5: Peak 0.1 - 0.2 | H5: ='C - tariff volumes'!H5*(1+('I - drivers'!P$8-'I - drivers'!P$2)*CHOOSE($A5,OFFSET('I - coeff'!$W$3,($C5-2),0),OFFSET('I - coeff'!$W$13,($C5-2),0))) -> 3780612.609 | I5: ='C - tariff volumes'!I5*(1+('I - drivers'!Q$8-'I - drivers'!Q$2)*CHOOSE($A5,OFFSET('I - coeff'!$W$3,($C5-2),0),OFFSET('I - coeff'!$W$13,($C5-2),0))) -> 3483485.773 | J5: ='C - tariff volumes'!J5*(1+('I - drivers'!R$8-'I - drivers'!R$2)*CHOOSE($A5,OFFSET('I - coeff'!$W$3,($C5-2),0),OFFSET('I - coeff'!$W$13,($C5-2),0))) -> 3779404.191 | K5: ='C - tariff volumes'!K5*(1+('I - drivers'!S$8-'I - drivers'!S$2)*CHOOSE($A5,OFFSET('I - coeff'!$W$3,($C5-2),0),OFFSET('I - coeff'!$W$13,($C5-2),0))) -> 4096558.959 | L5: ='C - tariff volumes'!L5*(1+('I - drivers'!T$8-'I - drivers'!T$2)*CHOOSE($A5,OFFSET('I - coeff'!$W$3,($C5-2),0),OFFSET('I - coeff'!$W$13,($C5-2),0))) -> 3667266.09 | M5: ='C - tariff volumes'!M5*(1+('I - drivers'!U$8-'I - drivers'!U$2)*CHOOSE($A5,OFFSET('I - coeff'!$W$3,($C5-2),0),OFFSET('I - coeff'!$W$13,($C5-2),0))) -> 4119297.899 | N5: ='C - tariff volumes'!N5*(1+('I - drivers'!V$8-'I - drivers'!V$2)*CHOOSE($A5,OFFSET('I - coeff'!$W$3,($C5-2),0),OFFSET('I - coeff'!$W$13,($C5-2),0))) -> 4189271.717 | O5: ='C - tariff volumes'!O5*(1+('I - drivers'!W$8-'I - drivers'!W$2)*CHOOSE($A5,OFFSET('I - coeff'!$W$3,($C5-2),0),OFFSET('I - coeff'!$W$13,($C5-2),0))) -> 3854809.996 | P5: ='C - tariff volumes'!P5*(1+('I - drivers'!X$8-'I - drivers'!X$2)*CHOOSE($A5,OFFSET('I - coeff'!$W$3,($C5-2),0),OFFSET('I - coeff'!$W$13,($C5-2),0))) -> 3872491.051 | Q5: ='C - tariff volumes'!Q5*(1+('I - drivers'!Y$8-'I - drivers'!Y$2)*CHOOSE($A5,OFFSET('I - coeff'!$W$3,($C5-2),0),OFFSET('I - coeff'!$W$13,($C5-2),0))) -> 3447803.959 | R5: ='C - tariff volumes'!R5*(1+('I - drivers'!Z$8-'I - drivers'!Z$2)*CHOOSE($A5,OFFSET('I - coeff'!$W$3,($C5-2),0),OFFSET('I - coeff'!$W$13,($C5-2),0))) -> 3267350.989 | S5: ='C - tariff volumes'!S5*(1+('I - drivers'!AA$8-'I - drivers'!AA$2)*CHOOSE($A5,OFFSET('I - coeff'!$W$3,($C5-2),0),OFFSET('I - coeff'!$W$13,($C5-2),0))) -> 3301755.798 | T5: ='C - tariff volumes'!T5*(1+('I - drivers'!AB$8-'I - drivers'!AB$2)*CHOOSE($A5,OFFSET('I - coeff'!$W$3,($C5-2),0),OFFSET('I - coeff'!$W$13,($C5-2),0))) -> 3382852.226 | U5: ='C - u_exist'!V5+'C - u_new'!V5 -> 3388722.554 | V5: ='C - u_exist'!W5+'C - u_new'!W5 -> 3361713.776 | W5: ='C - u_exist'!X5+'C - u_new'!X5 -> 3332767.261 | X5: ='C - u_exist'!Y5+'C - u_new'!Y5 -> 3277127.617 | Y5: ='C - u_exist'!Z5+'C - u_new'!Z5 -> 3219293.168 | Z5: ='C - u_exist'!AA5+'C - u_new'!AA5 -> 3148978.166 | AA5: ='C - u_exist'!AB5+'C - u_new'!AB5 -> 3138043.137 | AB5: ='C - u_exist'!AC5+'C - u_new'!AC5 -> 3031092.694 | AC5: ='C - u_exist'!AD5+'C - u_new'!AD5 -> 2971820.201 | AD5: ='C - u_exist'!AE5+'C - u_new'!AE5 -> 2910734.509 | AE5: ='C - u_exist'!AF5+'C - u_new'!AF5 -> 2850825.773 | AF5: ='C - u_exist'!AG5+'C - u_new'!AG5 -> 2789556.621 | AG5: ='C - u_exist'!AH5+'C - u_new'!AH5 -> 2731156.684 | AH5: ='C - u_exist'!AI5+'C - u_new'!AI5 -> 2682893.626 | AI5: ='C - u_exist'!AJ5+'C - u_new'!AJ5 -> 2612943.089 | AJ5: ='C - u_exist'!AK5+'C - u_new'!AK5 -> 2554612.382 | AK5: ='C - u_exist'!AL5+'C - u_new'!AL5 -> 2495163.615 | AL5: ='C - u_exist'!AM5+'C - u_new'!AM5 -> 2436117.147 | AM5: ='C - u_exist'!AN5+'C - u_new'!AN5 -> 2411341.905 | AN5: ='C - u_exist'!AO5+'C - u_new'!AO5 -> 2354261.889
A6: 1 | B6: 1 | C6: 4 | D6: 1 | E6: 1 | G6: Peak 0.2 - 1.4 | H6: ='C - tariff volumes'!H6*(1+('I - drivers'!P$8-'I - drivers'!P$2)*CHOOSE($A6,OFFSET('I - coeff'!$W$3,($C6-2),0),OFFSET('I - coeff'!$W$13,($C6-2),0))) -> 5466967.309 | I6: ='C - tariff volumes'!I6*(1+('I - drivers'!Q$8-'I - drivers'!Q$2)*CHOOSE($A6,OFFSET('I - coeff'!$W$3,($C6-2),0),OFFSET('I - coeff'!$W$13,($C6-2),0))) -> 5112991.066 | J6: ='C - tariff volumes'!J6*(1+('I - drivers'!R$8-'I - drivers'!R$2)*CHOOSE($A6,OFFSET('I - coeff'!$W$3,($C6-2),0),OFFSET('I - coeff'!$W$13,($C6-2),0))) -> 5303763.132 | K6: ='C - tariff volumes'!K6*(1+('I - drivers'!S$8-'I - drivers'!S$2)*CHOOSE($A6,OFFSET('I - coeff'!$W$3,($C6-2),0),OFFSET('I - coeff'!$W$13,($C6-2),0))) -> 6507523.853 | L6: ='C - tariff volumes'!L6*(1+('I - drivers'!T$8-'I - drivers'!T$2)*CHOOSE($A6,OFFSET('I - coeff'!$W$3,($C6-2),0),OFFSET('I - coeff'!$W$13,($C6-2),0))) -> 6320504.729 | M6: ='C - tariff volumes'!M6*(1+('I - drivers'!U$8-'I - drivers'!U$2)*CHOOSE($A6,OFFSET('I - coeff'!$W$3,($C6-2),0),OFFSET('I - coeff'!$W$13,($C6-2),0))) -> 6347707.765 | N6: ='C - tariff volumes'!N6*(1+('I - drivers'!V$8-'I - drivers'!V$2)*CHOOSE($A6,OFFSET('I - coeff'!$W$3,($C6-2),0),OFFSET('I - coeff'!$W$13,($C6-2),0))) -> 5455838.039 | O6: ='C - tariff volumes'!O6*(1+('I - drivers'!W$8-'I - drivers'!W$2)*CHOOSE($A6,OFFSET('I - coeff'!$W$3,($C6-2),0),OFFSET('I - coeff'!$W$13,($C6-2),0))) -> 6102323.328 | P6: ='C - tariff volumes'!P6*(1+('I - drivers'!X$8-'I - drivers'!X$2)*CHOOSE($A6,OFFSET('I - coeff'!$W$3,($C6-2),0),OFFSET('I - coeff'!$W$13,($C6-2),0))) -> 5843809.897 | Q6: ='C - tariff volumes'!Q6*(1+('I - drivers'!Y$8-'I - drivers'!Y$2)*CHOOSE($A6,OFFSET('I - coeff'!$W$3,($C6-2),0),OFFSET('I - coeff'!$W$13,($C6-2),0))) -> 4676545.137 | R6: ='C - tariff volumes'!R6*(1+('I - drivers'!Z$8-'I - drivers'!Z$2)*CHOOSE($A6,OFFSET('I - coeff'!$W$3,($C6-2),0),OFFSET('I - coeff'!$W$13,($C6-2),0))) -> 4242381.585 | S6: ='C - tariff volumes'!S6*(1+('I - drivers'!AA$8-'I - drivers'!AA$2)*CHOOSE($A6,OFFSET('I - coeff'!$W$3,($C6-2),0),OFFSET('I - coeff'!$W$13,($C6-2),0))) -> 4499652.627 | T6: ='C - tariff volumes'!T6*(1+('I - drivers'!AB$8-'I - drivers'!AB$2)*CHOOSE($A6,OFFSET('I - coeff'!$W$3,($C6-2),0),OFFSET('I - coeff'!$W$13,($C6-2),0))) -> 4184574.714 | U6: ='C - u_exist'!V6+'C - u_new'!V6 -> 4164585.405 | V6: ='C - u_exist'!W6+'C - u_new'!W6 -> 4107331.529 | W6: ='C - u_exist'!X6+'C - u_new'!X6 -> 4048594.416 | X6: ='C - u_exist'!Y6+'C - u_new'!Y6 -> 3959215.627 | Y6: ='C - u_exist'!Z6+'C - u_new'!Z6 -> 3867763.433 | Z6: ='C - u_exist'!AA6+'C - u_new'!AA6 -> 3762512.151 | AA6: ='C - u_exist'!AB6+'C - u_new'!AB6 -> 3726458.808 | AB6: ='C - u_exist'!AC6+'C - u_new'!AC6 -> 3580068.134 | AC6: ='C - u_exist'!AD6+'C - u_new'!AD6 -> 3489247.809 | AD6: ='C - u_exist'!AE6+'C - u_new'!AE6 -> 3396834.535 | AE6: ='C - u_exist'!AF6+'C - u_new'!AF6 -> 3306341.332 | AF6: ='C - u_exist'!AG6+'C - u_new'!AG6 -> 3214772.072 | AG6: ='C - u_exist'!AH6+'C - u_new'!AH6 -> 3127191.464 | AH6: ='C - u_exist'!AI6+'C - u_new'!AI6 -> 3051301.857 | AI6: ='C - u_exist'!AJ6+'C - u_new'!AJ6 -> 2951889.655 | AJ6: ='C - u_exist'!AK6+'C - u_new'!AK6 -> 2865974.941 | AK6: ='C - u_exist'!AL6+'C - u_new'!AL6 -> 2779386.589 | AL6: ='C - u_exist'!AM6+'C - u_new'!AM6 -> 2693806.708 | AM6: ='C - u_exist'!AN6+'C - u_new'!AN6 -> 2645420.801 | AN6: ='C - u_exist'!AO6+'C - u_new'!AO6 -> 2562860.717
A7: 1 | B7: 1 | C7: 5 | D7: 1 | E7: 1 | G7: Peak > 1.4 | H7: ='C - tariff volumes'!H7*(1+('I - drivers'!P$8-'I - drivers'!P$2)*CHOOSE($A7,OFFSET('I - coeff'!$W$3,($C7-2),0),OFFSET('I - coeff'!$W$13,($C7-2),0))) -> 59085.90024 | I7: ='C - tariff volumes'!I7*(1+('I - drivers'!Q$8-'I - drivers'!Q$2)*CHOOSE($A7,OFFSET('I - coeff'!$W$3,($C7-2),0),OFFSET('I - coeff'!$W$13,($C7-2),0))) -> 63670.86498 | J7: ='C - tariff volumes'!J7*(1+('I - drivers'!R$8-'I - drivers'!R$2)*CHOOSE($A7,OFFSET('I - coeff'!$W$3,($C7-2),0),OFFSET('I - coeff'!$W$13,($C7-2),0))) -> 65191.14349 | K7: ='C - tariff volumes'!K7*(1+('I - drivers'!S$8-'I - drivers'!S$2)*CHOOSE($A7,OFFSET('I - coeff'!$W$3,($C7-2),0),OFFSET('I - coeff'!$W$13,($C7-2),0))) -> 73899.09817 | L7: ='C - tariff volumes'!L7*(1+('I - drivers'!T$8-'I - drivers'!T$2)*CHOOSE($A7,OFFSET('I - coeff'!$W$3,($C7-2),0),OFFSET('I - coeff'!$W$13,($C7-2),0))) -> 88101.92013 | M7: ='C - tariff volumes'!M7*(1+('I - drivers'!U$8-'I - drivers'!U$2)*CHOOSE($A7,OFFSET('I - coeff'!$W$3,($C7-2),0),OFFSET('I - coeff'!$W$13,($C7-2),0))) -> 82984.2032 | N7: ='C - tariff volumes'!N7*(1+('I - drivers'!V$8-'I - drivers'!V$2)*CHOOSE($A7,OFFSET('I - coeff'!$W$3,($C7-2),0),OFFSET('I - coeff'!$W$13,($C7-2),0))) -> 70993.74763 | O7: ='C - tariff volumes'!O7*(1+('I - drivers'!W$8-'I - drivers'!W$2)*CHOOSE($A7,OFFSET('I - coeff'!$W$3,($C7-2),0),OFFSET('I - coeff'!$W$13,($C7-2),0))) -> 70549.14497 | P7: ='C - tariff volumes'!P7*(1+('I - drivers'!X$8-'I - drivers'!X$2)*CHOOSE($A7,OFFSET('I - coeff'!$W$3,($C7-2),0),OFFSET('I - coeff'!$W$13,($C7-2),0))) -> 79111.33936 | Q7: ='C - tariff volumes'!Q7*(1+('I - drivers'!Y$8-'I - drivers'!Y$2)*CHOOSE($A7,OFFSET('I - coeff'!$W$3,($C7-2),0),OFFSET('I - coeff'!$W$13,($C7-2),0))) -> 77684.08228 | R7: ='C - tariff volumes'!R7*(1+('I - drivers'!Z$8-'I - drivers'!Z$2)*CHOOSE($A7,OFFSET('I - coeff'!$W$3,($C7-2),0),OFFSET('I - coeff'!$W$13,($C7-2),0))) -> 55129.53747 | S7: ='C - tariff volumes'!S7*(1+('I - drivers'!AA$8-'I - drivers'!AA$2)*CHOOSE($A7,OFFSET('I - coeff'!$W$3,($C7-2),0),OFFSET('I - coeff'!$W$13,($C7-2),0))) -> 66928.54408 | T7: ='C - tariff volumes'!T7*(1+('I - drivers'!AB$8-'I - drivers'!AB$2)*CHOOSE($A7,OFFSET('I - coeff'!$W$3,($C7-2),0),OFFSET('I - coeff'!$W$13,($C7-2),0))) -> 59673.17326 | U7: ='C - u_exist'!V7+'C - u_new'!V7 -> 60673.11151 | V7: ='C - u_exist'!W7+'C - u_new'!W7 -> 60981.69189 | W7: ='C - u_exist'!X7+'C - u_new'!X7 -> 61088.31789 | X7: ='C - u_exist'!Y7+'C - u_new'!Y7 -> 60850.46438 | Y7: ='C - u_exist'!Z7+'C - u_new'!Z7 -> 60305.34843 | Z7: ='C - u_exist'!AA7+'C - u_new'!AA7 -> 59646.07711 | AA7: ='C - u_exist'!AB7+'C - u_new'!AB7 -> 59145.55924 | AB7: ='C - u_exist'!AC7+'C - u_new'!AC7 -> 58343.92932 | AC7: ='C - u_exist'!AD7+'C - u_new'!AD7 -> 57689.97951 | AD7: ='C - u_exist'!AE7+'C - u_new'!AE7 -> 57001.28854 | AE7: ='C - u_exist'!AF7+'C - u_new'!AF7 -> 56317.77869 | AF7: ='C - u_exist'!AG7+'C - u_new'!AG7 -> 55597.78348 | AG7: ='C - u_exist'!AH7+'C - u_new'!AH7 -> 54926.29045 | AH7: ='C - u_exist'!AI7+'C - u_new'!AI7 -> 54279.24232 | AI7: ='C - u_exist'!AJ7+'C - u_new'!AJ7 -> 53532.7753 | AJ7: ='C - u_exist'!AK7+'C - u_new'!AK7 -> 52828.64349 | AK7: ='C - u_exist'!AL7+'C - u_new'!AL7 -> 52092.49428 | AL7: ='C - u_exist'!AM7+'C - u_new'!AM7 -> 51351.84335 | AM7: ='C - u_exist'!AN7+'C - u_new'!AN7 -> 50737.9491 | AN7: ='C - u_exist'!AO7+'C - u_new'!AO7 -> 50014.57394
A8: 1 | B8: 1 | C8: 6 | D8: 1 | E8: 1 | G8: Off Peak 0 - 0.1 | H8: ='C - tariff volumes'!H8*(1+('I - drivers'!P$8-'I - drivers'!P$2)*CHOOSE($A8,OFFSET('I - coeff'!$W$3,($C8-2),0),OFFSET('I - coeff'!$W$13,($C8-2),0))) -> 6625882.117 | I8: ='C - tariff volumes'!I8*(1+('I - drivers'!Q$8-'I - drivers'!Q$2)*CHOOSE($A8,OFFSET('I - coeff'!$W$3,($C8-2),0),OFFSET('I - coeff'!$W$13,($C8-2),0))) -> 6723534.001 | J8: ='C - tariff volumes'!J8*(1+('I - drivers'!R$8-'I - drivers'!R$2)*CHOOSE($A8,OFFSET('I - coeff'!$W$3,($C8-2),0),OFFSET('I - coeff'!$W$13,($C8-2),0))) -> 6726461.758 | K8: ='C - tariff volumes'!K8*(1+('I - drivers'!S$8-'I - drivers'!S$2)*CHOOSE($A8,OFFSET('I - coeff'!$W$3,($C8-2),0),OFFSET('I - coeff'!$W$13,($C8-2),0))) -> 6617831.911 | L8: ='C - tariff volumes'!L8*(1+('I - drivers'!T$8-'I - drivers'!T$2)*CHOOSE($A8,OFFSET('I - coeff'!$W$3,($C8-2),0),OFFSET('I - coeff'!$W$13,($C8-2),0))) -> 7006994.578 | M8: ='C - tariff volumes'!M8*(1+('I - drivers'!U$8-'I - drivers'!U$2)*CHOOSE($A8,OFFSET('I - coeff'!$W$3,($C8-2),0),OFFSET('I - coeff'!$W$13,($C8-2),0))) -> 6910747.669 | N8: ='C - tariff volumes'!N8*(1+('I - drivers'!V$8-'I - drivers'!V$2)*CHOOSE($A8,OFFSET('I - coeff'!$W$3,($C8-2),0),OFFSET('I - coeff'!$W$13,($C8-2),0))) -> 6812779.125 | O8: ='C - tariff volumes'!O8*(1+('I - drivers'!W$8-'I - drivers'!W$2)*CHOOSE($A8,OFFSET('I - coeff'!$W$3,($C8-2),0),OFFSET('I - coeff'!$W$13,($C8-2),0))) -> 6866259.568 | P8: ='C - tariff volumes'!P8*(1+('I - drivers'!X$8-'I - drivers'!X$2)*CHOOSE($A8,OFFSET('I - coeff'!$W$3,($C8-2),0),OFFSET('I - coeff'!$W$13,($C8-2),0))) -> 7294761.052 | Q8: ='C - tariff volumes'!Q8*(1+('I - drivers'!Y$8-'I - drivers'!Y$2)*CHOOSE($A8,OFFSET('I - coeff'!$W$3,($C8-2),0),OFFSET('I - coeff'!$W$13,($C8-2),0))) -> 7986873.242 | R8: ='C - tariff volumes'!R8*(1+('I - drivers'!Z$8-'I - drivers'!Z$2)*CHOOSE($A8,OFFSET('I - coeff'!$W$3,($C8-2),0),OFFSET('I - coeff'!$W$13,($C8-2),0))) -> 7959411.916 | S8: ='C - tariff volumes'!S8*(1+('I - drivers'!AA$8-'I - drivers'!AA$2)*CHOOSE($A8,OFFSET('I - coeff'!$W$3,($C8-2),0),OFFSET('I - coeff'!$W$13,($C8-2),0))) -> 7613389.654 | T8: ='C - tariff volumes'!T8*(1+('I - drivers'!AB$8-'I - drivers'!AB$2)*CHOOSE($A8,OFFSET('I - coeff'!$W$3,($C8-2),0),OFFSET('I - coeff'!$W$13,($C8-2),0))) -> 7389338.67 | U8: ='C - u_exist'!V8+'C - u_new'!V8 -> 7510579.802 | V8: ='C - u_exist'!W8+'C - u_new'!W8 -> 7522991.897 | W8: ='C - u_exist'!X8+'C - u_new'!X8 -> 7560230.43 | X8: ='C - u_exist'!Y8+'C - u_new'!Y8 -> 7560013.755 | Y8: ='C - u_exist'!Z8+'C - u_new'!Z8 -> 7500245.449 | Z8: ='C - u_exist'!AA8+'C - u_new'!AA8 -> 7414313.089 | AA8: ='C - u_exist'!AB8+'C - u_new'!AB8 -> 7374811.468 | AB8: ='C - u_exist'!AC8+'C - u_new'!AC8 -> 7247533.946 | AC8: ='C - u_exist'!AD8+'C - u_new'!AD8 -> 7164660.081 | AD8: ='C - u_exist'!AE8+'C - u_new'!AE8 -> 7069248.92 | AE8: ='C - u_exist'!AF8+'C - u_new'!AF8 -> 6977636.419 | AF8: ='C - u_exist'!AG8+'C - u_new'!AG8 -> 6872427.614 | AG8: ='C - u_exist'!AH8+'C - u_new'!AH8 -> 6789486.069 | AH8: ='C - u_exist'!AI8+'C - u_new'!AI8 -> 6710685.471 | AI8: ='C - u_exist'!AJ8+'C - u_new'!AJ8 -> 6600723.256 | AJ8: ='C - u_exist'!AK8+'C - u_new'!AK8 -> 6505676.743 | AK8: ='C - u_exist'!AL8+'C - u_new'!AL8 -> 6401839.946 | AL8: ='C - u_exist'!AM8+'C - u_new'!AM8 -> 6296336.835 | AM8: ='C - u_exist'!AN8+'C - u_new'!AN8 -> 6225846.376 | AN8: ='C - u_exist'!AO8+'C - u_new'!AO8 -> 6123817.95
A9: 1 | B9: 1 | C9: 7 | D9: 1 | E9: 1 | G9: Off Peak 0.1 - 0.2 | H9: ='C - tariff volumes'!H9*(1+('I - drivers'!P$8-'I - drivers'!P$2)*CHOOSE($A9,OFFSET('I - coeff'!$W$3,($C9-2),0),OFFSET('I - coeff'!$W$13,($C9-2),0))) -> 1901808.423 | I9: ='C - tariff volumes'!I9*(1+('I - drivers'!Q$8-'I - drivers'!Q$2)*CHOOSE($A9,OFFSET('I - coeff'!$W$3,($C9-2),0),OFFSET('I - coeff'!$W$13,($C9-2),0))) -> 1574706.579 | J9: ='C - tariff volumes'!J9*(1+('I - drivers'!R$8-'I - drivers'!R$2)*CHOOSE($A9,OFFSET('I - coeff'!$W$3,($C9-2),0),OFFSET('I - coeff'!$W$13,($C9-2),0))) -> 1873463.051 | K9: ='C - tariff volumes'!K9*(1+('I - drivers'!S$8-'I - drivers'!S$2)*CHOOSE($A9,OFFSET('I - coeff'!$W$3,($C9-2),0),OFFSET('I - coeff'!$W$13,($C9-2),0))) -> 1455317.14 | L9: ='C - tariff volumes'!L9*(1+('I - drivers'!T$8-'I - drivers'!T$2)*CHOOSE($A9,OFFSET('I - coeff'!$W$3,($C9-2),0),OFFSET('I - coeff'!$W$13,($C9-2),0))) -> 1606195.631 | M9: ='C - tariff volumes'!M9*(1+('I - drivers'!U$8-'I - drivers'!U$2)*CHOOSE($A9,OFFSET('I - coeff'!$W$3,($C9-2),0),OFFSET('I - coeff'!$W$13,($C9-2),0))) -> 1651523.52 | N9: ='C - tariff volumes'!N9*(1+('I - drivers'!V$8-'I - drivers'!V$2)*CHOOSE($A9,OFFSET('I - coeff'!$W$3,($C9-2),0),OFFSET('I - coeff'!$W$13,($C9-2),0))) -> 1170892.574 | O9: ='C - tariff volumes'!O9*(1+('I - drivers'!W$8-'I - drivers'!W$2)*CHOOSE($A9,OFFSET('I - coeff'!$W$3,($C9-2),0),OFFSET('I - coeff'!$W$13,($C9-2),0))) -> 1412820.723 | P9: ='C - tariff volumes'!P9*(1+('I - drivers'!X$8-'I - drivers'!X$2)*CHOOSE($A9,OFFSET('I - coeff'!$W$3,($C9-2),0),OFFSET('I - coeff'!$W$13,($C9-2),0))) -> 1687176.262 | Q9: ='C - tariff volumes'!Q9*(1+('I - drivers'!Y$8-'I - drivers'!Y$2)*CHOOSE($A9,OFFSET('I - coeff'!$W$3,($C9-2),0),OFFSET('I - coeff'!$W$13,($C9-2),0))) -> 1835998.975 | R9: ='C - tariff volumes'!R9*(1+('I - drivers'!Z$8-'I - drivers'!Z$2)*CHOOSE($A9,OFFSET('I - coeff'!$W$3,($C9-2),0),OFFSET('I - coeff'!$W$13,($C9-2),0))) -> 1878212.438 | S9: ='C - tariff volumes'!S9*(1+('I - drivers'!AA$8-'I - drivers'!AA$2)*CHOOSE($A9,OFFSET('I - coeff'!$W$3,($C9-2),0),OFFSET('I - coeff'!$W$13,($C9-2),0))) -> 1530139.599 | T9: ='C - tariff volumes'!T9*(1+('I - drivers'!AB$8-'I - drivers'!AB$2)*CHOOSE($A9,OFFSET('I - coeff'!$W$3,($C9-2),0),OFFSET('I - coeff'!$W$13,($C9-2),0))) -> 1626867.932 | U9: ='C - u_exist'!V9+'C - u_new'!V9 -> 1632676.366 | V9: ='C - u_exist'!W9+'C - u_new'!W9 -> 1617316.096 | W9: ='C - u_exist'!X9+'C - u_new'!X9 -> 1609835.72 | X9: ='C - u_exist'!Y9+'C - u_new'!Y9 -> 1592291.165 | Y9: ='C - u_exist'!Z9+'C - u_new'!Z9 -> 1566666.006 | Z9: ='C - u_exist'!AA9+'C - u_new'!AA9 -> 1533922.133 | AA9: ='C - u_exist'!AB9+'C - u_new'!AB9 -> 1525662.477 | AB9: ='C - u_exist'!AC9+'C - u_new'!AC9 -> 1476198.051 | AC9: ='C - u_exist'!AD9+'C - u_new'!AD9 -> 1447552.663 | AD9: ='C - u_exist'!AE9+'C - u_new'!AE9 -> 1416442.992 | AE9: ='C - u_exist'!AF9+'C - u_new'!AF9 -> 1386493.165 | AF9: ='C - u_exist'!AG9+'C - u_new'!AG9 -> 1354021.52 | AG9: ='C - u_exist'!AH9+'C - u_new'!AH9 -> 1326347.88 | AH9: ='C - u_exist'!AI9+'C - u_new'!AI9 -> 1302107.325 | AI9: ='C - u_exist'!AJ9+'C - u_new'!AJ9 -> 1266978.875 | AJ9: ='C - u_exist'!AK9+'C - u_new'!AK9 -> 1237671.907 | AK9: ='C - u_exist'!AL9+'C - u_new'!AL9 -> 1206859.522 | AL9: ='C - u_exist'!AM9+'C - u_new'!AM9 -> 1176005.994 | AM9: ='C - u_exist'!AN9+'C - u_new'!AN9 -> 1159904.825 | AN9: ='C - u_exist'!AO9+'C - u_new'!AO9 -> 1130223.18
A10: 1 | B10: 1 | C10: 8 | D10: 1 | E10: 1 | G10: Off Peak 0.2 - 1.4 | H10: ='C - tariff volumes'!H10*(1+('I - drivers'!P$8-'I - drivers'!P$2)*CHOOSE($A10,OFFSET('I - coeff'!$W$3,($C10-2),0),OFFSET('I - coeff'!$W$13,($C10-2),0))) -> 1077970.896 | I10: ='C - tariff volumes'!I10*(1+('I - drivers'!Q$8-'I - drivers'!Q$2)*CHOOSE($A10,OFFSET('I - coeff'!$W$3,($C10-2),0),OFFSET('I - coeff'!$W$13,($C10-2),0))) -> 693257.83 | J10: ='C - tariff volumes'!J10*(1+('I - drivers'!R$8-'I - drivers'!R$2)*CHOOSE($A10,OFFSET('I - coeff'!$W$3,($C10-2),0),OFFSET('I - coeff'!$W$13,($C10-2),0))) -> 977126.6117 | K10: ='C - tariff volumes'!K10*(1+('I - drivers'!S$8-'I - drivers'!S$2)*CHOOSE($A10,OFFSET('I - coeff'!$W$3,($C10-2),0),OFFSET('I - coeff'!$W$13,($C10-2),0))) -> 503445.8494 | L10: ='C - tariff volumes'!L10*(1+('I - drivers'!T$8-'I - drivers'!T$2)*CHOOSE($A10,OFFSET('I - coeff'!$W$3,($C10-2),0),OFFSET('I - coeff'!$W$13,($C10-2),0))) -> 510371.5443 | M10: ='C - tariff volumes'!M10*(1+('I - drivers'!U$8-'I - drivers'!U$2)*CHOOSE($A10,OFFSET('I - coeff'!$W$3,($C10-2),0),OFFSET('I - coeff'!$W$13,($C10-2),0))) -> 746711.1329 | N10: ='C - tariff volumes'!N10*(1+('I - drivers'!V$8-'I - drivers'!V$2)*CHOOSE($A10,OFFSET('I - coeff'!$W$3,($C10-2),0),OFFSET('I - coeff'!$W$13,($C10-2),0))) -> 1081315.368 | O10: ='C - tariff volumes'!O10*(1+('I - drivers'!W$8-'I - drivers'!W$2)*CHOOSE($A10,OFFSET('I - coeff'!$W$3,($C10-2),0),OFFSET('I - coeff'!$W$13,($C10-2),0))) -> 597559.0582 | P10: ='C - tariff volumes'!P10*(1+('I - drivers'!X$8-'I - drivers'!X$2)*CHOOSE($A10,OFFSET('I - coeff'!$W$3,($C10-2),0),OFFSET('I - coeff'!$W$13,($C10-2),0))) -> 592247.3178 | Q10: ='C - tariff volumes'!Q10*(1+('I - drivers'!Y$8-'I - drivers'!Y$2)*CHOOSE($A10,OFFSET('I - coeff'!$W$3,($C10-2),0),OFFSET('I - coeff'!$W$13,($C10-2),0))) -> 1030866.645 | R10: ='C - tariff volumes'!R10*(1+('I - drivers'!Z$8-'I - drivers'!Z$2)*CHOOSE($A10,OFFSET('I - coeff'!$W$3,($C10-2),0),OFFSET('I - coeff'!$W$13,($C10-2),0))) -> 957759.1968 | S10: ='C - tariff volumes'!S10*(1+('I - drivers'!AA$8-'I - drivers'!AA$2)*CHOOSE($A10,OFFSET('I - coeff'!$W$3,($C10-2),0),OFFSET('I - coeff'!$W$13,($C10-2),0))) -> 736444.4981 | T10: ='C - tariff volumes'!T10*(1+('I - drivers'!AB$8-'I - drivers'!AB$2)*CHOOSE($A10,OFFSET('I - coeff'!$W$3,($C10-2),0),OFFSET('I - coeff'!$W$13,($C10-2),0))) -> 919295.347 | U10: ='C - u_exist'!V10+'C - u_new'!V10 -> 919973.2382 | V10: ='C - u_exist'!W10+'C - u_new'!W10 -> 908901.9645 | W10: ='C - u_exist'!X10+'C - u_new'!X10 -> 902050.4001 | X10: ='C - u_exist'!Y10+'C - u_new'!Y10 -> 889882.4547 | Y10: ='C - u_exist'!Z10+'C - u_new'!Z10 -> 872987.1452 | Z10: ='C - u_exist'!AA10+'C - u_new'!AA10 -> 852402.145 | AA10: ='C - u_exist'!AB10+'C - u_new'!AB10 -> 844174.4578 | AB10: ='C - u_exist'!AC10+'C - u_new'!AC10 -> 815234.3348 | AC10: ='C - u_exist'!AD10+'C - u_new'!AD10 -> 796888.3915 | AD10: ='C - u_exist'!AE10+'C - u_new'!AE10 -> 777254.4302 | AE10: ='C - u_exist'!AF10+'C - u_new'!AF10 -> 758319.7626 | AF10: ='C - u_exist'!AG10+'C - u_new'!AG10 -> 738051.6915 | AG10: ='C - u_exist'!AH10+'C - u_new'!AH10 -> 720520.4213 | AH10: ='C - u_exist'!AI10+'C - u_new'!AI10 -> 704685.6537 | AI10: ='C - u_exist'!AJ10+'C - u_new'!AJ10 -> 683425.7858 | AJ10: ='C - u_exist'!AK10+'C - u_new'!AK10 -> 665180.3414 | AK10: ='C - u_exist'!AL10+'C - u_new'!AL10 -> 646178.3608 | AL10: ='C - u_exist'!AM10+'C - u_new'!AM10 -> 627217.3963 | AM10: ='C - u_exist'!AN10+'C - u_new'!AN10 -> 615492.3809 | AN10: ='C - u_exist'!AO10+'C - u_new'!AO10 -> 597273.6423
A11: 1 | B11: 1 | C11: 9 | D11: 1 | E11: 1 | G11: Off Peak > 1.4 | H11: ='C - tariff volumes'!H11*(1+('I - drivers'!P$8-'I - drivers'!P$2)*CHOOSE($A11,OFFSET('I - coeff'!$W$3,($C11-2),0),OFFSET('I - coeff'!$W$13,($C11-2),0))) -> 63359.18141 | I11: ='C - tariff volumes'!I11*(1+('I - drivers'!Q$8-'I - drivers'!Q$2)*CHOOSE($A11,OFFSET('I - coeff'!$W$3,($C11-2),0),OFFSET('I - coeff'!$W$13,($C11-2),0))) -> 60421.0775 | J11: ='C - tariff volumes'!J11*(1+('I - drivers'!R$8-'I - drivers'!R$2)*CHOOSE($A11,OFFSET('I - coeff'!$W$3,($C11-2),0),OFFSET('I - coeff'!$W$13,($C11-2),0))) -> 65304.18442 | K11: ='C - tariff volumes'!K11*(1+('I - drivers'!S$8-'I - drivers'!S$2)*CHOOSE($A11,OFFSET('I - coeff'!$W$3,($C11-2),0),OFFSET('I - coeff'!$W$13,($C11-2),0))) -> 74067.45188 | L11: ='C - tariff volumes'!L11*(1+('I - drivers'!T$8-'I - drivers'!T$2)*CHOOSE($A11,OFFSET('I - coeff'!$W$3,($C11-2),0),OFFSET('I - coeff'!$W$13,($C11-2),0))) -> 73835.03404 | M11: ='C - tariff volumes'!M11*(1+('I - drivers'!U$8-'I - drivers'!U$2)*CHOOSE($A11,OFFSET('I - coeff'!$W$3,($C11-2),0),OFFSET('I - coeff'!$W$13,($C11-2),0))) -> 71595.48831 | N11: ='C - tariff volumes'!N11*(1+('I - drivers'!V$8-'I - drivers'!V$2)*CHOOSE($A11,OFFSET('I - coeff'!$W$3,($C11-2),0),OFFSET('I - coeff'!$W$13,($C11-2),0))) -> 92434.38155 | O11: ='C - tariff volumes'!O11*(1+('I - drivers'!W$8-'I - drivers'!W$2)*CHOOSE($A11,OFFSET('I - coeff'!$W$3,($C11-2),0),OFFSET('I - coeff'!$W$13,($C11-2),0))) -> 72882.83866 | P11: ='C - tariff volumes'!P11*(1+('I - drivers'!X$8-'I - drivers'!X$2)*CHOOSE($A11,OFFSET('I - coeff'!$W$3,($C11-2),0),OFFSET('I - coeff'!$W$13,($C11-2),0))) -> 79796.30732 | Q11: ='C - tariff volumes'!Q11*(1+('I - drivers'!Y$8-'I - drivers'!Y$2)*CHOOSE($A11,OFFSET('I - coeff'!$W$3,($C11-2),0),OFFSET('I - coeff'!$W$13,($C11-2),0))) -> 78542.33841 | R11: ='C - tariff volumes'!R11*(1+('I - drivers'!Z$8-'I - drivers'!Z$2)*CHOOSE($A11,OFFSET('I - coeff'!$W$3,($C11-2),0),OFFSET('I - coeff'!$W$13,($C11-2),0))) -> 76663.64688 | S11: ='C - tariff volumes'!S11*(1+('I - drivers'!AA$8-'I - drivers'!AA$2)*CHOOSE($A11,OFFSET('I - coeff'!$W$3,($C11-2),0),OFFSET('I - coeff'!$W$13,($C11-2),0))) -> 53990.54033 | T11: ='C - tariff volumes'!T11*(1+('I - drivers'!AB$8-'I - drivers'!AB$2)*CHOOSE($A11,OFFSET('I - coeff'!$W$3,($C11-2),0),OFFSET('I - coeff'!$W$13,($C11-2),0))) -> 58644.067 | U11: ='C - u_exist'!V11+'C - u_new'!V11 -> 59829.25471 | V11: ='C - u_exist'!W11+'C - u_new'!W11 -> 60087.99487 | W11: ='C - u_exist'!X11+'C - u_new'!X11 -> 60486.13017 | X11: ='C - u_exist'!Y11+'C - u_new'!Y11 -> 60615.65098 | Y11: ='C - u_exist'!Z11+'C - u_new'!Z11 -> 60191.49024 | Z11: ='C - u_exist'!AA11+'C - u_new'!AA11 -> 59589.57529 | AA11: ='C - u_exist'!AB11+'C - u_new'!AB11 -> 59094.34975 | AB11: ='C - u_exist'!AC11+'C - u_new'!AC11 -> 58318.57433 | AC11: ='C - u_exist'!AD11+'C - u_new'!AD11 -> 57691.52243 | AD11: ='C - u_exist'!AE11+'C - u_new'!AE11 -> 56965.74016 | AE11: ='C - u_exist'!AF11+'C - u_new'!AF11 -> 56267.86762 | AF11: ='C - u_exist'!AG11+'C - u_new'!AG11 -> 55459.81769 | AG11: ='C - u_exist'!AH11+'C - u_new'!AH11 -> 54831.63911 | AH11: ='C - u_exist'!AI11+'C - u_new'!AI11 -> 54190.00963 | AI11: ='C - u_exist'!AJ11+'C - u_new'!AJ11 -> 53392.67658 | AJ11: ='C - u_exist'!AK11+'C - u_new'!AK11 -> 52665.07932 | AK11: ='C - u_exist'!AL11+'C - u_new'!AL11 -> 51865.67424 | AL11: ='C - u_exist'!AM11+'C - u_new'!AM11 -> 51052.02213 | AM11: ='C - u_exist'!AN11+'C - u_new'!AN11 -> 50361.20075 | AN11: ='C - u_exist'!AO11+'C - u_new'!AO11 -> 49574.18897
F12: Tariff V - SP AusNet Central - Commercial
A13: 2 | B13: 1 | C13: 1 | D13: 1 | E13: 1 | G13: Fixed Charge | H13: ='C - tariff volumes'!H13 -> 9933.808206 | I13: ='C - tariff volumes'!I13 -> 10047.58481 | J13: ='C - tariff volumes'!J13 -> 10163.23015 | K13: ='C - tariff volumes'!K13 -> 10287.52874 | L13: ='C - tariff volumes'!L13 -> 10358.56712 | M13: ='C - tariff volumes'!M13 -> 10302.66525 | N13: ='C - tariff volumes'!N13 -> 10285.21368 | O13: ='C - tariff volumes'!O13 -> 10305.59455 | P13: ='C - tariff volumes'!P13 -> 10348.09313 | Q13: ='C - tariff volumes'!Q13 -> 10341.82347 | R13: ='C - tariff volumes'!R13 -> 10638.07943 | S13: ='C - tariff volumes'!S13 -> 10760.61093 | T13: ='C - tariff volumes'!T13 -> 10832.28217 | U13: ='C - tariff volumes'!U13 -> 10924.05554 | V13: ='C - tariff volumes'!V13 -> 10943.04307 | W13: ='C - tariff volumes'!W13 -> 10911.07154 | X13: ='C - tariff volumes'!X13 -> 10831.66864 | Y13: ='C - tariff volumes'!Y13 -> 10714.069 | Z13: ='C - tariff volumes'!Z13 -> 10590.23954 | AA13: ='C - tariff volumes'!AA13 -> 10465.19338 | AB13: ='C - tariff volumes'!AB13 -> 10339.63625 | AC13: ='C - tariff volumes'!AC13 -> 10213.9466 | AD13: ='C - tariff volumes'!AD13 -> 10087.65442 | AE13: ='C - tariff volumes'!AE13 -> 9960.766964 | AF13: ='C - tariff volumes'!AF13 -> 9833.296788 | AG13: ='C - tariff volumes'!AG13 -> 9705.257973 | AH13: ='C - tariff volumes'!AH13 -> 9577.871683 | AI13: ='C - tariff volumes'!AI13 -> 9449.911135 | AJ13: ='C - tariff volumes'!AJ13 -> 9321.379287 | AK13: ='C - tariff volumes'!AK13 -> 9191.283661 | AL13: ='C - tariff volumes'!AL13 -> 9061.121687 | AM13: ='C - tariff volumes'!AM13 -> 8932.340639 | AN13: ='C - tariff volumes'!AN13 -> 8803.47681
A14: 2 | B14: 1 | C14: 2 | D14: 1 | E14: 1 | G14: Peak 0 - 0.1 | H14: ='C - tariff volumes'!H14*(1+('I - drivers'!P$8-'I - drivers'!P$2)*CHOOSE($A14,OFFSET('I - coeff'!$W$3,($C14-2),0),OFFSET('I - coeff'!$W$13,($C14-2),0))) -> 85837.28374 | I14: ='C - tariff volumes'!I14*(1+('I - drivers'!Q$8-'I - drivers'!Q$2)*CHOOSE($A14,OFFSET('I - coeff'!$W$3,($C14-2),0),OFFSET('I - coeff'!$W$13,($C14-2),0))) -> 85694.71958 | J14: ='C - tariff volumes'!J14*(1+('I - drivers'!R$8-'I - drivers'!R$2)*CHOOSE($A14,OFFSET('I - coeff'!$W$3,($C14-2),0),OFFSET('I - coeff'!$W$13,($C14-2),0))) -> 86326.27166 | K14: ='C - tariff volumes'!K14*(1+('I - drivers'!S$8-'I - drivers'!S$2)*CHOOSE($A14,OFFSET('I - coeff'!$W$3,($C14-2),0),OFFSET('I - coeff'!$W$13,($C14-2),0))) -> 85711.88552 | L14: ='C - tariff volumes'!L14*(1+('I - drivers'!T$8-'I - drivers'!T$2)*CHOOSE($A14,OFFSET('I - coeff'!$W$3,($C14-2),0),OFFSET('I - coeff'!$W$13,($C14-2),0))) -> 87230.21493 | M14: ='C - tariff volumes'!M14*(1+('I - drivers'!U$8-'I - drivers'!U$2)*CHOOSE($A14,OFFSET('I - coeff'!$W$3,($C14-2),0),OFFSET('I - coeff'!$W$13,($C14-2),0))) -> 93077.36429 | N14: ='C - tariff volumes'!N14*(1+('I - drivers'!V$8-'I - drivers'!V$2)*CHOOSE($A14,OFFSET('I - coeff'!$W$3,($C14-2),0),OFFSET('I - coeff'!$W$13,($C14-2),0))) -> 90722.60717 | O14: ='C - tariff volumes'!O14*(1+('I - drivers'!W$8-'I - drivers'!W$2)*CHOOSE($A14,OFFSET('I - coeff'!$W$3,($C14-2),0),OFFSET('I - coeff'!$W$13,($C14-2),0))) -> 82157.58893 | P14: ='C - tariff volumes'!P14*(1+('I - drivers'!X$8-'I - drivers'!X$2)*CHOOSE($A14,OFFSET('I - coeff'!$W$3,($C14-2),0),OFFSET('I - coeff'!$W$13,($C14-2),0))) -> 94504.54054 | Q14: ='C - tariff volumes'!Q14*(1+('I - drivers'!Y$8-'I - drivers'!Y$2)*CHOOSE($A14,OFFSET('I - coeff'!$W$3,($C14-2),0),OFFSET('I - coeff'!$W$13,($C14-2),0))) -> 87257.48571 | R14: ='C - tariff volumes'!R14*(1+('I - drivers'!Z$8-'I - drivers'!Z$2)*CHOOSE($A14,OFFSET('I - coeff'!$W$3,($C14-2),0),OFFSET('I - coeff'!$W$13,($C14-2),0))) -> 91550.5298 | S14: ='C - tariff volumes'!S14*(1+('I - drivers'!AA$8-'I - drivers'!AA$2)*CHOOSE($A14,OFFSET('I - coeff'!$W$3,($C14-2),0),OFFSET('I - coeff'!$W$13,($C14-2),0))) -> 94038.73759 | T14: ='C - tariff volumes'!T14*(1+('I - drivers'!AB$8-'I - drivers'!AB$2)*CHOOSE($A14,OFFSET('I - coeff'!$W$3,($C14-2),0),OFFSET('I - coeff'!$W$13,($C14-2),0))) -> 94194.72585 | U14: ='C - u_exist'!V14+'C - u_new'!V14 -> 95262.79192 | V14: ='C - u_exist'!W14+'C - u_new'!W14 -> 95502.21324 | W14: ='C - u_exist'!X14+'C - u_new'!X14 -> 95343.40376 | X14: ='C - u_exist'!Y14+'C - u_new'!Y14 -> 94692.46236 | Y14: ='C - u_exist'!Z14+'C - u_new'!Z14 -> 93685.5799 | Z14: ='C - u_exist'!AA14+'C - u_new'!AA14 -> 92560.86684 | AA14: ='C - u_exist'!AB14+'C - u_new'!AB14 -> 91636.76258 | AB14: ='C - u_exist'!AC14+'C - u_new'!AC14 -> 90355.40137 | AC14: ='C - u_exist'!AD14+'C - u_new'!AD14 -> 89247.53667 | AD14: ='C - u_exist'!AE14+'C - u_new'!AE14 -> 88117.18238 | AE14: ='C - u_exist'!AF14+'C - u_new'!AF14 -> 86987.55121 | AF14: ='C - u_exist'!AG14+'C - u_new'!AG14 -> 85836.07864 | AG14: ='C - u_exist'!AH14+'C - u_new'!AH14 -> 84706.54915 | AH14: ='C - u_exist'!AI14+'C - u_new'!AI14 -> 83617.33935 | AI14: ='C - u_exist'!AJ14+'C - u_new'!AJ14 -> 82428.12071 | AJ14: ='C - u_exist'!AK14+'C - u_new'!AK14 -> 81281.78472 | AK14: ='C - u_exist'!AL14+'C - u_new'!AL14 -> 80109.39071 | AL14: ='C - u_exist'!AM14+'C - u_new'!AM14 -> 78935.44301 | AM14: ='C - u_exist'!AN14+'C - u_new'!AN14 -> 77912.0777 | AN14: ='C - u_exist'!AO14+'C - u_new'!AO14 -> 76758.59079
A15: 2 | B15: 1 | C15: 3 | D15: 1 | E15: 1 | G15: Peak 0.1 - 0.2 | H15: ='C - tariff volumes'!H15*(1+('I - drivers'!P$8-'I - drivers'!P$2)*CHOOSE($A15,OFFSET('I - coeff'!$W$3,($C15-2),0),OFFSET('I - coeff'!$W$13,($C15-2),0))) -> 69884.9603 | I15: ='C - tariff volumes'!I15*(1+('I - drivers'!Q$8-'I - drivers'!Q$2)*CHOOSE($A15,OFFSET('I - coeff'!$W$3,($C15-2),0),OFFSET('I - coeff'!$W$13,($C15-2),0))) -> 70203.10237 | J15: ='C - tariff volumes'!J15*(1+('I - drivers'!R$8-'I - drivers'!R$2)*CHOOSE($A15,OFFSET('I - coeff'!$W$3,($C15-2),0),OFFSET('I - coeff'!$W$13,($C15-2),0))) -> 70023.88423 | K15: ='C - tariff volumes'!K15*(1+('I - drivers'!S$8-'I - drivers'!S$2)*CHOOSE($A15,OFFSET('I - coeff'!$W$3,($C15-2),0),OFFSET('I - coeff'!$W$13,($C15-2),0))) -> 71118.90216 | L15: ='C - tariff volumes'!L15*(1+('I - drivers'!T$8-'I - drivers'!T$2)*CHOOSE($A15,OFFSET('I - coeff'!$W$3,($C15-2),0),OFFSET('I - coeff'!$W$13,($C15-2),0))) -> 72428.32549 | M15: ='C - tariff volumes'!M15*(1+('I - drivers'!U$8-'I - drivers'!U$2)*CHOOSE($A15,OFFSET('I - coeff'!$W$3,($C15-2),0),OFFSET('I - coeff'!$W$13,($C15-2),0))) -> 77465.0896 | N15: ='C - tariff volumes'!N15*(1+('I - drivers'!V$8-'I - drivers'!V$2)*CHOOSE($A15,OFFSET('I - coeff'!$W$3,($C15-2),0),OFFSET('I - coeff'!$W$13,($C15-2),0))) -> 75780.49383 | O15: ='C - tariff volumes'!O15*(1+('I - drivers'!W$8-'I - drivers'!W$2)*CHOOSE($A15,OFFSET('I - coeff'!$W$3,($C15-2),0),OFFSET('I - coeff'!$W$13,($C15-2),0))) -> 68182.215 | P15: ='C - tariff volumes'!P15*(1+('I - drivers'!X$8-'I - drivers'!X$2)*CHOOSE($A15,OFFSET('I - coeff'!$W$3,($C15-2),0),OFFSET('I - coeff'!$W$13,($C15-2),0))) -> 78742.53909 | Q15: ='C - tariff volumes'!Q15*(1+('I - drivers'!Y$8-'I - drivers'!Y$2)*CHOOSE($A15,OFFSET('I - coeff'!$W$3,($C15-2),0),OFFSET('I - coeff'!$W$13,($C15-2),0))) -> 69315.67772 | R15: ='C - tariff volumes'!R15*(1+('I - drivers'!Z$8-'I - drivers'!Z$2)*CHOOSE($A15,OFFSET('I - coeff'!$W$3,($C15-2),0),OFFSET('I - coeff'!$W$13,($C15-2),0))) -> 73146.64422 | S15: ='C - tariff volumes'!S15*(1+('I - drivers'!AA$8-'I - drivers'!AA$2)*CHOOSE($A15,OFFSET('I - coeff'!$W$3,($C15-2),0),OFFSET('I - coeff'!$W$13,($C15-2),0))) -> 75688.60547 | T15: ='C - tariff volumes'!T15*(1+('I - drivers'!AB$8-'I - drivers'!AB$2)*CHOOSE($A15,OFFSET('I - coeff'!$W$3,($C15-2),0),OFFSET('I - coeff'!$W$13,($C15-2),0))) -> 75387.27871 | U15: ='C - u_exist'!V15+'C - u_new'!V15 -> 76355.45257 | V15: ='C - u_exist'!W15+'C - u_new'!W15 -> 76589.75026 | W15: ='C - u_exist'!X15+'C - u_new'!X15 -> 76479.26006 | X15: ='C - u_exist'!Y15+'C - u_new'!Y15 -> 75945.68368 | Y15: ='C - u_exist'!Z15+'C - u_new'!Z15 -> 75120.99434 | Z15: ='C - u_exist'!AA15+'C - u_new'!AA15 -> 74191.5058 | AA15: ='C - u_exist'!AB15+'C - u_new'!AB15 -> 73446.08001 | AB15: ='C - u_exist'!AC15+'C - u_new'!AC15 -> 72376.78609 | AC15: ='C - u_exist'!AD15+'C - u_new'!AD15 -> 71465.7035 | AD15: ='C - u_exist'!AE15+'C - u_new'!AE15 -> 70536.50013 | AE15: ='C - u_exist'!AF15+'C - u_new'!AF15 -> 69608.24565 | AF15: ='C - u_exist'!AG15+'C - u_new'!AG15 -> 68662.68919 | AG15: ='C - u_exist'!AH15+'C - u_new'!AH15 -> 67734.87726 | AH15: ='C - u_exist'!AI15+'C - u_new'!AI15 -> 66845.18352 | AI15: ='C - u_exist'!AJ15+'C - u_new'!AJ15 -> 65867.1673 | AJ15: ='C - u_exist'!AK15+'C - u_new'!AK15 -> 64928.14217 | AK15: ='C - u_exist'!AL15+'C - u_new'!AL15 -> 63967.29808 | AL15: ='C - u_exist'!AM15+'C - u_new'!AM15 -> 63006.11873 | AM15: ='C - u_exist'!AN15+'C - u_new'!AN15 -> 62181.57862 | AN15: ='C - u_exist'!AO15+'C - u_new'!AO15 -> 61240.26924
A16: 2 | B16: 1 | C16: 4 | D16: 1 | E16: 1 | G16: Peak 0.2 - 1.4 | H16: ='C - tariff volumes'!H16*(1+('I - drivers'!P$8-'I - drivers'!P$2)*CHOOSE($A16,OFFSET('I - coeff'!$W$3,($C16-2),0),OFFSET('I - coeff'!$W$13,($C16-2),0))) -> 416531.5825 | I16: ='C - tariff volumes'!I16*(1+('I - drivers'!Q$8-'I - drivers'!Q$2)*CHOOSE($A16,OFFSET('I - coeff'!$W$3,($C16-2),0),OFFSET('I - coeff'!$W$13,($C16-2),0))) -> 414482.2991 | J16: ='C - tariff volumes'!J16*(1+('I - drivers'!R$8-'I - drivers'!R$2)*CHOOSE($A16,OFFSET('I - coeff'!$W$3,($C16-2),0),OFFSET('I - coeff'!$W$13,($C16-2),0))) -> 416875.8604 | K16: ='C - tariff volumes'!K16*(1+('I - drivers'!S$8-'I - drivers'!S$2)*CHOOSE($A16,OFFSET('I - coeff'!$W$3,($C16-2),0),OFFSET('I - coeff'!$W$13,($C16-2),0))) -> 437530.2828 | L16: ='C - tariff volumes'!L16*(1+('I - drivers'!T$8-'I - drivers'!T$2)*CHOOSE($A16,OFFSET('I - coeff'!$W$3,($C16-2),0),OFFSET('I - coeff'!$W$13,($C16-2),0))) -> 442461.5149 | M16: ='C - tariff volumes'!M16*(1+('I - drivers'!U$8-'I - drivers'!U$2)*CHOOSE($A16,OFFSET('I - coeff'!$W$3,($C16-2),0),OFFSET('I - coeff'!$W$13,($C16-2),0))) -> 466711.3776 | N16: ='C - tariff volumes'!N16*(1+('I - drivers'!V$8-'I - drivers'!V$2)*CHOOSE($A16,OFFSET('I - coeff'!$W$3,($C16-2),0),OFFSET('I - coeff'!$W$13,($C16-2),0))) -> 383149.6518 | O16: ='C - tariff volumes'!O16*(1+('I - drivers'!W$8-'I - drivers'!W$2)*CHOOSE($A16,OFFSET('I - coeff'!$W$3,($C16-2),0),OFFSET('I - coeff'!$W$13,($C16-2),0))) -> 427994.4234 | P16: ='C - tariff volumes'!P16*(1+('I - drivers'!X$8-'I - drivers'!X$2)*CHOOSE($A16,OFFSET('I - coeff'!$W$3,($C16-2),0),OFFSET('I - coeff'!$W$13,($C16-2),0))) -> 480034.5002 | Q16: ='C - tariff volumes'!Q16*(1+('I - drivers'!Y$8-'I - drivers'!Y$2)*CHOOSE($A16,OFFSET('I - coeff'!$W$3,($C16-2),0),OFFSET('I - coeff'!$W$13,($C16-2),0))) -> 396610.3601 | R16: ='C - tariff volumes'!R16*(1+('I - drivers'!Z$8-'I - drivers'!Z$2)*CHOOSE($A16,OFFSET('I - coeff'!$W$3,($C16-2),0),OFFSET('I - coeff'!$W$13,($C16-2),0))) -> 430741.0801 | S16: ='C - tariff volumes'!S16*(1+('I - drivers'!AA$8-'I - drivers'!AA$2)*CHOOSE($A16,OFFSET('I - coeff'!$W$3,($C16-2),0),OFFSET('I - coeff'!$W$13,($C16-2),0))) -> 467735.811 | T16: ='C - tariff volumes'!T16*(1+('I - drivers'!AB$8-'I - drivers'!AB$2)*CHOOSE($A16,OFFSET('I - coeff'!$W$3,($C16-2),0),OFFSET('I - coeff'!$W$13,($C16-2),0))) -> 472334.4239 | U16: ='C - u_exist'!V16+'C - u_new'!V16 -> 479755.1056 | V16: ='C - u_exist'!W16+'C - u_new'!W16 -> 481777.3181 | W16: ='C - u_exist'!X16+'C - u_new'!X16 -> 481343.2525 | X16: ='C - u_exist'!Y16+'C - u_new'!Y16 -> 477926.6822 | Y16: ='C - u_exist'!Z16+'C - u_new'!Z16 -> 472612.7987 | Z16: ='C - u_exist'!AA16+'C - u_new'!AA16 -> 466522.0375 | AA16: ='C - u_exist'!AB16+'C - u_new'!AB16 -> 461846.5783 | AB16: ='C - u_exist'!AC16+'C - u_new'!AC16 -> 454713.6105 | AC16: ='C - u_exist'!AD16+'C - u_new'!AD16 -> 448787.3407 | AD16: ='C - u_exist'!AE16+'C - u_new'!AE16 -> 442744.0915 | AE16: ='C - u_exist'!AF16+'C - u_new'!AF16 -> 436708.9694 | AF16: ='C - u_exist'!AG16+'C - u_new'!AG16 -> 430565.3913 | AG16: ='C - u_exist'!AH16+'C - u_new'!AH16 -> 424533.2256 | AH16: ='C - u_exist'!AI16+'C - u_new'!AI16 -> 418803.2847 | AI16: ='C - u_exist'!AJ16+'C - u_new'!AJ16 -> 412425.4177 | AJ16: ='C - u_exist'!AK16+'C - u_new'!AK16 -> 406342.1575 | AK16: ='C - u_exist'!AL16+'C - u_new'!AL16 -> 400109.5145 | AL16: ='C - u_exist'!AM16+'C - u_new'!AM16 -> 393883.0316 | AM16: ='C - u_exist'!AN16+'C - u_new'!AN16 -> 388690.2595 | AN16: ='C - u_exist'!AO16+'C - u_new'!AO16 -> 382623.3471
A17: 2 | B17: 1 | C17: 5 | D17: 1 | E17: 1 | G17: Peak > 1.4 | H17: ='C - tariff volumes'!H17*(1+('I - drivers'!P$8-'I - drivers'!P$2)*CHOOSE($A17,OFFSET('I - coeff'!$W$3,($C17-2),0),OFFSET('I - coeff'!$W$13,($C17-2),0))) -> 1412906.899 | I17: ='C - tariff volumes'!I17*(1+('I - drivers'!Q$8-'I - drivers'!Q$2)*CHOOSE($A17,OFFSET('I - coeff'!$W$3,($C17-2),0),OFFSET('I - coeff'!$W$13,($C17-2),0))) -> 1269708.135 | J17: ='C - tariff volumes'!J17*(1+('I - drivers'!R$8-'I - drivers'!R$2)*CHOOSE($A17,OFFSET('I - coeff'!$W$3,($C17-2),0),OFFSET('I - coeff'!$W$13,($C17-2),0))) -> 1366895.731 | K17: ='C - tariff volumes'!K17*(1+('I - drivers'!S$8-'I - drivers'!S$2)*CHOOSE($A17,OFFSET('I - coeff'!$W$3,($C17-2),0),OFFSET('I - coeff'!$W$13,($C17-2),0))) -> 1354387.619 | L17: ='C - tariff volumes'!L17*(1+('I - drivers'!T$8-'I - drivers'!T$2)*CHOOSE($A17,OFFSET('I - coeff'!$W$3,($C17-2),0),OFFSET('I - coeff'!$W$13,($C17-2),0))) -> 1257307.934 | M17: ='C - tariff volumes'!M17*(1+('I - drivers'!U$8-'I - drivers'!U$2)*CHOOSE($A17,OFFSET('I - coeff'!$W$3,($C17-2),0),OFFSET('I - coeff'!$W$13,($C17-2),0))) -> 1286620.383 | N17: ='C - tariff volumes'!N17*(1+('I - drivers'!V$8-'I - drivers'!V$2)*CHOOSE($A17,OFFSET('I - coeff'!$W$3,($C17-2),0),OFFSET('I - coeff'!$W$13,($C17-2),0))) -> 1169954.398 | O17: ='C - tariff volumes'!O17*(1+('I - drivers'!W$8-'I - drivers'!W$2)*CHOOSE($A17,OFFSET('I - coeff'!$W$3,($C17-2),0),OFFSET('I - coeff'!$W$13,($C17-2),0))) -> 1188078.507 | P17: ='C - tariff volumes'!P17*(1+('I - drivers'!X$8-'I - drivers'!X$2)*CHOOSE($A17,OFFSET('I - coeff'!$W$3,($C17-2),0),OFFSET('I - coeff'!$W$13,($C17-2),0))) -> 1264057.695 | Q17: ='C - tariff volumes'!Q17*(1+('I - drivers'!Y$8-'I - drivers'!Y$2)*CHOOSE($A17,OFFSET('I - coeff'!$W$3,($C17-2),0),OFFSET('I - coeff'!$W$13,($C17-2),0))) -> 990651.0094 | R17: ='C - tariff volumes'!R17*(1+('I - drivers'!Z$8-'I - drivers'!Z$2)*CHOOSE($A17,OFFSET('I - coeff'!$W$3,($C17-2),0),OFFSET('I - coeff'!$W$13,($C17-2),0))) -> 1043110.2 | S17: ='C - tariff volumes'!S17*(1+('I - drivers'!AA$8-'I - drivers'!AA$2)*CHOOSE($A17,OFFSET('I - coeff'!$W$3,($C17-2),0),OFFSET('I - coeff'!$W$13,($C17-2),0))) -> 1187242.275 | T17: ='C - tariff volumes'!T17*(1+('I - drivers'!AB$8-'I - drivers'!AB$2)*CHOOSE($A17,OFFSET('I - coeff'!$W$3,($C17-2),0),OFFSET('I - coeff'!$W$13,($C17-2),0))) -> 1249646.891 | U17: ='C - u_exist'!V17+'C - u_new'!V17 -> 1263574.714 | V17: ='C - u_exist'!W17+'C - u_new'!W17 -> 1264581.594 | W17: ='C - u_exist'!X17+'C - u_new'!X17 -> 1259606.806 | X17: ='C - u_exist'!Y17+'C - u_new'!Y17 -> 1247394.01 | Y17: ='C - u_exist'!Z17+'C - u_new'!Z17 -> 1230399.92 | Z17: ='C - u_exist'!AA17+'C - u_new'!AA17 -> 1211654.065 | AA17: ='C - u_exist'!AB17+'C - u_new'!AB17 -> 1196214.834 | AB17: ='C - u_exist'!AC17+'C - u_new'!AC17 -> 1175192.883 | AC17: ='C - u_exist'!AD17+'C - u_new'!AD17 -> 1157013.395 | AD17: ='C - u_exist'!AE17+'C - u_new'!AE17 -> 1138610.87 | AE17: ='C - u_exist'!AF17+'C - u_new'!AF17 -> 1120301.543 | AF17: ='C - u_exist'!AG17+'C - u_new'!AG17 -> 1101787.077 | AG17: ='C - u_exist'!AH17+'C - u_new'!AH17 -> 1083639.968 | AH17: ='C - u_exist'!AI17+'C - u_new'!AI17 -> 1066232.372 | AI17: ='C - u_exist'!AJ17+'C - u_new'!AJ17 -> 1047405.193 | AJ17: ='C - u_exist'!AK17+'C - u_new'!AK17 -> 1029324.239 | AK17: ='C - u_exist'!AL17+'C - u_new'!AL17 -> 1010961.742 | AL17: ='C - u_exist'!AM17+'C - u_new'!AM17 -> 992680.1684 | AM17: ='C - u_exist'!AN17+'C - u_new'!AN17 -> 976783.1264 | AN17: ='C - u_exist'!AO17+'C - u_new'!AO17 -> 958998.4975
A18: 2 | B18: 1 | C18: 6 | D18: 1 | E18: 1 | G18: Off Peak 0 - 0.1 | H18: ='C - tariff volumes'!H18*(1+('I - drivers'!P$8-'I - drivers'!P$2)*CHOOSE($A18,OFFSET('I - coeff'!$W$3,($C18-2),0),OFFSET('I - coeff'!$W$13,($C18-2),0))) -> 142372.6734 | I18: ='C - tariff volumes'!I18*(1+('I - drivers'!Q$8-'I - drivers'!Q$2)*CHOOSE($A18,OFFSET('I - coeff'!$W$3,($C18-2),0),OFFSET('I - coeff'!$W$13,($C18-2),0))) -> 140148.3593 | J18: ='C - tariff volumes'!J18*(1+('I - drivers'!R$8-'I - drivers'!R$2)*CHOOSE($A18,OFFSET('I - coeff'!$W$3,($C18-2),0),OFFSET('I - coeff'!$W$13,($C18-2),0))) -> 146119.2889 | K18: ='C - tariff volumes'!K18*(1+('I - drivers'!S$8-'I - drivers'!S$2)*CHOOSE($A18,OFFSET('I - coeff'!$W$3,($C18-2),0),OFFSET('I - coeff'!$W$13,($C18-2),0))) -> 148233.269 | L18: ='C - tariff volumes'!L18*(1+('I - drivers'!T$8-'I - drivers'!T$2)*CHOOSE($A18,OFFSET('I - coeff'!$W$3,($C18-2),0),OFFSET('I - coeff'!$W$13,($C18-2),0))) -> 153188.9276 | M18: ='C - tariff volumes'!M18*(1+('I - drivers'!U$8-'I - drivers'!U$2)*CHOOSE($A18,OFFSET('I - coeff'!$W$3,($C18-2),0),OFFSET('I - coeff'!$W$13,($C18-2),0))) -> 155617.2709 | N18: ='C - tariff volumes'!N18*(1+('I - drivers'!V$8-'I - drivers'!V$2)*CHOOSE($A18,OFFSET('I - coeff'!$W$3,($C18-2),0),OFFSET('I - coeff'!$W$13,($C18-2),0))) -> 161931.2803 | O18: ='C - tariff volumes'!O18*(1+('I - drivers'!W$8-'I - drivers'!W$2)*CHOOSE($A18,OFFSET('I - coeff'!$W$3,($C18-2),0),OFFSET('I - coeff'!$W$13,($C18-2),0))) -> 169242.9661 | P18: ='C - tariff volumes'!P18*(1+('I - drivers'!X$8-'I - drivers'!X$2)*CHOOSE($A18,OFFSET('I - coeff'!$W$3,($C18-2),0),OFFSET('I - coeff'!$W$13,($C18-2),0))) -> 161947.4331 | Q18: ='C - tariff volumes'!Q18*(1+('I - drivers'!Y$8-'I - drivers'!Y$2)*CHOOSE($A18,OFFSET('I - coeff'!$W$3,($C18-2),0),OFFSET('I - coeff'!$W$13,($C18-2),0))) -> 158928.2435 | R18: ='C - tariff volumes'!R18*(1+('I - drivers'!Z$8-'I - drivers'!Z$2)*CHOOSE($A18,OFFSET('I - coeff'!$W$3,($C18-2),0),OFFSET('I - coeff'!$W$13,($C18-2),0))) -> 158529.4962 | S18: ='C - tariff volumes'!S18*(1+('I - drivers'!AA$8-'I - drivers'!AA$2)*CHOOSE($A18,OFFSET('I - coeff'!$W$3,($C18-2),0),OFFSET('I - coeff'!$W$13,($C18-2),0))) -> 163027.3247 | T18: ='C - tariff volumes'!T18*(1+('I - drivers'!AB$8-'I - drivers'!AB$2)*CHOOSE($A18,OFFSET('I - coeff'!$W$3,($C18-2),0),OFFSET('I - coeff'!$W$13,($C18-2),0))) -> 166639.2033 | U18: ='C - u_exist'!V18+'C - u_new'!V18 -> 168863.9247 | V18: ='C - u_exist'!W18+'C - u_new'!W18 -> 169125.1766 | W18: ='C - u_exist'!X18+'C - u_new'!X18 -> 169303.0138 | X18: ='C - u_exist'!Y18+'C - u_new'!Y18 -> 168727.3768 | Y18: ='C - u_exist'!Z18+'C - u_new'!Z18 -> 167053.5436 | Z18: ='C - u_exist'!AA18+'C - u_new'!AA18 -> 165045.907 | AA18: ='C - u_exist'!AB18+'C - u_new'!AB18 -> 163318.869 | AB18: ='C - u_exist'!AC18+'C - u_new'!AC18 -> 160965.8143 | AC18: ='C - u_exist'!AD18+'C - u_new'!AD18 -> 158941.0074 | AD18: ='C - u_exist'!AE18+'C - u_new'!AE18 -> 156758.3037 | AE18: ='C - u_exist'!AF18+'C - u_new'!AF18 -> 154621.8619 | AF18: ='C - u_exist'!AG18+'C - u_new'!AG18 -> 152310.9487 | AG18: ='C - u_exist'!AH18+'C - u_new'!AH18 -> 150287.1471 | AH18: ='C - u_exist'!AI18+'C - u_new'!AI18 -> 148270.2867 | AI18: ='C - u_exist'!AJ18+'C - u_new'!AJ18 -> 145966.1883 | AJ18: ='C - u_exist'!AK18+'C - u_new'!AK18 -> 143795.3162 | AK18: ='C - u_exist'!AL18+'C - u_new'!AL18 -> 141505.6324 | AL18: ='C - u_exist'!AM18+'C - u_new'!AM18 -> 139197.7657 | AM18: ='C - u_exist'!AN18+'C - u_new'!AN18 -> 137163.9439 | AN18: ='C - u_exist'!AO18+'C - u_new'!AO18 -> 134916.1652
A19: 2 | B19: 1 | C19: 7 | D19: 1 | E19: 1 | G19: Off Peak 0.1 - 0.2 | H19: ='C - tariff volumes'!H19*(1+('I - drivers'!P$8-'I - drivers'!P$2)*CHOOSE($A19,OFFSET('I - coeff'!$W$3,($C19-2),0),OFFSET('I - coeff'!$W$13,($C19-2),0))) -> 98515.88554 | I19: ='C - tariff volumes'!I19*(1+('I - drivers'!Q$8-'I - drivers'!Q$2)*CHOOSE($A19,OFFSET('I - coeff'!$W$3,($C19-2),0),OFFSET('I - coeff'!$W$13,($C19-2),0))) -> 95972.40868 | J19: ='C - tariff volumes'!J19*(1+('I - drivers'!R$8-'I - drivers'!R$2)*CHOOSE($A19,OFFSET('I - coeff'!$W$3,($C19-2),0),OFFSET('I - coeff'!$W$13,($C19-2),0))) -> 102322.6581 | K19: ='C - tariff volumes'!K19*(1+('I - drivers'!S$8-'I - drivers'!S$2)*CHOOSE($A19,OFFSET('I - coeff'!$W$3,($C19-2),0),OFFSET('I - coeff'!$W$13,($C19-2),0))) -> 104058.3381 | L19: ='C - tariff volumes'!L19*(1+('I - drivers'!T$8-'I - drivers'!T$2)*CHOOSE($A19,OFFSET('I - coeff'!$W$3,($C19-2),0),OFFSET('I - coeff'!$W$13,($C19-2),0))) -> 107413.4649 | M19: ='C - tariff volumes'!M19*(1+('I - drivers'!U$8-'I - drivers'!U$2)*CHOOSE($A19,OFFSET('I - coeff'!$W$3,($C19-2),0),OFFSET('I - coeff'!$W$13,($C19-2),0))) -> 108811.9595 | N19: ='C - tariff volumes'!N19*(1+('I - drivers'!V$8-'I - drivers'!V$2)*CHOOSE($A19,OFFSET('I - coeff'!$W$3,($C19-2),0),OFFSET('I - coeff'!$W$13,($C19-2),0))) -> 112876.7762 | O19: ='C - tariff volumes'!O19*(1+('I - drivers'!W$8-'I - drivers'!W$2)*CHOOSE($A19,OFFSET('I - coeff'!$W$3,($C19-2),0),OFFSET('I - coeff'!$W$13,($C19-2),0))) -> 119508.8846 | P19: ='C - tariff volumes'!P19*(1+('I - drivers'!X$8-'I - drivers'!X$2)*CHOOSE($A19,OFFSET('I - coeff'!$W$3,($C19-2),0),OFFSET('I - coeff'!$W$13,($C19-2),0))) -> 114682.7615 | Q19: ='C - tariff volumes'!Q19*(1+('I - drivers'!Y$8-'I - drivers'!Y$2)*CHOOSE($A19,OFFSET('I - coeff'!$W$3,($C19-2),0),OFFSET('I - coeff'!$W$13,($C19-2),0))) -> 109732.8199 | R19: ='C - tariff volumes'!R19*(1+('I - drivers'!Z$8-'I - drivers'!Z$2)*CHOOSE($A19,OFFSET('I - coeff'!$W$3,($C19-2),0),OFFSET('I - coeff'!$W$13,($C19-2),0))) -> 112308.5907 | S19: ='C - tariff volumes'!S19*(1+('I - drivers'!AA$8-'I - drivers'!AA$2)*CHOOSE($A19,OFFSET('I - coeff'!$W$3,($C19-2),0),OFFSET('I - coeff'!$W$13,($C19-2),0))) -> 117767.8148 | T19: ='C - tariff volumes'!T19*(1+('I - drivers'!AB$8-'I - drivers'!AB$2)*CHOOSE($A19,OFFSET('I - coeff'!$W$3,($C19-2),0),OFFSET('I - coeff'!$W$13,($C19-2),0))) -> 120520.2588 | U19: ='C - u_exist'!V19+'C - u_new'!V19 -> 122419.1818 | V19: ='C - u_exist'!W19+'C - u_new'!W19 -> 122726.6365 | W19: ='C - u_exist'!X19+'C - u_new'!X19 -> 122910.3795 | X19: ='C - u_exist'!Y19+'C - u_new'!Y19 -> 122478.3193 | Y19: ='C - u_exist'!Z19+'C - u_new'!Z19 -> 121235.8697 | Z19: ='C - u_exist'!AA19+'C - u_new'!AA19 -> 119725.7204 | AA19: ='C - u_exist'!AB19+'C - u_new'!AB19 -> 118475.5996 | AB19: ='C - u_exist'!AC19+'C - u_new'!AC19 -> 116679.3219 | AC19: ='C - u_exist'!AD19+'C - u_new'!AD19 -> 115167.5522 | AD19: ='C - u_exist'!AE19+'C - u_new'!AE19 -> 113540.5286 | AE19: ='C - u_exist'!AF19+'C - u_new'!AF19 -> 111947.5722 | AF19: ='C - u_exist'!AG19+'C - u_new'!AG19 -> 110227.9527 | AG19: ='C - u_exist'!AH19+'C - u_new'!AH19 -> 108716.8961 | AH19: ='C - u_exist'!AI19+'C - u_new'!AI19 -> 107224.5147 | AI19: ='C - u_exist'!AJ19+'C - u_new'!AJ19 -> 105503.2802 | AJ19: ='C - u_exist'!AK19+'C - u_new'!AK19 -> 103889.6158 | AK19: ='C - u_exist'!AL19+'C - u_new'!AL19 -> 102186.9004 | AL19: ='C - u_exist'!AM19+'C - u_new'!AM19 -> 100472.7171 | AM19: ='C - u_exist'!AN19+'C - u_new'!AN19 -> 98995.45978 | AN19: ='C - u_exist'!AO19+'C - u_new'!AO19 -> 97332.37808
A20: 2 | B20: 1 | C20: 8 | D20: 1 | E20: 1 | G20: Off Peak 0.2 - 1.4 | H20: ='C - tariff volumes'!H20*(1+('I - drivers'!P$8-'I - drivers'!P$2)*CHOOSE($A20,OFFSET('I - coeff'!$W$3,($C20-2),0),OFFSET('I - coeff'!$W$13,($C20-2),0))) -> 587017.3755 | I20: ='C - tariff volumes'!I20*(1+('I - drivers'!Q$8-'I - drivers'!Q$2)*CHOOSE($A20,OFFSET('I - coeff'!$W$3,($C20-2),0),OFFSET('I - coeff'!$W$13,($C20-2),0))) -> 566908.1209 | J20: ='C - tariff volumes'!J20*(1+('I - drivers'!R$8-'I - drivers'!R$2)*CHOOSE($A20,OFFSET('I - coeff'!$W$3,($C20-2),0),OFFSET('I - coeff'!$W$13,($C20-2),0))) -> 612668.1381 | K20: ='C - tariff volumes'!K20*(1+('I - drivers'!S$8-'I - drivers'!S$2)*CHOOSE($A20,OFFSET('I - coeff'!$W$3,($C20-2),0),OFFSET('I - coeff'!$W$13,($C20-2),0))) -> 626832.5288 | L20: ='C - tariff volumes'!L20*(1+('I - drivers'!T$8-'I - drivers'!T$2)*CHOOSE($A20,OFFSET('I - coeff'!$W$3,($C20-2),0),OFFSET('I - coeff'!$W$13,($C20-2),0))) -> 624968.2393 | M20: ='C - tariff volumes'!M20*(1+('I - drivers'!U$8-'I - drivers'!U$2)*CHOOSE($A20,OFFSET('I - coeff'!$W$3,($C20-2),0),OFFSET('I - coeff'!$W$13,($C20-2),0))) -> 644854.7665 | N20: ='C - tariff volumes'!N20*(1+('I - drivers'!V$8-'I - drivers'!V$2)*CHOOSE($A20,OFFSET('I - coeff'!$W$3,($C20-2),0),OFFSET('I - coeff'!$W$13,($C20-2),0))) -> 739069.8272 | O20: ='C - tariff volumes'!O20*(1+('I - drivers'!W$8-'I - drivers'!W$2)*CHOOSE($A20,OFFSET('I - coeff'!$W$3,($C20-2),0),OFFSET('I - coeff'!$W$13,($C20-2),0))) -> 698309.9117 | P20: ='C - tariff volumes'!P20*(1+('I - drivers'!X$8-'I - drivers'!X$2)*CHOOSE($A20,OFFSET('I - coeff'!$W$3,($C20-2),0),OFFSET('I - coeff'!$W$13,($C20-2),0))) -> 691250.0841 | Q20: ='C - tariff volumes'!Q20*(1+('I - drivers'!Y$8-'I - drivers'!Y$2)*CHOOSE($A20,OFFSET('I - coeff'!$W$3,($C20-2),0),OFFSET('I - coeff'!$W$13,($C20-2),0))) -> 605805.5127 | R20: ='C - tariff volumes'!R20*(1+('I - drivers'!Z$8-'I - drivers'!Z$2)*CHOOSE($A20,OFFSET('I - coeff'!$W$3,($C20-2),0),OFFSET('I - coeff'!$W$13,($C20-2),0))) -> 640613.1722 | S20: ='C - tariff volumes'!S20*(1+('I - drivers'!AA$8-'I - drivers'!AA$2)*CHOOSE($A20,OFFSET('I - coeff'!$W$3,($C20-2),0),OFFSET('I - coeff'!$W$13,($C20-2),0))) -> 681230.5483 | T20: ='C - tariff volumes'!T20*(1+('I - drivers'!AB$8-'I - drivers'!AB$2)*CHOOSE($A20,OFFSET('I - coeff'!$W$3,($C20-2),0),OFFSET('I - coeff'!$W$13,($C20-2),0))) -> 729475.874 | U20: ='C - u_exist'!V20+'C - u_new'!V20 -> 744767.9244 | V20: ='C - u_exist'!W20+'C - u_new'!W20 -> 748392.4426 | W20: ='C - u_exist'!X20+'C - u_new'!X20 -> 750524.1025 | X20: ='C - u_exist'!Y20+'C - u_new'!Y20 -> 748085.1102 | Y20: ='C - u_exist'!Z20+'C - u_new'!Z20 -> 740530.6811 | Z20: ='C - u_exist'!AA20+'C - u_new'!AA20 -> 731034.5692 | AA20: ='C - u_exist'!AB20+'C - u_new'!AB20 -> 723774.6115 | AB20: ='C - u_exist'!AC20+'C - u_new'!AC20 -> 712098.7135 | AC20: ='C - u_exist'!AD20+'C - u_new'!AD20 -> 702691.0571 | AD20: ='C - u_exist'!AE20+'C - u_new'!AE20 -> 692561.985 | AE20: ='C - u_exist'!AF20+'C - u_new'!AF20 -> 682637.641 | AF20: ='C - u_exist'!AG20+'C - u_new'!AG20 -> 671929.3709 | AG20: ='C - u_exist'!AH20+'C - u_new'!AH20 -> 662488.9491 | AH20: ='C - u_exist'!AI20+'C - u_new'!AI20 -> 653311.9594 | AI20: ='C - u_exist'!AJ20+'C - u_new'!AJ20 -> 642489.9403 | AJ20: ='C - u_exist'!AK20+'C - u_new'!AK20 -> 632442.695 | AK20: ='C - u_exist'!AL20+'C - u_new'!AL20 -> 621809.1368 | AL20: ='C - u_exist'!AM20+'C - u_new'!AM20 -> 611116.3858 | AM20: ='C - u_exist'!AN20+'C - u_new'!AN20 -> 602304.3412 | AN20: ='C - u_exist'!AO20+'C - u_new'!AO20 -> 591992.5385
A21: 2 | B21: 1 | C21: 9 | D21: 1 | E21: 1 | G21: Off Peak > 1.4 | H21: ='C - tariff volumes'!H21*(1+('I - drivers'!P$8-'I - drivers'!P$2)*CHOOSE($A21,OFFSET('I - coeff'!$W$3,($C21-2),0),OFFSET('I - coeff'!$W$13,($C21-2),0))) -> 1781554.308 | I21: ='C - tariff volumes'!I21*(1+('I - drivers'!Q$8-'I - drivers'!Q$2)*CHOOSE($A21,OFFSET('I - coeff'!$W$3,($C21-2),0),OFFSET('I - coeff'!$W$13,($C21-2),0))) -> 1469869.923 | J21: ='C - tariff volumes'!J21*(1+('I - drivers'!R$8-'I - drivers'!R$2)*CHOOSE($A21,OFFSET('I - coeff'!$W$3,($C21-2),0),OFFSET('I - coeff'!$W$13,($C21-2),0))) -> 1572466.333 | K21: ='C - tariff volumes'!K21*(1+('I - drivers'!S$8-'I - drivers'!S$2)*CHOOSE($A21,OFFSET('I - coeff'!$W$3,($C21-2),0),OFFSET('I - coeff'!$W$13,($C21-2),0))) -> 1632780.373 | L21: ='C - tariff volumes'!L21*(1+('I - drivers'!T$8-'I - drivers'!T$2)*CHOOSE($A21,OFFSET('I - coeff'!$W$3,($C21-2),0),OFFSET('I - coeff'!$W$13,($C21-2),0))) -> 1690621.341 | M21: ='C - tariff volumes'!M21*(1+('I - drivers'!U$8-'I - drivers'!U$2)*CHOOSE($A21,OFFSET('I - coeff'!$W$3,($C21-2),0),OFFSET('I - coeff'!$W$13,($C21-2),0))) -> 1669726.77 | N21: ='C - tariff volumes'!N21*(1+('I - drivers'!V$8-'I - drivers'!V$2)*CHOOSE($A21,OFFSET('I - coeff'!$W$3,($C21-2),0),OFFSET('I - coeff'!$W$13,($C21-2),0))) -> 1487864.15 | O21: ='C - tariff volumes'!O21*(1+('I - drivers'!W$8-'I - drivers'!W$2)*CHOOSE($A21,OFFSET('I - coeff'!$W$3,($C21-2),0),OFFSET('I - coeff'!$W$13,($C21-2),0))) -> 1558394.06 | P21: ='C - tariff volumes'!P21*(1+('I - drivers'!X$8-'I - drivers'!X$2)*CHOOSE($A21,OFFSET('I - coeff'!$W$3,($C21-2),0),OFFSET('I - coeff'!$W$13,($C21-2),0))) -> 1481457.416 | Q21: ='C - tariff volumes'!Q21*(1+('I - drivers'!Y$8-'I - drivers'!Y$2)*CHOOSE($A21,OFFSET('I - coeff'!$W$3,($C21-2),0),OFFSET('I - coeff'!$W$13,($C21-2),0))) -> 1280294.455 | R21: ='C - tariff volumes'!R21*(1+('I - drivers'!Z$8-'I - drivers'!Z$2)*CHOOSE($A21,OFFSET('I - coeff'!$W$3,($C21-2),0),OFFSET('I - coeff'!$W$13,($C21-2),0))) -> 1367273.27 | S21: ='C - tariff volumes'!S21*(1+('I - drivers'!AA$8-'I - drivers'!AA$2)*CHOOSE($A21,OFFSET('I - coeff'!$W$3,($C21-2),0),OFFSET('I - coeff'!$W$13,($C21-2),0))) -> 1380470.651 | T21: ='C - tariff volumes'!T21*(1+('I - drivers'!AB$8-'I - drivers'!AB$2)*CHOOSE($A21,OFFSET('I - coeff'!$W$3,($C21-2),0),OFFSET('I - coeff'!$W$13,($C21-2),0))) -> 1575589.503 | U21: ='C - u_exist'!V21+'C - u_new'!V21 -> 1608792.102 | V21: ='C - u_exist'!W21+'C - u_new'!W21 -> 1615639.186 | W21: ='C - u_exist'!X21+'C - u_new'!X21 -> 1618783.252 | X21: ='C - u_exist'!Y21+'C - u_new'!Y21 -> 1611612.095 | Y21: ='C - u_exist'!Z21+'C - u_new'!Z21 -> 1593369.738 | Z21: ='C - u_exist'!AA21+'C - u_new'!AA21 -> 1570818.676 | AA21: ='C - u_exist'!AB21+'C - u_new'!AB21 -> 1553466.703 | AB21: ='C - u_exist'!AC21+'C - u_new'!AC21 -> 1526078.467 | AC21: ='C - u_exist'!AD21+'C - u_new'!AD21 -> 1503892.496 | AD21: ='C - u_exist'!AE21+'C - u_new'!AE21 -> 1480188.718 | AE21: ='C - u_exist'!AF21+'C - u_new'!AF21 -> 1456964.617 | AF21: ='C - u_exist'!AG21+'C - u_new'!AG21 -> 1432093.754 | AG21: ='C - u_exist'!AH21+'C - u_new'!AH21 -> 1409986.617 | AH21: ='C - u_exist'!AI21+'C - u_new'!AI21 -> 1388556.627 | AI21: ='C - u_exist'!AJ21+'C - u_new'!AJ21 -> 1363524.447 | AJ21: ='C - u_exist'!AK21+'C - u_new'!AK21 -> 1340254.118 | AK21: ='C - u_exist'!AL21+'C - u_new'!AL21 -> 1315751.451 | AL21: ='C - u_exist'!AM21+'C - u_new'!AM21 -> 1291172.284 | AM21: ='C - u_exist'!AN21+'C - u_new'!AN21 -> 1270844.254 | AN21: ='C - u_exist'!AO21+'C - u_new'!AO21 -> 1247195.984
F22: Tariff V - SP AusNet West - Domestic
A23: 1 | B23: 1 | C23: 1 | D23: 2 | E23: 1 | G23: Fixed Charge | H23: ='C - tariff volumes'!H23 -> 126652.1419 | I23: ='C - tariff volumes'!I23 -> 130089.4576 | J23: ='C - tariff volumes'!J23 -> 133053.5531 | K23: ='C - tariff volumes'!K23 -> 135735.881 | L23: ='C - tariff volumes'!L23 -> 138386.2631 | M23: ='C - tariff volumes'!M23 -> 140965.7459 | N23: ='C - tariff volumes'!N23 -> 143023.1671 | O23: ='C - tariff volumes'!O23 -> 145369.257 | P23: ='C - tariff volumes'!P23 -> 148136.3149 | Q23: ='C - tariff volumes'!Q23 -> 151553.4449 | R23: ='C - tariff volumes'!R23 -> 154425.4322 | S23: ='C - tariff volumes'!S23 -> 156469.9921 | T23: ='C - tariff volumes'!T23 -> 159553.6601 | U23: ='C - tariff volumes'!U23 -> 160852.5119 | V23: ='C - tariff volumes'!V23 -> 161441.6001 | W23: ='C - tariff volumes'!W23 -> 161193.4698 | X23: ='C - tariff volumes'!X23 -> 160203.5792 | Y23: ='C - tariff volumes'!Y23 -> 158589.3681 | Z23: ='C - tariff volumes'!Z23 -> 156848.5492 | AA23: ='C - tariff volumes'!AA23 -> 155084.6367 | AB23: ='C - tariff volumes'!AB23 -> 153311.7066 | AC23: ='C - tariff volumes'!AC23 -> 151527.6528 | AD23: ='C - tariff volumes'!AD23 -> 149730.965 | AE23: ='C - tariff volumes'!AE23 -> 147921.4904 | AF23: ='C - tariff volumes'!AF23 -> 146099.0756 | AG23: ='C - tariff volumes'!AG23 -> 144263.5673 | AH23: ='C - tariff volumes'!AH23 -> 142425.577 | AI23: ='C - tariff volumes'!AI23 -> 140574.0515 | AJ23: ='C - tariff volumes'!AJ23 -> 138708.8384 | AK23: ='C - tariff volumes'!AK23 -> 136803.8702 | AL23: ='C - tariff volumes'!AL23 -> 134897.7839 | AM23: ='C - tariff volumes'!AM23 -> 133002.2806 | AN23: ='C - tariff volumes'!AN23 -> 131105.5409
A24: 1 | B24: 1 | C24: 2 | D24: 2 | E24: 1 | G24: Peak 0 - 0.1 | H24: ='C - tariff volumes'!H24*(1+('I - drivers'!P$8-'I - drivers'!P$2)*CHOOSE($A24,OFFSET('I - coeff'!$W$3,($C24-2),0),OFFSET('I - coeff'!$W$13,($C24-2),0))) -> 1348941.748 | I24: ='C - tariff volumes'!I24*(1+('I - drivers'!Q$8-'I - drivers'!Q$2)*CHOOSE($A24,OFFSET('I - coeff'!$W$3,($C24-2),0),OFFSET('I - coeff'!$W$13,($C24-2),0))) -> 1358015.122 | J24: ='C - tariff volumes'!J24*(1+('I - drivers'!R$8-'I - drivers'!R$2)*CHOOSE($A24,OFFSET('I - coeff'!$W$3,($C24-2),0),OFFSET('I - coeff'!$W$13,($C24-2),0))) -> 1396257.262 | K24: ='C - tariff volumes'!K24*(1+('I - drivers'!S$8-'I - drivers'!S$2)*CHOOSE($A24,OFFSET('I - coeff'!$W$3,($C24-2),0),OFFSET('I - coeff'!$W$13,($C24-2),0))) -> 1371737.234 | L24: ='C - tariff volumes'!L24*(1+('I - drivers'!T$8-'I - drivers'!T$2)*CHOOSE($A24,OFFSET('I - coeff'!$W$3,($C24-2),0),OFFSET('I - coeff'!$W$13,($C24-2),0))) -> 1434614.978 | M24: ='C - tariff volumes'!M24*(1+('I - drivers'!U$8-'I - drivers'!U$2)*CHOOSE($A24,OFFSET('I - coeff'!$W$3,($C24-2),0),OFFSET('I - coeff'!$W$13,($C24-2),0))) -> 1464627.255 | N24: ='C - tariff volumes'!N24*(1+('I - drivers'!V$8-'I - drivers'!V$2)*CHOOSE($A24,OFFSET('I - coeff'!$W$3,($C24-2),0),OFFSET('I - coeff'!$W$13,($C24-2),0))) -> 1510914.935 | O24: ='C - tariff volumes'!O24*(1+('I - drivers'!W$8-'I - drivers'!W$2)*CHOOSE($A24,OFFSET('I - coeff'!$W$3,($C24-2),0),OFFSET('I - coeff'!$W$13,($C24-2),0))) -> 1475512.109 | P24: ='C - tariff volumes'!P24*(1+('I - drivers'!X$8-'I - drivers'!X$2)*CHOOSE($A24,OFFSET('I - coeff'!$W$3,($C24-2),0),OFFSET('I - coeff'!$W$13,($C24-2),0))) -> 1490687.554 | Q24: ='C - tariff volumes'!Q24*(1+('I - drivers'!Y$8-'I - drivers'!Y$2)*CHOOSE($A24,OFFSET('I - coeff'!$W$3,($C24-2),0),OFFSET('I - coeff'!$W$13,($C24-2),0))) -> 1498216.046 | R24: ='C - tariff volumes'!R24*(1+('I - drivers'!Z$8-'I - drivers'!Z$2)*CHOOSE($A24,OFFSET('I - coeff'!$W$3,($C24-2),0),OFFSET('I - coeff'!$W$13,($C24-2),0))) -> 1476398.643 | S24: ='C - tariff volumes'!S24*(1+('I - drivers'!AA$8-'I - drivers'!AA$2)*CHOOSE($A24,OFFSET('I - coeff'!$W$3,($C24-2),0),OFFSET('I - coeff'!$W$13,($C24-2),0))) -> 1481114.044 | T24: ='C - tariff volumes'!T24*(1+('I - drivers'!AB$8-'I - drivers'!AB$2)*CHOOSE($A24,OFFSET('I - coeff'!$W$3,($C24-2),0),OFFSET('I - coeff'!$W$13,($C24-2),0))) -> 1458631.68 | U24: ='C - u_exist'!V24+'C - u_new'!V24 -> 1469063.364 | V24: ='C - u_exist'!W24+'C - u_new'!W24 -> 1470675.865 | W24: ='C - u_exist'!X24+'C - u_new'!X24 -> 1468396.089 | X24: ='C - u_exist'!Y24+'C - u_new'!Y24 -> 1459950.488 | Y24: ='C - u_exist'!Z24+'C - u_new'!Z24 -> 1443436.828 | Z24: ='C - u_exist'!AA24+'C - u_new'!AA24 -> 1432905.905 | AA24: ='C - u_exist'!AB24+'C - u_new'!AB24 -> 1406209.426 | AB24: ='C - u_exist'!AC24+'C - u_new'!AC24 -> 1388258.042 | AC24: ='C - u_exist'!AD24+'C - u_new'!AD24 -> 1368790.694 | AD24: ='C - u_exist'!AE24+'C - u_new'!AE24 -> 1351129.379 | AE24: ='C - u_exist'!AF24+'C - u_new'!AF24 -> 1332500.073 | AF24: ='C - u_exist'!AG24+'C - u_new'!AG24 -> 1313075.889 | AG24: ='C - u_exist'!AH24+'C - u_new'!AH24 -> 1294895.989 | AH24: ='C - u_exist'!AI24+'C - u_new'!AI24 -> 1277840.819 | AI24: ='C - u_exist'!AJ24+'C - u_new'!AJ24 -> 1257189.715 | AJ24: ='C - u_exist'!AK24+'C - u_new'!AK24 -> 1238236.601 | AK24: ='C - u_exist'!AL24+'C - u_new'!AL24 -> 1218842.802 | AL24: ='C - u_exist'!AM24+'C - u_new'!AM24 -> 1199384.173 | AM24: ='C - u_exist'!AN24+'C - u_new'!AN24 -> 1191794.21 | AN24: ='C - u_exist'!AO24+'C - u_new'!AO24 -> 1172707.202
A25: 1 | B25: 1 | C25: 3 | D25: 2 | E25: 1 | G25: Peak 0.1 - 0.2 | H25: ='C - tariff volumes'!H25*(1+('I - drivers'!P$8-'I - drivers'!P$2)*CHOOSE($A25,OFFSET('I - coeff'!$W$3,($C25-2),0),OFFSET('I - coeff'!$W$13,($C25-2),0))) -> 1063774.164 | I25: ='C - tariff volumes'!I25*(1+('I - drivers'!Q$8-'I - drivers'!Q$2)*CHOOSE($A25,OFFSET('I - coeff'!$W$3,($C25-2),0),OFFSET('I - coeff'!$W$13,($C25-2),0))) -> 984519.0583 | J25: ='C - tariff volumes'!J25*(1+('I - drivers'!R$8-'I - drivers'!R$2)*CHOOSE($A25,OFFSET('I - coeff'!$W$3,($C25-2),0),OFFSET('I - coeff'!$W$13,($C25-2),0))) -> 1080072.143 | K25: ='C - tariff volumes'!K25*(1+('I - drivers'!S$8-'I - drivers'!S$2)*CHOOSE($A25,OFFSET('I - coeff'!$W$3,($C25-2),0),OFFSET('I - coeff'!$W$13,($C25-2),0))) -> 1200401.202 | L25: ='C - tariff volumes'!L25*(1+('I - drivers'!T$8-'I - drivers'!T$2)*CHOOSE($A25,OFFSET('I - coeff'!$W$3,($C25-2),0),OFFSET('I - coeff'!$W$13,($C25-2),0))) -> 1075663.824 | M25: ='C - tariff volumes'!M25*(1+('I - drivers'!U$8-'I - drivers'!U$2)*CHOOSE($A25,OFFSET('I - coeff'!$W$3,($C25-2),0),OFFSET('I - coeff'!$W$13,($C25-2),0))) -> 1192890.558 | N25: ='C - tariff volumes'!N25*(1+('I - drivers'!V$8-'I - drivers'!V$2)*CHOOSE($A25,OFFSET('I - coeff'!$W$3,($C25-2),0),OFFSET('I - coeff'!$W$13,($C25-2),0))) -> 1188408.084 | O25: ='C - tariff volumes'!O25*(1+('I - drivers'!W$8-'I - drivers'!W$2)*CHOOSE($A25,OFFSET('I - coeff'!$W$3,($C25-2),0),OFFSET('I - coeff'!$W$13,($C25-2),0))) -> 1103719.513 | P25: ='C - tariff volumes'!P25*(1+('I - drivers'!X$8-'I - drivers'!X$2)*CHOOSE($A25,OFFSET('I - coeff'!$W$3,($C25-2),0),OFFSET('I - coeff'!$W$13,($C25-2),0))) -> 1130231.258 | Q25: ='C - tariff volumes'!Q25*(1+('I - drivers'!Y$8-'I - drivers'!Y$2)*CHOOSE($A25,OFFSET('I - coeff'!$W$3,($C25-2),0),OFFSET('I - coeff'!$W$13,($C25-2),0))) -> 986753.6976 | R25: ='C - tariff volumes'!R25*(1+('I - drivers'!Z$8-'I - drivers'!Z$2)*CHOOSE($A25,OFFSET('I - coeff'!$W$3,($C25-2),0),OFFSET('I - coeff'!$W$13,($C25-2),0))) -> 936740.5318 | S25: ='C - tariff volumes'!S25*(1+('I - drivers'!AA$8-'I - drivers'!AA$2)*CHOOSE($A25,OFFSET('I - coeff'!$W$3,($C25-2),0),OFFSET('I - coeff'!$W$13,($C25-2),0))) -> 928823.9114 | T25: ='C - tariff volumes'!T25*(1+('I - drivers'!AB$8-'I - drivers'!AB$2)*CHOOSE($A25,OFFSET('I - coeff'!$W$3,($C25-2),0),OFFSET('I - coeff'!$W$13,($C25-2),0))) -> 992109.9744 | U25: ='C - u_exist'!V25+'C - u_new'!V25 -> 988666.3153 | V25: ='C - u_exist'!W25+'C - u_new'!W25 -> 980046.4033 | W25: ='C - u_exist'!X25+'C - u_new'!X25 -> 969626.7277 | X25: ='C - u_exist'!Y25+'C - u_new'!Y25 -> 955522.4521 | Y25: ='C - u_exist'!Z25+'C - u_new'!Z25 -> 936623.6408 | Z25: ='C - u_exist'!AA25+'C - u_new'!AA25 -> 927981.2269 | AA25: ='C - u_exist'!AB25+'C - u_new'!AB25 -> 896973.5749 | AB25: ='C - u_exist'!AC25+'C - u_new'!AC25 -> 878531.911 | AC25: ='C - u_exist'!AD25+'C - u_new'!AD25 -> 858209.7568 | AD25: ='C - u_exist'!AE25+'C - u_new'!AE25 -> 841063.0793 | AE25: ='C - u_exist'!AF25+'C - u_new'!AF25 -> 822667.3787 | AF25: ='C - u_exist'!AG25+'C - u_new'!AG25 -> 803960.886 | AG25: ='C - u_exist'!AH25+'C - u_new'!AH25 -> 786245.3024 | AH25: ='C - u_exist'!AI25+'C - u_new'!AI25 -> 770426.659 | AI25: ='C - u_exist'!AJ25+'C - u_new'!AJ25 -> 750496.6743 | AJ25: ='C - u_exist'!AK25+'C - u_new'!AK25 -> 732862.4709 | AK25: ='C - u_exist'!AL25+'C - u_new'!AL25 -> 715353.383 | AL25: ='C - u_exist'!AM25+'C - u_new'!AM25 -> 697971.0205 | AM25: ='C - u_exist'!AN25+'C - u_new'!AN25 -> 695940.5311 | AN25: ='C - u_exist'!AO25+'C - u_new'!AO25 -> 679061.8141
A26: 1 | B26: 1 | C26: 4 | D26: 2 | E26: 1 | G26: Peak 0.2 - 1.4 | H26: ='C - tariff volumes'!H26*(1+('I - drivers'!P$8-'I - drivers'!P$2)*CHOOSE($A26,OFFSET('I - coeff'!$W$3,($C26-2),0),OFFSET('I - coeff'!$W$13,($C26-2),0))) -> 1499859.031 | I26: ='C - tariff volumes'!I26*(1+('I - drivers'!Q$8-'I - drivers'!Q$2)*CHOOSE($A26,OFFSET('I - coeff'!$W$3,($C26-2),0),OFFSET('I - coeff'!$W$13,($C26-2),0))) -> 1393940.831 | J26: ='C - tariff volumes'!J26*(1+('I - drivers'!R$8-'I - drivers'!R$2)*CHOOSE($A26,OFFSET('I - coeff'!$W$3,($C26-2),0),OFFSET('I - coeff'!$W$13,($C26-2),0))) -> 1495391.122 | K26: ='C - tariff volumes'!K26*(1+('I - drivers'!S$8-'I - drivers'!S$2)*CHOOSE($A26,OFFSET('I - coeff'!$W$3,($C26-2),0),OFFSET('I - coeff'!$W$13,($C26-2),0))) -> 1976926.745 | L26: ='C - tariff volumes'!L26*(1+('I - drivers'!T$8-'I - drivers'!T$2)*CHOOSE($A26,OFFSET('I - coeff'!$W$3,($C26-2),0),OFFSET('I - coeff'!$W$13,($C26-2),0))) -> 1839420.407 | M26: ='C - tariff volumes'!M26*(1+('I - drivers'!U$8-'I - drivers'!U$2)*CHOOSE($A26,OFFSET('I - coeff'!$W$3,($C26-2),0),OFFSET('I - coeff'!$W$13,($C26-2),0))) -> 1890577.96 | N26: ='C - tariff volumes'!N26*(1+('I - drivers'!V$8-'I - drivers'!V$2)*CHOOSE($A26,OFFSET('I - coeff'!$W$3,($C26-2),0),OFFSET('I - coeff'!$W$13,($C26-2),0))) -> 1486927.442 | O26: ='C - tariff volumes'!O26*(1+('I - drivers'!W$8-'I - drivers'!W$2)*CHOOSE($A26,OFFSET('I - coeff'!$W$3,($C26-2),0),OFFSET('I - coeff'!$W$13,($C26-2),0))) -> 1763237.005 | P26: ='C - tariff volumes'!P26*(1+('I - drivers'!X$8-'I - drivers'!X$2)*CHOOSE($A26,OFFSET('I - coeff'!$W$3,($C26-2),0),OFFSET('I - coeff'!$W$13,($C26-2),0))) -> 1743871.794 | Q26: ='C - tariff volumes'!Q26*(1+('I - drivers'!Y$8-'I - drivers'!Y$2)*CHOOSE($A26,OFFSET('I - coeff'!$W$3,($C26-2),0),OFFSET('I - coeff'!$W$13,($C26-2),0))) -> 1389072.326 | R26: ='C - tariff volumes'!R26*(1+('I - drivers'!Z$8-'I - drivers'!Z$2)*CHOOSE($A26,OFFSET('I - coeff'!$W$3,($C26-2),0),OFFSET('I - coeff'!$W$13,($C26-2),0))) -> 1271535.156 | S26: ='C - tariff volumes'!S26*(1+('I - drivers'!AA$8-'I - drivers'!AA$2)*CHOOSE($A26,OFFSET('I - coeff'!$W$3,($C26-2),0),OFFSET('I - coeff'!$W$13,($C26-2),0))) -> 1272828.175 | T26: ='C - tariff volumes'!T26*(1+('I - drivers'!AB$8-'I - drivers'!AB$2)*CHOOSE($A26,OFFSET('I - coeff'!$W$3,($C26-2),0),OFFSET('I - coeff'!$W$13,($C26-2),0))) -> 1355633.024 | U26: ='C - u_exist'!V26+'C - u_new'!V26 -> 1343047.114 | V26: ='C - u_exist'!W26+'C - u_new'!W26 -> 1323832.233 | W26: ='C - u_exist'!X26+'C - u_new'!X26 -> 1302459.376 | X26: ='C - u_exist'!Y26+'C - u_new'!Y26 -> 1276471.602 | Y26: ='C - u_exist'!Z26+'C - u_new'!Z26 -> 1244403.524 | Z26: ='C - u_exist'!AA26+'C - u_new'!AA26 -> 1225721.981 | AA26: ='C - u_exist'!AB26+'C - u_new'!AB26 -> 1178554.172 | AB26: ='C - u_exist'!AC26+'C - u_new'!AC26 -> 1147684.753 | AC26: ='C - u_exist'!AD26+'C - u_new'!AD26 -> 1114635.003 | AD26: ='C - u_exist'!AE26+'C - u_new'!AE26 -> 1085754.439 | AE26: ='C - u_exist'!AF26+'C - u_new'!AF26 -> 1055500.574 | AF26: ='C - u_exist'!AG26+'C - u_new'!AG26 -> 1025020.156 | AG26: ='C - u_exist'!AH26+'C - u_new'!AH26 -> 996028.7457 | AH26: ='C - u_exist'!AI26+'C - u_new'!AI26 -> 969526.0149 | AI26: ='C - u_exist'!AJ26+'C - u_new'!AJ26 -> 938166.2601 | AJ26: ='C - u_exist'!AK26+'C - u_new'!AK26 -> 909827.7634 | AK26: ='C - u_exist'!AL26+'C - u_new'!AL26 -> 881824.2928 | AL26: ='C - u_exist'!AM26+'C - u_new'!AM26 -> 854161.0481 | AM26: ='C - u_exist'!AN26+'C - u_new'!AN26 -> 844811.0671 | AN26: ='C - u_exist'!AO26+'C - u_new'!AO26 -> 818008.8748
A27: 1 | B27: 1 | C27: 5 | D27: 2 | E27: 1 | G27: Peak > 1.4 | H27: ='C - tariff volumes'!H27*(1+('I - drivers'!P$8-'I - drivers'!P$2)*CHOOSE($A27,OFFSET('I - coeff'!$W$3,($C27-2),0),OFFSET('I - coeff'!$W$13,($C27-2),0))) -> 13559.81473 | I27: ='C - tariff volumes'!I27*(1+('I - drivers'!Q$8-'I - drivers'!Q$2)*CHOOSE($A27,OFFSET('I - coeff'!$W$3,($C27-2),0),OFFSET('I - coeff'!$W$13,($C27-2),0))) -> 13220.4946 | J27: ='C - tariff volumes'!J27*(1+('I - drivers'!R$8-'I - drivers'!R$2)*CHOOSE($A27,OFFSET('I - coeff'!$W$3,($C27-2),0),OFFSET('I - coeff'!$W$13,($C27-2),0))) -> 13251.66111 | K27: ='C - tariff volumes'!K27*(1+('I - drivers'!S$8-'I - drivers'!S$2)*CHOOSE($A27,OFFSET('I - coeff'!$W$3,($C27-2),0),OFFSET('I - coeff'!$W$13,($C27-2),0))) -> 23007.69684 | L27: ='C - tariff volumes'!L27*(1+('I - drivers'!T$8-'I - drivers'!T$2)*CHOOSE($A27,OFFSET('I - coeff'!$W$3,($C27-2),0),OFFSET('I - coeff'!$W$13,($C27-2),0))) -> 19271.55188 | M27: ='C - tariff volumes'!M27*(1+('I - drivers'!U$8-'I - drivers'!U$2)*CHOOSE($A27,OFFSET('I - coeff'!$W$3,($C27-2),0),OFFSET('I - coeff'!$W$13,($C27-2),0))) -> 26556.39804 | N27: ='C - tariff volumes'!N27*(1+('I - drivers'!V$8-'I - drivers'!V$2)*CHOOSE($A27,OFFSET('I - coeff'!$W$3,($C27-2),0),OFFSET('I - coeff'!$W$13,($C27-2),0))) -> 18969.57732 | O27: ='C - tariff volumes'!O27*(1+('I - drivers'!W$8-'I - drivers'!W$2)*CHOOSE($A27,OFFSET('I - coeff'!$W$3,($C27-2),0),OFFSET('I - coeff'!$W$13,($C27-2),0))) -> 19126.57217 | P27: ='C - tariff volumes'!P27*(1+('I - drivers'!X$8-'I - drivers'!X$2)*CHOOSE($A27,OFFSET('I - coeff'!$W$3,($C27-2),0),OFFSET('I - coeff'!$W$13,($C27-2),0))) -> 18297.09029 | Q27: ='C - tariff volumes'!Q27*(1+('I - drivers'!Y$8-'I - drivers'!Y$2)*CHOOSE($A27,OFFSET('I - coeff'!$W$3,($C27-2),0),OFFSET('I - coeff'!$W$13,($C27-2),0))) -> 16616.21149 | R27: ='C - tariff volumes'!R27*(1+('I - drivers'!Z$8-'I - drivers'!Z$2)*CHOOSE($A27,OFFSET('I - coeff'!$W$3,($C27-2),0),OFFSET('I - coeff'!$W$13,($C27-2),0))) -> 13262.39905 | S27: ='C - tariff volumes'!S27*(1+('I - drivers'!AA$8-'I - drivers'!AA$2)*CHOOSE($A27,OFFSET('I - coeff'!$W$3,($C27-2),0),OFFSET('I - coeff'!$W$13,($C27-2),0))) -> 11108.07392 | T27: ='C - tariff volumes'!T27*(1+('I - drivers'!AB$8-'I - drivers'!AB$2)*CHOOSE($A27,OFFSET('I - coeff'!$W$3,($C27-2),0),OFFSET('I - coeff'!$W$13,($C27-2),0))) -> 10134.31289 | U27: ='C - u_exist'!V27+'C - u_new'!V27 -> 10223.50706 | V27: ='C - u_exist'!W27+'C - u_new'!W27 -> 10251.08307 | W27: ='C - u_exist'!X27+'C - u_new'!X27 -> 10250.42505 | X27: ='C - u_exist'!Y27+'C - u_new'!Y27 -> 10207.49188 | Y27: ='C - u_exist'!Z27+'C - u_new'!Z27 -> 10107.80014 | Z27: ='C - u_exist'!AA27+'C - u_new'!AA27 -> 10015.61067 | AA27: ='C - u_exist'!AB27+'C - u_new'!AB27 -> 9878.519912 | AB27: ='C - u_exist'!AC27+'C - u_new'!AC27 -> 9764.327182 | AC27: ='C - u_exist'!AD27+'C - u_new'!AD27 -> 9645.653423 | AD27: ='C - u_exist'!AE27+'C - u_new'!AE27 -> 9528.633054 | AE27: ='C - u_exist'!AF27+'C - u_new'!AF27 -> 9409.361864 | AF27: ='C - u_exist'!AG27+'C - u_new'!AG27 -> 9284.194593 | AG27: ='C - u_exist'!AH27+'C - u_new'!AH27 -> 9167.460581 | AH27: ='C - u_exist'!AI27+'C - u_new'!AI27 -> 9052.058475 | AI27: ='C - u_exist'!AJ27+'C - u_new'!AJ27 -> 8923.722926 | AJ27: ='C - u_exist'!AK27+'C - u_new'!AK27 -> 8800.646195 | AK27: ='C - u_exist'!AL27+'C - u_new'!AL27 -> 8673.068526 | AL27: ='C - u_exist'!AM27+'C - u_new'!AM27 -> 8544.77958 | AM27: ='C - u_exist'!AN27+'C - u_new'!AN27 -> 8448.460386 | AN27: ='C - u_exist'!AO27+'C - u_new'!AO27 -> 8321.830618
A28: 1 | B28: 1 | C28: 6 | D28: 2 | E28: 1 | G28: Off Peak 0 - 0.1 | H28: ='C - tariff volumes'!H28*(1+('I - drivers'!P$8-'I - drivers'!P$2)*CHOOSE($A28,OFFSET('I - coeff'!$W$3,($C28-2),0),OFFSET('I - coeff'!$W$13,($C28-2),0))) -> 1838802.301 | I28: ='C - tariff volumes'!I28*(1+('I - drivers'!Q$8-'I - drivers'!Q$2)*CHOOSE($A28,OFFSET('I - coeff'!$W$3,($C28-2),0),OFFSET('I - coeff'!$W$13,($C28-2),0))) -> 1850564.324 | J28: ='C - tariff volumes'!J28*(1+('I - drivers'!R$8-'I - drivers'!R$2)*CHOOSE($A28,OFFSET('I - coeff'!$W$3,($C28-2),0),OFFSET('I - coeff'!$W$13,($C28-2),0))) -> 1824964.803 | K28: ='C - tariff volumes'!K28*(1+('I - drivers'!S$8-'I - drivers'!S$2)*CHOOSE($A28,OFFSET('I - coeff'!$W$3,($C28-2),0),OFFSET('I - coeff'!$W$13,($C28-2),0))) -> 1776950.763 | L28: ='C - tariff volumes'!L28*(1+('I - drivers'!T$8-'I - drivers'!T$2)*CHOOSE($A28,OFFSET('I - coeff'!$W$3,($C28-2),0),OFFSET('I - coeff'!$W$13,($C28-2),0))) -> 1849070.479 | M28: ='C - tariff volumes'!M28*(1+('I - drivers'!U$8-'I - drivers'!U$2)*CHOOSE($A28,OFFSET('I - coeff'!$W$3,($C28-2),0),OFFSET('I - coeff'!$W$13,($C28-2),0))) -> 1854528.21 | N28: ='C - tariff volumes'!N28*(1+('I - drivers'!V$8-'I - drivers'!V$2)*CHOOSE($A28,OFFSET('I - coeff'!$W$3,($C28-2),0),OFFSET('I - coeff'!$W$13,($C28-2),0))) -> 1824891.07 | O28: ='C - tariff volumes'!O28*(1+('I - drivers'!W$8-'I - drivers'!W$2)*CHOOSE($A28,OFFSET('I - coeff'!$W$3,($C28-2),0),OFFSET('I - coeff'!$W$13,($C28-2),0))) -> 1820482.793 | P28: ='C - tariff volumes'!P28*(1+('I - drivers'!X$8-'I - drivers'!X$2)*CHOOSE($A28,OFFSET('I - coeff'!$W$3,($C28-2),0),OFFSET('I - coeff'!$W$13,($C28-2),0))) -> 1945496.582 | Q28: ='C - tariff volumes'!Q28*(1+('I - drivers'!Y$8-'I - drivers'!Y$2)*CHOOSE($A28,OFFSET('I - coeff'!$W$3,($C28-2),0),OFFSET('I - coeff'!$W$13,($C28-2),0))) -> 2119554.686 | R28: ='C - tariff volumes'!R28*(1+('I - drivers'!Z$8-'I - drivers'!Z$2)*CHOOSE($A28,OFFSET('I - coeff'!$W$3,($C28-2),0),OFFSET('I - coeff'!$W$13,($C28-2),0))) -> 2164803.271 | S28: ='C - tariff volumes'!S28*(1+('I - drivers'!AA$8-'I - drivers'!AA$2)*CHOOSE($A28,OFFSET('I - coeff'!$W$3,($C28-2),0),OFFSET('I - coeff'!$W$13,($C28-2),0))) -> 2024832.977 | T28: ='C - tariff volumes'!T28*(1+('I - drivers'!AB$8-'I - drivers'!AB$2)*CHOOSE($A28,OFFSET('I - coeff'!$W$3,($C28-2),0),OFFSET('I - coeff'!$W$13,($C28-2),0))) -> 1939346.762 | U28: ='C - u_exist'!V28+'C - u_new'!V28 -> 1958176.116 | V28: ='C - u_exist'!W28+'C - u_new'!W28 -> 1957936.039 | W28: ='C - u_exist'!X28+'C - u_new'!X28 -> 1964143.464 | X28: ='C - u_exist'!Y28+'C - u_new'!Y28 -> 1964923.031 | Y28: ='C - u_exist'!Z28+'C - u_new'!Z28 -> 1947134.437 | Z28: ='C - u_exist'!AA28+'C - u_new'!AA28 -> 1934205.049 | AA28: ='C - u_exist'!AB28+'C - u_new'!AB28 -> 1900516.233 | AB28: ='C - u_exist'!AC28+'C - u_new'!AC28 -> 1877630.986 | AC28: ='C - u_exist'!AD28+'C - u_new'!AD28 -> 1853066.696 | AD28: ='C - u_exist'!AE28+'C - u_new'!AE28 -> 1828455.998 | AE28: ='C - u_exist'!AF28+'C - u_new'!AF28 -> 1803451.75 | AF28: ='C - u_exist'!AG28+'C - u_new'!AG28 -> 1775002.122 | AG28: ='C - u_exist'!AH28+'C - u_new'!AH28 -> 1752440.734 | AH28: ='C - u_exist'!AI28+'C - u_new'!AI28 -> 1729939.162 | AI28: ='C - u_exist'!AJ28+'C - u_new'!AJ28 -> 1701214.453 | AJ28: ='C - u_exist'!AK28+'C - u_new'!AK28 -> 1675432.686 | AK28: ='C - u_exist'!AL28+'C - u_new'!AL28 -> 1647775.461 | AL28: ='C - u_exist'!AM28+'C - u_new'!AM28 -> 1619699.701 | AM28: ='C - u_exist'!AN28+'C - u_new'!AN28 -> 1605612.572 | AN28: ='C - u_exist'!AO28+'C - u_new'!AO28 -> 1578259.302
A29: 1 | B29: 1 | C29: 7 | D29: 2 | E29: 1 | G29: Off Peak 0.1 - 0.2 | H29: ='C - tariff volumes'!H29*(1+('I - drivers'!P$8-'I - drivers'!P$2)*CHOOSE($A29,OFFSET('I - coeff'!$W$3,($C29-2),0),OFFSET('I - coeff'!$W$13,($C29-2),0))) -> 598755.1483 | I29: ='C - tariff volumes'!I29*(1+('I - drivers'!Q$8-'I - drivers'!Q$2)*CHOOSE($A29,OFFSET('I - coeff'!$W$3,($C29-2),0),OFFSET('I - coeff'!$W$13,($C29-2),0))) -> 494251.5774 | J29: ='C - tariff volumes'!J29*(1+('I - drivers'!R$8-'I - drivers'!R$2)*CHOOSE($A29,OFFSET('I - coeff'!$W$3,($C29-2),0),OFFSET('I - coeff'!$W$13,($C29-2),0))) -> 590354.1488 | K29: ='C - tariff volumes'!K29*(1+('I - drivers'!S$8-'I - drivers'!S$2)*CHOOSE($A29,OFFSET('I - coeff'!$W$3,($C29-2),0),OFFSET('I - coeff'!$W$13,($C29-2),0))) -> 457430.8442 | L29: ='C - tariff volumes'!L29*(1+('I - drivers'!T$8-'I - drivers'!T$2)*CHOOSE($A29,OFFSET('I - coeff'!$W$3,($C29-2),0),OFFSET('I - coeff'!$W$13,($C29-2),0))) -> 460067.4204 | M29: ='C - tariff volumes'!M29*(1+('I - drivers'!U$8-'I - drivers'!U$2)*CHOOSE($A29,OFFSET('I - coeff'!$W$3,($C29-2),0),OFFSET('I - coeff'!$W$13,($C29-2),0))) -> 547449.7518 | N29: ='C - tariff volumes'!N29*(1+('I - drivers'!V$8-'I - drivers'!V$2)*CHOOSE($A29,OFFSET('I - coeff'!$W$3,($C29-2),0),OFFSET('I - coeff'!$W$13,($C29-2),0))) -> 382158.5595 | O29: ='C - tariff volumes'!O29*(1+('I - drivers'!W$8-'I - drivers'!W$2)*CHOOSE($A29,OFFSET('I - coeff'!$W$3,($C29-2),0),OFFSET('I - coeff'!$W$13,($C29-2),0))) -> 448672.612 | P29: ='C - tariff volumes'!P29*(1+('I - drivers'!X$8-'I - drivers'!X$2)*CHOOSE($A29,OFFSET('I - coeff'!$W$3,($C29-2),0),OFFSET('I - coeff'!$W$13,($C29-2),0))) -> 547119.1075 | Q29: ='C - tariff volumes'!Q29*(1+('I - drivers'!Y$8-'I - drivers'!Y$2)*CHOOSE($A29,OFFSET('I - coeff'!$W$3,($C29-2),0),OFFSET('I - coeff'!$W$13,($C29-2),0))) -> 594385.1439 | R29: ='C - tariff volumes'!R29*(1+('I - drivers'!Z$8-'I - drivers'!Z$2)*CHOOSE($A29,OFFSET('I - coeff'!$W$3,($C29-2),0),OFFSET('I - coeff'!$W$13,($C29-2),0))) -> 626449.2203 | S29: ='C - tariff volumes'!S29*(1+('I - drivers'!AA$8-'I - drivers'!AA$2)*CHOOSE($A29,OFFSET('I - coeff'!$W$3,($C29-2),0),OFFSET('I - coeff'!$W$13,($C29-2),0))) -> 492324.834 | T29: ='C - tariff volumes'!T29*(1+('I - drivers'!AB$8-'I - drivers'!AB$2)*CHOOSE($A29,OFFSET('I - coeff'!$W$3,($C29-2),0),OFFSET('I - coeff'!$W$13,($C29-2),0))) -> 533634.219 | U29: ='C - u_exist'!V29+'C - u_new'!V29 -> 533029.0172 | V29: ='C - u_exist'!W29+'C - u_new'!W29 -> 527647.3759 | W29: ='C - u_exist'!X29+'C - u_new'!X29 -> 524245.4988 | X29: ='C - u_exist'!Y29+'C - u_new'!Y29 -> 519536.9273 | Y29: ='C - u_exist'!Z29+'C - u_new'!Z29 -> 510186.527 | Z29: ='C - u_exist'!AA29+'C - u_new'!AA29 -> 505252.2281 | AA29: ='C - u_exist'!AB29+'C - u_new'!AB29 -> 489060.6285 | AB29: ='C - u_exist'!AC29+'C - u_new'!AC29 -> 479101.8685 | AC29: ='C - u_exist'!AD29+'C - u_new'!AD29 -> 468277.5223 | AD29: ='C - u_exist'!AE29+'C - u_new'!AE29 -> 458450.7911 | AE29: ='C - u_exist'!AF29+'C - u_new'!AF29 -> 448228.9607 | AF29: ='C - u_exist'!AG29+'C - u_new'!AG29 -> 437232.7953 | AG29: ='C - u_exist'!AH29+'C - u_new'!AH29 -> 427866.1795 | AH29: ='C - u_exist'!AI29+'C - u_new'!AI29 -> 419109.4184 | AI29: ='C - u_exist'!AJ29+'C - u_new'!AJ29 -> 407878.7912 | AJ29: ='C - u_exist'!AK29+'C - u_new'!AK29 -> 398015.9376 | AK29: ='C - u_exist'!AL29+'C - u_new'!AL29 -> 387885.3328 | AL29: ='C - u_exist'!AM29+'C - u_new'!AM29 -> 377747.8277 | AM29: ='C - u_exist'!AN29+'C - u_new'!AN29 -> 374997.4162 | AN29: ='C - u_exist'!AO29+'C - u_new'!AO29 -> 365204.0269
A30: 1 | B30: 1 | C30: 8 | D30: 2 | E30: 1 | G30: Off Peak 0.2 - 1.4 | H30: ='C - tariff volumes'!H30*(1+('I - drivers'!P$8-'I - drivers'!P$2)*CHOOSE($A30,OFFSET('I - coeff'!$W$3,($C30-2),0),OFFSET('I - coeff'!$W$13,($C30-2),0))) -> 381499.9428 | I30: ='C - tariff volumes'!I30*(1+('I - drivers'!Q$8-'I - drivers'!Q$2)*CHOOSE($A30,OFFSET('I - coeff'!$W$3,($C30-2),0),OFFSET('I - coeff'!$W$13,($C30-2),0))) -> 264883.0701 | J30: ='C - tariff volumes'!J30*(1+('I - drivers'!R$8-'I - drivers'!R$2)*CHOOSE($A30,OFFSET('I - coeff'!$W$3,($C30-2),0),OFFSET('I - coeff'!$W$13,($C30-2),0))) -> 370806.6563 | K30: ='C - tariff volumes'!K30*(1+('I - drivers'!S$8-'I - drivers'!S$2)*CHOOSE($A30,OFFSET('I - coeff'!$W$3,($C30-2),0),OFFSET('I - coeff'!$W$13,($C30-2),0))) -> 187713.5032 | L30: ='C - tariff volumes'!L30*(1+('I - drivers'!T$8-'I - drivers'!T$2)*CHOOSE($A30,OFFSET('I - coeff'!$W$3,($C30-2),0),OFFSET('I - coeff'!$W$13,($C30-2),0))) -> 118464.1368 | M30: ='C - tariff volumes'!M30*(1+('I - drivers'!U$8-'I - drivers'!U$2)*CHOOSE($A30,OFFSET('I - coeff'!$W$3,($C30-2),0),OFFSET('I - coeff'!$W$13,($C30-2),0))) -> 352294.4635 | N30: ='C - tariff volumes'!N30*(1+('I - drivers'!V$8-'I - drivers'!V$2)*CHOOSE($A30,OFFSET('I - coeff'!$W$3,($C30-2),0),OFFSET('I - coeff'!$W$13,($C30-2),0))) -> 433732.8948 | O30: ='C - tariff volumes'!O30*(1+('I - drivers'!W$8-'I - drivers'!W$2)*CHOOSE($A30,OFFSET('I - coeff'!$W$3,($C30-2),0),OFFSET('I - coeff'!$W$13,($C30-2),0))) -> 233341.7299 | P30: ='C - tariff volumes'!P30*(1+('I - drivers'!X$8-'I - drivers'!X$2)*CHOOSE($A30,OFFSET('I - coeff'!$W$3,($C30-2),0),OFFSET('I - coeff'!$W$13,($C30-2),0))) -> 266959.418 | Q30: ='C - tariff volumes'!Q30*(1+('I - drivers'!Y$8-'I - drivers'!Y$2)*CHOOSE($A30,OFFSET('I - coeff'!$W$3,($C30-2),0),OFFSET('I - coeff'!$W$13,($C30-2),0))) -> 399090.7748 | R30: ='C - tariff volumes'!R30*(1+('I - drivers'!Z$8-'I - drivers'!Z$2)*CHOOSE($A30,OFFSET('I - coeff'!$W$3,($C30-2),0),OFFSET('I - coeff'!$W$13,($C30-2),0))) -> 395210.7175 | S30: ='C - tariff volumes'!S30*(1+('I - drivers'!AA$8-'I - drivers'!AA$2)*CHOOSE($A30,OFFSET('I - coeff'!$W$3,($C30-2),0),OFFSET('I - coeff'!$W$13,($C30-2),0))) -> 274654.5008 | T30: ='C - tariff volumes'!T30*(1+('I - drivers'!AB$8-'I - drivers'!AB$2)*CHOOSE($A30,OFFSET('I - coeff'!$W$3,($C30-2),0),OFFSET('I - coeff'!$W$13,($C30-2),0))) -> 334021.4117 | U30: ='C - u_exist'!V30+'C - u_new'!V30 -> 332711.983 | V30: ='C - u_exist'!W30+'C - u_new'!W30 -> 328458.7105 | W30: ='C - u_exist'!X30+'C - u_new'!X30 -> 325411.6909 | X30: ='C - u_exist'!Y30+'C - u_new'!Y30 -> 321577.3573 | Y30: ='C - u_exist'!Z30+'C - u_new'!Z30 -> 314906.9477 | Z30: ='C - u_exist'!AA30+'C - u_new'!AA30 -> 310690.5802 | AA30: ='C - u_exist'!AB30+'C - u_new'!AB30 -> 300154.9844 | AB30: ='C - u_exist'!AC30+'C - u_new'!AC30 -> 293153.7867 | AC30: ='C - u_exist'!AD30+'C - u_new'!AD30 -> 285701.6361 | AD30: ='C - u_exist'!AE30+'C - u_new'!AE30 -> 278789.076 | AE30: ='C - u_exist'!AF30+'C - u_new'!AF30 -> 271700.7566 | AF30: ='C - u_exist'!AG30+'C - u_new'!AG30 -> 264159.4661 | AG30: ='C - u_exist'!AH30+'C - u_new'!AH30 -> 257643.8565 | AH30: ='C - u_exist'!AI30+'C - u_new'!AI30 -> 251462.8823 | AI30: ='C - u_exist'!AJ30+'C - u_new'!AJ30 -> 243912.0034 | AJ30: ='C - u_exist'!AK30+'C - u_new'!AK30 -> 237161.721 | AK30: ='C - u_exist'!AL30+'C - u_new'!AL30 -> 230260.6744 | AL30: ='C - u_exist'!AM30+'C - u_new'!AM30 -> 223378.8204 | AM30: ='C - u_exist'!AN30+'C - u_new'!AN30 -> 220493.4578 | AN30: ='C - u_exist'!AO30+'C - u_new'!AO30 -> 213853.5273
A31: 1 | B31: 1 | C31: 9 | D31: 2 | E31: 1 | G31: Off Peak > 1.4 | H31: ='C - tariff volumes'!H31*(1+('I - drivers'!P$8-'I - drivers'!P$2)*CHOOSE($A31,OFFSET('I - coeff'!$W$3,($C31-2),0),OFFSET('I - coeff'!$W$13,($C31-2),0))) -> 12198.11152 | I31: ='C - tariff volumes'!I31*(1+('I - drivers'!Q$8-'I - drivers'!Q$2)*CHOOSE($A31,OFFSET('I - coeff'!$W$3,($C31-2),0),OFFSET('I - coeff'!$W$13,($C31-2),0))) -> 13222.88597 | J31: ='C - tariff volumes'!J31*(1+('I - drivers'!R$8-'I - drivers'!R$2)*CHOOSE($A31,OFFSET('I - coeff'!$W$3,($C31-2),0),OFFSET('I - coeff'!$W$13,($C31-2),0))) -> 13362.66157 | K31: ='C - tariff volumes'!K31*(1+('I - drivers'!S$8-'I - drivers'!S$2)*CHOOSE($A31,OFFSET('I - coeff'!$W$3,($C31-2),0),OFFSET('I - coeff'!$W$13,($C31-2),0))) -> 13296.49432 | L31: ='C - tariff volumes'!L31*(1+('I - drivers'!T$8-'I - drivers'!T$2)*CHOOSE($A31,OFFSET('I - coeff'!$W$3,($C31-2),0),OFFSET('I - coeff'!$W$13,($C31-2),0))) -> 14147.25711 | M31: ='C - tariff volumes'!M31*(1+('I - drivers'!U$8-'I - drivers'!U$2)*CHOOSE($A31,OFFSET('I - coeff'!$W$3,($C31-2),0),OFFSET('I - coeff'!$W$13,($C31-2),0))) -> 17651.97475 | N31: ='C - tariff volumes'!N31*(1+('I - drivers'!V$8-'I - drivers'!V$2)*CHOOSE($A31,OFFSET('I - coeff'!$W$3,($C31-2),0),OFFSET('I - coeff'!$W$13,($C31-2),0))) -> 21951.58263 | O31: ='C - tariff volumes'!O31*(1+('I - drivers'!W$8-'I - drivers'!W$2)*CHOOSE($A31,OFFSET('I - coeff'!$W$3,($C31-2),0),OFFSET('I - coeff'!$W$13,($C31-2),0))) -> 14844.06696 | P31: ='C - tariff volumes'!P31*(1+('I - drivers'!X$8-'I - drivers'!X$2)*CHOOSE($A31,OFFSET('I - coeff'!$W$3,($C31-2),0),OFFSET('I - coeff'!$W$13,($C31-2),0))) -> 11825.55675 | Q31: ='C - tariff volumes'!Q31*(1+('I - drivers'!Y$8-'I - drivers'!Y$2)*CHOOSE($A31,OFFSET('I - coeff'!$W$3,($C31-2),0),OFFSET('I - coeff'!$W$13,($C31-2),0))) -> 14604.41571 | R31: ='C - tariff volumes'!R31*(1+('I - drivers'!Z$8-'I - drivers'!Z$2)*CHOOSE($A31,OFFSET('I - coeff'!$W$3,($C31-2),0),OFFSET('I - coeff'!$W$13,($C31-2),0))) -> 14237.58191 | S31: ='C - tariff volumes'!S31*(1+('I - drivers'!AA$8-'I - drivers'!AA$2)*CHOOSE($A31,OFFSET('I - coeff'!$W$3,($C31-2),0),OFFSET('I - coeff'!$W$13,($C31-2),0))) -> 7153.609318 | T31: ='C - tariff volumes'!T31*(1+('I - drivers'!AB$8-'I - drivers'!AB$2)*CHOOSE($A31,OFFSET('I - coeff'!$W$3,($C31-2),0),OFFSET('I - coeff'!$W$13,($C31-2),0))) -> 9571.767463 | U31: ='C - u_exist'!V31+'C - u_new'!V31 -> 9688.663114 | V31: ='C - u_exist'!W31+'C - u_new'!W31 -> 9707.365204 | W31: ='C - u_exist'!X31+'C - u_new'!X31 -> 9754.003768 | X31: ='C - u_exist'!Y31+'C - u_new'!Y31 -> 9771.901776 | Y31: ='C - u_exist'!Z31+'C - u_new'!Z31 -> 9695.656825 | Z31: ='C - u_exist'!AA31+'C - u_new'!AA31 -> 9615.876234 | AA31: ='C - u_exist'!AB31+'C - u_new'!AB31 -> 9485.939658 | AB31: ='C - u_exist'!AC31+'C - u_new'!AC31 -> 9379.905565 | AC31: ='C - u_exist'!AD31+'C - u_new'!AD31 -> 9270.273513 | AD31: ='C - u_exist'!AE31+'C - u_new'!AE31 -> 9151.822708 | AE31: ='C - u_exist'!AF31+'C - u_new'!AF31 -> 9034.918794 | AF31: ='C - u_exist'!AG31+'C - u_new'!AG31 -> 8900.522359 | AG31: ='C - u_exist'!AH31+'C - u_new'!AH31 -> 8795.312166 | AH31: ='C - u_exist'!AI31+'C - u_new'!AI31 -> 8685.337787 | AI31: ='C - u_exist'!AJ31+'C - u_new'!AJ31 -> 8553.832558 | AJ31: ='C - u_exist'!AK31+'C - u_new'!AK31 -> 8431.820904 | AK31: ='C - u_exist'!AL31+'C - u_new'!AL31 -> 8299.103379 | AL31: ='C - u_exist'!AM31+'C - u_new'!AM31 -> 8164.155952 | AM31: ='C - u_exist'!AN31+'C - u_new'!AN31 -> 8059.039148 | AN31: ='C - u_exist'!AO31+'C - u_new'!AO31 -> 7927.204319
... 35 more rows

Sheet O - CN sum
A1: Res | B1: Reg | C1: New | D1: Region forecasts using AusNet starting point | H1: =+'C - u_exist'!I1 -> 2011 | I1: =+'C - u_exist'!J1 -> 2012 | J1: =+'C - u_exist'!K1 -> 2013 | K1: =+'C - u_exist'!L1 -> 2014 | L1: =+'C - u_exist'!M1 -> 2015 | M1: =+'C - u_exist'!N1 -> 2016 | N1: =+'C - u_exist'!O1 -> 2017 | O1: =+'C - u_exist'!P1 -> 2018 | P1: =+'C - u_exist'!Q1 -> 2019 | Q1: =+'C - u_exist'!R1 -> 2020 | R1: =+'C - u_exist'!S1 -> 2021 | S1: =+'C - u_exist'!T1 -> 2022 | T1: =+'C - u_exist'!U1 -> 2023 | U1: =+'C - u_exist'!V1 -> 2024 | V1: =+'C - u_exist'!W1 -> 2025 | W1: =+'C - u_exist'!X1 -> 2026 | X1: =+'C - u_exist'!Y1 -> 2027 | Y1: =+'C - u_exist'!Z1 -> 2028 | Z1: =Y1+1 -> 2029 | AA1: =Z1+1 -> 2030 | AB1: 2031 | AC1: 2032 | AD1: 2033 | AE1: 2034 | AF1: 2035 | AG1: 2036 | AH1: 2037 | AI1: 2038 | AJ1: 2039 | AK1: 2040 | AL1: =AK1+1 -> 2041 | AM1: 2042 | AN1: 2043 | AO1: 2044 | AP1: 2045 | AQ1: 2046 | AR1: 2047 | AS1: =AR1+1 -> 2048 | AT1: 2049 | AU1: 2050 | AW1: 2023 stub | AX1: 2023/24 | AY1: 2024/25 | AZ1: 2025/26 | BA1: 2026/27 | BB1: 2027/28 | BC1: 2028/29 | BF1: 2011 | BG1: 2012 | BH1: 2013 | BI1: 2014 | BJ1: 2015 | BK1: 2016 | BL1: 2017 | BM1: 2018 | BN1: 2019 | BO1: 2020 | BP1: 2021 | BQ1: 2022 | BR1: 2023 | BS1: =U1 -> 2024 | BT1: 2025 | BU1: 2026 | BV1: 2027 | BW1: 2028 | BX1: 2029 | BY1: 2030 | BZ1: 2031 | CA1: 2032 | CB1: 2033 | CC1: 2034 | CD1: 2035 | CE1: 2036 | CF1: 2037 | CG1: 2038 | CH1: 2039 | CI1: 2040 | CJ1: 2041 | CK1: 2042 | CL1: 2043 | CM1: 2044 | CN1: 2045 | CO1: 2046 | CP1: 2047 | CQ1: 2048 | CR1: 2049 | CS1: 2050 | CV1: 2023 stub | CW1: 2023/24 | CX1: 2024/25 | CY1: 2025/26 | CZ1: 2026/27 | DA1: 2027/28 | DB1: 2028/29
D2: Excluding additional disconnections | BE2: Net disconnections at historical rate, incremental
A3: 1 | B3: 1 | C3: 1 | D3: Central and west | E3: residential | F3: central | H3: =IF($E3="residential",SUMIFS('O - Res CN'!D:D,'O - Res CN'!$FS:$FS,$F3),SUMIFS('O - Comm CN'!D:D,'O - Comm CN'!$BW:$BW,$F3)) -> 445025.5645 | I3: =IF($E3="residential",SUMIFS('O - Res CN'!E:E,'O - Res CN'!$FS:$FS,$F3),SUMIFS('O - Comm CN'!E:E,'O - Comm CN'!$BW:$BW,$F3)) -> 457569.69 | J3: =IF($E3="residential",SUMIFS('O - Res CN'!F:F,'O - Res CN'!$FS:$FS,$F3),SUMIFS('O - Comm CN'!F:F,'O - Comm CN'!$BW:$BW,$F3)) -> 466546.6576 | K3: =IF($E3="residential",SUMIFS('O - Res CN'!G:G,'O - Res CN'!$FS:$FS,$F3),SUMIFS('O - Comm CN'!G:G,'O - Comm CN'!$BW:$BW,$F3)) -> 476190.8191 | L3: =IF($E3="residential",SUMIFS('O - Res CN'!H:H,'O - Res CN'!$FS:$FS,$F3),SUMIFS('O - Comm CN'!H:H,'O - Comm CN'!$BW:$BW,$F3)) -> 486727.0893 | M3: =IF($E3="residential",SUMIFS('O - Res CN'!I:I,'O - Res CN'!$FS:$FS,$F3),SUMIFS('O - Comm CN'!I:I,'O - Comm CN'!$BW:$BW,$F3)) -> 499178.2702 | N3: =IF($E3="residential",SUMIFS('O - Res CN'!J:J,'O - Res CN'!$FS:$FS,$F3),SUMIFS('O - Comm CN'!J:J,'O - Comm CN'!$BW:$BW,$F3)) -> 511288.7441 | O3: =IF($E3="residential",SUMIFS('O - Res CN'!K:K,'O - Res CN'!$FS:$FS,$F3),SUMIFS('O - Comm CN'!K:K,'O - Comm CN'!$BW:$BW,$F3)) -> 525378.9647 | P3: =IF($E3="residential",SUMIFS('O - Res CN'!L:L,'O - Res CN'!$FS:$FS,$F3),SUMIFS('O - Comm CN'!L:L,'O - Comm CN'!$BW:$BW,$F3)) -> 541826.6278 | Q3: =IF($E3="residential",SUMIFS('O - Res CN'!M:M,'O - Res CN'!$FS:$FS,$F3),SUMIFS('O - Comm CN'!M:M,'O - Comm CN'!$BW:$BW,$F3)) -> 560241.0347 | R3: =IF($E3="residential",SUMIFS('O - Res CN'!N:N,'O - Res CN'!$FS:$FS,$F3),SUMIFS('O - Comm CN'!N:N,'O - Comm CN'!$BW:$BW,$F3)) -> 575343.0958 | S3: =IF($E3="residential",SUMIFS('O - Res CN'!O:O,'O - Res CN'!$FS:$FS,$F3),SUMIFS('O - Comm CN'!O:O,'O - Comm CN'!$BW:$BW,$F3)) -> 585864.2564 | T3: =IF($E3="residential",SUMIFS('O - Res CN'!P:P,'O - Res CN'!$FS:$FS,$F3),SUMIFS('O - Comm CN'!P:P,'O - Comm CN'!$BW:$BW,$F3)) -> 603303.1502 | U3: =IF($E3="residential",SUMIFS('O - Res CN'!EP:EP,'O - Res CN'!$FS:$FS,$F3)+T3, (SUMIFS('O - Comm CN'!Q:Q,'O - Comm CN'!$BW:$BW,'O - CN sum'!$F3)/SUMIFS('O - Comm CN'!P:P,'O - Comm CN'!$BW:$BW,'O - CN sum'!$F3))*T3) -> 615376.7417 | V3: =IF($E3="residential",SUMIFS('O - Res CN'!EQ:EQ,'O - Res CN'!$FS:$FS,$F3)+U3, (SUMIFS('O - Comm CN'!R:R,'O - Comm CN'!$BW:$BW,'O - CN sum'!$F3)/SUMIFS('O - Comm CN'!Q:Q,'O - Comm CN'!$BW:$BW,'O - CN sum'!$F3))*U3) -> 622298.605 | W3: =IF($E3="residential",SUMIFS('O - Res CN'!ER:ER,'O - Res CN'!$FS:$FS,$F3)+V3, (SUMIFS('O - Comm CN'!S:S,'O - Comm CN'!$BW:$BW,'O - CN sum'!$F3)/SUMIFS('O - Comm CN'!R:R,'O - Comm CN'!$BW:$BW,'O - CN sum'!$F3))*V3) -> 626957.6503 | X3: =IF($E3="residential",SUMIFS('O - Res CN'!ES:ES,'O - Res CN'!$FS:$FS,$F3)+W3, (SUMIFS('O - Comm CN'!T:T,'O - Comm CN'!$BW:$BW,'O - CN sum'!$F3)/SUMIFS('O - Comm CN'!S:S,'O - Comm CN'!$BW:$BW,'O - CN sum'!$F3))*W3) -> 629692.3801 | Y3: =IF($E3="residential",SUMIFS('O - Res CN'!ET:ET,'O - Res CN'!$FS:$FS,$F3)+X3, (SUMIFS('O - Comm CN'!U:U,'O - Comm CN'!$BW:$BW,'O - CN sum'!$F3)/SUMIFS('O - Comm CN'!T:T,'O - Comm CN'!$BW:$BW,'O - CN sum'!$F3))*X3) -> 631372.6257 | Z3: =IF($E3="residential",SUMIFS('O - Res CN'!EU:EU,'O - Res CN'!$FS:$FS,$F3)+Y3, (SUMIFS('O - Comm CN'!V:V,'O - Comm CN'!$BW:$BW,'O - CN sum'!$F3)/SUMIFS('O - Comm CN'!U:U,'O - Comm CN'!$BW:$BW,'O - CN sum'!$F3))*Y3) -> 632461.5312 | AA3: =IF($E3="residential",SUMIFS('O - Res CN'!EV:EV,'O - Res CN'!$FS:$FS,$F3)+Z3, (SUMIFS('O - Comm CN'!W:W,'O - Comm CN'!$BW:$BW,'O - CN sum'!$F3)/SUMIFS('O - Comm CN'!V:V,'O - Comm CN'!$BW:$BW,'O - CN sum'!$F3))*Z3) -> 633435.4598 | AB3: =IF($E3="residential",SUMIFS('O - Res CN'!EW:EW,'O - Res CN'!$FS:$FS,$F3)+AA3, (SUMIFS('O - Comm CN'!X:X,'O - Comm CN'!$BW:$BW,'O - CN sum'!$F3)/SUMIFS('O - Comm CN'!W:W,'O - Comm CN'!$BW:$BW,'O - CN sum'!$F3))*AA3) -> 634361.2028 | AC3: =IF($E3="residential",SUMIFS('O - Res CN'!EX:EX,'O - Res CN'!$FS:$FS,$F3)+AB3, (SUMIFS('O - Comm CN'!Y:Y,'O - Comm CN'!$BW:$BW,'O - CN sum'!$F3)/SUMIFS('O - Comm CN'!X:X,'O - Comm CN'!$BW:$BW,'O - CN sum'!$F3))*AB3) -> 635274.9344 | AD3: =IF($E3="residential",SUMIFS('O - Res CN'!EY:EY,'O - Res CN'!$FS:$FS,$F3)+AC3, (SUMIFS('O - Comm CN'!Z:Z,'O - Comm CN'!$BW:$BW,'O - CN sum'!$F3)/SUMIFS('O - Comm CN'!Y:Y,'O - Comm CN'!$BW:$BW,'O - CN sum'!$F3))*AC3) -> 636131.6332 | AE3: =IF($E3="residential",SUMIFS('O - Res CN'!EZ:EZ,'O - Res CN'!$FS:$FS,$F3)+AD3, (SUMIFS('O - Comm CN'!AA:AA,'O - Comm CN'!$BW:$BW,'O - CN sum'!$F3)/SUMIFS('O - Comm CN'!Z:Z,'O - Comm CN'!$BW:$BW,'O - CN sum'!$F3))*AD3) -> 636931.9746 | AF3: =IF($E3="residential",SUMIFS('O - Res CN'!FA:FA,'O - Res CN'!$FS:$FS,$F3)+AE3, (SUMIFS('O - Comm CN'!AB:AB,'O - Comm CN'!$BW:$BW,'O - CN sum'!$F3)/SUMIFS('O - Comm CN'!AA:AA,'O - Comm CN'!$BW:$BW,'O - CN sum'!$F3))*AE3) -> 637677.1269 | AG3: =IF($E3="residential",SUMIFS('O - Res CN'!FB:FB,'O - Res CN'!$FS:$FS,$F3)+AF3, (SUMIFS('O - Comm CN'!AC:AC,'O - Comm CN'!$BW:$BW,'O - CN sum'!$F3)/SUMIFS('O - Comm CN'!AB:AB,'O - Comm CN'!$BW:$BW,'O - CN sum'!$F3))*AF3) -> 638368.4012 | AH3: =IF($E3="residential",SUMIFS('O - Res CN'!FC:FC,'O - Res CN'!$FS:$FS,$F3)+AG3, (SUMIFS('O - Comm CN'!AD:AD,'O - Comm CN'!$BW:$BW,'O - CN sum'!$F3)/SUMIFS('O - Comm CN'!AC:AC,'O - Comm CN'!$BW:$BW,'O - CN sum'!$F3))*AG3) -> 639119.486 | AI3: =IF($E3="residential",SUMIFS('O - Res CN'!FD:FD,'O - Res CN'!$FS:$FS,$F3)+AH3, (SUMIFS('O - Comm CN'!AE:AE,'O - Comm CN'!$BW:$BW,'O - CN sum'!$F3)/SUMIFS('O - Comm CN'!AD:AD,'O - Comm CN'!$BW:$BW,'O - CN sum'!$F3))*AH3) -> 639816.1697 | AJ3: =IF($E3="residential",SUMIFS('O - Res CN'!FE:FE,'O - Res CN'!$FS:$FS,$F3)+AI3, (SUMIFS('O - Comm CN'!AF:AF,'O - Comm CN'!$BW:$BW,'O - CN sum'!$F3)/SUMIFS('O - Comm CN'!AE:AE,'O - Comm CN'!$BW:$BW,'O - CN sum'!$F3))*AI3) -> 640458.7276 | AK3: =IF($E3="residential",SUMIFS('O - Res CN'!FF:FF,'O - Res CN'!$FS:$FS,$F3)+AJ3, (SUMIFS('O - Comm CN'!AG:AG,'O - Comm CN'!$BW:$BW,'O - CN sum'!$F3)/SUMIFS('O - Comm CN'!AF:AF,'O - Comm CN'!$BW:$BW,'O - CN sum'!$F3))*AJ3) -> 640952.8846 | AL3: =IF($E3="residential",SUMIFS('O - Res CN'!FG:FG,'O - Res CN'!$FS:$FS,$F3)+AK3, (SUMIFS('O - Comm CN'!AH:AH,'O - Comm CN'!$BW:$BW,'O - CN sum'!$F3)/SUMIFS('O - Comm CN'!AG:AG,'O - Comm CN'!$BW:$BW,'O - CN sum'!$F3))*AK3) -> 641440.8648 | AM3: =IF($E3="residential",SUMIFS('O - Res CN'!FH:FH,'O - Res CN'!$FS:$FS,$F3)+AL3, (SUMIFS('O - Comm CN'!AI:AI,'O - Comm CN'!$BW:$BW,'O - CN sum'!$F3)/SUMIFS('O - Comm CN'!AH:AH,'O - Comm CN'!$BW:$BW,'O - CN sum'!$F3))*AL3) -> 642057.4069 | AN3: =IF($E3="residential",SUMIFS('O - Res CN'!FI:FI,'O - Res CN'!$FS:$FS,$F3)+AM3, (SUMIFS('O - Comm CN'!AJ:AJ,'O - Comm CN'!$BW:$BW,'O - CN sum'!$F3)/SUMIFS('O - Comm CN'!AI:AI,'O - Comm CN'!$BW:$BW,'O - CN sum'!$F3))*AM3) -> 642666.2423 | AO3: =IF($E3="residential",SUMIFS('O - Res CN'!FJ:FJ,'O - Res CN'!$FS:$FS,$F3)+AN3, (SUMIFS('O - Comm CN'!AK:AK,'O - Comm CN'!$BW:$BW,'O - CN sum'!$F3)/SUMIFS('O - Comm CN'!AJ:AJ,'O - Comm CN'!$BW:$BW,'O - CN sum'!$F3))*AN3) -> 643267.4673 | AP3: =IF($E3="residential",SUMIFS('O - Res CN'!FK:FK,'O - Res CN'!$FS:$FS,$F3)+AO3, (SUMIFS('O - Comm CN'!AL:AL,'O - Comm CN'!$BW:$BW,'O - CN sum'!$F3)/SUMIFS('O - Comm CN'!AK:AK,'O - Comm CN'!$BW:$BW,'O - CN sum'!$F3))*AO3) -> 643861.1769 | AQ3: =IF($E3="residential",SUMIFS('O - Res CN'!FL:FL,'O - Res CN'!$FS:$FS,$F3)+AP3, (SUMIFS('O - Comm CN'!AM:AM,'O - Comm CN'!$BW:$BW,'O - CN sum'!$F3)/SUMIFS('O - Comm CN'!AL:AL,'O - Comm CN'!$BW:$BW,'O - CN sum'!$F3))*AP3) -> 644447.4652 | AR3: =IF($E3="residential",SUMIFS('O - Res CN'!FM:FM,'O - Res CN'!$FS:$FS,$F3)+AQ3, (SUMIFS('O - Comm CN'!AN:AN,'O - Comm CN'!$BW:$BW,'O - CN sum'!$F3)/SUMIFS('O - Comm CN'!AM:AM,'O - Comm CN'!$BW:$BW,'O - CN sum'!$F3))*AQ3) -> 645186.9601 | AS3: =IF($E3="residential",SUMIFS('O - Res CN'!FN:FN,'O - Res CN'!$FS:$FS,$F3)+AR3, (SUMIFS('O - Comm CN'!AO:AO,'O - Comm CN'!$BW:$BW,'O - CN sum'!$F3)/SUMIFS('O - Comm CN'!AN:AN,'O - Comm CN'!$BW:$BW,'O - CN sum'!$F3))*AR3) -> 645917.2113 | AT3: =IF($E3="residential",SUMIFS('O - Res CN'!FO:FO,'O - Res CN'!$FS:$FS,$F3)+AS3, (SUMIFS('O - Comm CN'!AP:AP,'O - Comm CN'!$BW:$BW,'O - CN sum'!$F3)/SUMIFS('O - Comm CN'!AO:AO,'O - Comm CN'!$BW:$BW,'O - CN sum'!$F3))*AS3) -> 646638.3344 | AU3: =IF($E3="residential",SUMIFS('O - Res CN'!FP:FP,'O - Res CN'!$FS:$FS,$F3)+AT3, (SUMIFS('O - Comm CN'!AQ:AQ,'O - Comm CN'!$BW:$BW,'O - CN sum'!$F3)/SUMIFS('O - Comm CN'!AP:AP,'O - Comm CN'!$BW:$BW,'O - CN sum'!$F3))*AT3) -> 647350.4435 | AW3: ='C - tariff volumes'!AP3 -> 594583.7033 | AX3: ='C - tariff volumes'!AR3 -> 608284.1654 | AY3: ='C - tariff volumes'!AS3 -> 615217.8545 | AZ3: ='C - tariff volumes'!AT3 -> 617237.664 | BA3: ='C - tariff volumes'!AU3 -> 615655.649 | BB3: ='C - tariff volumes'!AV3 -> 611075.9763 | BC3: ='C - tariff volumes'!AW3 -> 604919.2625 | BF3: =SUMIFS('O - Disconn'!D$126:D$133,'O - Disconn'!$A$126:$A$133,$A3,'O - Disconn'!$B$126:$B$133,$B3,'O - Disconn'!$C$126:$C$133,$C3) -> 1047 | BG3: =SUMIFS('O - Disconn'!E$126:E$133,'O - Disconn'!$A$126:$A$133,$A3,'O - Disconn'!$B$126:$B$133,$B3,'O - Disconn'!$C$126:$C$133,$C3) -> 1045 | BH3: =SUMIFS('O - Disconn'!F$126:F$133,'O - Disconn'!$A$126:$A$133,$A3,'O - Disconn'!$B$126:$B$133,$B3,'O - Disconn'!$C$126:$C$133,$C3) -> 1150 | BI3: =SUMIFS('O - Disconn'!G$126:G$133,'O - Disconn'!$A$126:$A$133,$A3,'O - Disconn'!$B$126:$B$133,$B3,'O - Disconn'!$C$126:$C$133,$C3) -> 1353 | BJ3: =SUMIFS('O - Disconn'!H$126:H$133,'O - Disconn'!$A$126:$A$133,$A3,'O - Disconn'!$B$126:$B$133,$B3,'O - Disconn'!$C$126:$C$133,$C3) -> 1485 | BK3: =SUMIFS('O - Disconn'!I$126:I$133,'O - Disconn'!$A$126:$A$133,$A3,'O - Disconn'!$B$126:$B$133,$B3,'O - Disconn'!$C$126:$C$133,$C3) -> 1344 | BL3: =SUMIFS('O - Disconn'!J$126:J$133,'O - Disconn'!$A$126:$A$133,$A3,'O - Disconn'!$B$126:$B$133,$B3,'O - Disconn'!$C$126:$C$133,$C3) -> 1069 | BM3: =SUMIFS('O - Disconn'!K$126:K$133,'O - Disconn'!$A$126:$A$133,$A3,'O - Disconn'!$B$126:$B$133,$B3,'O - Disconn'!$C$126:$C$133,$C3) -> 1830 | BN3: =SUMIFS('O - Disconn'!L$126:L$133,'O - Disconn'!$A$126:$A$133,$A3,'O - Disconn'!$B$126:$B$133,$B3,'O - Disconn'!$C$126:$C$133,$C3) -> 1611 | BO3: =SUMIFS('O - Disconn'!M$126:M$133,'O - Disconn'!$A$126:$A$133,$A3,'O - Disconn'!$B$126:$B$133,$B3,'O - Disconn'!$C$126:$C$133,$C3) -> 1679 | BP3: =SUMIFS('O - Disconn'!N$126:N$133,'O - Disconn'!$A$126:$A$133,$A3,'O - Disconn'!$B$126:$B$133,$B3,'O - Disconn'!$C$126:$C$133,$C3) -> 2029 | BQ3: =SUMIFS('O - Disconn'!O$126:O$133,'O - Disconn'!$A$126:$A$133,$A3,'O - Disconn'!$B$126:$B$133,$B3,'O - Disconn'!$C$126:$C$133,$C3) -> 1781 | BR3: =SUMIFS('O - Disconn'!P$126:P$133,'O - Disconn'!$A$126:$A$133,$A3,'O - Disconn'!$B$126:$B$133,$B3,'O - Disconn'!$C$126:$C$133,$C3) -> 1378 | BS3: =SUMIFS('O - Disconn'!Q$126:Q$133,'O - Disconn'!$A$126:$A$133,$A3,'O - Disconn'!$B$126:$B$133,$B3,'O - Disconn'!$C$126:$C$133,$C3) -> 1815.492028 | BT3: =SUMIFS('O - Disconn'!R$126:R$133,'O - Disconn'!$A$126:$A$133,$A3,'O - Disconn'!$B$126:$B$133,$B3,'O - Disconn'!$C$126:$C$133,$C3) -> 1835.912994 | BU3: =SUMIFS('O - Disconn'!S$126:S$133,'O - Disconn'!$A$126:$A$133,$A3,'O - Disconn'!$B$126:$B$133,$B3,'O - Disconn'!$C$126:$C$133,$C3) -> 1849.658167 | BV3: =SUMIFS('O - Disconn'!T$126:T$133,'O - Disconn'!$A$126:$A$133,$A3,'O - Disconn'!$B$126:$B$133,$B3,'O - Disconn'!$C$126:$C$133,$C3) -> 1857.726201 | BW3: =SUMIFS('O - Disconn'!U$126:U$133,'O - Disconn'!$A$126:$A$133,$A3,'O - Disconn'!$B$126:$B$133,$B3,'O - Disconn'!$C$126:$C$133,$C3) -> 1862.683282 | BX3: =SUMIFS('O - Disconn'!V$126:V$133,'O - Disconn'!$A$126:$A$133,$A3,'O - Disconn'!$B$126:$B$133,$B3,'O - Disconn'!$C$126:$C$133,$C3) -> 1865.895784 | BY3: =SUMIFS('O - Disconn'!W$126:W$133,'O - Disconn'!$A$126:$A$133,$A3,'O - Disconn'!$B$126:$B$133,$B3,'O - Disconn'!$C$126:$C$133,$C3) -> 1868.76908 | BZ3: =SUMIFS('O - Disconn'!X$126:X$133,'O - Disconn'!$A$126:$A$133,$A3,'O - Disconn'!$B$126:$B$133,$B3,'O - Disconn'!$C$126:$C$133,$C3) -> 1871.500219 | CA3: =SUMIFS('O - Disconn'!Y$126:Y$133,'O - Disconn'!$A$126:$A$133,$A3,'O - Disconn'!$B$126:$B$133,$B3,'O - Disconn'!$C$126:$C$133,$C3) -> 1874.195921 | CB3: =SUMIFS('O - Disconn'!Z$126:Z$133,'O - Disconn'!$A$126:$A$133,$A3,'O - Disconn'!$B$126:$B$133,$B3,'O - Disconn'!$C$126:$C$133,$C3) -> 1876.723364 | CC3: =SUMIFS('O - Disconn'!AA$126:AA$133,'O - Disconn'!$A$126:$A$133,$A3,'O - Disconn'!$B$126:$B$133,$B3,'O - Disconn'!$C$126:$C$133,$C3) -> 1879.084541 | CD3: =SUMIFS('O - Disconn'!AB$126:AB$133,'O - Disconn'!$A$126:$A$133,$A3,'O - Disconn'!$B$126:$B$133,$B3,'O - Disconn'!$C$126:$C$133,$C3) -> 1881.282899 | CE3: =SUMIFS('O - Disconn'!AC$126:AC$133,'O - Disconn'!$A$126:$A$133,$A3,'O - Disconn'!$B$126:$B$133,$B3,'O - Disconn'!$C$126:$C$133,$C3) -> 1883.322305 | CF3: =SUMIFS('O - Disconn'!AD$126:AD$133,'O - Disconn'!$A$126:$A$133,$A3,'O - Disconn'!$B$126:$B$133,$B3,'O - Disconn'!$C$126:$C$133,$C3) -> 1885.538164 | CG3: =SUMIFS('O - Disconn'!AE$126:AE$133,'O - Disconn'!$A$126:$A$133,$A3,'O - Disconn'!$B$126:$B$133,$B3,'O - Disconn'!$C$126:$C$133,$C3) -> 1887.593529 | CH3: =SUMIFS('O - Disconn'!AF$126:AF$133,'O - Disconn'!$A$126:$A$133,$A3,'O - Disconn'!$B$126:$B$133,$B3,'O - Disconn'!$C$126:$C$133,$C3) -> 1889.489211 | CI3: =SUMIFS('O - Disconn'!AG$126:AG$133,'O - Disconn'!$A$126:$A$133,$A3,'O - Disconn'!$B$126:$B$133,$B3,'O - Disconn'!$C$126:$C$133,$C3) -> 1890.947079 | CJ3: =SUMIFS('O - Disconn'!AH$126:AH$133,'O - Disconn'!$A$126:$A$133,$A3,'O - Disconn'!$B$126:$B$133,$B3,'O - Disconn'!$C$126:$C$133,$C3) -> 1892.386724 | CK3: =SUMIFS('O - Disconn'!AI$126:AI$133,'O - Disconn'!$A$126:$A$133,$A3,'O - Disconn'!$B$126:$B$133,$B3,'O - Disconn'!$C$126:$C$133,$C3) -> 1894.205655 | CL3: =SUMIFS('O - Disconn'!AJ$126:AJ$133,'O - Disconn'!$A$126:$A$133,$A3,'O - Disconn'!$B$126:$B$133,$B3,'O - Disconn'!$C$126:$C$133,$C3) -> 1896.001848 | CM3: =SUMIFS('O - Disconn'!AK$126:AK$133,'O - Disconn'!$A$126:$A$133,$A3,'O - Disconn'!$B$126:$B$133,$B3,'O - Disconn'!$C$126:$C$133,$C3) -> 1897.77559 | CN3: =SUMIFS('O - Disconn'!AL$126:AL$133,'O - Disconn'!$A$126:$A$133,$A3,'O - Disconn'!$B$126:$B$133,$B3,'O - Disconn'!$C$126:$C$133,$C3) -> 1899.527159 | CO3: =SUMIFS('O - Disconn'!AM$126:AM$133,'O - Disconn'!$A$126:$A$133,$A3,'O - Disconn'!$B$126:$B$133,$B3,'O - Disconn'!$C$126:$C$133,$C3) -> 1901.256834 | CP3: =SUMIFS('O - Disconn'!AN$126:AN$133,'O - Disconn'!$A$126:$A$133,$A3,'O - Disconn'!$B$126:$B$133,$B3,'O - Disconn'!$C$126:$C$133,$C3) -> 1903.438501 | CQ3: =SUMIFS('O - Disconn'!AO$126:AO$133,'O - Disconn'!$A$126:$A$133,$A3,'O - Disconn'!$B$126:$B$133,$B3,'O - Disconn'!$C$126:$C$133,$C3) -> 1905.592897 | CR3: =SUMIFS('O - Disconn'!AP$126:AP$133,'O - Disconn'!$A$126:$A$133,$A3,'O - Disconn'!$B$126:$B$133,$B3,'O - Disconn'!$C$126:$C$133,$C3) -> 1907.720363 | CS3: =SUMIFS('O - Disconn'!AQ$126:AQ$133,'O - Disconn'!$A$126:$A$133,$A3,'O - Disconn'!$B$126:$B$133,$B3,'O - Disconn'!$C$126:$C$133,$C3) -> 1909.821236 | CV3: ='O - Disconn'!AT126 -> 689 | CW3: ='O - Disconn'!AW126+'I - assumptions'!$B$119*'O - Disconn'!Q126 -> 1798.746014 | CX3: =AVERAGE(BS3:BT3) -> 1825.702511 | CY3: 1842.785581 | CZ3: 1853.692184 | DA3: 1860.204741 | DB3: 1864.289533
A4: 2 | B4: 1 | C4: 1 | E4: commercial | F4: central | H4: =IF($E4="residential",SUMIFS('O - Res CN'!D:D,'O - Res CN'!$FS:$FS,$F4),SUMIFS('O - Comm CN'!D:D,'O - Comm CN'!$BW:$BW,$F4)) -> 9933.808206 | I4: =IF($E4="residential",SUMIFS('O - Res CN'!E:E,'O - Res CN'!$FS:$FS,$F4),SUMIFS('O - Comm CN'!E:E,'O - Comm CN'!$BW:$BW,$F4)) -> 10047.58481 | J4: =IF($E4="residential",SUMIFS('O - Res CN'!F:F,'O - Res CN'!$FS:$FS,$F4),SUMIFS('O - Comm CN'!F:F,'O - Comm CN'!$BW:$BW,$F4)) -> 10163.23015 | K4: =IF($E4="residential",SUMIFS('O - Res CN'!G:G,'O - Res CN'!$FS:$FS,$F4),SUMIFS('O - Comm CN'!G:G,'O - Comm CN'!$BW:$BW,$F4)) -> 10287.52874 | L4: =IF($E4="residential",SUMIFS('O - Res CN'!H:H,'O - Res CN'!$FS:$FS,$F4),SUMIFS('O - Comm CN'!H:H,'O - Comm CN'!$BW:$BW,$F4)) -> 10358.56712 | M4: =IF($E4="residential",SUMIFS('O - Res CN'!I:I,'O - Res CN'!$FS:$FS,$F4),SUMIFS('O - Comm CN'!I:I,'O - Comm CN'!$BW:$BW,$F4)) -> 10302.66525 | N4: =IF($E4="residential",SUMIFS('O - Res CN'!J:J,'O - Res CN'!$FS:$FS,$F4),SUMIFS('O - Comm CN'!J:J,'O - Comm CN'!$BW:$BW,$F4)) -> 10285.21368 | O4: =IF($E4="residential",SUMIFS('O - Res CN'!K:K,'O - Res CN'!$FS:$FS,$F4),SUMIFS('O - Comm CN'!K:K,'O - Comm CN'!$BW:$BW,$F4)) -> 10305.59455 | P4: =IF($E4="residential",SUMIFS('O - Res CN'!L:L,'O - Res CN'!$FS:$FS,$F4),SUMIFS('O - Comm CN'!L:L,'O - Comm CN'!$BW:$BW,$F4)) -> 10348.09313 | Q4: =IF($E4="residential",SUMIFS('O - Res CN'!M:M,'O - Res CN'!$FS:$FS,$F4),SUMIFS('O - Comm CN'!M:M,'O - Comm CN'!$BW:$BW,$F4)) -> 10341.82347 | R4: =IF($E4="residential",SUMIFS('O - Res CN'!N:N,'O - Res CN'!$FS:$FS,$F4),SUMIFS('O - Comm CN'!N:N,'O - Comm CN'!$BW:$BW,$F4)) -> 10638.07943 | S4: =IF($E4="residential",SUMIFS('O - Res CN'!O:O,'O - Res CN'!$FS:$FS,$F4),SUMIFS('O - Comm CN'!O:O,'O - Comm CN'!$BW:$BW,$F4)) -> 10760.61093 | T4: =IF($E4="residential",SUMIFS('O - Res CN'!P:P,'O - Res CN'!$FS:$FS,$F4),SUMIFS('O - Comm CN'!P:P,'O - Comm CN'!$BW:$BW,$F4)) -> 10832.28217 | U4: =IF($E4="residential",SUMIFS('O - Res CN'!EP:EP,'O - Res CN'!$FS:$FS,$F4)+T4, (SUMIFS('O - Comm CN'!Q:Q,'O - Comm CN'!$BW:$BW,'O - CN sum'!$F4)/SUMIFS('O - Comm CN'!P:P,'O - Comm CN'!$BW:$BW,'O - CN sum'!$F4))*T4) -> 10961.96853 | V4: =IF($E4="residential",SUMIFS('O - Res CN'!EQ:EQ,'O - Res CN'!$FS:$FS,$F4)+U4, (SUMIFS('O - Comm CN'!R:R,'O - Comm CN'!$BW:$BW,'O - CN sum'!$F4)/SUMIFS('O - Comm CN'!Q:Q,'O - Comm CN'!$BW:$BW,'O - CN sum'!$F4))*U4) -> 11035.11747 | W4: =IF($E4="residential",SUMIFS('O - Res CN'!ER:ER,'O - Res CN'!$FS:$FS,$F4)+V4, (SUMIFS('O - Comm CN'!S:S,'O - Comm CN'!$BW:$BW,'O - CN sum'!$F4)/SUMIFS('O - Comm CN'!R:R,'O - Comm CN'!$BW:$BW,'O - CN sum'!$F4))*V4) -> 11084.38805 | X4: =IF($E4="residential",SUMIFS('O - Res CN'!ES:ES,'O - Res CN'!$FS:$FS,$F4)+W4, (SUMIFS('O - Comm CN'!T:T,'O - Comm CN'!$BW:$BW,'O - CN sum'!$F4)/SUMIFS('O - Comm CN'!S:S,'O - Comm CN'!$BW:$BW,'O - CN sum'!$F4))*W4) -> 11113.30798 | Y4: =IF($E4="residential",SUMIFS('O - Res CN'!ET:ET,'O - Res CN'!$FS:$FS,$F4)+X4, (SUMIFS('O - Comm CN'!U:U,'O - Comm CN'!$BW:$BW,'O - CN sum'!$F4)/SUMIFS('O - Comm CN'!T:T,'O - Comm CN'!$BW:$BW,'O - CN sum'!$F4))*X4) -> 11131.11187 | Z4: =IF($E4="residential",SUMIFS('O - Res CN'!EU:EU,'O - Res CN'!$FS:$FS,$F4)+Y4, (SUMIFS('O - Comm CN'!V:V,'O - Comm CN'!$BW:$BW,'O - CN sum'!$F4)/SUMIFS('O - Comm CN'!U:U,'O - Comm CN'!$BW:$BW,'O - CN sum'!$F4))*Y4) -> 11142.68593 | AA4: =IF($E4="residential",SUMIFS('O - Res CN'!EV:EV,'O - Res CN'!$FS:$FS,$F4)+Z4, (SUMIFS('O - Comm CN'!W:W,'O - Comm CN'!$BW:$BW,'O - CN sum'!$F4)/SUMIFS('O - Comm CN'!V:V,'O - Comm CN'!$BW:$BW,'O - CN sum'!$F4))*Z4) -> 11153.0433 | AB4: =IF($E4="residential",SUMIFS('O - Res CN'!EW:EW,'O - Res CN'!$FS:$FS,$F4)+AA4, (SUMIFS('O - Comm CN'!X:X,'O - Comm CN'!$BW:$BW,'O - CN sum'!$F4)/SUMIFS('O - Comm CN'!W:W,'O - Comm CN'!$BW:$BW,'O - CN sum'!$F4))*AA4) -> 11162.8897 | AC4: =IF($E4="residential",SUMIFS('O - Res CN'!EX:EX,'O - Res CN'!$FS:$FS,$F4)+AB4, (SUMIFS('O - Comm CN'!Y:Y,'O - Comm CN'!$BW:$BW,'O - CN sum'!$F4)/SUMIFS('O - Comm CN'!X:X,'O - Comm CN'!$BW:$BW,'O - CN sum'!$F4))*AB4) -> 11172.60357 | AD4: =IF($E4="residential",SUMIFS('O - Res CN'!EY:EY,'O - Res CN'!$FS:$FS,$F4)+AC4, (SUMIFS('O - Comm CN'!Z:Z,'O - Comm CN'!$BW:$BW,'O - CN sum'!$F4)/SUMIFS('O - Comm CN'!Y:Y,'O - Comm CN'!$BW:$BW,'O - CN sum'!$F4))*AC4) -> 11181.71492 | AE4: =IF($E4="residential",SUMIFS('O - Res CN'!EZ:EZ,'O - Res CN'!$FS:$FS,$F4)+AD4, (SUMIFS('O - Comm CN'!AA:AA,'O - Comm CN'!$BW:$BW,'O - CN sum'!$F4)/SUMIFS('O - Comm CN'!Z:Z,'O - Comm CN'!$BW:$BW,'O - CN sum'!$F4))*AD4) -> 11190.23099 | AF4: =IF($E4="residential",SUMIFS('O - Res CN'!FA:FA,'O - Res CN'!$FS:$FS,$F4)+AE4, (SUMIFS('O - Comm CN'!AB:AB,'O - Comm CN'!$BW:$BW,'O - CN sum'!$F4)/SUMIFS('O - Comm CN'!AA:AA,'O - Comm CN'!$BW:$BW,'O - CN sum'!$F4))*AE4) -> 11198.16434 | AG4: =IF($E4="residential",SUMIFS('O - Res CN'!FB:FB,'O - Res CN'!$FS:$FS,$F4)+AF4, (SUMIFS('O - Comm CN'!AC:AC,'O - Comm CN'!$BW:$BW,'O - CN sum'!$F4)/SUMIFS('O - Comm CN'!AB:AB,'O - Comm CN'!$BW:$BW,'O - CN sum'!$F4))*AF4) -> 11205.52905 | AH4: =IF($E4="residential",SUMIFS('O - Res CN'!FC:FC,'O - Res CN'!$FS:$FS,$F4)+AG4, (SUMIFS('O - Comm CN'!AD:AD,'O - Comm CN'!$BW:$BW,'O - CN sum'!$F4)/SUMIFS('O - Comm CN'!AC:AC,'O - Comm CN'!$BW:$BW,'O - CN sum'!$F4))*AG4) -> 11213.54629 | AI4: =IF($E4="residential",SUMIFS('O - Res CN'!FD:FD,'O - Res CN'!$FS:$FS,$F4)+AH4, (SUMIFS('O - Comm CN'!AE:AE,'O - Comm CN'!$BW:$BW,'O - CN sum'!$F4)/SUMIFS('O - Comm CN'!AD:AD,'O - Comm CN'!$BW:$BW,'O - CN sum'!$F4))*AH4) -> 11220.98927 | AJ4: =IF($E4="residential",SUMIFS('O - Res CN'!FE:FE,'O - Res CN'!$FS:$FS,$F4)+AI4, (SUMIFS('O - Comm CN'!AF:AF,'O - Comm CN'!$BW:$BW,'O - CN sum'!$F4)/SUMIFS('O - Comm CN'!AE:AE,'O - Comm CN'!$BW:$BW,'O - CN sum'!$F4))*AI4) -> 11227.86095 | AK4: =IF($E4="residential",SUMIFS('O - Res CN'!FF:FF,'O - Res CN'!$FS:$FS,$F4)+AJ4, (SUMIFS('O - Comm CN'!AG:AG,'O - Comm CN'!$BW:$BW,'O - CN sum'!$F4)/SUMIFS('O - Comm CN'!AF:AF,'O - Comm CN'!$BW:$BW,'O - CN sum'!$F4))*AJ4) -> 11233.16885 | AL4: =IF($E4="residential",SUMIFS('O - Res CN'!FG:FG,'O - Res CN'!$FS:$FS,$F4)+AK4, (SUMIFS('O - Comm CN'!AH:AH,'O - Comm CN'!$BW:$BW,'O - CN sum'!$F4)/SUMIFS('O - Comm CN'!AG:AG,'O - Comm CN'!$BW:$BW,'O - CN sum'!$F4))*AK4) -> 11238.4104 | AM4: =IF($E4="residential",SUMIFS('O - Res CN'!FH:FH,'O - Res CN'!$FS:$FS,$F4)+AL4, (SUMIFS('O - Comm CN'!AI:AI,'O - Comm CN'!$BW:$BW,'O - CN sum'!$F4)/SUMIFS('O - Comm CN'!AH:AH,'O - Comm CN'!$BW:$BW,'O - CN sum'!$F4))*AL4) -> 11245.03288 | AN4: =IF($E4="residential",SUMIFS('O - Res CN'!FI:FI,'O - Res CN'!$FS:$FS,$F4)+AM4, (SUMIFS('O - Comm CN'!AJ:AJ,'O - Comm CN'!$BW:$BW,'O - CN sum'!$F4)/SUMIFS('O - Comm CN'!AI:AI,'O - Comm CN'!$BW:$BW,'O - CN sum'!$F4))*AM4) -> 11251.57258 | AO4: =IF($E4="residential",SUMIFS('O - Res CN'!FJ:FJ,'O - Res CN'!$FS:$FS,$F4)+AN4, (SUMIFS('O - Comm CN'!AK:AK,'O - Comm CN'!$BW:$BW,'O - CN sum'!$F4)/SUMIFS('O - Comm CN'!AJ:AJ,'O - Comm CN'!$BW:$BW,'O - CN sum'!$F4))*AN4) -> 11258.03053 | AP4: =IF($E4="residential",SUMIFS('O - Res CN'!FK:FK,'O - Res CN'!$FS:$FS,$F4)+AO4, (SUMIFS('O - Comm CN'!AL:AL,'O - Comm CN'!$BW:$BW,'O - CN sum'!$F4)/SUMIFS('O - Comm CN'!AK:AK,'O - Comm CN'!$BW:$BW,'O - CN sum'!$F4))*AO4) -> 11264.40776 | AQ4: =IF($E4="residential",SUMIFS('O - Res CN'!FL:FL,'O - Res CN'!$FS:$FS,$F4)+AP4, (SUMIFS('O - Comm CN'!AM:AM,'O - Comm CN'!$BW:$BW,'O - CN sum'!$F4)/SUMIFS('O - Comm CN'!AL:AL,'O - Comm CN'!$BW:$BW,'O - CN sum'!$F4))*AP4) -> 11270.70527 | AR4: =IF($E4="residential",SUMIFS('O - Res CN'!FM:FM,'O - Res CN'!$FS:$FS,$F4)+AQ4, (SUMIFS('O - Comm CN'!AN:AN,'O - Comm CN'!$BW:$BW,'O - CN sum'!$F4)/SUMIFS('O - Comm CN'!AM:AM,'O - Comm CN'!$BW:$BW,'O - CN sum'!$F4))*AQ4) -> 11278.64843 | AS4: =IF($E4="residential",SUMIFS('O - Res CN'!FN:FN,'O - Res CN'!$FS:$FS,$F4)+AR4, (SUMIFS('O - Comm CN'!AO:AO,'O - Comm CN'!$BW:$BW,'O - CN sum'!$F4)/SUMIFS('O - Comm CN'!AN:AN,'O - Comm CN'!$BW:$BW,'O - CN sum'!$F4))*AR4) -> 11286.49229 | AT4: =IF($E4="residential",SUMIFS('O - Res CN'!FO:FO,'O - Res CN'!$FS:$FS,$F4)+AS4, (SUMIFS('O - Comm CN'!AP:AP,'O - Comm CN'!$BW:$BW,'O - CN sum'!$F4)/SUMIFS('O - Comm CN'!AO:AO,'O - Comm CN'!$BW:$BW,'O - CN sum'!$F4))*AS4) -> 11294.23811 | AU4: =IF($E4="residential",SUMIFS('O - Res CN'!FP:FP,'O - Res CN'!$FS:$FS,$F4)+AT4, (SUMIFS('O - Comm CN'!AQ:AQ,'O - Comm CN'!$BW:$BW,'O - CN sum'!$F4)/SUMIFS('O - Comm CN'!AP:AP,'O - Comm CN'!$BW:$BW,'O - CN sum'!$F4))*AT4) -> 11301.88711 | AW4: ='C - tariff volumes'!AP13 -> 10796.44655 | AX4: ='C - tariff volumes'!AR13 -> 10878.16885 | AY4: ='C - tariff volumes'!AS13 -> 10933.54931 | AZ4: ='C - tariff volumes'!AT13 -> 10927.05731 | BA4: ='C - tariff volumes'!AU13 -> 10871.37009 | BB4: ='C - tariff volumes'!AV13 -> 10772.86882 | BC4: ='C - tariff volumes'!AW13 -> 10652.15427 | BF4: =SUMIFS('O - Disconn'!D$126:D$133,'O - Disconn'!$A$126:$A$133,$A4,'O - Disconn'!$B$126:$B$133,$B4,'O - Disconn'!$C$126:$C$133,$C4) -> 75 | BG4: =SUMIFS('O - Disconn'!E$126:E$133,'O - Disconn'!$A$126:$A$133,$A4,'O - Disconn'!$B$126:$B$133,$B4,'O - Disconn'!$C$126:$C$133,$C4) -> 45 | BH4: =SUMIFS('O - Disconn'!F$126:F$133,'O - Disconn'!$A$126:$A$133,$A4,'O - Disconn'!$B$126:$B$133,$B4,'O - Disconn'!$C$126:$C$133,$C4) -> 82 | BI4: =SUMIFS('O - Disconn'!G$126:G$133,'O - Disconn'!$A$126:$A$133,$A4,'O - Disconn'!$B$126:$B$133,$B4,'O - Disconn'!$C$126:$C$133,$C4) -> 74 | BJ4: =SUMIFS('O - Disconn'!H$126:H$133,'O - Disconn'!$A$126:$A$133,$A4,'O - Disconn'!$B$126:$B$133,$B4,'O - Disconn'!$C$126:$C$133,$C4) -> 70 | BK4: =SUMIFS('O - Disconn'!I$126:I$133,'O - Disconn'!$A$126:$A$133,$A4,'O - Disconn'!$B$126:$B$133,$B4,'O - Disconn'!$C$126:$C$133,$C4) -> 51 | BL4: =SUMIFS('O - Disconn'!J$126:J$133,'O - Disconn'!$A$126:$A$133,$A4,'O - Disconn'!$B$126:$B$133,$B4,'O - Disconn'!$C$126:$C$133,$C4) -> 40 | BM4: =SUMIFS('O - Disconn'!K$126:K$133,'O - Disconn'!$A$126:$A$133,$A4,'O - Disconn'!$B$126:$B$133,$B4,'O - Disconn'!$C$126:$C$133,$C4) -> 75 | BN4: =SUMIFS('O - Disconn'!L$126:L$133,'O - Disconn'!$A$126:$A$133,$A4,'O - Disconn'!$B$126:$B$133,$B4,'O - Disconn'!$C$126:$C$133,$C4) -> 64 | BO4: =SUMIFS('O - Disconn'!M$126:M$133,'O - Disconn'!$A$126:$A$133,$A4,'O - Disconn'!$B$126:$B$133,$B4,'O - Disconn'!$C$126:$C$133,$C4) -> 64 | BP4: =SUMIFS('O - Disconn'!N$126:N$133,'O - Disconn'!$A$126:$A$133,$A4,'O - Disconn'!$B$126:$B$133,$B4,'O - Disconn'!$C$126:$C$133,$C4) -> 74 | BQ4: =SUMIFS('O - Disconn'!O$126:O$133,'O - Disconn'!$A$126:$A$133,$A4,'O - Disconn'!$B$126:$B$133,$B4,'O - Disconn'!$C$126:$C$133,$C4) -> 56 | BR4: =SUMIFS('O - Disconn'!P$126:P$133,'O - Disconn'!$A$126:$A$133,$A4,'O - Disconn'!$B$126:$B$133,$B4,'O - Disconn'!$C$126:$C$133,$C4) -> 34 | BS4: =SUMIFS('O - Disconn'!Q$126:Q$133,'O - Disconn'!$A$126:$A$133,$A4,'O - Disconn'!$B$126:$B$133,$B4,'O - Disconn'!$C$126:$C$133,$C4) -> 55.90265743 | BT4: =SUMIFS('O - Disconn'!R$126:R$133,'O - Disconn'!$A$126:$A$133,$A4,'O - Disconn'!$B$126:$B$133,$B4,'O - Disconn'!$C$126:$C$133,$C4) -> 56.27569446 | BU4: =SUMIFS('O - Disconn'!S$126:S$133,'O - Disconn'!$A$126:$A$133,$A4,'O - Disconn'!$B$126:$B$133,$B4,'O - Disconn'!$C$126:$C$133,$C4) -> 56.52695923 | BV4: =SUMIFS('O - Disconn'!T$126:T$133,'O - Disconn'!$A$126:$A$133,$A4,'O - Disconn'!$B$126:$B$133,$B4,'O - Disconn'!$C$126:$C$133,$C4) -> 56.67444191 | BW4: =SUMIFS('O - Disconn'!U$126:U$133,'O - Disconn'!$A$126:$A$133,$A4,'O - Disconn'!$B$126:$B$133,$B4,'O - Disconn'!$C$126:$C$133,$C4) -> 56.76523625 | BX4: =SUMIFS('O - Disconn'!V$126:V$133,'O - Disconn'!$A$126:$A$133,$A4,'O - Disconn'!$B$126:$B$133,$B4,'O - Disconn'!$C$126:$C$133,$C4) -> 56.8242604 | BY4: =SUMIFS('O - Disconn'!W$126:W$133,'O - Disconn'!$A$126:$A$133,$A4,'O - Disconn'!$B$126:$B$133,$B4,'O - Disconn'!$C$126:$C$133,$C4) -> 56.87707981 | BZ4: =SUMIFS('O - Disconn'!X$126:X$133,'O - Disconn'!$A$126:$A$133,$A4,'O - Disconn'!$B$126:$B$133,$B4,'O - Disconn'!$C$126:$C$133,$C4) -> 56.92729339 | CA4: =SUMIFS('O - Disconn'!Y$126:Y$133,'O - Disconn'!$A$126:$A$133,$A4,'O - Disconn'!$B$126:$B$133,$B4,'O - Disconn'!$C$126:$C$133,$C4) -> 56.97683115 | CB4: =SUMIFS('O - Disconn'!Z$126:Z$133,'O - Disconn'!$A$126:$A$133,$A4,'O - Disconn'!$B$126:$B$133,$B4,'O - Disconn'!$C$126:$C$133,$C4) -> 57.02329619 | CC4: =SUMIFS('O - Disconn'!AA$126:AA$133,'O - Disconn'!$A$126:$A$133,$A4,'O - Disconn'!$B$126:$B$133,$B4,'O - Disconn'!$C$126:$C$133,$C4) -> 57.06672554 | CD4: =SUMIFS('O - Disconn'!AB$126:AB$133,'O - Disconn'!$A$126:$A$133,$A4,'O - Disconn'!$B$126:$B$133,$B4,'O - Disconn'!$C$126:$C$133,$C4) -> 57.10718319 | CE4: =SUMIFS('O - Disconn'!AC$126:AC$133,'O - Disconn'!$A$126:$A$133,$A4,'O - Disconn'!$B$126:$B$133,$B4,'O - Disconn'!$C$126:$C$133,$C4) -> 57.14474094 | CF4: =SUMIFS('O - Disconn'!AD$126:AD$133,'O - Disconn'!$A$126:$A$133,$A4,'O - Disconn'!$B$126:$B$133,$B4,'O - Disconn'!$C$126:$C$133,$C4) -> 57.18562638 | CG4: =SUMIFS('O - Disconn'!AE$126:AE$133,'O - Disconn'!$A$126:$A$133,$A4,'O - Disconn'!$B$126:$B$133,$B4,'O - Disconn'!$C$126:$C$133,$C4) -> 57.22358328 | CH4: =SUMIFS('O - Disconn'!AF$126:AF$133,'O - Disconn'!$A$126:$A$133,$A4,'O - Disconn'!$B$126:$B$133,$B4,'O - Disconn'!$C$126:$C$133,$C4) -> 57.25862672 | CI4: =SUMIFS('O - Disconn'!AG$126:AG$133,'O - Disconn'!$A$126:$A$133,$A4,'O - Disconn'!$B$126:$B$133,$B4,'O - Disconn'!$C$126:$C$133,$C4) -> 57.28569538 | CJ4: =SUMIFS('O - Disconn'!AH$126:AH$133,'O - Disconn'!$A$126:$A$133,$A4,'O - Disconn'!$B$126:$B$133,$B4,'O - Disconn'!$C$126:$C$133,$C4) -> 57.31242568 | CK4: =SUMIFS('O - Disconn'!AI$126:AI$133,'O - Disconn'!$A$126:$A$133,$A4,'O - Disconn'!$B$126:$B$133,$B4,'O - Disconn'!$C$126:$C$133,$C4) -> 57.34619828 | CL4: =SUMIFS('O - Disconn'!AJ$126:AJ$133,'O - Disconn'!$A$126:$A$133,$A4,'O - Disconn'!$B$126:$B$133,$B4,'O - Disconn'!$C$126:$C$133,$C4) -> 57.37954873 | CM4: =SUMIFS('O - Disconn'!AK$126:AK$133,'O - Disconn'!$A$126:$A$133,$A4,'O - Disconn'!$B$126:$B$133,$B4,'O - Disconn'!$C$126:$C$133,$C4) -> 57.41248229 | CN4: =SUMIFS('O - Disconn'!AL$126:AL$133,'O - Disconn'!$A$126:$A$133,$A4,'O - Disconn'!$B$126:$B$133,$B4,'O - Disconn'!$C$126:$C$133,$C4) -> 57.44500419 | CO4: =SUMIFS('O - Disconn'!AM$126:AM$133,'O - Disconn'!$A$126:$A$133,$A4,'O - Disconn'!$B$126:$B$133,$B4,'O - Disconn'!$C$126:$C$133,$C4) -> 57.47711956 | CP4: =SUMIFS('O - Disconn'!AN$126:AN$133,'O - Disconn'!$A$126:$A$133,$A4,'O - Disconn'!$B$126:$B$133,$B4,'O - Disconn'!$C$126:$C$133,$C4) -> 57.5176272 | CQ4: =SUMIFS('O - Disconn'!AO$126:AO$133,'O - Disconn'!$A$126:$A$133,$A4,'O - Disconn'!$B$126:$B$133,$B4,'O - Disconn'!$C$126:$C$133,$C4) -> 57.55762849 | CR4: =SUMIFS('O - Disconn'!AP$126:AP$133,'O - Disconn'!$A$126:$A$133,$A4,'O - Disconn'!$B$126:$B$133,$B4,'O - Disconn'!$C$126:$C$133,$C4) -> 57.59712977 | CS4: =SUMIFS('O - Disconn'!AQ$126:AQ$133,'O - Disconn'!$A$126:$A$133,$A4,'O - Disconn'!$B$126:$B$133,$B4,'O - Disconn'!$C$126:$C$133,$C4) -> 57.63613728 | CV4: ='O - Disconn'!AT127 -> 17 | CW4: ='O - Disconn'!AW127+'I - assumptions'!$B$119*'O - Disconn'!Q127 -> 93.95132871 | CX4: 56.08917595 | CY4: 56.40132685 | CZ4: 56.60070057 | DA4: 56.71983908 | DB4: 56.79474833
A5: 1 | B5: 2 | C5: 1 | E5: residential | F5: west | H5: =IF($E5="residential",SUMIFS('O - Res CN'!D:D,'O - Res CN'!$FS:$FS,$F5),SUMIFS('O - Comm CN'!D:D,'O - Comm CN'!$BW:$BW,$F5)) -> 126652.1419 | I5: =IF($E5="residential",SUMIFS('O - Res CN'!E:E,'O - Res CN'!$FS:$FS,$F5),SUMIFS('O - Comm CN'!E:E,'O - Comm CN'!$BW:$BW,$F5)) -> 130089.4576 | J5: =IF($E5="residential",SUMIFS('O - Res CN'!F:F,'O - Res CN'!$FS:$FS,$F5),SUMIFS('O - Comm CN'!F:F,'O - Comm CN'!$BW:$BW,$F5)) -> 133053.5531 | K5: =IF($E5="residential",SUMIFS('O - Res CN'!G:G,'O - Res CN'!$FS:$FS,$F5),SUMIFS('O - Comm CN'!G:G,'O - Comm CN'!$BW:$BW,$F5)) -> 135735.881 | L5: =IF($E5="residential",SUMIFS('O - Res CN'!H:H,'O - Res CN'!$FS:$FS,$F5),SUMIFS('O - Comm CN'!H:H,'O - Comm CN'!$BW:$BW,$F5)) -> 138386.2631 | M5: =IF($E5="residential",SUMIFS('O - Res CN'!I:I,'O - Res CN'!$FS:$FS,$F5),SUMIFS('O - Comm CN'!I:I,'O - Comm CN'!$BW:$BW,$F5)) -> 140965.7459 | N5: =IF($E5="residential",SUMIFS('O - Res CN'!J:J,'O - Res CN'!$FS:$FS,$F5),SUMIFS('O - Comm CN'!J:J,'O - Comm CN'!$BW:$BW,$F5)) -> 143023.1671 | O5: =IF($E5="residential",SUMIFS('O - Res CN'!K:K,'O - Res CN'!$FS:$FS,$F5),SUMIFS('O - Comm CN'!K:K,'O - Comm CN'!$BW:$BW,$F5)) -> 145369.257 | P5: =IF($E5="residential",SUMIFS('O - Res CN'!L:L,'O - Res CN'!$FS:$FS,$F5),SUMIFS('O - Comm CN'!L:L,'O - Comm CN'!$BW:$BW,$F5)) -> 148136.3149 | Q5: =IF($E5="residential",SUMIFS('O - Res CN'!M:M,'O - Res CN'!$FS:$FS,$F5),SUMIFS('O - Comm CN'!M:M,'O - Comm CN'!$BW:$BW,$F5)) -> 151553.4449 | R5: =IF($E5="residential",SUMIFS('O - Res CN'!N:N,'O - Res CN'!$FS:$FS,$F5),SUMIFS('O - Comm CN'!N:N,'O - Comm CN'!$BW:$BW,$F5)) -> 154425.4322 | S5: =IF($E5="residential",SUMIFS('O - Res CN'!O:O,'O - Res CN'!$FS:$FS,$F5),SUMIFS('O - Comm CN'!O:O,'O - Comm CN'!$BW:$BW,$F5)) -> 156469.9921 | T5: =IF($E5="residential",SUMIFS('O - Res CN'!P:P,'O - Res CN'!$FS:$FS,$F5),SUMIFS('O - Comm CN'!P:P,'O - Comm CN'!$BW:$BW,$F5)) -> 159553.6601 | U5: =IF($E5="residential",SUMIFS('O - Res CN'!EP:EP,'O - Res CN'!$FS:$FS,$F5)+T5, (SUMIFS('O - Comm CN'!Q:Q,'O - Comm CN'!$BW:$BW,'O - CN sum'!$F5)/SUMIFS('O - Comm CN'!P:P,'O - Comm CN'!$BW:$BW,'O - CN sum'!$F5))*T5) -> 161410.9498 | V5: =IF($E5="residential",SUMIFS('O - Res CN'!EQ:EQ,'O - Res CN'!$FS:$FS,$F5)+U5, (SUMIFS('O - Comm CN'!R:R,'O - Comm CN'!$BW:$BW,'O - CN sum'!$F5)/SUMIFS('O - Comm CN'!Q:Q,'O - Comm CN'!$BW:$BW,'O - CN sum'!$F5))*U5) -> 162797.8062 | W5: =IF($E5="residential",SUMIFS('O - Res CN'!ER:ER,'O - Res CN'!$FS:$FS,$F5)+V5, (SUMIFS('O - Comm CN'!S:S,'O - Comm CN'!$BW:$BW,'O - CN sum'!$F5)/SUMIFS('O - Comm CN'!R:R,'O - Comm CN'!$BW:$BW,'O - CN sum'!$F5))*V5) -> 163746.3283 | X5: =IF($E5="residential",SUMIFS('O - Res CN'!ES:ES,'O - Res CN'!$FS:$FS,$F5)+W5, (SUMIFS('O - Comm CN'!T:T,'O - Comm CN'!$BW:$BW,'O - CN sum'!$F5)/SUMIFS('O - Comm CN'!S:S,'O - Comm CN'!$BW:$BW,'O - CN sum'!$F5))*W5) -> 164351.9744 | Y5: =IF($E5="residential",SUMIFS('O - Res CN'!ET:ET,'O - Res CN'!$FS:$FS,$F5)+X5, (SUMIFS('O - Comm CN'!U:U,'O - Comm CN'!$BW:$BW,'O - CN sum'!$F5)/SUMIFS('O - Comm CN'!T:T,'O - Comm CN'!$BW:$BW,'O - CN sum'!$F5))*X5) -> 164732.184 | Z5: =IF($E5="residential",SUMIFS('O - Res CN'!EU:EU,'O - Res CN'!$FS:$FS,$F5)+Y5, (SUMIFS('O - Comm CN'!V:V,'O - Comm CN'!$BW:$BW,'O - CN sum'!$F5)/SUMIFS('O - Comm CN'!U:U,'O - Comm CN'!$BW:$BW,'O - CN sum'!$F5))*Y5) -> 164985.7858 | AA5: =IF($E5="residential",SUMIFS('O - Res CN'!EV:EV,'O - Res CN'!$FS:$FS,$F5)+Z5, (SUMIFS('O - Comm CN'!W:W,'O - Comm CN'!$BW:$BW,'O - CN sum'!$F5)/SUMIFS('O - Comm CN'!V:V,'O - Comm CN'!$BW:$BW,'O - CN sum'!$F5))*Z5) -> 165216.2941 | AB5: =IF($E5="residential",SUMIFS('O - Res CN'!EW:EW,'O - Res CN'!$FS:$FS,$F5)+AA5, (SUMIFS('O - Comm CN'!X:X,'O - Comm CN'!$BW:$BW,'O - CN sum'!$F5)/SUMIFS('O - Comm CN'!W:W,'O - Comm CN'!$BW:$BW,'O - CN sum'!$F5))*AA5) -> 165437.7847 | AC5: =IF($E5="residential",SUMIFS('O - Res CN'!EX:EX,'O - Res CN'!$FS:$FS,$F5)+AB5, (SUMIFS('O - Comm CN'!Y:Y,'O - Comm CN'!$BW:$BW,'O - CN sum'!$F5)/SUMIFS('O - Comm CN'!X:X,'O - Comm CN'!$BW:$BW,'O - CN sum'!$F5))*AB5) -> 165648.1517 | AD5: =IF($E5="residential",SUMIFS('O - Res CN'!EY:EY,'O - Res CN'!$FS:$FS,$F5)+AC5, (SUMIFS('O - Comm CN'!Z:Z,'O - Comm CN'!$BW:$BW,'O - CN sum'!$F5)/SUMIFS('O - Comm CN'!Y:Y,'O - Comm CN'!$BW:$BW,'O - CN sum'!$F5))*AC5) -> 165845.8847 | AE5: =IF($E5="residential",SUMIFS('O - Res CN'!EZ:EZ,'O - Res CN'!$FS:$FS,$F5)+AD5, (SUMIFS('O - Comm CN'!AA:AA,'O - Comm CN'!$BW:$BW,'O - CN sum'!$F5)/SUMIFS('O - Comm CN'!Z:Z,'O - Comm CN'!$BW:$BW,'O - CN sum'!$F5))*AD5) -> 166030.8308 | AF5: =IF($E5="residential",SUMIFS('O - Res CN'!FA:FA,'O - Res CN'!$FS:$FS,$F5)+AE5, (SUMIFS('O - Comm CN'!AB:AB,'O - Comm CN'!$BW:$BW,'O - CN sum'!$F5)/SUMIFS('O - Comm CN'!AA:AA,'O - Comm CN'!$BW:$BW,'O - CN sum'!$F5))*AE5) -> 166202.8368 | AG5: =IF($E5="residential",SUMIFS('O - Res CN'!FB:FB,'O - Res CN'!$FS:$FS,$F5)+AF5, (SUMIFS('O - Comm CN'!AC:AC,'O - Comm CN'!$BW:$BW,'O - CN sum'!$F5)/SUMIFS('O - Comm CN'!AB:AB,'O - Comm CN'!$BW:$BW,'O - CN sum'!$F5))*AF5) -> 166361.7492 | AH5: =IF($E5="residential",SUMIFS('O - Res CN'!FC:FC,'O - Res CN'!$FS:$FS,$F5)+AG5, (SUMIFS('O - Comm CN'!AD:AD,'O - Comm CN'!$BW:$BW,'O - CN sum'!$F5)/SUMIFS('O - Comm CN'!AC:AC,'O - Comm CN'!$BW:$BW,'O - CN sum'!$F5))*AG5) -> 166518.1797 | AI5: =IF($E5="residential",SUMIFS('O - Res CN'!FD:FD,'O - Res CN'!$FS:$FS,$F5)+AH5, (SUMIFS('O - Comm CN'!AE:AE,'O - Comm CN'!$BW:$BW,'O - CN sum'!$F5)/SUMIFS('O - Comm CN'!AD:AD,'O - Comm CN'!$BW:$BW,'O - CN sum'!$F5))*AH5) -> 166661.0749 | AJ5: =IF($E5="residential",SUMIFS('O - Res CN'!FE:FE,'O - Res CN'!$FS:$FS,$F5)+AI5, (SUMIFS('O - Comm CN'!AF:AF,'O - Comm CN'!$BW:$BW,'O - CN sum'!$F5)/SUMIFS('O - Comm CN'!AE:AE,'O - Comm CN'!$BW:$BW,'O - CN sum'!$F5))*AI5) -> 166790.2826 | AK5: =IF($E5="residential",SUMIFS('O - Res CN'!FF:FF,'O - Res CN'!$FS:$FS,$F5)+AJ5, (SUMIFS('O - Comm CN'!AG:AG,'O - Comm CN'!$BW:$BW,'O - CN sum'!$F5)/SUMIFS('O - Comm CN'!AF:AF,'O - Comm CN'!$BW:$BW,'O - CN sum'!$F5))*AJ5) -> 166879.7351 | AL5: =IF($E5="residential",SUMIFS('O - Res CN'!FG:FG,'O - Res CN'!$FS:$FS,$F5)+AK5, (SUMIFS('O - Comm CN'!AH:AH,'O - Comm CN'!$BW:$BW,'O - CN sum'!$F5)/SUMIFS('O - Comm CN'!AG:AG,'O - Comm CN'!$BW:$BW,'O - CN sum'!$F5))*AK5) -> 166968.0696 | AM5: =IF($E5="residential",SUMIFS('O - Res CN'!FH:FH,'O - Res CN'!$FS:$FS,$F5)+AL5, (SUMIFS('O - Comm CN'!AI:AI,'O - Comm CN'!$BW:$BW,'O - CN sum'!$F5)/SUMIFS('O - Comm CN'!AH:AH,'O - Comm CN'!$BW:$BW,'O - CN sum'!$F5))*AL5) -> 167066.9871 | AN5: =IF($E5="residential",SUMIFS('O - Res CN'!FI:FI,'O - Res CN'!$FS:$FS,$F5)+AM5, (SUMIFS('O - Comm CN'!AJ:AJ,'O - Comm CN'!$BW:$BW,'O - CN sum'!$F5)/SUMIFS('O - Comm CN'!AI:AI,'O - Comm CN'!$BW:$BW,'O - CN sum'!$F5))*AM5) -> 167164.6681 | AO5: =IF($E5="residential",SUMIFS('O - Res CN'!FJ:FJ,'O - Res CN'!$FS:$FS,$F5)+AN5, (SUMIFS('O - Comm CN'!AK:AK,'O - Comm CN'!$BW:$BW,'O - CN sum'!$F5)/SUMIFS('O - Comm CN'!AJ:AJ,'O - Comm CN'!$BW:$BW,'O - CN sum'!$F5))*AN5) -> 167261.1281 | AP5: =IF($E5="residential",SUMIFS('O - Res CN'!FK:FK,'O - Res CN'!$FS:$FS,$F5)+AO5, (SUMIFS('O - Comm CN'!AL:AL,'O - Comm CN'!$BW:$BW,'O - CN sum'!$F5)/SUMIFS('O - Comm CN'!AK:AK,'O - Comm CN'!$BW:$BW,'O - CN sum'!$F5))*AO5) -> 167356.3823 | AQ5: =IF($E5="residential",SUMIFS('O - Res CN'!FL:FL,'O - Res CN'!$FS:$FS,$F5)+AP5, (SUMIFS('O - Comm CN'!AM:AM,'O - Comm CN'!$BW:$BW,'O - CN sum'!$F5)/SUMIFS('O - Comm CN'!AL:AL,'O - Comm CN'!$BW:$BW,'O - CN sum'!$F5))*AP5) -> 167450.4459 | AR5: =IF($E5="residential",SUMIFS('O - Res CN'!FM:FM,'O - Res CN'!$FS:$FS,$F5)+AQ5, (SUMIFS('O - Comm CN'!AN:AN,'O - Comm CN'!$BW:$BW,'O - CN sum'!$F5)/SUMIFS('O - Comm CN'!AM:AM,'O - Comm CN'!$BW:$BW,'O - CN sum'!$F5))*AQ5) -> 167556.022 | AS5: =IF($E5="residential",SUMIFS('O - Res CN'!FN:FN,'O - Res CN'!$FS:$FS,$F5)+AR5, (SUMIFS('O - Comm CN'!AO:AO,'O - Comm CN'!$BW:$BW,'O - CN sum'!$F5)/SUMIFS('O - Comm CN'!AN:AN,'O - Comm CN'!$BW:$BW,'O - CN sum'!$F5))*AR5) -> 167660.2784 | AT5: =IF($E5="residential",SUMIFS('O - Res CN'!FO:FO,'O - Res CN'!$FS:$FS,$F5)+AS5, (SUMIFS('O - Comm CN'!AP:AP,'O - Comm CN'!$BW:$BW,'O - CN sum'!$F5)/SUMIFS('O - Comm CN'!AO:AO,'O - Comm CN'!$BW:$BW,'O - CN sum'!$F5))*AS5) -> 167763.2317 | AU5: =IF($E5="residential",SUMIFS('O - Res CN'!FP:FP,'O - Res CN'!$FS:$FS,$F5)+AT5, (SUMIFS('O - Comm CN'!AQ:AQ,'O - Comm CN'!$BW:$BW,'O - CN sum'!$F5)/SUMIFS('O - Comm CN'!AP:AP,'O - Comm CN'!$BW:$BW,'O - CN sum'!$F5))*AT5) -> 167864.898 | AW5: ='C - tariff volumes'!AP23 -> 158011.8261 | AX5: ='C - tariff volumes'!AR23 -> 160203.086 | AY5: ='C - tariff volumes'!AS23 -> 161147.056 | AZ5: ='C - tariff volumes'!AT23 -> 161317.5349 | BA5: ='C - tariff volumes'!AU23 -> 160698.5245 | BB5: ='C - tariff volumes'!AV23 -> 159396.4737 | BC5: ='C - tariff volumes'!AW23 -> 157718.9586 | BF5: =SUMIFS('O - Disconn'!D$126:D$133,'O - Disconn'!$A$126:$A$133,$A5,'O - Disconn'!$B$126:$B$133,$B5,'O - Disconn'!$C$126:$C$133,$C5) -> 111 | BG5: =SUMIFS('O - Disconn'!E$126:E$133,'O - Disconn'!$A$126:$A$133,$A5,'O - Disconn'!$B$126:$B$133,$B5,'O - Disconn'!$C$126:$C$133,$C5) -> 156 | BH5: =SUMIFS('O - Disconn'!F$126:F$133,'O - Disconn'!$A$126:$A$133,$A5,'O - Disconn'!$B$126:$B$133,$B5,'O - Disconn'!$C$126:$C$133,$C5) -> 112 | BI5: =SUMIFS('O - Disconn'!G$126:G$133,'O - Disconn'!$A$126:$A$133,$A5,'O - Disconn'!$B$126:$B$133,$B5,'O - Disconn'!$C$126:$C$133,$C5) -> 137 | BJ5: =SUMIFS('O - Disconn'!H$126:H$133,'O - Disconn'!$A$126:$A$133,$A5,'O - Disconn'!$B$126:$B$133,$B5,'O - Disconn'!$C$126:$C$133,$C5) -> 150 | BK5: =SUMIFS('O - Disconn'!I$126:I$133,'O - Disconn'!$A$126:$A$133,$A5,'O - Disconn'!$B$126:$B$133,$B5,'O - Disconn'!$C$126:$C$133,$C5) -> 122 | BL5: =SUMIFS('O - Disconn'!J$126:J$133,'O - Disconn'!$A$126:$A$133,$A5,'O - Disconn'!$B$126:$B$133,$B5,'O - Disconn'!$C$126:$C$133,$C5) -> 127 | BM5: =SUMIFS('O - Disconn'!K$126:K$133,'O - Disconn'!$A$126:$A$133,$A5,'O - Disconn'!$B$126:$B$133,$B5,'O - Disconn'!$C$126:$C$133,$C5) -> 134 | BN5: =SUMIFS('O - Disconn'!L$126:L$133,'O - Disconn'!$A$126:$A$133,$A5,'O - Disconn'!$B$126:$B$133,$B5,'O - Disconn'!$C$126:$C$133,$C5) -> 183 | BO5: =SUMIFS('O - Disconn'!M$126:M$133,'O - Disconn'!$A$126:$A$133,$A5,'O - Disconn'!$B$126:$B$133,$B5,'O - Disconn'!$C$126:$C$133,$C5) -> 222 | BP5: =SUMIFS('O - Disconn'!N$126:N$133,'O - Disconn'!$A$126:$A$133,$A5,'O - Disconn'!$B$126:$B$133,$B5,'O - Disconn'!$C$126:$C$133,$C5) -> 191 | BQ5: =SUMIFS('O - Disconn'!O$126:O$133,'O - Disconn'!$A$126:$A$133,$A5,'O - Disconn'!$B$126:$B$133,$B5,'O - Disconn'!$C$126:$C$133,$C5) -> 270 | BR5: =SUMIFS('O - Disconn'!P$126:P$133,'O - Disconn'!$A$126:$A$133,$A5,'O - Disconn'!$B$126:$B$133,$B5,'O - Disconn'!$C$126:$C$133,$C5) -> 272 | BS5: =SUMIFS('O - Disconn'!Q$126:Q$133,'O - Disconn'!$A$126:$A$133,$A5,'O - Disconn'!$B$126:$B$133,$B5,'O - Disconn'!$C$126:$C$133,$C5) -> 251.1107278 | BT5: =SUMIFS('O - Disconn'!R$126:R$133,'O - Disconn'!$A$126:$A$133,$A5,'O - Disconn'!$B$126:$B$133,$B5,'O - Disconn'!$C$126:$C$133,$C5) -> 253.2682923 | BU5: =SUMIFS('O - Disconn'!S$126:S$133,'O - Disconn'!$A$126:$A$133,$A5,'O - Disconn'!$B$126:$B$133,$B5,'O - Disconn'!$C$126:$C$133,$C5) -> 254.74393 | BV5: =SUMIFS('O - Disconn'!T$126:T$133,'O - Disconn'!$A$126:$A$133,$A5,'O - Disconn'!$B$126:$B$133,$B5,'O - Disconn'!$C$126:$C$133,$C5) -> 255.6861475 | BW5: =SUMIFS('O - Disconn'!U$126:U$133,'O - Disconn'!$A$126:$A$133,$A5,'O - Disconn'!$B$126:$B$133,$B5,'O - Disconn'!$C$126:$C$133,$C5) -> 256.2776484 | BX5: =SUMIFS('O - Disconn'!V$126:V$133,'O - Disconn'!$A$126:$A$133,$A5,'O - Disconn'!$B$126:$B$133,$B5,'O - Disconn'!$C$126:$C$133,$C5) -> 256.6721826 | BY5: =SUMIFS('O - Disconn'!W$126:W$133,'O - Disconn'!$A$126:$A$133,$A5,'O - Disconn'!$B$126:$B$133,$B5,'O - Disconn'!$C$126:$C$133,$C5) -> 257.0307895 | BZ5: =SUMIFS('O - Disconn'!X$126:X$133,'O - Disconn'!$A$126:$A$133,$A5,'O - Disconn'!$B$126:$B$133,$B5,'O - Disconn'!$C$126:$C$133,$C5) -> 257.3753676 | CA5: =SUMIFS('O - Disconn'!Y$126:Y$133,'O - Disconn'!$A$126:$A$133,$A5,'O - Disconn'!$B$126:$B$133,$B5,'O - Disconn'!$C$126:$C$133,$C5) -> 257.7026403 | CB5: =SUMIFS('O - Disconn'!Z$126:Z$133,'O - Disconn'!$A$126:$A$133,$A5,'O - Disconn'!$B$126:$B$133,$B5,'O - Disconn'!$C$126:$C$133,$C5) -> 258.0102582 | CC5: =SUMIFS('O - Disconn'!AA$126:AA$133,'O - Disconn'!$A$126:$A$133,$A5,'O - Disconn'!$B$126:$B$133,$B5,'O - Disconn'!$C$126:$C$133,$C5) -> 258.2979831 | CD5: =SUMIFS('O - Disconn'!AB$126:AB$133,'O - Disconn'!$A$126:$A$133,$A5,'O - Disconn'!$B$126:$B$133,$B5,'O - Disconn'!$C$126:$C$133,$C5) -> 258.5655767 | CE5: =SUMIFS('O - Disconn'!AC$126:AC$133,'O - Disconn'!$A$126:$A$133,$A5,'O - Disconn'!$B$126:$B$133,$B5,'O - Disconn'!$C$126:$C$133,$C5) -> 258.8128005 | CF5: =SUMIFS('O - Disconn'!AD$126:AD$133,'O - Disconn'!$A$126:$A$133,$A5,'O - Disconn'!$B$126:$B$133,$B5,'O - Disconn'!$C$126:$C$133,$C5) -> 259.056163 | CG5: =SUMIFS('O - Disconn'!AE$126:AE$133,'O - Disconn'!$A$126:$A$133,$A5,'O - Disconn'!$B$126:$B$133,$B5,'O - Disconn'!$C$126:$C$133,$C5) -> 259.2784683 | CH5: =SUMIFS('O - Disconn'!AF$126:AF$133,'O - Disconn'!$A$126:$A$133,$A5,'O - Disconn'!$B$126:$B$133,$B5,'O - Disconn'!$C$126:$C$133,$C5) -> 259.4794796 | CI5: =SUMIFS('O - Disconn'!AG$126:AG$133,'O - Disconn'!$A$126:$A$133,$A5,'O - Disconn'!$B$126:$B$133,$B5,'O - Disconn'!$C$126:$C$133,$C5) -> 259.6186431 | CJ5: =SUMIFS('O - Disconn'!AH$126:AH$133,'O - Disconn'!$A$126:$A$133,$A5,'O - Disconn'!$B$126:$B$133,$B5,'O - Disconn'!$C$126:$C$133,$C5) -> 259.756067 | CK5: =SUMIFS('O - Disconn'!AI$126:AI$133,'O - Disconn'!$A$126:$A$133,$A5,'O - Disconn'!$B$126:$B$133,$B5,'O - Disconn'!$C$126:$C$133,$C5) -> 259.9099552 | CL5: =SUMIFS('O - Disconn'!AJ$126:AJ$133,'O - Disconn'!$A$126:$A$133,$A5,'O - Disconn'!$B$126:$B$133,$B5,'O - Disconn'!$C$126:$C$133,$C5) -> 260.0619198 | CM5: =SUMIFS('O - Disconn'!AK$126:AK$133,'O - Disconn'!$A$126:$A$133,$A5,'O - Disconn'!$B$126:$B$133,$B5,'O - Disconn'!$C$126:$C$133,$C5) -> 260.2119848 | CN5: =SUMIFS('O - Disconn'!AL$126:AL$133,'O - Disconn'!$A$126:$A$133,$A5,'O - Disconn'!$B$126:$B$133,$B5,'O - Disconn'!$C$126:$C$133,$C5) -> 260.360174 | CO5: =SUMIFS('O - Disconn'!AM$126:AM$133,'O - Disconn'!$A$126:$A$133,$A5,'O - Disconn'!$B$126:$B$133,$B5,'O - Disconn'!$C$126:$C$133,$C5) -> 260.5065109 | CP5: =SUMIFS('O - Disconn'!AN$126:AN$133,'O - Disconn'!$A$126:$A$133,$A5,'O - Disconn'!$B$126:$B$133,$B5,'O - Disconn'!$C$126:$C$133,$C5) -> 260.6707581 | CQ5: =SUMIFS('O - Disconn'!AO$126:AO$133,'O - Disconn'!$A$126:$A$133,$A5,'O - Disconn'!$B$126:$B$133,$B5,'O - Disconn'!$C$126:$C$133,$C5) -> 260.8329522 | CR5: =SUMIFS('O - Disconn'!AP$126:AP$133,'O - Disconn'!$A$126:$A$133,$A5,'O - Disconn'!$B$126:$B$133,$B5,'O - Disconn'!$C$126:$C$133,$C5) -> 260.9931189 | CS5: =SUMIFS('O - Disconn'!AQ$126:AQ$133,'O - Disconn'!$A$126:$A$133,$A5,'O - Disconn'!$B$126:$B$133,$B5,'O - Disconn'!$C$126:$C$133,$C5) -> 261.1512835 | CV5: ='O - Disconn'!AT128 -> 136 | CW5: ='O - Disconn'!AW128+'I - assumptions'!$B$119*'O - Disconn'!Q128 -> 408.5553639 | CX5: 252.1895101 | CY5: 254.0061111 | CZ5: 255.2150387 | DA5: 255.9818979 | DB5: 256.4749155
